{"text_format":"1","workbook":"xlsx","n_sheets":2,"sheets":["Anket-Huuliin etgeed-MN","    "],"not_rendered":{"charts":0,"images":1,"macros":1,"external_links":0,"defined_names":2,"comments":1,"pivot_tables":0},"unopened":[],"bounds":{"document_bytes":16777216,"sheet_cells":100000,"rows_first":2000,"rows_last":500,"rows_between":2000,"halvings":0,"cell_chars":16384,"cell_head_chars":4096},"cells_cut":0,"cells_raw":0,"read":"whole","date_system":"1900"}

{"sheet":"Anket-Huuliin etgeed-MN","index":0,"n_rows":357,"n_cols":113,"rows_kept":357,"cut":false,"hidden":false,"merged":[[163,23,163,34],[164,23,164,34],[155,23,155,34],[156,23,156,34],[157,23,157,34],[158,23,158,34],[159,23,159,34],[160,23,160,34],[137,1,137,55],[141,2,141,12],[141,13,141,22],[141,23,141,30],[141,31,141,41],[141,42,141,55],[151,2,151,12],[151,13,151,22],[151,23,151,30],[151,31,151,41],[151,42,151,55],[62,21,62,36],[62,48,62,64],[161,23,161,34],[162,23,162,34],[130,2,130,14],[130,15,130,20],[130,21,130,26],[130,27,130,33],[130,34,130,40],[130,41,130,45],[149,2,149,12],[149,13,149,22],[149,23,149,30],[149,31,149,41],[149,42,149,55],[150,2,150,12],[150,13,150,22],[150,23,150,30],[150,31,150,41],[150,42,150,55],[147,2,147,12],[147,13,147,22],[147,23,147,30],[147,31,147,41],[147,42,147,55],[148,2,148,12],[148,13,148,22],[148,23,148,30],[148,31,148,41],[148,42,148,55],[145,2,145,12],[145,13,145,22],[145,23,145,30],[145,31,145,41],[145,42,145,55],[146,2,146,12],[146,13,146,22],[146,23,146,30],[146,31,146,41],[146,42,146,55],[143,2,143,12],[143,13,143,22],[143,23,143,30],[143,31,143,41],[143,42,143,55],[144,2,144,12],[144,13,144,22],[144,23,144,30],[144,31,144,41],[144,42,144,55],[133,2,133,14],[133,15,133,20],[133,21,133,26],[133,27,133,33],[133,34,133,40],[133,41,133,45],[133,46,133,50],[133,51,133,55],[142,2,142,12],[142,13,142,22],[142,23,142,30],[142,31,142,41],[142,42,142,55],[131,2,131,14],[131,15,131,20],[131,21,131,26],[131,27,131,33],[131,34,131,40],[131,41,131,45],[131,46,131,50],[131,51,131,55],[132,2,132,14],[132,15,132,20],[132,21,132,26],[132,27,132,33],[132,34,132,40],[132,41,132,45],[132,46,132,50],[132,51,132,55],[129,2,129,14],[129,15,129,20],[129,21,129,26],[129,27,129,33],[129,34,129,40],[129,41,129,45],[129,46,129,50],[129,51,129,55],[130,46,130,50],[130,51,130,55],[127,2,127,14],[127,15,127,20],[127,21,127,26],[127,27,127,33],[127,34,127,40],[127,41,127,45],[127,46,127,50],[127,51,127,55],[128,2,128,14],[128,15,128,20],[128,21,128,26],[128,27,128,33],[128,34,128,40],[128,41,128,45],[128,46,128,50],[128,51,128,55],[125,2,125,14],[125,15,125,20],[125,21,125,26],[125,27,125,33],[125,34,125,40],[125,41,125,45],[125,46,125,50],[125,51,125,55],[126,2,126,14],[126,15,126,20],[126,21,126,26],[126,27,126,33],[126,34,126,40],[126,41,126,45],[126,46,126,50],[126,51,126,55],[123,46,123,50],[123,51,123,55],[124,2,124,14],[124,15,124,20],[124,21,124,26],[124,27,124,33],[124,34,124,40],[124,41,124,45],[124,46,124,50],[124,51,124,55],[123,2,123,14],[123,15,123,20],[123,21,123,26],[123,27,123,33],[123,34,123,40],[116,2,116,10],[116,11,116,17],[116,18,116,24],[116,25,116,31],[116,32,116,38],[116,39,116,45],[118,2,118,10],[118,11,118,17],[118,18,118,24],[118,25,118,31],[118,32,118,38],[118,39,118,45],[119,2,119,10],[119,11,119,17],[119,18,119,24],[119,25,119,31],[119,32,119,38],[119,39,119,45],[123,41,123,45],[117,2,117,10],[117,11,117,17],[117,18,117,24],[117,25,117,31],[117,32,117,38],[117,39,117,45],[117,46,117,54],[117,55,117,56],[122,18,122,29],[118,46,118,54],[118,55,118,56],[119,46,119,54],[119,55,119,56],[115,2,115,10],[115,11,115,17],[115,18,115,24],[115,25,115,31],[115,32,115,38],[115,39,115,45],[115,46,115,54],[115,55,115,56],[116,46,116,54],[116,55,116,56],[113,2,113,10],[113,11,113,17],[113,18,113,24],[113,25,113,31],[113,32,113,38],[113,39,113,45],[113,46,113,54],[113,55,113,56],[114,2,114,10],[114,11,114,17],[114,18,114,24],[114,25,114,31],[114,32,114,38],[114,39,114,45],[114,46,114,54],[114,55,114,56],[111,2,111,10],[111,11,111,17],[111,18,111,24],[111,25,111,31],[111,32,111,38],[111,39,111,45],[111,46,111,54],[111,55,111,56],[112,2,112,10],[112,11,112,17],[112,18,112,24],[112,25,112,31],[112,32,112,38],[112,39,112,45],[112,46,112,54],[112,55,112,56],[109,2,109,10],[109,11,109,17],[109,18,109,24],[109,25,109,31],[109,32,109,38],[109,39,109,45],[109,46,109,54],[109,55,109,56],[110,2,110,10],[110,11,110,17],[110,18,110,24],[110,25,110,31],[110,32,110,38],[110,39,110,45],[110,46,110,54],[110,55,110,56],[104,60,104,61],[104,62,104,63],[105,2,105,14],[105,15,105,20],[105,21,105,26],[105,27,105,33],[105,34,105,45],[105,46,105,55],[105,56,105,59],[105,60,105,61],[104,2,104,14],[104,15,104,20],[104,21,104,26],[104,27,104,33],[104,34,104,45],[104,46,104,55],[104,56,104,59],[105,62,105,63],[103,2,103,14],[103,15,103,20],[103,21,103,26],[103,27,103,33],[103,34,103,45],[103,46,103,55],[103,56,103,59],[103,60,103,61],[103,62,103,63],[102,2,102,14],[102,15,102,20],[102,21,102,26],[102,27,102,33],[102,34,102,45],[102,46,102,55],[102,56,102,59],[102,60,102,61],[102,62,102,63],[100,60,100,61],[100,62,100,63],[101,2,101,14],[101,15,101,20],[101,21,101,26],[101,27,101,33],[101,34,101,45],[101,46,101,55],[101,56,101,59],[101,60,101,61],[100,2,100,14],[100,15,100,20],[100,21,100,26],[100,27,100,33],[100,34,100,45],[100,46,100,55],[100,56,100,59],[101,62,101,63],[99,2,99,14],[99,15,99,20],[99,21,99,26],[99,27,99,33],[99,34,99,45],[99,46,99,55],[99,56,99,59],[99,60,99,61],[99,62,99,63],[98,2,98,14],[98,15,98,20],[98,21,98,26],[98,27,98,33],[98,34,98,45],[98,46,98,55],[98,56,98,59],[98,60,98,61],[98,62,98,63],[96,60,96,61],[96,62,96,63],[97,2,97,14],[97,15,97,20],[97,21,97,26],[97,27,97,33],[97,34,97,45],[97,46,97,55],[97,56,97,59],[97,60,97,61],[96,2,96,14],[96,15,96,20],[96,21,96,26],[96,27,96,33],[96,34,96,45],[96,46,96,55],[96,56,96,59],[97,62,97,63],[95,2,95,14],[95,15,95,20],[95,21,95,26],[95,27,95,33],[95,34,95,45],[95,46,95,55],[95,56,95,59],[95,60,95,61],[95,62,95,63],[91,57,91,58],[91,59,91,60],[91,61,91,62],[90,1,90,10],[90,11,90,17],[90,18,90,22],[90,23,90,25],[90,26,90,33],[90,34,90,39],[90,40,90,45],[90,46,90,51],[90,52,90,56],[90,57,90,58],[90,59,90,60],[90,61,90,62],[91,1,91,10],[91,11,91,17],[91,18,91,22],[91,23,91,25],[91,26,91,33],[91,34,91,39],[91,40,91,45],[91,46,91,51],[91,52,91,56],[89,57,89,58],[89,59,89,60],[89,61,89,62],[88,1,88,10],[88,11,88,17],[88,18,88,22],[88,23,88,25],[88,26,88,33],[88,34,88,39],[88,40,88,45],[88,46,88,51],[88,52,88,56],[88,57,88,58],[88,59,88,60],[88,61,88,62],[89,1,89,10],[89,11,89,17],[89,18,89,22],[89,23,89,25],[89,26,89,33],[89,34,89,39],[89,40,89,45],[89,46,89,51],[89,52,89,56],[87,57,87,58],[87,59,87,60],[87,61,87,62],[86,1,86,10],[86,11,86,17],[86,18,86,22],[86,23,86,25],[86,26,86,33],[86,34,86,39],[86,40,86,45],[86,46,86,51],[86,52,86,56],[86,57,86,58],[86,59,86,60],[86,61,86,62],[87,1,87,10],[87,11,87,17],[87,18,87,22],[87,23,87,25],[87,26,87,33],[87,34,87,39],[87,40,87,45],[87,46,87,51],[87,52,87,56],[85,57,85,58],[85,59,85,60],[85,61,85,62],[84,1,84,10],[84,11,84,17],[84,18,84,22],[84,23,84,25],[84,26,84,33],[84,34,84,39],[84,40,84,45],[84,46,84,51],[84,52,84,56],[84,57,84,58],[84,59,84,60],[84,61,84,62],[85,1,85,10],[85,11,85,17],[85,18,85,22],[85,23,85,25],[85,26,85,33],[85,34,85,39],[85,40,85,45],[85,46,85,51],[85,52,85,56],[83,57,83,58],[83,59,83,60],[83,61,83,62],[82,1,82,10],[82,11,82,17],[82,18,82,22],[82,23,82,25],[82,26,82,33],[82,34,82,39],[82,40,82,45],[82,46,82,51],[82,52,82,56],[82,57,82,58],[82,59,82,60],[82,61,82,62],[83,1,83,10],[83,11,83,17],[83,18,83,22],[83,23,83,25],[83,26,83,33],[83,34,83,39],[83,40,83,45],[83,46,83,51],[83,52,83,56],[77,1,77,10],[77,11,77,16],[77,17,77,20],[77,21,77,25],[77,26,77,28],[76,1,76,10],[76,11,76,16],[81,59,81,60],[81,61,81,62],[81,1,81,10],[81,11,81,17],[81,18,81,22],[81,23,81,25],[81,26,81,33],[81,34,81,39],[81,40,81,45],[81,46,81,51],[81,52,81,56],[81,57,81,58],[77,62,77,63],[76,56,76,57],[76,58,76,59],[77,64,77,65],[76,62,76,63],[76,64,76,65],[75,43,75,48],[77,29,77,36],[77,37,77,42],[75,58,75,59],[75,60,75,61],[75,62,75,63],[77,49,77,55],[77,56,77,57],[77,58,77,59],[77,60,77,61],[77,43,77,48],[76,37,76,42],[76,43,76,48],[76,49,76,55],[74,37,74,42],[76,60,76,61],[76,17,76,20],[76,21,76,25],[76,26,76,28],[76,29,76,36],[75,49,75,55],[75,56,75,57],[75,29,75,36],[75,37,75,42],[74,43,74,48],[74,49,74,55],[74,1,74,10],[74,11,74,16],[74,17,74,20],[74,21,74,25],[74,26,74,28],[74,29,74,36],[72,11,72,16],[75,64,75,65],[74,62,74,63],[74,64,74,65],[75,1,75,10],[75,11,75,16],[75,17,75,20],[74,56,74,57],[74,58,74,59],[74,60,74,61],[75,21,75,25],[75,26,75,28],[73,43,73,48],[72,37,72,42],[72,43,72,48],[72,49,72,55],[73,29,73,36],[73,37,73,42],[73,64,73,65],[72,62,72,63],[72,64,72,65],[73,1,73,10],[73,11,73,16],[73,17,73,20],[73,21,73,25],[73,26,73,28],[72,1,72,10],[72,17,72,20],[72,21,72,25],[72,26,72,28],[72,29,72,36],[71,62,71,63],[73,49,73,55],[73,56,73,57],[73,58,73,59],[73,60,73,61],[73,62,73,63],[72,60,72,61],[72,56,72,57],[71,49,71,55],[71,56,71,57],[72,58,72,59],[71,29,71,36],[71,37,71,42],[71,43,71,48],[71,21,71,25],[70,60,70,61],[70,1,70,10],[70,11,70,16],[70,17,70,20],[70,21,70,25],[70,26,70,28],[70,29,70,36],[70,37,70,42],[71,58,71,59],[71,60,71,61],[68,1,68,10],[68,11,68,16],[71,64,71,65],[70,62,70,63],[70,64,70,65],[71,1,71,10],[71,11,71,16],[71,17,71,20],[70,56,70,57],[70,58,70,59],[71,26,71,28],[69,43,69,48],[68,37,68,42],[68,43,68,48],[68,49,68,55],[68,56,68,57],[69,37,69,42],[70,43,70,48],[70,49,70,55],[68,58,68,59],[69,64,69,65],[68,62,68,63],[68,64,68,65],[69,1,69,10],[69,11,69,16],[69,17,69,20],[69,21,69,25],[69,26,69,28],[69,29,69,36],[67,56,67,57],[67,58,67,59],[67,60,67,61],[67,62,67,63],[69,49,69,55],[69,56,69,57],[69,58,69,59],[69,60,69,61],[69,62,69,63],[68,60,68,61],[67,43,67,48],[68,17,68,20],[68,21,68,25],[68,26,68,28],[68,29,68,36],[67,49,67,55],[67,64,67,65],[61,21,61,44],[61,61,61,64],[67,1,67,10],[67,11,67,16],[67,17,67,20],[67,21,67,25],[67,26,67,28],[67,29,67,36],[67,37,67,42],[51,21,51,44],[51,61,51,64],[54,21,54,36],[54,48,54,64],[55,21,55,26],[55,39,55,44],[55,53,55,58],[55,62,55,64],[52,21,52,36],[52,48,52,64],[56,21,56,44],[56,61,56,64],[59,21,59,36],[59,48,59,64],[60,21,60,26],[60,39,60,44],[60,53,60,58],[60,62,60,64],[57,21,57,36],[57,48,57,64],[41,21,41,44],[41,61,41,64],[44,21,44,36],[44,48,44,64],[45,21,45,26],[45,39,45,44],[45,53,45,58],[45,62,45,64],[42,21,42,36],[42,48,42,64],[46,21,46,44],[46,61,46,64],[49,21,49,36],[49,48,49,64],[50,21,50,26],[50,39,50,44],[50,53,50,58],[50,62,50,64],[47,21,47,36],[47,48,47,64],[33,14,33,30],[33,39,33,55],[34,14,34,55],[35,14,35,55],[39,21,39,36],[39,48,39,64],[40,21,40,26],[40,39,40,44],[40,53,40,58],[40,62,40,64],[24,6,24,50],[28,14,28,29],[28,42,28,55],[29,14,29,29],[29,42,29,55],[30,14,30,29],[30,42,30,55],[31,14,31,29],[31,42,31,55]]}
[null,null,null,null,null,null,null,null,null,null,null,null,null,null,null,null,null,null,null,null,null,null,null,null,null,null,null,null,null,null,null,null,null,null,null,null,null,null,null,null,null,null,null,null,null,null,null,null,null,null,null,null,null,null,null,null,null,null,null,null,null,null,null,null,null,null,null,null,null,{"$f":"+BT1+((BR2-1)*IF(BR2=0,0,5))","v":50},"ss1",{"$f":"VLOOKUP(BS1,BU:BV,2,0)","v":40},null,1,0,"Тийм","Гэрлээгүй",null,"Эхнэр","Эцэг","Ах",null,null,null,null,null,null,null,null,null,null,null,null,null,null,null,"A:ХӨДӨӨ АЖ АХУЙ, ОЙН АЖ АХУЙ, ЗАГАС БАРИЛТ, АН АГНУУР","A",null,{"$f":"CONCATENATE(\"DB\",CX1,\":\",\"DB\",CY1)","v":{"$error":"#N/A"}},{"$f":"VLOOKUP(V43,CS$1:CT$20,2,0)","v":{"$error":"#N/A"}},{"$f":"VLOOKUP(CW1,DA:DF,6,0)","v":{"$error":"#N/A"}},{"$f":"VLOOKUP(CW1,DE:DF,2,0)","v":{"$error":"#N/A"}},null,"Sector","Код ба салбарын ангилал","Байгаль орчны эрсдлийн түвшин","Тайлбар",null,null,"Risk Level Assigned","Comments"]
[null,null,null,null,null,null,null,null,null,null,null,null,null,null,null,null,null,null,null,null,null,null,null,null,null,null,null,null,null,null,null,null,null,null,null,null,null,null,null,null,null,null,null,null,null,null,null,null,null,null,null,null,null,null,null,null,null,null,null,null,null,null,null,null,null,null,null,null,null,3,"ss2",64,null,2,1,"Үгүй","Гэрлэсэн",null,"Нөхөр","Эх","Эгч",null,null,null,null,null,null,null,null,null,null,null,null,null,null,null,"B:УУЛ УУРХАЙ, ОЛБОРЛОЛТ","B",null,null,null,null,null,null,"A","01101:Байгаль орчныг өөрчлөх,  эсвэл өргөн  хэмжээний  эрчимт газар тариалан эрхлэх ","Өндөр","Үнэлгээ хийнэ",{"$f":"IF(DA2=DA3,0,DA2)","v":0},2,"High","Assessment",2]
[null,null,null,null,null,null,null,null,null,null,null,null,null,null,null,null,null,null,null,null,null,null,null,null,null,null,null,null,null,null,null,null,null,null,null,null,null,null,null,null,null,null,null,null,null,null,null,null,null,null,null,null,null,null,null,null,null,null,null,null,null,null,null,null,null,null,null,null,null,{"$f":"+BT3+BR4-IF(BR4=1,1,0)","v":71},"ss3",68,null,3,2,"MNT","Салсан",null,"Төрсөн хүүхэд","Хадам эцэг","Дүү",null,null,null,null,null,null,null,null,null,null,null,null,null,null,null,"C:БОЛОВСРУУЛАХ ҮЙЛДВЭРЛЭЛ","C",null,{"$f":"CONCATENATE(\"DB\",CX3,\":\",\"DB\",CY3)","v":{"$error":"#N/A"}},{"$f":"VLOOKUP(V48,CS$1:CT$20,2,0)","v":{"$error":"#N/A"}},{"$f":"VLOOKUP(CW3,DA:DF,6,0)","v":{"$error":"#N/A"}},{"$f":"VLOOKUP(CW3,DE:DF,2,0)","v":{"$error":"#N/A"}},null,"A","01102:Генетикийн өөрчлөлт оруулсан организмийг байгальд  нутагшуулах,  эсвэл нутагшуулах худалдаа хийх ","Өндөр","Зөвшөөрөл авах",0,3,"High","Referral List Activity",3]
[null,null,null,null,null,null,null,null,null,null,null,null,null,null,null,null,null,null,null,null,null,null,null,null,null,null,null,null,null,null,null,null,null,null,null,null,null,null,null,null,null,null,null,null,null,null,null,null,null,null,null,null,null,null,null,null,null,null,null,null,null,null,null,null,null,null,null,null,null,3,"ss4",79,null,4,3,"USD","Нас барсан",null,"Дагавар хүүхэд","Хадам эх","Авга",null,null,null,null,null,null,null,null,null,null,null,null,null,null,null,"D:ЦАХИЛГААН, ХИЙ, УУР, АГААРЖУУЛАЛТЫН ХАНГАМЖ","D",null,null,null,null,null,null,"A","01110:Yр тариа (цагаан будааг оруулахгүйгээр), буурцагт болон тосны ургамал тариалалт","Дунд",null,0,4,"Medium",null,1]
[null,null,null,null,null,null,null,null,null,null,null,null,null,null,null,null,null,null,null,null,null,null,null,null,null,null,null,null,null,null,null,null,null,null,null,null,null,null,null,null,null,null,null,null,null,null,null,null,null,null,null,null,null,null,null,null,null,null,null,null,null,null,null,null,null,null,null,null,null,{"$f":"+BT5+BR6-IF(BR6=1,1,0)","v":85},"ss5",82,null,5,4,"CNY","Сураггүй алга болсон",null,"Үрчлэн авсан хүүхэд","Өвөг эцэг","Авгын хүүхэд",null,null,null,null,null,null,null,null,null,null,null,null,null,null,null,"E:УСАН ХАНГАМЖ; БОХИР УС, ХОГ, ХАЯГДЛЫН МЕНЕЖМЕНТ БОЛОН ЦЭВЭРЛЭХ ҮЙЛ АЖИЛЛАГАА","E",null,{"$f":"CONCATENATE(\"DB\",CX5,\":\",\"DB\",CY5)","v":{"$error":"#N/A"}},{"$f":"VLOOKUP(V53,CS$1:CT$20,2,0)","v":{"$error":"#N/A"}},{"$f":"VLOOKUP(CW5,DA:DF,6,0)","v":{"$error":"#N/A"}},{"$f":"VLOOKUP(CW5,DE:DF,2,0)","v":{"$error":"#N/A"}},null,"A","01120:Цагаан будаа тариалалт","Дунд",null,0,5,"Medium",null,1]
[null,null,null,null,null,null,null,null,null,null,null,null,null,null,null,null,null,null,null,null,null,null,null,null,null,null,null,null,null,null,null,null,null,null,null,null,null,null,null,null,null,null,null,null,null,null,null,null,null,null,null,null,null,null,null,null,null,null,null,null,null,null,null,null,null,null,null,null,null,3,"ss6",93,null,6,5,null,"Гадаадад байгаа",null,"Эцэг","Эмэг эх","Нагац",null,null,null,null,null,null,null,null,null,null,null,null,null,null,null,"F:БАРИЛГА","F",null,null,null,null,null,null,"A","01130:Хүнсний ногоо болон амтат гуа, үндэст болон булцуут ургамал тариалалт","Бага",null,0,6,"Low",null,1]
[null,null,null,null,null,null,null,null,null,null,null,null,null,null,null,null,null,null,null,null,null,null,null,null,null,null,null,null,null,null,null,null,null,null,null,null,null,null,null,null,null,null,null,null,null,null,null,null,null,null,null,null,null,null,null,null,null,null,null,null,null,null,null,null,null,null,null,null,null,{"$f":"+BT7+BR8-IF(BR8=1,1,0)","v":99},"ss7",96,null,7,6,null,"Хамтран амьдрагчтай",null,"Эх","Ач хүү","Нагацын хүүхэд",null,null,null,null,null,null,null,null,null,null,null,null,null,null,null,"G:БӨӨНИЙ БОЛОН ЖИЖИГЛЭН ХУДАЛДАА; МАШИН, МОТОЦИКЛИЙН ЗАСВАР ҮЙЛЧИЛГЭЭ","G",null,{"$f":"CONCATENATE(\"DB\",CX7,\":\",\"DB\",CY7)","v":{"$error":"#N/A"}},{"$f":"VLOOKUP(V58,CS$1:CT$20,2,0)","v":{"$error":"#N/A"}},{"$f":"VLOOKUP(CW7,DA:DF,6,0)","v":{"$error":"#N/A"}},{"$f":"VLOOKUP(CW7,DE:DF,2,0)","v":{"$error":"#N/A"}},null,"A","01140:Чихрийн нишингэ тариалалт","Бага",null,0,7,"Low",null,1]
[null,null,null,null,null,null,null,null,null,null,null,null,null,null,null,null,null,null,null,null,null,null,null,null,null,null,null,null,null,null,null,null,null,null,null,null,null,null,null,null,null,null,null,null,null,null,null,null,null,null,null,null,null,null,null,null,null,null,null,null,null,null,null,null,null,null,null,null,null,3,"ss8",107,null,8,7,null,null,null,"Хадам эцэг","Ач охин",null,null,null,null,null,null,null,null,null,null,null,null,null,null,null,null,"H:ТЭЭВЭР БА АГУУЛАХЫН ҮЙЛ АЖИЛЛАГАА","H",null,null,null,null,null,null,"A","01150:Тамхины ургамал тариалалт","Өндөр","Санхүүжүүлэхгүй",0,8,"High","Exclusion List Activity",4]
[null,null,null,null,null,null,null,null,null,null,null,null,null,null,null,null,null,null,null,null,null,null,null,null,null,null,null,null,null,null,null,null,null,null,null,null,null,null,null,null,null,null,null,null,null,null,null,null,null,null,null,null,null,null,null,null,null,null,null,null,null,null,null,null,null,null,null,null,null,{"$f":"+BT9+BR10-IF(BR10=1,1,0)","v":113},"ss9",110,null,9,8,null,"Эр",null,"Хадам эх","Зээ хүү",null,null,null,null,null,null,null,null,null,null,null,null,null,null,null,null,"I:БАЙР, СУУЦ БОЛОН ХООЛ ХҮНСЭЭР ҮЙЛЧЛЭХ ҮЙЛ АЖИЛЛАГАА","I",null,{"$f":"CONCATENATE(\"DB\",CX9,\":\",\"DB\",CY9)","v":{"$error":"#N/A"}},{"$f":"VLOOKUP(V63,CS$1:CT$20,2,0)","v":{"$error":"#N/A"}},{"$f":"VLOOKUP(CW9,DA:DF,6,0)","v":{"$error":"#N/A"}},{"$f":"VLOOKUP(CW9,DE:DF,2,0)","v":{"$error":"#N/A"}},null,"A","01160:Хөвөнгийн ургамал тариалалт","Бага",null,0,9,"Low",null,1]
[null,null,null,null,null,null,null,null,null,null,null,null,null,null,null,null,null,null,null,null,null,null,null,null,null,null,null,null,null,null,null,null,null,null,null,null,null,null,null,null,null,null,null,null,null,null,null,null,null,null,null,null,null,null,null,null,null,null,null,null,null,null,null,null,null,null,null,null,null,3,"ss10",121,null,10,9,null,"Эм",null,"Өвөг эцэг","Зээ охин",null,null,null,null,null,null,null,null,null,null,null,null,null,null,null,null,"J:МЭДЭЭЛЭЛ, ХОЛБОО","J",null,null,null,null,null,null,"A","01170:Нэг наст бусад ургамал тариалалт","Бага",null,0,10,"Low",null,1]
[null,null,null,null,null,null,null,null,null,null,null,null,null,null,null,null,null,null,null,null,null,null,null,null,null,null,null,null,null,null,null,null,null,null,null,null,null,null,null,null,null,null,null,null,null,null,null,null,null,null,null,null,null,null,null,null,null,null,null,null,null,null,null,null,null,null,null,null,null,{"$f":"+BT11+BR12-IF(BR12=1,1,0)","v":127},"ss11",124,null,11,10,null,null,null,"Эмэг эх",null,null,null,null,null,null,null,null,null,null,null,null,null,null,null,null,null,"K:САНХҮҮГИЙН БОЛОН ДААТГАЛЫН ҮЙЛ АЖИЛЛАГАА","K",null,null,null,null,null,null,"A","01200:Олон наст ургамал тариалалт","Бага",null,0,11,"Low",null,1]
[null,null,null,null,null,null,null,null,null,null,null,null,null,null,null,null,null,null,null,null,null,null,null,null,null,null,null,null,null,null,null,null,null,null,null,null,null,null,null,null,null,null,null,null,null,null,null,null,null,null,null,null,null,null,null,null,null,null,null,null,null,null,null,null,null,null,null,null,null,3,"ss12",135,null,12,11,null,"Бүрэн бус дунд",null,"Ач хүү",null,null,null,null,null,null,null,null,null,null,null,null,null,null,null,null,null,"L:ҮЛ ХӨДЛӨХ ХӨРӨНГИЙН ҮЙЛ АЖИЛЛАГАА","L",null,null,null,null,null,null,"A","01300:Ургамал тарих, ургуулах үйл ажиллагаа","Бага",null,0,12,"Low",null,1]
[null,null,null,null,null,null,null,null,null,null,null,null,null,null,null,null,null,null,null,null,null,null,null,null,null,null,null,null,null,null,null,null,null,null,null,null,null,null,null,null,null,null,null,null,null,null,null,null,null,null,null,null,null,null,null,null,null,null,null,null,null,null,null,null,null,null,null,null,null,{"$f":"+BT13+BR14-IF(BR14=1,1,0)","v":145},"ss13",142,null,13,12,null,"Бүрэн дунд",null,"Ач охин",null,null,null,null,null,null,null,null,null,null,null,null,null,null,null,null,null,"M:МЭРГЭЖЛИЙН, ШИНЖЛЭХ УХААН БОЛОН ТЕХНИКИЙН ҮЙЛ АЖИЛЛАГАА","M",null,null,null,null,null,null,"A","01400:Мал, амьтан өсгөх, үржүүлэх аж ахуйн үйл ажиллагаа","Дунд",null,0,13,"Medium",null,1]
[null,null,null,null,null,null,null,null,null,null,null,null,null,null,null,null,null,null,null,null,null,null,null,null,null,null,null,null,null,null,null,null,null,null,null,null,null,null,null,null,null,null,null,null,null,null,null,null,null,null,null,null,null,null,null,null,null,null,null,null,null,null,null,null,null,null,null,null,null,3,"ss14",153,null,14,13,null,"Техникум, коллеж",null,"Зээ хүү",null,null,null,null,null,null,null,null,null,null,null,null,null,null,null,null,null,"O:ТӨРИЙН УДИРДЛАГА БА БАТЛАН ХАМГААЛАХ ҮЙЛ АЖИЛЛАГАА, АЛБАН ЖУРМЫН НИЙГМИЙН ХАМГААЛАЛ","O",null,null,null,null,null,null,"A","01410:Сүүний үхэр өсгөх үйл ажиллагаа","Дунд",null,0,14,"Medium",null,1]
[null,null,null,null,null,null,null,null,null,null,null,null,null,null,null,null,null,null,null,null,null,null,null,null,null,null,null,null,null,null,null,null,null,null,null,null,null,null,null,null,null,null,null,null,null,null,null,null,null,null,null,null,null,null,null,null,null,null,null,null,null,null,null,null,null,null,null,null,null,{"$f":"+BT15+BR16-1","v":158},"ss15",156,null,15,14,null,"Дээд",null,"Зээ охин",null,null,null,null,null,null,null,null,null,null,null,null,null,null,null,null,null,"P:БОЛОВСРОЛ","P",null,null,null,null,null,null,"A","01420: Yхэр, сарлаг өсгөх үйл ажиллагаа","Дунд",null,0,15,"Medium",null,1]
[null,null,null,null,null,null,null,null,null,null,null,null,null,null,null,null,null,null,null,null,null,null,null,null,null,null,null,null,null,null,null,null,null,null,null,null,null,null,null,null,null,null,null,null,null,null,null,null,null,null,null,null,null,null,null,null,null,null,null,null,null,null,null,null,null,null,null,null,null,3,"ss16",166,null,16,15,null,null,null,"Ах",null,null,null,null,null,null,null,null,null,null,null,null,null,null,null,null,null,"Q:ХҮНИЙ ЭРҮҮЛ МЭНД БА НИЙГМИЙН ҮЙЛ АЖИЛЛАГАА","Q",null,null,null,null,null,null,"A","01430: Адуу (адууны төрлийн бусад амьтан) өсгөх үйл ажиллагаа","Дунд",null,0,16,"Medium",null,1]
[null,null,null,null,null,null,null,null,null,null,null,null,null,null,null,null,null,null,null,null,null,null,null,null,null,null,null,null,null,null,null,null,null,null,null,null,null,null,null,null,null,null,null,null,null,null,null,null,null,null,null,null,null,null,null,null,null,null,null,null,null,null,null,null,null,null,null,null,null,null,null,null,null,17,16,null,null,null,"Эгч",null,null,null,null,null,null,null,null,null,null,null,null,null,null,null,null,null,"R:УРЛАГ, ҮЗВЭР, ТОГЛООМ НААДАМ","R",null,null,null,null,null,null,"A","01440: Тэмээ(тэмээний төрлийн амьтан) өсгөх үйл ажиллагаа","Дунд",null,0,17,"Medium",null,1]
[null,null,null,null,null,null,null,null,null,null,null,null,null,null,null,null,null,null,null,null,null,null,null,null,null,null,null,null,null,null,null,null,null,null,null,null,null,null,null,null,null,null,null,null,null,null,null,null,null,null,null,null,null,null,null,null,null,null,null,null,null,null,null,null,null,null,null,null,null,null,null,null,null,18,17,null,null,null,"Дүү",null,null,null,null,null,null,null,null,null,null,null,null,null,null,null,null,null,"S:ҮЙЛЧИЛГЭЭНИЙ БУСАД ҮЙЛ АЖИЛЛАГАА","S",null,null,null,null,null,null,"A","01450: Хонь, ямаа өсгөх үйл ажиллагаа","Дунд",null,0,18,"Medium",null,1]
[null,null,null,null,null,null,null,null,null,null,null,null,null,null,null,null,null,null,null,null,null,null,null,null,null,null,null,null,null,null,null,null,null,null,null,null,null,null,null,null,null,null,null,null,null,null,null,null,null,null,null,null,null,null,null,null,null,null,null,null,null,null,null,null,null,null,null,null,null,null,null,null,null,19,18,null,null,null,"Авга",null,null,null,null,null,null,null,null,null,null,null,null,null,null,null,null,null,"T:ХҮН ХӨЛСЛӨН АЖИЛЛУУЛДАГ ӨРХИЙН ҮЙЛ АЖИЛЛАГАА; ӨРХИЙН ӨӨРИЙН ХЭРЭГЛЭЭНД ЗОРИУЛАН ҮЙЛДВЭРЛЭСЭН ХЭМЖЭЭГ НЬ ТОДОРХОЙЛОХ БОЛОМЖГҮЙ БҮТЭЭГДЭХҮҮН, ҮЙЛЧИЛГЭЭ","T",null,null,null,null,null,null,"A","01460: Гахайн аж ахуйн үйл ажиллагаа","Дунд",null,0,19,"Medium",null,1]
[null,null,null,null,null,null,null,null,null,null,null,null,null,null,null,null,null,null,null,null,null,null,null,null,null,null,null,null,null,null,null,null,null,null,null,null,null,null,null,null,null,null,null,null,null,null,null,null,null,null,null,null,null,null,null,null,null,null,null,null,null,null,null,null,null,null,null,null,null,null,null,null,null,20,19,null,null,null,"Авгын хүүхэд",null,null,null,null,null,null,null,null,null,null,null,null,null,null,null,null,null,"U:ОЛОН УЛСЫН БАЙГУУЛЛАГА, СУУРИН ТӨЛӨӨЛӨГЧИЙН ҮЙЛ АЖИЛЛАГАА","U",null,null,null,null,null,null,"A","01461:2,000 махны гахайн байр (30 кг-аас илүү жинтэй)эсвэл 750-с илүү мэгжний байр гахайн эрчимтэй АА","Өндөр","Үнэлгээ хийнэ",0,20,"High","Assessment",2]
[null,null,null,null,null,null,null,null,null,null,null,null,null,null,null,null,null,null,null,null,null,null,null,null,null,null,null,null,null,null,null,null,null,null,null,null,null,null,null,null,null,null,null,null,null,null,null,null,null,null,null,null,null,null,null,null,null,null,null,null,null,null,null,null,null,null,null,null,null,null,null,null,null,21,20,null,null,null,"Нагац",null,null,null,null,null,null,null,null,null,null,null,null,null,null,null,null,null,null,null,null,null,null,null,null,null,"A","01470: Гэрийн тэжээвэр шувууны аж ахуйн үйл ажиллагаа","Дунд",null,0,21,"Medium",null,1]
[null,null,null,null,null,null,null,null,null,null,null,null,null,null,null,null,null,null,null,null,null,null,null,null,null,null,null,null,null,null,null,null,null,null,null,null,null,null,null,null,null,null,null,null,null,null,null,null,null,null,null,null,null,null,null,null,null,null,null,null,null,null,null,null,null,null,null,null,null,null,null,null,null,22,null,null,null,null,"Нагацын хүүхэд",null,null,null,null,null,null,null,null,null,null,null,null,null,null,null,null,null,null,null,null,null,null,null,null,null,"A","01471:40,000 шувууны байртай шувууны эрчимтэй АА","Өндөр","Үнэлгээ хийнэ",0,22,"High","Assessment",2]
[null,null,null,null,null,null,null,null,null,null,null,null,null,null,null,null,null,null,null,null,null,null,null,null,null,null,null,null,null,null,null,null,null,null,null,null,null,null,null,null,null,null,null,null,null,null,null,null,null,null,null,null,null,null,null,null,null,null,null,null,null,null,null,null,null,null,null,null,null,null,null,null,null,23,null,null,null,null,null,null,null,null,null,null,null,null,null,null,null,null,null,null,null,null,null,null,null,null,null,null,null,null,null,null,"A","01490: Бусад амьтан өсгөх үйл ажиллагаа","Дунд",null,0,23,"Medium",null,1]
[null,null,null,null,null,null,null,null,null,null,null,null,null,null,null,null,null,null,null,null,null,null,null,null,null,null,null,null,null,null,null,null,null,null,null,null,null,null,null,null,null,null,null,null,null,null,null,null,null,null,null,null,null,null,null,null,null,null,null,null,null,null,null,null,null,null,null,null,null,null,null,null,null,24,null,null,null,null,null,null,null,null,null,null,null,null,null,null,null,null,null,null,null,null,null,null,null,null,null,null,null,null,null,null,"A","01500: Холимог фермерийн аж ахуй","Дунд",null,0,24,"Medium",null,1]
[null,null,null,null,null,null,"ЗЭЭЛ ХҮСЭГЧИЙН АНКЕТ / ХУУЛИЙН ЭТГЭЭД /",null,null,null,null,null,null,null,null,null,null,null,null,null,null,null,null,null,null,null,null,null,null,null,null,null,null,null,null,null,null,null,null,null,null,null,null,null,null,null,null,null,null,null,null,null,null,null,null,null,null,null,null,null,null,null,null,null,"Маягт №: з207",null,null,null,null,null,null,25,null,25,null,null,null,null,null,null,null,null,null,null,null,null,null,null,null,null,null,null,null,null,null,null,null,null,null,null,null,null,null,null,"A","01600: Хөдөө аж ахуй болон ургац хураалтын дараахь шатны үйл ажиллагааг дэмжсэн туслах үйл ажиллагаа","Дунд",null,0,25,"Medium",null,1]
["Та доорхи мэдээллийг үнэн зөв бөглөхийг анхаарна уу",null,null,null,null,null,null,null,null,null,null,null,null,null,null,null,null,null,null,null,null,null,null,null,null,null,null,null,null,null,null,null,null,null,null,null,null,null,null,null,null,null,null,null,null,null,null,null,null,null,null,null,null,null,null,null,null,null,null,null,null,null,null,null,{"$f":"IF(O29=\"\",\"\",CONCATENATE(\"Зээл хүсэгч ''\",O29,\"''-ийн мэдээлэл\"))","v":"Зээл хүсэгч ''.''-ийн мэдээлэл"},null,null,null,null,null,null,26,null,26,null,null,null,null,null,null,null,null,null,null,null,null,null,null,null,null,null,null,null,null,null,null,null,null,null,null,null,null,null,null,"A","01610: Газар тариалангийн үйлдвэрлэлийг дэмжсэн туслах үйл ажиллагаа","Дунд",null,0,26,"Medium",null,1]
["1. Ерөнхий мэдээлэл",null,null,null,null,null,null,null,null,null,null,null,null,null,null,null,null,null,null,null,null,null,null,null,null,null,null,null,null,null,null,null,null,null,null,null,null,null,null,null,null,null,null,null,null,null,null,null,null,null,null,null,null,null,null,null,null,null,null,null,null,null,null,null,null,null,null,null,null,null,null,null,null,27,null,null,null,null,null,null,null,null,null,null,null,null,null,null,null,null,null,null,null,null,null,null,null,null,null,null,null,null,null,null,"A","01620: Мал, амьтны ашиг шимийг авахад туслах үйл ажиллагаа","Дунд",null,0,27,"Medium",null,1]
[null,null,null,null,null,null,null,null,null,null,null,null,null,null,null,null,null,null,null,null,null,null,null,null,null,null,null,null,null,null,null,null,null,null,null,null,null,null,null,null,null,null,null,null,null,null,null,null,null,null,null,null,null,null,null,null,null,null,null,null,null,null,null,null,null,null,null,null,null,null,null,null,null,28,null,null,null,null,null,null,null,null,null,null,null,null,null,null,null,null,null,null,null,null,null,null,null,null,null,null,null,null,null,null,"A","01630: Тариа хураалтын дараахь үйл ажиллагаа","Дунд",null,0,28,"Medium",null,1]
[null,"Хуулийн этгээдийн нэр:",null,null,null,null,null,null,null,null,null,null,null,null,".",null,null,null,null,null,null,null,null,null,null,null,null,null,null,null,null,"Ажилчдын тоо:",null,null,null,null,null,null,null,null,null,null,null,null,null,null,null,null,null,null,null,null,null,null,null,null,null,null,null,null,null,null,null,null,null,null,null,null,null,null,null,null,null,29,null,null,null,null,null,null,null,null,null,null,null,null,null,null,null,null,null,null,null,null,null,null,null,null,null,null,null,null,null,null,"A","01640: Үржүүлгийн үр боловсруулах үйл ажиллагаа","Дунд",null,0,29,"Medium",null,1]
[null,"Улсын бүртгэлийн дугаар:",null,null,null,null,null,null,null,null,null,null,null,null,null,null,null,null,null,null,null,null,null,null,null,null,null,null,null,null,null,"Байгуулагдсан огноо:",null,null,null,null,null,null,null,null,null,null,null,null,null,null,null,null,null,null,null,null,null,null,null,null,null,null,null,null,null,null,null,null,null,null,null,null,null,null,null,null,null,30,null,null,null,null,null,null,null,null,null,null,null,null,null,null,null,null,null,null,null,null,null,null,null,null,null,null,null,null,null,null,"A","01700: Ан агнуур, түүнд холбогдох үйл ажиллагаа","Дунд","Үнэлгээ хийнэ",0,30,"Medium","Assessment",2]
[null,"Регистерийн дугаар:",null,null,null,null,null,null,null,null,null,null,null,null,null,null,null,null,null,null,null,null,null,null,null,null,null,null,null,null,null,"Утас/Факсын дугаар:",null,null,null,null,null,null,null,null,null,null,null,null,null,null,null,null,null,null,null,null,null,null,null,null,null,null,null,null,null,null,null,null,null,null,null,null,null,null,null,null,null,31,null,null,null,null,null,null,null,null,null,null,null,null,null,null,null,null,null,null,null,null,null,null,null,null,null,null,null,null,null,null,"A","02100: Мод тарих үйл ажиллагаа болон бусад ойн аж ахуй","Өндөр","Үнэлгээ хийнэ",0,31,"High","Assessment",2]
[null,"Вэб сайт:",null,null,null,null,null,null,null,null,null,null,null,null,null,null,null,null,null,null,null,null,null,null,null,null,null,null,null,null,null,"Мэйл хаяг:",null,null,null,null,null,null,null,null,null,null,null,null,null,null,null,null,null,null,null,null,null,null,null,null,null,null,null,null,null,null,null,null,null,null,null,null,null,null,null,null,null,32,null,null,null,null,null,null,null,null,null,null,null,null,null,null,null,null,null,null,null,null,null,null,null,null,null,null,null,null,null,null,"A","02200: Мод бэлтгэл","Өндөр","Үнэлгээ хийнэ",0,32,"High","Assessment",2]
[null,null,null,null,null,null,null,null,null,null,null,null,null,null,null,null,null,null,null,null,null,null,null,null,null,null,null,null,null,null,null,null,null,null,null,null,null,null,null,null,null,null,null,null,null,null,null,null,null,null,null,null,null,null,null,null,null,null,null,null,null,null,null,null,null,null,null,null,null,null,null,null,null,33,null,null,null,null,null,null,null,null,null,null,null,null,null,null,null,null,null,null,null,null,null,null,null,null,null,null,null,null,null,null,"A","02201:Нөхөн сэргээлт хийлгүйгээр ойгоос мод бэлтгэх","Өндөр","Санхүүжүүлэхгүй",0,33,"High","Exclusion List Activity",4]
[null,"Байгууллагын хэлбэр",null,null,null,null,null,null,null,null,null,null,null,null,null,null,null,null,null,null,null,null,null,null,null,null,null,null,null,null,null,"Секторын ангилал:",null,null,null,null,null,null,null,null,null,null,null,null,null,null,null,null,null,null,null,null,null,null,null,null,null,null,null,null,null,null,null,null,null,null,null,null,null,null,null,null,null,34,null,null,null,null,null,null,null,null,null,null,null,null,null,null,null,null,null,null,null,null,null,null,null,null,null,null,null,null,null,null,"A","02300: Ойн бүтээгдэхүүнийг цуглуулах үйл ажиллагаа","Бага",null,0,34,"Low",null,1]
[null,"Хуулийн этгээдийн хаяг:",null,null,null,null,null,null,null,null,null,null,null,null,null,null,null,null,null,null,null,null,null,null,null,null,null,null,null,null,null,null,null,null,null,null,null,null,null,null,null,null,null,null,null,null,null,null,null,null,null,null,null,null,null,null,null,null,null,null,null,null,null,null,null,null,null,null,null,null,null,null,null,35,null,null,null,null,null,null,null,null,null,null,null,null,null,null,null,null,null,null,null,null,null,null,null,null,null,null,null,null,null,null,"A","02400: Ойн аж ахуйн туслах үйл ажиллагаа","Дунд",null,0,35,"Medium",null,1]
[null,"Дэлгэрэнгүй хаяг:",null,null,null,null,null,null,null,null,null,null,null,null,null,null,null,null,null,null,null,null,null,null,null,null,null,null,null,null,null,null,null,null,null,null,null,null,null,null,null,null,null,null,null,null,null,null,null,null,null,null,null,null,null,null,null,null,null,null,null,null,null,null,null,null,null,null,null,null,null,null,null,36,null,null,null,null,null,null,null,null,null,null,null,null,null,null,null,null,null,null,null,null,null,null,null,null,null,null,null,null,null,null,"A","03100:Загас агнуур ","Дунд","Үнэлгээ хийнэ",0,36,"Low","Assessment",2]
[null,null,null,null,null,null,null,null,null,null,null,null,null,null,null,null,null,null,null,null,null,null,null,null,null,null,null,null,null,null,null,null,null,null,null,null,null,null,null,null,null,null,null,null,null,null,null,null,null,null,null,null,null,null,null,null,null,null,null,null,null,null,null,null,null,null,null,null,null,null,null,null,null,37,null,null,null,null,null,null,null,null,null,null,null,null,null,null,null,null,null,null,null,null,null,null,null,null,null,null,null,null,null,null,"A","03110:Далайн загас агнуур","Дунд","Үнэлгээ хийнэ",0,37,"Low","Assessment",2]
["2. Бизнесийн танилцуулга",null,null,null,null,null,null,null,null,null,null,null,null,null,null,null,null,null,null,null,null,null,null,null,null,null,null,null,null,null,null,null,null,null,null,null,null,"Бизнесийн тоо:",null,null,null,null,null,null,null,null,null,null,null,null,null,null,null,null,null,null,null,null,null,null,null,null,null,null,null,null,null,null,null,null,null,null,null,38,null,null,null,null,null,null,null,null,null,null,null,null,null,null,null,null,null,null,null,null,null,null,{"$f":"MAX(CS43,CS48,CS53,CS58,CS63)","v":0},null,null,null,null,null,null,null,"A","03111:2.5 км-ээс илүү урттай хөвөгч тороор загасчлах ","Өндөр","Санхүүжүүлэхгүй",0,38,"High","Exclusion List Activity",4]
[null,null,null,null,null,null,null,null,null,null,null,null,null,null,null,null,null,null,null,null,null,null,null,null,null,null,null,null,null,null,null,null,null,null,null,null,null,null,null,null,null,null,null,null,null,null,null,null,null,null,null,null,null,null,null,null,null,null,null,null,null,null,null,null,null,null,null,null,null,null,null,null,null,39,null,null,null,null,null,null,null,null,null,null,null,null,null,null,null,null,null,null,null,null,null,null,null,null,null,null,null,null,null,null,"A","03120:Цэнгэг усны загас барилт  ","Дунд","Үнэлгээ хийнэ",0,39,"Low","Assessment",2]
[null,"Бизнес - 1 Үйл ажиллагааны чиглэл:",null,null,null,null,null,null,null,null,null,null,null,null,null,null,null,null,null,null,null,null,null,null,null,null,null,null,null,null,null,null,null,null,null,null,null,null,"Секторын ангилал:",null,null,null,null,null,null,null,null,null,null,null,null,null,null,null,null,null,null,null,null,null,null,null,null,null,null,null,null,null,null,null,null,null,"ss1",40,null,null,null,null,null,null,null,null,null,null,null,null,null,null,null,null,null,null,null,null,null,null,null,null,null,null,null,null,null,null,"A","03200:Загас үржүүлэг ","Дунд","Үнэлгээ хийнэ",0,40,"Low","Assessment",2]
[null,"Тайлан тэнцлийн товч: Нийт актив:",null,null,null,null,null,null,null,null,null,null,null,null,null,null,null,null,null,null,null,null,null,null,null,null,null,"Жилийн нийт борлуулалт:",null,null,null,null,null,null,null,null,null,null,null,null,null,null,null,null,null,null,null,null,"Нийт ашиг:",null,null,null,null,null,null,null,null,null,null,"Валют:",null,null,null,null,null,null,null,null,null,null,null,null,null,41,null,null,null,null,null,null,null,null,null,null,null,null,null,null,null,null,null,null,null,null,null,null,null,null,null,null,null,null,null,null,"A","03210:Далайн загас үржүүлэг","Дунд","Үнэлгээ хийнэ",0,41,"Low","Assessment",2]
[null,"Байршил:",null,null,null,null,null,null,null,null,null,null,null,null,null,null,null,null,null,null,null,null,null,null,null,null,null,null,null,null,null,null,null,null,null,null,null,null,null,null,null,null,null,null,null,null,null,null,"Зээл тус бизнест зориулагдах эсэх:",null,null,null,null,null,null,null,null,null,null,null,null,null,null,null,null,null,null,null,null,null,null,null,null,42,null,null,null,null,null,null,null,null,null,null,null,null,null,null,null,null,null,null,null,null,null,null,null,null,null,null,null,null,null,null,"A","03220:Цэнгэг усны загас үржүүлэг ","Дунд","Үнэлгээ хийнэ","A",42,"Low","Assessment",2]
[null,"Салбарын ангилал:",null,null,null,null,null,null,null,null,null,null,null,null,null,null,null,null,null,null,null,null,null,null,null,null,null,null,null,null,null,null,null,null,null,null,null,null,"Дэд ангилал:",null,null,null,null,null,null,null,null,null,null,null,null,null,null,null,null,null,null,null,null,null,null,null,null,null,null,null,{"$f":"IF(AW43=0,\"\",CONCATENATE(\"Байгаль орчин, нийгэмд нөлөөлөх эрсдлийн үнэлгээ: \",IF(VLOOKUP(AW43,DB:DD,3,0)=0,\"Үнэлгээ хийх шаардлагагүй\",VLOOKUP(AW43,DB:DD,3,0))))","v":""},null,null,null,null,null,null,43,null,null,null,null,null,null,null,null,null,null,null,null,null,null,null,null,null,null,null,null,null,null,{"$f":"IF(AW43=0,0,VLOOKUP(AW43,DB:DI,8,0))","v":0},null,null,null,null,null,null,null,"B","05100:Чулуун нүүрсний олборлолт","Өндөр","Үнэлгээ хийнэ",0,43,"High","Assessment",2]
[null,null,null,null,null,null,null,null,null,null,null,null,null,null,null,null,null,null,null,null,null,null,null,null,null,null,null,null,null,null,null,null,null,null,null,null,null,null,null,null,null,null,null,null,null,null,null,null,null,null,null,null,null,null,null,null,null,null,null,null,null,null,null,null,null,null,null,null,null,null,null,null,null,44,null,null,null,null,null,null,null,null,null,null,null,null,null,null,null,null,null,null,null,null,null,null,null,null,null,null,null,null,null,null,"B","05200:Хүрэн нүүрсний олборлолт","Өндөр","Үнэлгээ хийнэ",0,44,"High","Assessment",2]
[null,"Бизнес - 2 Үйл ажиллагааны чиглэл:",null,null,null,null,null,null,null,null,null,null,null,null,null,null,null,null,null,null,null,null,null,null,null,null,null,null,null,null,null,null,null,null,null,null,null,null,"Секторын ангилал:",null,null,null,null,null,null,null,null,null,null,null,null,null,null,null,null,null,null,null,null,null,null,null,null,null,null,null,null,null,null,null,null,null,null,45,null,null,null,null,null,null,null,null,null,null,null,null,null,null,null,null,null,null,null,null,null,null,null,null,null,null,null,null,null,null,"B","06100:Түүхий газрын тос олборлолт ","Өндөр","Үнэлгээ хийнэ",0,45,"High","Assessment",2]
[null,"Тайлан тэнцлийн товч: Нийт актив:",null,null,null,null,null,null,null,null,null,null,null,null,null,null,null,null,null,null,null,null,null,null,null,null,null,"Жилийн нийт борлуулалт:",null,null,null,null,null,null,null,null,null,null,null,null,null,null,null,null,null,null,null,null,"Нийт ашиг:",null,null,null,null,null,null,null,null,null,null,"Валют:",null,null,null,null,null,null,null,null,null,null,null,null,null,46,null,null,null,null,null,null,null,null,null,null,null,null,null,null,null,null,null,null,null,null,null,null,null,null,null,null,null,null,null,null,"B","06200:Байгалийн хий олборлолт ","Өндөр","Үнэлгээ хийнэ",0,46,"High","Assessment",2]
[null,"Байршил:",null,null,null,null,null,null,null,null,null,null,null,null,null,null,null,null,null,null,null,null,null,null,null,null,null,null,null,null,null,null,null,null,null,null,null,null,null,null,null,null,null,null,null,null,null,null,"Зээл тус бизнест зориулагдах эсэх:",null,null,null,null,null,null,null,null,null,null,null,null,null,null,null,null,null,null,null,null,null,null,null,null,47,null,null,null,null,null,null,null,null,null,null,null,null,null,null,null,null,null,null,null,null,null,null,null,null,null,null,null,null,null,null,"B","07100:Төмрийн хүдрийн олборлолт","Өндөр","Үнэлгээ хийнэ",0,47,"High","Assessment",2]
[null,"Салбарын ангилал:",null,null,null,null,null,null,null,null,null,null,null,null,null,null,null,null,null,null,null,null,null,null,null,null,null,null,null,null,null,null,null,null,null,null,null,null,"Дэд ангилал:",null,null,null,null,null,null,null,null,null,null,null,null,null,null,null,null,null,null,null,null,null,null,null,null,null,null,null,{"$f":"IF(AW48=0,\"\",CONCATENATE(\"Байгаль орчин, нийгэмд нөлөөлөх эрсдлийн үнэлгээ: \",IF(VLOOKUP(AW48,DB:DD,3,0)=0,\"Үнэлгээ хийх шаардлагагүй\",VLOOKUP(AW48,DB:DD,3,0))))","v":""},null,null,null,null,null,null,48,null,null,null,null,null,null,null,null,null,null,null,null,null,null,null,null,null,null,null,null,null,null,{"$f":"IF(AW48=0,0,VLOOKUP(AW48,DB:DI,8,0))","v":0},null,null,null,null,null,null,null,"B","07210: Уран олборлолт","Өндөр","Зөвшөөрөл авах",0,48,"High","Referral List Activity",3]
[null,null,null,null,null,null,null,null,null,null,null,null,null,null,null,null,null,null,null,null,null,null,null,null,null,null,null,null,null,null,null,null,null,null,null,null,null,null,null,null,null,null,null,null,null,null,null,null,null,null,null,null,null,null,null,null,null,null,null,null,null,null,null,null,null,null,null,null,null,null,null,null,null,49,null,null,null,null,null,null,null,null,null,null,null,null,null,null,null,null,null,null,null,null,null,null,null,null,null,null,null,null,null,null,"B","07290: Бусад өнгөт төмөрлөгийн хүдэр олборлолт ","Өндөр","Үнэлгээ хийнэ",0,49,"High","Assessment",2]
[null,"Бизнес - 3 Үйл ажиллагааны чиглэл:",null,null,null,null,null,null,null,null,null,null,null,null,null,null,null,null,null,null,null,null,null,null,null,null,null,null,null,null,null,null,null,null,null,null,null,null,"Секторын ангилал:",null,null,null,null,null,null,null,null,null,null,null,null,null,null,null,null,null,null,null,null,null,null,null,null,null,null,null,null,null,null,null,null,null,null,50,null,null,null,null,null,null,null,null,null,null,null,null,null,null,null,null,null,null,null,null,null,null,null,null,null,null,null,null,null,null,"B","08100: Чулуу, элс, шороо олборлолт","Өндөр","Үнэлгээ хийнэ",0,50,"High","Assessment",2]
[null,"Тайлан тэнцлийн товч: Нийт актив:",null,null,null,null,null,null,null,null,null,null,null,null,null,null,null,null,null,null,null,null,null,null,null,null,null,"Жилийн нийт борлуулалт:",null,null,null,null,null,null,null,null,null,null,null,null,null,null,null,null,null,null,null,null,"Нийт ашиг:",null,null,null,null,null,null,null,null,null,null,"Валют:",null,null,null,null,null,null,null,null,null,null,null,null,null,51,null,null,null,null,null,null,null,null,null,null,null,null,null,null,null,null,null,null,null,null,null,null,null,null,null,null,null,null,null,null,"B","08110:Засал чимэглэлийн болон барилгын чулуу, шохойн чулуу, гипс, шохой олборлолт  ","Өндөр","Үнэлгээ хийнэ",0,51,"High","Assessment",2]
[null,"Байршил:",null,null,null,null,null,null,null,null,null,null,null,null,null,null,null,null,null,null,null,null,null,null,null,null,null,null,null,null,null,null,null,null,null,null,null,null,null,null,null,null,null,null,null,null,null,null,"Зээл тус бизнест зориулагдах эсэх:",null,null,null,null,null,null,null,null,null,null,null,null,"Тийм",null,null,null,null,null,null,null,null,null,null,null,52,null,null,null,null,null,null,null,null,null,null,null,null,null,null,null,null,null,null,null,null,null,null,null,null,null,null,null,null,null,null,"B","08120:Хайрга дайрга, элсний цооног ажиллуулах, шавар каолин олборлолт","Өндөр","Үнэлгээ хийнэ",0,52,"High","Assessment",2]
[null,"Салбарын ангилал:",null,null,null,null,null,null,null,null,null,null,null,null,null,null,null,null,null,null,null,null,null,null,null,null,null,null,null,null,null,null,null,null,null,null,null,null,"Дэд ангилал:",null,null,null,null,null,null,null,null,null,null,null,null,null,null,null,null,null,null,null,null,null,null,null,null,null,null,null,{"$f":"IF(AW53=0,\"\",CONCATENATE(\"Байгаль орчин, нийгэмд нөлөөлөх эрсдлийн үнэлгээ: \",IF(VLOOKUP(AW53,DB:DD,3,0)=0,\"Үнэлгээ хийх шаардлагагүй\",VLOOKUP(AW53,DB:DD,3,0))))","v":""},null,null,null,null,null,null,53,null,null,null,null,null,null,null,null,null,null,null,null,null,null,null,null,null,null,null,null,null,null,{"$f":"IF(AW53=0,0,VLOOKUP(AW53,DB:DI,8,0))","v":0},null,null,null,null,null,null,null,"B","08910:Химийн  болон бордооны  бусад эрдэс бодис олборлолт","Өндөр","Үнэлгээ хийнэ",0,53,"High","Assessment",2]
[null,null,null,null,null,null,null,null,null,null,null,null,null,null,null,null,null,null,null,null,null,null,null,null,null,null,null,null,null,null,null,null,null,null,null,null,null,null,null,null,null,null,null,null,null,null,null,null,null,null,null,null,null,null,null,null,null,null,null,null,null,null,null,null,null,null,null,null,null,null,null,null,null,54,null,null,null,null,null,null,null,null,null,null,null,null,null,null,null,null,null,null,null,null,null,null,null,null,null,null,null,null,null,null,"B","08920: Хүлэр цуглуулах, олборлох үйл ажиллагаа","Өндөр","Үнэлгээ хийнэ",0,54,"High","Assessment",2]
[null,"Бизнес - 4 Үйл ажиллагааны чиглэл:",null,null,null,null,null,null,null,null,null,null,null,null,null,null,null,null,null,null,null,null,null,null,null,null,null,null,null,null,null,null,null,null,null,null,null,null,"Секторын ангилал:",null,null,null,null,null,null,null,null,null,null,null,null,null,null,null,null,null,null,null,null,null,null,null,null,null,null,null,null,null,null,null,null,null,null,55,null,null,null,null,null,null,null,null,null,null,null,null,null,null,null,null,null,null,null,null,null,null,null,null,null,null,null,null,null,null,"B","08930: Давс олборлолт","Өндөр","Үнэлгээ хийнэ",0,55,"High","Assessment",2]
[null,"Тайлан тэнцлийн товч: Нийт актив:",null,null,null,null,null,null,null,null,null,null,null,null,null,null,null,null,null,null,null,null,null,null,null,null,null,"Жилийн нийт борлуулалт:",null,null,null,null,null,null,null,null,null,null,null,null,null,null,null,null,null,null,null,null,"Нийт ашиг:",null,null,null,null,null,null,null,null,null,null,"Валют:",null,null,null,null,null,null,null,null,null,null,null,null,null,56,null,null,null,null,null,null,null,null,null,null,null,null,null,null,null,null,null,null,null,null,null,null,null,null,null,null,null,null,null,null,"B","08990: Дээрх ангид ороогүй бусад ашигт малтмалын олборлолт","Өндөр","Үнэлгээ хийнэ",0,56,"High","Assessment",2]
[null,"Байршил:",null,null,null,null,null,null,null,null,null,null,null,null,null,null,null,null,null,null,null,null,null,null,null,null,null,null,null,null,null,null,null,null,null,null,null,null,null,null,null,null,null,null,null,null,null,null,"Зээл тус бизнест зориулагдах эсэх:",null,null,null,null,null,null,null,null,null,null,null,null,null,null,null,null,null,null,null,null,null,null,null,null,57,null,null,null,null,null,null,null,null,null,null,null,null,null,null,null,null,null,null,null,null,null,null,null,null,null,null,null,null,null,null,"B","09100: Түүхий газрын тос, хийн уул уурхайн туслах үйл ажиллагаа","Өндөр","Үнэлгээ хийнэ",0,57,"High","Assessment",2]
[null,"Салбарын ангилал:",null,null,null,null,null,null,null,null,null,null,null,null,null,null,null,null,null,null,null,null,null,null,null,null,null,null,null,null,null,null,null,null,null,null,null,null,"Дэд ангилал:",null,null,null,null,null,null,null,null,null,null,null,null,null,null,null,null,null,null,null,null,null,null,null,null,null,null,null,{"$f":"IF(AW58=0,\"\",CONCATENATE(\"Байгаль орчин, нийгэмд нөлөөлөх эрсдлийн үнэлгээ: \",IF(VLOOKUP(AW58,DB:DD,3,0)=0,\"Үнэлгээ хийх шаардлагагүй\",VLOOKUP(AW58,DB:DD,3,0))))","v":""},null,null,null,null,null,null,58,null,null,null,null,null,null,null,null,null,null,null,null,null,null,null,null,null,null,null,null,null,null,{"$f":"IF(AW58=0,0,VLOOKUP(AW58,DB:DI,8,0))","v":0},null,null,null,null,null,null,null,"B","09900: Уул уурхай, олборлолтын бусад туслах үйл ажиллагаа","Өндөр","Үнэлгээ хийнэ","B",58,"High","Assessment",2]
[null,null,null,null,null,null,null,null,null,null,null,null,null,null,null,null,null,null,null,null,null,null,null,null,null,null,null,null,null,null,null,null,null,null,null,null,null,null,null,null,null,null,null,null,null,null,null,null,null,null,null,null,null,null,null,null,null,null,null,null,null,null,null,null,null,null,null,null,null,null,null,null,null,59,null,null,null,null,null,null,null,null,null,null,null,null,null,null,null,null,null,null,null,null,null,null,null,null,null,null,null,null,null,null,"C","10100:Мах, махан бүтээгдэхүүний үйлдвэрлэл болон хадгалалт ","Дунд","Үнэлгээ хийнэ",0,59,"Medium","Assessment",2]
[null,"Бизнес - 5 Үйл ажиллагааны чиглэл:",null,null,null,null,null,null,null,null,null,null,null,null,null,null,null,null,null,null,null,null,null,null,null,null,null,null,null,null,null,null,null,null,null,null,null,null,"Секторын ангилал:",null,null,null,null,null,null,null,null,null,null,null,null,null,null,null,null,null,null,null,null,null,null,null,null,null,null,null,null,null,null,null,null,null,null,60,null,null,null,null,null,null,null,null,null,null,null,null,null,null,null,null,null,null,null,null,null,null,null,null,null,null,null,null,null,null,"C","10110:Мах боловсруулах, хадгалах ","Дунд","Үнэлгээ хийнэ",0,60,"Medium","Assessment",2]
[null,"Тайлан тэнцлийн товч: Нийт актив:",null,null,null,null,null,null,null,null,null,null,null,null,null,null,null,null,null,null,null,null,null,null,null,null,null,"Жилийн нийт борлуулалт:",null,null,null,null,null,null,null,null,null,null,null,null,null,null,null,null,null,null,null,null,"Нийт ашиг:",null,null,null,null,null,null,null,null,null,null,"Валют:",null,null,null,null,null,null,null,null,null,null,null,null,null,61,null,null,null,null,null,null,null,null,null,null,null,null,null,null,null,null,null,null,null,null,null,null,null,null,null,null,null,null,null,null,"C","10120:Шувууны мах  боловсруулах, хадгалах","Дунд","Үнэлгээ хийнэ",0,61,"Medium","Assessment",2]
[null,"Байршил:",null,null,null,null,null,null,null,null,null,null,null,null,null,null,null,null,null,null,null,null,null,null,null,null,null,null,null,null,null,null,null,null,null,null,null,null,null,null,null,null,null,null,null,null,null,null,"Зээл тус бизнест зориулагдах эсэх:",null,null,null,null,null,null,null,null,null,null,null,null,null,null,null,null,null,null,null,null,null,null,null,null,62,null,null,null,null,null,null,null,null,null,null,null,null,null,null,null,null,null,null,null,null,null,null,null,null,null,null,null,null,null,null,"C","10130:Мах болон шувууны махан бүтээгдэхүүн үйлдвэрлэл","Дунд","Үнэлгээ хийнэ",0,62,"Medium","Assessment",2]
[null,"Салбарын ангилал:",null,null,null,null,null,null,null,null,null,null,null,null,null,null,null,null,null,null,null,null,null,null,null,null,null,null,null,null,null,null,null,null,null,null,null,null,"Дэд ангилал:",null,null,null,null,null,null,null,null,null,null,null,null,null,null,null,null,null,null,null,null,null,null,null,null,null,null,null,{"$f":"IF(AW63=0,\"\",CONCATENATE(\"Байгаль орчин, нийгэмд нөлөөлөх эрсдлийн үнэлгээ: \",IF(VLOOKUP(AW63,DB:DD,3,0)=0,\"Үнэлгээ хийх шаардлагагүй\",VLOOKUP(AW63,DB:DD,3,0))))","v":""},null,null,null,null,null,null,63,null,null,null,null,null,null,null,null,null,null,null,null,null,null,null,null,null,null,null,null,null,null,{"$f":"IF(AW63=0,0,VLOOKUP(AW63,DB:DI,8,0))","v":0},null,null,null,null,null,null,null,"C","10200:Загас, загасан бүтээгдэхүүний үйлдвэрлэл болон хадгалалт","Дунд","Үнэлгээ хийнэ",0,63,"Medium","Assessment",2]
[null,null,null,null,null,null,null,null,null,null,null,null,null,null,null,null,null,null,null,null,null,null,null,null,null,null,null,null,null,null,null,null,null,null,null,null,null,null,null,null,null,null,null,null,null,null,null,null,null,null,null,null,null,null,null,null,null,null,null,null,null,null,null,null,null,null,null,null,null,null,null,null,"ss2",64,null,null,null,null,null,null,null,null,null,null,null,null,null,null,null,null,null,null,null,null,null,null,null,null,null,null,null,null,null,null,"C","10300:Жимс болон хүнсний ногооны боловсруулалт, хадгалалт","Дунд","Үнэлгээ хийнэ",0,64,"Medium","Assessment",2]
[null,null,null,null,null,null,null,null,null,null,null,null,null,null,null,null,null,null,null,null,null,null,null,null,null,null,null,null,null,null,null,null,null,null,null,null,null,null,null,null,null,null,null,null,null,null,null,null,null,null,null,null,null,null,null,null,null,null,null,null,null,null,null,null,null,null,null,null,null,null,null,null,null,65,null,null,null,null,null,null,null,null,null,null,null,null,null,null,null,null,null,null,null,null,null,null,null,null,null,null,null,null,null,null,"C","10310:Төмс боловсруулалт, хадгалалт ","Дунд","Үнэлгээ хийнэ",0,65,"Medium","Assessment",2]
[null,null,null,null,null,null,null,null,null,null,null,null,null,null,null,null,null,null,null,null,null,null,null,null,null,null,null,null,null,null,null,null,null,null,null,null,null,null,null,null,null,null,null,null,null,null,null,null,null,null,null,null,null,null,null,null,null,null,null,null,null,null,null,null,null,null,null,null,null,null,null,null,null,66,null,null,null,null,null,null,null,null,null,null,null,null,null,null,null,null,null,null,null,null,null,null,null,null,null,null,null,null,null,null,"C","10320:Жимс болон хүнсний ногооны жүүс(шүүс) үйлдвэрлэл","Дунд","Үнэлгээ хийнэ",{"$f":"IF(DA66=DA67,0,DA66)","v":0},66,"Medium","Assessment",2]
["3. Хувьцаа эзэмшигчдийн танилцуулга",null,null,null,null,null,null,null,null,null,null,null,null,null,null,null,null,null,null,null,null,null,null,null,null,null,null,null,null,null,null,null,null,null,null,null,null,null,"Хувьцаа эзэмшигчдийн тоо:",null,null,null,null,null,null,null,null,null,null,null,null,null,null,null,null,null,null,null,null,null,null,null,null,null,null,null,null,null,null,null,null,null,null,67,null,null,null,null,null,null,null,null,null,null,null,null,null,null,null,null,null,null,null,null,null,null,null,null,null,null,null,null,null,null,"C","10390: Жимс болон хүнсний ногооны бусад боловсруулалт, хадгалалт","Дунд","Үнэлгээ хийнэ",0,67,"Medium","Assessment",2]
[null,"Нэр (A)",null,null,null,null,null,null,null,null,null,"Хувьцаа эзэмшиж байгаа хэлбэр",null,null,null,null,null,"Хувь эзэмшил (хувиар)",null,null,null,"Регистр",null,null,null,null,"Нас/ хугацаа",null,null,"Мэргэжил / Үйл ажиллагаа",null,null,null,null,null,null,null,"Зээлийн үлдэгдэл",null,null,null,null,null,"Утас",null,null,null,null,null,"(А) нь иргэн тохиолдолд гэр бүл, төрөл садангийн хүмүүс                                 (Б)",null,null,null,null,null,null,"(Б)-ийн хяналтаа хэрэгжүүлдэг хуулийн этгээдүүд             (В)  ",null,"(В)-ийн нэгдмэл сонирхолтой этгээдүүд",null,"(А)-ийн нэгдмэл сонирхолтой этгээдүүд",null,"(А)тай хамааралтай хуулийн этгээдүүд       (Г)",null,"(Г)-ийн нэгдмэл сонирхолтой этгээдүүд",null,null,null,null,null,null,null,"ss3",68,null,null,null,null,null,null,null,null,null,null,null,null,null,null,null,null,null,null,null,null,null,null,null,null,null,null,null,null,null,null,"C","10400:Ургамлын болон амьтны гаралтай өөх, тос үйлдвэрлэл","Дунд","Үнэлгээ хийнэ",0,68,"Medium","Assessment",2]
[null,null,null,null,null,null,null,null,null,null,null,null,null,null,null,null,null,null,null,null,null,null,null,null,null,null,null,null,null,null,null,null,null,null,null,null,null,null,null,null,null,null,null,null,null,null,null,null,null,null,null,null,null,null,null,null,null,null,null,null,null,null,null,null,null,null,null,null,null,null,null,null,null,69,null,null,null,null,null,null,null,null,null,null,null,null,null,null,null,null,null,null,null,null,null,null,null,null,null,null,null,null,null,null,"C","10410:Өөх, тосны үйлдвэрлэл","Дунд","Үнэлгээ хийнэ",0,69,"Medium","Assessment",2]
[null,null,null,null,null,null,null,null,null,null,null,null,null,null,null,null,null,null,null,null,null,null,null,null,null,null,null,null,null,null,null,null,null,null,null,null,null,null,null,null,null,null,null,null,null,null,null,null,null,null,null,null,null,null,null,null,null,null,null,null,null,null,null,null,null,null,null,null,null,null,null,null,null,70,null,null,null,null,null,null,null,null,null,null,null,null,null,null,null,null,null,null,null,null,null,null,null,null,null,null,null,null,null,null,"C","10420:Маргарин болон түүнтэй адилтгах идэж болох өөх,тос","Дунд","Үнэлгээ хийнэ",0,70,"Medium","Assessment",2]
[null,null,null,null,null,null,null,null,null,null,null,null,null,null,null,null,null,null,null,null,null,null,null,null,null,null,null,null,null,null,null,null,null,null,null,null,null,null,null,null,null,null,null,null,null,null,null,null,null,null,null,null,null,null,null,null,null,null,null,null,null,null,null,null,null,null,null,null,null,null,null,null,null,71,null,null,null,null,null,null,null,null,null,null,null,null,null,null,null,null,null,null,null,null,null,null,null,null,null,null,null,null,null,null,"C","10500: Сүү, сүүн бүтээгдэхүүний үйлдвэрлэл","Дунд","Үнэлгээ хийнэ",0,71,"Medium","Assessment",2]
[null,null,null,null,null,null,null,null,null,null,null,null,null,null,null,null,null,null,null,null,null,null,null,null,null,null,null,null,null,null,null,null,null,null,null,null,null,null,null,null,null,null,null,null,null,null,null,null,null,null,null,null,null,null,null,null,null,null,null,null,null,null,null,null,null,null,null,null,null,null,null,null,null,72,null,null,null,null,null,null,null,null,null,null,null,null,null,null,null,null,null,null,null,null,null,null,null,null,null,null,null,null,null,null,"C","10510:Сүүн бүтээгдэхүүн болон бяслагны үйлдвэрлэл","Дунд","Үнэлгээ хийнэ",0,72,"Medium","Assessment",2]
[null,null,null,null,null,null,null,null,null,null,null,null,null,null,null,null,null,null,null,null,null,null,null,null,null,null,null,null,null,null,null,null,null,null,null,null,null,null,null,null,null,null,null,null,null,null,null,null,null,null,null,null,null,null,null,null,null,null,null,null,null,null,null,null,null,null,null,null,null,null,null,null,null,73,null,null,null,null,null,null,null,null,null,null,null,null,null,null,null,null,null,null,null,null,null,null,null,null,null,null,null,null,null,null,"C","10520:Зайрмагны үйлдвэрлэл","Дунд","Үнэлгээ хийнэ",0,73,"Medium","Assessment",2]
[null,null,null,null,null,null,null,null,null,null,null,null,null,null,null,null,null,null,null,null,null,null,null,null,null,null,null,null,null,null,null,null,null,null,null,null,null,null,null,null,null,null,null,null,null,null,null,null,null,null,null,null,null,null,null,null,null,null,null,null,null,null,null,null,null,null,null,null,null,null,null,null,null,74,null,null,null,null,null,null,null,null,null,null,null,null,null,null,null,null,null,null,null,null,null,null,null,null,null,null,null,null,null,null,"C","10600: Yр тарианы гурил, цардуул, цардууллаг бүтээгдэхүүний үйлдвэрлэл","Дунд","Үнэлгээ хийнэ",0,74,"Medium","Assessment",2]
[null,null,null,null,null,null,null,null,null,null,null,null,null,null,null,null,null,null,null,null,null,null,null,null,null,null,null,null,null,null,null,null,null,null,null,null,null,null,null,null,null,null,null,null,null,null,null,null,null,null,null,null,null,null,null,null,null,null,null,null,null,null,null,null,null,null,null,null,null,null,null,null,null,75,null,null,null,null,null,null,null,null,null,null,null,null,null,null,null,null,null,null,null,null,null,null,null,null,null,null,null,null,null,null,"C","10700:Талх, талхан бүтээгдэхүүний үйлдвэрлэл ","Дунд","Үнэлгээ хийнэ",0,75,"Medium","Assessment",2]
[null,null,null,null,null,null,null,null,null,null,null,null,null,null,null,null,null,null,null,null,null,null,null,null,null,null,null,null,null,null,null,null,null,null,null,null,null,null,null,null,null,null,null,null,null,null,null,null,null,null,null,null,null,null,null,null,null,null,null,null,null,null,null,null,null,null,null,null,null,null,null,null,null,76,null,null,null,null,null,null,null,null,null,null,null,null,null,null,null,null,null,null,null,null,null,null,null,null,null,null,null,null,null,null,"C","10710:Талх, нарийн боовны үйлдвэрлэл","Дунд","Үнэлгээ хийнэ",0,76,"Medium","Assessment",2]
[null,null,null,null,null,null,null,null,null,null,null,null,null,null,null,null,null,null,null,null,null,null,null,null,null,null,null,null,null,null,null,null,null,null,null,null,null,null,null,null,null,null,null,null,null,null,null,null,null,null,null,null,null,null,null,null,null,null,null,null,null,null,null,null,null,null,null,null,null,null,null,null,null,77,null,null,null,null,null,null,null,null,null,null,null,null,null,null,null,null,null,null,null,null,null,null,null,null,null,null,null,null,null,null,"C","10720:Хатаасан талх, боов, жигнэмэг, удаан хадгалагдах нарийн боовны үйлдвэрлэл","Дунд","Үнэлгээ хийнэ",0,77,"Medium","Assessment",2]
[null,null,null,null,null,null,null,null,null,null,null,null,null,null,null,null,null,null,null,null,null,null,null,null,null,null,null,null,null,null,null,null,null,null,null,null,null,null,null,null,null,null,null,null,null,null,null,null,null,null,null,null,null,null,null,null,null,null,null,null,null,null,null,null,null,null,null,null,null,null,null,null,null,78,null,null,null,null,null,null,null,null,null,null,null,null,null,null,null,null,null,null,null,null,null,null,null,null,null,null,null,null,null,null,"C","10730:Гоймон, кускус болон энэ төрлийн гурилан бүтээгдэхүүн ","Дунд","Үнэлгээ хийнэ",0,78,"Medium","Assessment",2]
[null,null,null,null,null,null,null,null,null,null,null,null,null,null,null,null,null,null,null,null,null,null,null,null,null,null,null,null,null,null,null,null,null,null,null,null,null,null,null,null,null,null,null,null,null,null,null,null,null,null,null,null,null,null,null,null,null,null,null,null,null,null,null,null,null,null,null,null,null,null,null,null,"ss4",79,null,null,null,null,null,null,null,null,null,null,null,null,null,null,null,null,null,null,null,null,null,null,null,null,null,null,null,null,null,null,"C","10800:Бусад хүнсний бүтээгдэхүүний үйлдвэрлэл","Дунд","Үнэлгээ хийнэ",0,79,"Medium","Assessment",2]
[null,null,null,null,null,null,null,null,null,null,null,null,null,null,null,null,null,null,null,null,null,null,null,null,null,null,null,null,null,null,null,null,null,null,null,null,null,null,null,null,null,null,null,null,null,null,null,null,null,null,null,null,null,null,null,null,null,null,null,null,null,null,null,null,null,null,null,null,null,null,null,null,null,80,null,null,null,null,null,null,null,null,null,null,null,null,null,null,null,null,null,null,null,null,null,null,null,null,null,null,null,null,null,null,"C","10900:Амьтны хоол үйлдвэрлэл","Дунд","Үнэлгээ хийнэ",0,80,"Medium","Assessment",2]
["4. Удирдлагыг голчлон хэрэгжүүлэгчид",null,null,null,null,null,null,null,null,null,null,null,null,null,null,null,null,null,null,null,null,null,null,null,null,null,null,null,null,null,null,null,null,null,null,null,null,null,"Гол удирдагчдын тоо:",null,null,null,null,null,null,null,null,null,null,null,null,null,null,null,null,null,null,null,null,null,null,null,null,null,null,null,null,null,null,null,null,null,null,81,null,null,null,null,null,null,null,null,null,null,null,null,null,null,null,null,null,null,null,null,null,null,null,null,null,null,null,null,null,null,"C","10910:Малын тэжээл үйлдвэрлэл","Дунд","Үнэлгээ хийнэ",0,81,"Medium","Assessment",2]
[null,"Нэр (А)",null,null,null,null,null,null,null,null,null,"Албан тушаал",null,null,null,null,null,null,"Регистр",null,null,null,null,"Нас",null,null,"Мэргэжил",null,null,null,null,null,null,null,"Зээлийн үлдэгдэл",null,null,null,null,null,"Утас",null,null,null,null,null,"(А)-ийн гэр бүл, төрөл садангийн хүмүүс                                     (Б)",null,null,null,null,null,"(Б)-ийн хяналтаа хэрэгжүүлдэг хуулийн этгээдүүд                          (В)  ",null,null,null,null,"(В)-ийн нэгдмэл сонирхолтой этгээдүүд",null,"(А)тай хамааралтай хуулийн этгээдүүд       (Г)",null,"(Г)-ийн нэгдмэл сонирхолтой этгээдүүд",null,null,null,null,null,null,null,null,null,null,"ss5",82,null,null,null,null,null,null,null,null,null,null,null,null,null,null,null,null,null,null,null,null,null,null,null,null,null,null,null,null,null,null,"C","10920:Гэрийн тэжээмэл амьтны хоол үйлдвэрлэл","Дунд","Үнэлгээ хийнэ",0,82,"Medium","Assessment",2]
[null,null,null,null,null,null,null,null,null,null,null,null,null,null,null,null,null,null,null,null,null,null,null,null,null,null,null,null,null,null,null,null,null,null,null,null,null,null,null,null,null,null,null,null,null,null,null,null,null,null,null,null,null,null,null,null,null,null,null,null,null,null,null,null,null,null,null,null,null,null,null,null,null,83,null,null,null,null,null,null,null,null,null,null,null,null,null,null,null,null,null,null,null,null,null,null,null,null,null,null,null,null,null,null,"C","11000:Ундаа үйлдвэрлэл (алкоголь ундаа, дарс болон бусад жимсний архи,  шар айраг,  цэвэр ус, хийжүүлсэн ундаа)","Дунд","Үнэлгээ хийнэ",0,83,"Medium","Assessment",2]
[null,null,null,null,null,null,null,null,null,null,null,null,null,null,null,null,null,null,null,null,null,null,null,null,null,null,null,null,null,null,null,null,null,null,null,null,null,null,null,null,null,null,null,null,null,null,null,null,null,null,null,null,null,null,null,null,null,null,null,null,null,null,null,null,null,null,null,null,null,null,null,null,null,84,null,null,null,null,null,null,null,null,null,null,null,null,null,null,null,null,null,null,null,null,null,null,null,null,null,null,null,null,null,null,"C","12000:Тамхи үйлдвэрлэл","Өндөр","Зөвшөөрөл авах",0,84,"High","Referral List Activity",3]
[null,null,null,null,null,null,null,null,null,null,null,null,null,null,null,null,null,null,null,null,null,null,null,null,null,null,null,null,null,null,null,null,null,null,null,null,null,null,null,null,null,null,null,null,null,null,null,null,null,null,null,null,null,null,null,null,null,null,null,null,null,null,null,null,null,null,null,null,null,null,null,null,null,85,null,null,null,null,null,null,null,null,null,null,null,null,null,null,null,null,null,null,null,null,null,null,null,null,null,null,null,null,null,null,"C","13000:Нэхмэлийн үйлдвэрлэл","Дунд","Үнэлгээ хийнэ",0,85,"Medium","Assessment",2]
[null,null,null,null,null,null,null,null,null,null,null,null,null,null,null,null,null,null,null,null,null,null,null,null,null,null,null,null,null,null,null,null,null,null,null,null,null,null,null,null,null,null,null,null,null,null,null,null,null,null,null,null,null,null,null,null,null,null,null,null,null,null,null,null,null,null,null,null,null,null,null,null,null,86,null,null,null,null,null,null,null,null,null,null,null,null,null,null,null,null,null,null,null,null,null,null,null,null,null,null,null,null,null,null,"C","13100: Нэхмэл утсыг бэлтгэх, ээрэх үйл ажиллагаа","Дунд","Үнэлгээ хийнэ",0,86,"Medium","Assessment",2]
[null,null,null,null,null,null,null,null,null,null,null,null,null,null,null,null,null,null,null,null,null,null,null,null,null,null,null,null,null,null,null,null,null,null,null,null,null,null,null,null,null,null,null,null,null,null,null,null,null,null,null,null,null,null,null,null,null,null,null,null,null,null,null,null,null,null,null,null,null,null,null,null,null,87,null,null,null,null,null,null,null,null,null,null,null,null,null,null,null,null,null,null,null,null,null,null,null,null,null,null,null,null,null,null,"C","13200: Нэхмэл даавууг нэхэх үйл ажиллагаа","Дунд","Үнэлгээ хийнэ",0,87,"Medium","Assessment",2]
[null,null,null,null,null,null,null,null,null,null,null,null,null,null,null,null,null,null,null,null,null,null,null,null,null,null,null,null,null,null,null,null,null,null,null,null,null,null,null,null,null,null,null,null,null,null,null,null,null,null,null,null,null,null,null,null,null,null,null,null,null,null,null,null,null,null,null,null,null,null,null,null,null,88,null,null,null,null,null,null,null,null,null,null,null,null,null,null,null,null,null,null,null,null,null,null,null,null,null,null,null,null,null,null,"C","13300: Нэхмэл эдлэлийг гүйцэтгэн боловсруулах шатны үйл ажиллагаа","Дунд","Үнэлгээ хийнэ",0,88,"Medium","Assessment",2]
[null,null,null,null,null,null,null,null,null,null,null,null,null,null,null,null,null,null,null,null,null,null,null,null,null,null,null,null,null,null,null,null,null,null,null,null,null,null,null,null,null,null,null,null,null,null,null,null,null,null,null,null,null,null,null,null,null,null,null,null,null,null,null,null,null,null,null,null,null,null,null,null,null,89,null,null,null,null,null,null,null,null,null,null,null,null,null,null,null,null,null,null,null,null,null,null,null,null,null,null,null,null,null,null,"C","13900:Хувцаснаас бусад сүлжмэл, нэхмэл эдлэл үйлдвэрлэл","Дунд","Үнэлгээ хийнэ",0,89,"Medium","Assessment",2]
[null,null,null,null,null,null,null,null,null,null,null,null,null,null,null,null,null,null,null,null,null,null,null,null,null,null,null,null,null,null,null,null,null,null,null,null,null,null,null,null,null,null,null,null,null,null,null,null,null,null,null,null,null,null,null,null,null,null,null,null,null,null,null,null,null,null,null,null,null,null,null,null,null,90,null,null,null,null,null,null,null,null,null,null,null,null,null,null,null,null,null,null,null,null,null,null,null,null,null,null,null,null,null,null,"C","14100: Үслэг, арьсан хувцаснаас бусад хувцас үйлдвэрлэл","Дунд","Үнэлгээ хийнэ",0,90,"Medium","Assessment",2]
[null,null,null,null,null,null,null,null,null,null,null,null,null,null,null,null,null,null,null,null,null,null,null,null,null,null,null,null,null,null,null,null,null,null,null,null,null,null,null,null,null,null,null,null,null,null,null,null,null,null,null,null,null,null,null,null,null,null,null,null,null,null,null,null,null,null,null,null,null,null,null,null,null,91,null,null,null,null,null,null,null,null,null,null,null,null,null,null,null,null,null,null,null,null,null,null,null,null,null,null,null,null,null,null,"C","14200: Yслэг, арьсан эдлэл үйлдвэрлэл","Дунд","Үнэлгээ хийнэ",0,91,"Medium","Assessment",2]
[null,null,null,null,null,null,null,null,null,null,null,null,null,null,null,null,null,null,null,null,null,null,null,null,null,null,null,null,null,null,null,null,null,null,null,null,null,null,null,null,null,null,null,null,null,null,null,null,null,null,null,null,null,null,null,null,null,null,null,null,null,null,null,null,null,null,null,null,null,null,null,null,null,92,null,null,null,null,null,null,null,null,null,null,null,null,null,null,null,null,null,null,null,null,null,null,null,null,null,null,null,null,null,null,"C","14300: Нэхмэл болон сүлжмэл хувцас үйлдвэрлэл","Дунд","Үнэлгээ хийнэ",0,92,"Medium","Assessment",2]
[null,null,null,null,null,null,null,null,null,null,null,null,null,null,null,null,null,null,null,null,null,null,null,null,null,null,null,null,null,null,null,null,null,null,null,null,null,null,null,null,null,null,null,null,null,null,null,null,null,null,null,null,null,null,null,null,null,null,null,null,null,null,null,null,null,null,null,null,null,null,null,null,"ss6",93,null,null,null,null,null,null,null,null,null,null,null,null,null,null,null,null,null,null,null,null,null,null,null,null,null,null,null,null,null,null,"C","15100: Арьс шир элдэх, засварлах, үслэг арьс будах, засварлах үйл ажиллагаа","Өндөр","Үнэлгээ хийнэ",0,93,"High","Assessment",2]
[null,null,null,null,null,null,null,null,null,null,null,null,null,null,null,null,null,null,null,null,null,null,null,null,null,null,null,null,null,null,null,null,null,null,null,null,null,null,null,null,null,null,null,null,null,null,null,null,null,null,null,null,null,null,null,null,null,null,null,null,null,null,null,null,null,null,null,null,null,null,null,null,null,94,null,null,null,null,null,null,null,null,null,null,null,null,null,null,null,null,null,null,null,null,null,null,null,null,null,null,null,null,null,null,"C","15120: Аяны цүнх, гар цүнх, богц, бэхэлгээний төрлийн бүтээгдэхүүний үйлдвэрлэл","Дунд","Үнэлгээ хийнэ",0,94,"Medium","Assessment",2]
["5. Холбоотой болон охин, хараат компани, тэдгээрийн эзэмшигчид",null,null,null,null,null,null,null,null,null,null,null,null,null,null,null,null,null,null,null,null,null,null,null,null,null,null,null,null,null,null,null,null,null,null,null,null,null,"ААН-үүдийн тоо:",null,null,null,null,null,null,null,null,null,null,null,null,null,null,null,null,null,null,null,null,null,null,null,null,null,null,null,null,null,null,null,null,null,null,95,null,null,null,null,null,null,null,null,null,null,null,null,null,null,null,null,null,null,null,null,null,null,null,null,null,null,null,null,null,null,"C","15200:  Гутал үйлдвэрлэл","Дунд","Үнэлгээ хийнэ",0,95,"Medium","Assessment",2]
[null,null,"Компаний нэр",null,null,null,null,null,null,null,null,null,null,null,null,"Регистр",null,null,null,null,null,"Холбоо хамаарал",null,null,null,null,null,"Зээлийн үлдэгдэл",null,null,null,null,null,null,"Эзэмшигчид",null,null,null,null,null,null,null,null,null,null,null,"Үйл ажиллагааны чиглэл, бусад тайлбар",null,null,null,null,null,null,null,null,null,"(А)-ийн Нэгдмэл сонирхолтой этгээдүүд",null,null,null,"(А)тай хамааралтай хуулийн этгээдүүд       (Г)",null,"(Г)-ийн нэгдмэл сонирхолтой этгээдүүд",null,null,null,null,null,null,null,"1. Охин компани (Зээл хүсэгч компани нь уг компанийн энгийн хувьцааны 51%-100%-г дангаараа эзэмшдэг бол)\n2. Хараат компани (Зээл хүсэгч компани нь уг компанийн энгийн хувьцааны 20%-51%-г дангаараа эзэмшдэг бол)\n3. Холбоотой компани (Гэрээ хэлцлийн үндсэн дээр зээл хүсэгч компанийн аливаа шийдвэрт хяналт тогтоож нөлөөлдөг, нөлөөлөх боломж бүхий этгээд, эсвэл зээл хүсэгч компаниар өөрийн гаргах аливаа шийдвэрт хяналт тогтоолгох, нөлөөлүүлэхийг зөвшөөрсөн этгээд болон бусад төрлийн холбоо, хамааралтай этгээдүүд)",null,"ss7",96,null,null,null,null,null,null,null,null,null,null,null,null,null,null,null,null,null,null,null,null,null,null,null,null,null,null,null,null,null,null,"C","16100: Мод хөрөөдөх, харуулдах үйл ажиллагаа","Дунд","Үнэлгээ хийнэ",0,96,"Medium","Assessment",2]
[null,1,null,null,null,null,null,null,null,null,null,null,null,null,null,null,null,null,null,null,null,null,null,null,null,null,null,null,null,null,null,null,null,null,null,null,null,null,null,null,null,null,null,null,null,null,null,null,null,null,null,null,null,null,null,null,null,null,null,null,null,null,null,null,null,null,null,null,null,null,null,null,null,97,null,null,null,null,null,null,null,null,null,null,null,null,null,null,null,null,null,null,null,null,null,null,null,null,null,null,null,null,null,null,"C","16200: Мод, үйсэн, үртэс болон холтсон бүтээгдэхүүний үйлдвэрлэл","Дунд","Үнэлгээ хийнэ",0,97,"Medium","Assessment",2]
[null,2,null,null,null,null,null,null,null,null,null,null,null,null,null,null,null,null,null,null,null,null,null,null,null,null,null,null,null,null,null,null,null,null,null,null,null,null,null,null,null,null,null,null,null,null,null,null,null,null,null,null,null,null,null,null,null,null,null,null,null,null,null,null,null,null,null,null,null,null,null,null,null,98,null,null,null,null,null,null,null,null,null,null,null,null,null,null,null,null,null,null,null,null,null,null,null,null,null,null,null,null,null,null,"C","17110: Цаасны зутан, цаас болон картонон бүтээгдэхүүний үйлдвэрлэл","Өндөр","Үнэлгээ хийнэ",0,98,"High","Assessment",2]
[null,3,null,null,null,null,null,null,null,null,null,null,null,null,null,null,null,null,null,null,null,null,null,null,null,null,null,null,null,null,null,null,null,null,null,null,null,null,null,null,null,null,null,null,null,null,null,null,null,null,null,null,null,null,null,null,null,null,null,null,null,null,null,null,null,null,null,null,null,null,null,null,null,99,null,null,null,null,null,null,null,null,null,null,null,null,null,null,null,null,null,null,null,null,null,null,null,null,null,null,null,null,null,null,"C","17111:Мод, түүнтэй ижил төст зүйлсээс цаасны зутан  боловсруулах  үйлдвэр","Өндөр","Үнэлгээ хийнэ",0,99,"High","Assessment",2]
[null,4,null,null,null,null,null,null,null,null,null,null,null,null,null,null,null,null,null,null,null,null,null,null,null,null,null,null,null,null,null,null,null,null,null,null,null,null,null,null,null,null,null,null,null,null,null,null,null,null,null,null,null,null,null,null,null,null,null,null,null,null,null,null,null,null,null,null,null,null,null,null,null,100,null,null,null,null,null,null,null,null,null,null,null,null,null,null,null,null,null,null,null,null,null,null,null,null,null,null,null,null,null,null,"C","17120: Үрчгэр цаас болон цаасан ба картонон сав үйлдвэрлэл","Дунд","Үнэлгээ хийнэ",0,100,"Medium","Assessment",2]
[null,5,null,null,null,null,null,null,null,null,null,null,null,null,null,null,null,null,null,null,null,null,null,null,null,null,null,null,null,null,null,null,null,null,null,null,null,null,null,null,null,null,null,null,null,null,null,null,null,null,null,null,null,null,null,null,null,null,null,null,null,null,null,null,null,null,null,null,null,null,null,null,null,101,null,null,null,null,null,null,null,null,null,null,null,null,null,null,null,null,null,null,null,null,null,null,null,null,null,null,null,null,null,null,"C","17121:Өдөрт 200 куб метрээс илүү  агаар- хатаалт хийдэг  цаас болон картоны үйлдвэрлэл","Өндөр","Үнэлгээ хийнэ",0,101,"High","Assessment",2]
[null,6,null,null,null,null,null,null,null,null,null,null,null,null,null,null,null,null,null,null,null,null,null,null,null,null,null,null,null,null,null,null,null,null,null,null,null,null,null,null,null,null,null,null,null,null,null,null,null,null,null,null,null,null,null,null,null,null,null,null,null,null,null,null,null,null,null,null,null,null,null,null,null,102,null,null,null,null,null,null,null,null,null,null,null,null,null,null,null,null,null,null,null,null,null,null,null,null,null,null,null,null,null,null,"C","17200: Цаас, картонон бусад зүйлс үйлдвэрлэл","Дунд","Үнэлгээ хийнэ",0,102,"Medium","Assessment",2]
[null,7,null,null,null,null,null,null,null,null,null,null,null,null,null,null,null,null,null,null,null,null,null,null,null,null,null,null,null,null,null,null,null,null,null,null,null,null,null,null,null,null,null,null,null,null,null,null,null,null,null,null,null,null,null,null,null,null,null,null,null,null,null,null,null,null,null,null,null,null,null,null,null,103,null,null,null,null,null,null,null,null,null,null,null,null,null,null,null,null,null,null,null,null,null,null,null,null,null,null,null,null,null,null,"C","18100: Хэвлэх болон түүнд туслах үйл ажиллагаа","Дунд","Үнэлгээ хийнэ",0,103,"Medium","Assessment",2]
[null,8,null,null,null,null,null,null,null,null,null,null,null,null,null,null,null,null,null,null,null,null,null,null,null,null,null,null,null,null,null,null,null,null,null,null,null,null,null,null,null,null,null,null,null,null,null,null,null,null,null,null,null,null,null,null,null,null,null,null,null,null,null,null,null,null,null,null,null,null,null,null,null,104,null,null,null,null,null,null,null,null,null,null,null,null,null,null,null,null,null,null,null,null,null,null,null,null,null,null,null,null,null,null,"C","18200: Дуу бичлэг хуулбарлах үйл ажиллагаа","Бага",null,0,104,"Low",null,1]
[null,9,null,null,null,null,null,null,null,null,null,null,null,null,null,null,null,null,null,null,null,null,null,null,null,null,null,null,null,null,null,null,null,null,null,null,null,null,null,null,null,null,null,null,null,null,null,null,null,null,null,null,null,null,null,null,null,null,null,null,null,null,null,null,null,null,null,null,null,null,null,null,null,105,null,null,null,null,null,null,null,null,null,null,null,null,null,null,null,null,null,null,null,null,null,null,null,null,null,null,null,null,null,null,"C","19100:  Коксын зууханд боловсруулсан бүтээгдэхүүний үйлдвэрлэл","Өндөр","Үнэлгээ хийнэ",0,105,"High","Assessment",2]
[null,10,null,null,null,null,null,null,null,null,null,null,null,null,null,null,null,null,null,null,null,null,null,null,null,null,null,null,null,null,null,null,null,null,null,null,null,null,null,null,null,null,null,null,null,null,null,null,null,null,null,null,null,null,null,null,null,null,null,null,null,null,null,null,null,null,null,null,null,null,null,null,null,106,null,null,null,null,null,null,null,null,null,null,null,null,null,null,null,null,null,null,null,null,null,null,null,null,null,null,null,null,null,null,"C","19200:  Боловсруулсан нефтийн бүтээгдэхүүний үйлдвэрлэл","Өндөр","Үнэлгээ хийнэ",0,106,"High","Assessment",2]
[null,null,null,null,null,null,null,null,null,null,null,null,null,null,null,null,null,null,null,null,null,null,null,null,null,null,null,null,null,null,null,null,null,null,null,null,null,null,null,null,null,null,null,null,null,null,null,null,null,null,null,null,null,null,null,null,null,null,null,null,null,null,null,null,null,null,null,null,null,null,null,null,"ss8",107,null,null,null,null,null,null,null,null,null,null,null,null,null,null,null,null,null,null,null,null,null,null,null,null,null,null,null,null,null,null,"C","19201:Түүхий нефт боловсруулалт (түүхий нефтээс тослох материал гаргаж авахаас бусад нөхцөлд )","Өндөр","Үнэлгээ хийнэ",0,107,"High","Assessment",2]
[null,null,null,null,null,null,null,null,null,null,null,null,null,null,null,null,null,null,null,null,null,null,null,null,null,null,null,null,null,null,null,null,null,null,null,null,null,null,null,null,null,null,null,null,null,null,null,null,null,null,null,null,null,null,null,null,null,null,null,null,null,null,null,null,null,null,null,null,null,null,null,null,null,108,null,null,null,null,null,null,null,null,null,null,null,null,null,null,null,null,null,null,null,null,null,null,null,null,null,null,null,null,null,null,"C","19202:өдөрт 500 тонноос илүү битумын чулуулаг эсвэл нүүрсийг хийжүүлэх эсвэл шингэрүүлэх үйлдвэрлэл","Өндөр","Үнэлгээ хийнэ",0,108,"High","Assessment",2]
["6. Харилцдаг банкны мэдээлэл /Сүүлийн 3 жилийн мэдээлэл/",null,null,null,null,null,null,null,null,null,null,null,null,null,null,null,null,null,null,null,null,null,null,null,null,null,null,null,null,null,null,null,null,null,null,null,null,null,"Харилцдаг банкны тоо:",null,null,null,null,null,null,null,null,null,null,null,null,null,null,null,null,null,null,null,null,null,null,null,null,null,null,null,null,null,null,null,null,null,null,109,null,null,null,null,null,null,null,null,null,null,null,null,null,null,null,null,null,null,null,null,null,null,null,null,null,null,null,null,null,null,"C","19203:200,000 тонноос илүү шатахуун, петро-химийн бүтээгдэхүүн агуулах байгууламж ","Өндөр","Үнэлгээ хийнэ",0,109,"High","Assessment",2]
[null,null,"Банк болон ББСБ",null,null,null,null,null,null,null,null,"Дансны дугаар, төрөл 1",null,null,null,null,null,null,"Дансны дугаар, төрөл 2",null,null,null,null,null,null,"Дансны дугаар, төрөл 3",null,null,null,null,null,null,"Дансны дугаар, төрөл 4",null,null,null,null,null,null,"Дансны дугаар, төрөл 5",null,null,null,null,null,null,"Гүйлгээний дүн",null,null,null,null,null,null,null,null,"Гүйлгээний дүнг илэрхийлсэн Валют",null,null,null,null,null,null,null,null,null,null,null,null,null,null,null,null,"ss9",110,null,null,null,null,null,null,null,null,null,null,null,null,null,null,null,null,null,null,null,null,null,null,null,null,null,null,null,null,null,null,"C","20100: Химийн үндсэн материал, бордоо, азотын холимог, анхдагч хэлбэртэй хуванцар, нийлэг, резин үйлдвэрлэл","Өндөр","Үнэлгээ хийнэ",0,110,"High","Assessment",2]
[null,1,null,null,null,null,null,null,null,null,null,null,null,null,null,null,null,null,null,null,null,null,null,null,null,null,null,null,null,null,null,null,null,null,null,null,null,null,null,null,null,null,null,null,null,null,null,null,null,null,null,null,null,null,null,null,null,null,null,null,null,null,null,null,null,null,null,null,null,null,null,null,null,111,null,null,null,null,null,null,null,null,null,null,null,null,null,null,null,null,null,null,null,null,null,null,null,null,null,null,null,null,null,null,"C","20110: Архи, спирт  үйлдвэрлэл (пиво, вино оруулахгүй )","Өндөр","Зөвшөөрөл авах",0,111,"High","Referral List Activity",3]
[null,2,null,null,null,null,null,null,null,null,null,null,null,null,null,null,null,null,null,null,null,null,null,null,null,null,null,null,null,null,null,null,null,null,null,null,null,null,null,null,null,null,null,null,null,null,null,null,null,null,null,null,null,null,null,null,null,null,null,null,null,null,null,null,null,null,null,null,null,null,null,null,null,112,null,null,null,null,null,null,null,null,null,null,null,null,null,null,null,null,null,null,null,null,null,null,null,null,null,null,null,null,null,null,"C","20200: Хор болон хөдөө аж ахуйн химийн бусад бүтээгдэхүүний үйлдвэрлэл","Өндөр","Зөвшөөрөл авах",0,112,"High","Referral List Activity",3]
[null,3,null,null,null,null,null,null,null,null,null,null,null,null,null,null,null,null,null,null,null,null,null,null,null,null,null,null,null,null,null,null,null,null,null,null,null,null,null,null,null,null,null,null,null,null,null,null,null,null,null,null,null,null,null,null,null,null,null,null,null,null,null,null,null,null,null,null,null,null,null,null,null,113,null,null,null,null,null,null,null,null,null,null,null,null,null,null,null,null,null,null,null,null,null,null,null,null,null,null,null,null,null,null,"C","20300: Будаг, лак болон үүнтэй ижил төстэй будаг, хэвлэлийн бэх ба давирхайны үйлдвэрлэл","Өндөр","Үнэлгээ хийнэ",0,113,"High","Assessment",2]
[null,4,null,null,null,null,null,null,null,null,null,null,null,null,null,null,null,null,null,null,null,null,null,null,null,null,null,null,null,null,null,null,null,null,null,null,null,null,null,null,null,null,null,null,null,null,null,null,null,null,null,null,null,null,null,null,null,null,null,null,null,null,null,null,null,null,null,null,null,null,null,null,null,114,null,null,null,null,null,null,null,null,null,null,null,null,null,null,null,null,null,null,null,null,null,null,null,null,null,null,null,null,null,null,"C","20400: Саван, ариутгагч бодис, цэвэрлэгээний болон өнгөлгөөний бэлдмэлүүд, сүрчиг ба ариун цэврийн өрөөний бэлдмэл үйлдвэрлэл","Өндөр","Үнэлгээ хийнэ",0,114,"High","Assessment",2]
[null,5,null,null,null,null,null,null,null,null,null,null,null,null,null,null,null,null,null,null,null,null,null,null,null,null,null,null,null,null,null,null,null,null,null,null,null,null,null,null,null,null,null,null,null,null,null,null,null,null,null,null,null,null,null,null,null,null,null,null,null,null,null,null,null,null,null,null,null,null,null,null,null,115,null,null,null,null,null,null,null,null,null,null,null,null,null,null,null,null,null,null,null,null,null,null,null,null,null,null,null,null,null,null,"C","20500: Химийн бусад бүтээгдэхүүний үйлдвэрлэл","Өндөр","Үнэлгээ хийнэ",0,115,"High","Assessment",2]
[null,6,null,null,null,null,null,null,null,null,null,null,null,null,null,null,null,null,null,null,null,null,null,null,null,null,null,null,null,null,null,null,null,null,null,null,null,null,null,null,null,null,null,null,null,null,null,null,null,null,null,null,null,null,null,null,null,null,null,null,null,null,null,null,null,null,null,null,null,null,null,null,null,116,null,null,null,null,null,null,null,null,null,null,null,null,null,null,null,null,null,null,null,null,null,null,null,null,null,null,null,null,null,null,"C","20600: Гар аргаар боловсруулсан утас үйлдвэрлэл","Өндөр","Үнэлгээ хийнэ",0,116,"High","Assessment",2]
[null,7,null,null,null,null,null,null,null,null,null,null,null,null,null,null,null,null,null,null,null,null,null,null,null,null,null,null,null,null,null,null,null,null,null,null,null,null,null,null,null,null,null,null,null,null,null,null,null,null,null,null,null,null,null,null,null,null,null,null,null,null,null,null,null,null,null,null,null,null,null,null,null,117,null,null,null,null,null,null,null,null,null,null,null,null,null,null,null,null,null,null,null,null,null,null,null,null,null,null,null,null,null,null,"C","21000: Эм, эм бэлдмэл, химийн болон ургамлын гаралтай эмийн бүтээгдэхүүний үйлдвэрлэл","Өндөр","Үнэлгээ хийнэ",0,117,"High","Assessment",2]
[null,8,null,null,null,null,null,null,null,null,null,null,null,null,null,null,null,null,null,null,null,null,null,null,null,null,null,null,null,null,null,null,null,null,null,null,null,null,null,null,null,null,null,null,null,null,null,null,null,null,null,null,null,null,null,null,null,null,null,null,null,null,null,null,null,null,null,null,null,null,null,null,null,118,null,null,null,null,null,null,null,null,null,null,null,null,null,null,null,null,null,null,null,null,null,null,null,null,null,null,null,null,null,null,"C","22100: Резинэн бүтээгдэхүүний үйлдвэрлэл","Өндөр","Үнэлгээ хийнэ",0,118,"High","Assessment",2]
[null,9,null,null,null,null,null,null,null,null,null,null,null,null,null,null,null,null,null,null,null,null,null,null,null,null,null,null,null,null,null,null,null,null,null,null,null,null,null,null,null,null,null,null,null,null,null,null,null,null,null,null,null,null,null,null,null,null,null,null,null,null,null,null,null,null,null,null,null,null,null,null,null,119,null,null,null,null,null,null,null,null,null,null,null,null,null,null,null,null,null,null,null,null,null,null,null,null,null,null,null,null,null,null,"C","22110: Резинэн дугуй, хоолой үйлдвэрлэл, резинэн дугуйг засварлах, дахин боловсруулах үйл ажиллагаа","Өндөр","Үнэлгээ хийнэ",0,119,"High","Assessment",2]
[null,10,null,null,null,null,null,null,null,null,null,null,null,null,null,null,null,null,null,null,null,null,null,null,null,null,null,null,null,null,null,null,null,null,null,null,null,null,null,null,null,null,null,null,null,null,null,null,null,null,null,null,null,null,null,null,null,null,null,null,null,null,null,null,null,null,null,null,null,null,null,null,null,120,null,null,null,null,null,null,null,null,null,null,null,null,null,null,null,null,null,null,null,null,null,null,null,null,null,null,null,null,null,null,"C","22190: Резинэн болон хуванцар бусад бүтээгдэхүүний үйлдвэрлэл","Дунд","Үнэлгээ хийнэ",0,120,"Medium","Assessment",2]
[null,null,null,null,null,null,null,null,null,null,null,null,null,null,null,null,null,null,null,null,null,null,null,null,null,null,null,null,null,null,null,null,null,null,null,null,null,null,null,null,null,null,null,null,null,null,null,null,null,null,null,null,null,null,null,null,null,null,null,null,null,null,null,null,null,null,null,null,null,null,null,null,"ss10",121,null,null,null,null,null,null,null,null,null,null,null,null,null,null,null,null,null,null,null,null,null,null,null,null,null,null,null,null,null,null,"C","22200:Хуванцар бүтээгдэхүүний үйлдвэрлэл","Өндөр","Үнэлгээ хийнэ",0,121,"High","Assessment",2]
[null,null,null,null,null,null,null,null,null,null,null,null,null,null,null,null,null,null,null,null,null,null,null,null,null,null,null,null,null,null,null,null,null,null,null,null,null,null,null,null,null,null,null,null,null,null,null,null,null,null,null,null,null,null,null,null,null,null,null,null,null,null,null,null,null,null,null,null,null,null,null,null,null,122,null,null,null,null,null,null,null,null,null,null,null,null,null,null,null,null,null,null,null,null,null,null,null,null,null,null,null,null,null,null,"C","23100: Шил, шилэн бүтээгдэхүүний үйлдвэрлэл","Дунд","Үнэлгээ хийнэ",0,122,"Medium","Assessment",2]
["7. Зээлийн түүх /Сүүлийн 3 жилийн мэдээлэл/",null,null,null,null,null,null,null,null,null,null,null,null,null,null,null,null,null,null,null,null,null,null,null,null,null,null,null,null,null,null,null,null,null,null,null,null,null,"Зээлийн тоо:",null,null,null,null,null,null,null,null,null,null,null,null,null,null,null,null,null,null,null,null,null,null,null,null,null,null,null,null,null,null,null,null,null,null,123,null,null,null,null,null,null,null,null,null,null,null,null,null,null,null,null,null,null,null,null,null,null,null,null,null,null,null,null,null,null,"C","23200: Галд тэсвэртэй материалан бүтээгдэхүүний үйлдвэрлэл","Өндөр","Үнэлгээ хийнэ",0,123,"High","Assessment",2]
[null,null,"Банк болон ББСБ",null,null,null,null,null,null,null,null,null,null,null,null,"Авсан огноо",null,null,null,null,null,"Төлөх огноо",null,null,null,null,null,"Авсан хэмжээ",null,null,null,null,null,null,"Одоогийн үлдэгдэл",null,null,null,null,null,null,"Сарын төлбөр",null,null,null,null,"Ашигласан хугацаа",null,null,null,null,"Зээлийн үнэлгээ",null,null,null,null,null,null,null,null,null,null,null,null,null,null,null,null,null,null,null,null,"ss11",124,null,null,null,null,null,null,null,null,null,null,null,null,null,null,null,null,null,null,null,null,null,null,null,null,null,null,null,null,null,null,"C","23300: Барилгын шавран материалын үйлдвэрлэл","Дунд","Үнэлгээ хийнэ",0,124,"Medium","Assessment",2]
[null,1,null,null,null,null,null,null,null,null,null,null,null,null,null,null,null,null,null,null,null,null,null,null,null,null,null,null,null,null,null,null,null,null,null,null,null,null,null,null,null,null,null,null,null,null,null,null,null,null,null,null,null,null,null,null,null,null,null,null,null,null,null,null,null,null,null,null,null,null,null,null,null,125,null,null,null,null,null,null,null,null,null,null,null,null,null,null,null,null,null,null,null,null,null,null,null,null,null,null,null,null,null,null,"C","23400: Шаазан, вааран бусад бүтээгдэхүүний үйлдвэрлэл","Дунд","Үнэлгээ хийнэ",0,125,"Medium","Assessment",2]
[null,2,null,null,null,null,null,null,null,null,null,null,null,null,null,null,null,null,null,null,null,null,null,null,null,null,null,null,null,null,null,null,null,null,null,null,null,null,null,null,null,null,null,null,null,null,null,null,null,null,null,null,null,null,null,null,null,null,null,null,null,null,null,null,null,null,null,null,null,null,null,null,null,126,null,null,null,null,null,null,null,null,null,null,null,null,null,null,null,null,null,null,null,null,null,null,null,null,null,null,null,null,null,null,"C","23500: Цемент, шохой болон гипс үйлдвэрлэл","Өндөр","Үнэлгээ хийнэ",0,126,"High","Assessment",2]
[null,3,null,null,null,null,null,null,null,null,null,null,null,null,null,null,null,null,null,null,null,null,null,null,null,null,null,null,null,null,null,null,null,null,null,null,null,null,null,null,null,null,null,null,null,null,null,null,null,null,null,null,null,null,null,null,null,null,null,null,null,null,null,null,null,null,null,null,null,null,null,null,null,127,null,null,null,null,null,null,null,null,null,null,null,null,null,null,null,null,null,null,null,null,null,null,null,null,null,null,null,null,null,null,"C","23600: Бетон, цемент болон гипсээр хийсэн эдлэл үйлдвэрлэл","Дунд","Үнэлгээ хийнэ",0,127,"Medium","Assessment",2]
[null,4,null,null,null,null,null,null,null,null,null,null,null,null,null,null,null,null,null,null,null,null,null,null,null,null,null,null,null,null,null,null,null,null,null,null,null,null,null,null,null,null,null,null,null,null,null,null,null,null,null,null,null,null,null,null,null,null,null,null,null,null,null,null,null,null,null,null,null,null,null,null,null,128,null,null,null,null,null,null,null,null,null,null,null,null,null,null,null,null,null,null,null,null,null,null,null,null,null,null,null,null,null,null,"C","23700: Чулуу засах, өнгөлөх, зүсэх, тэгшлэх үйл ажиллагаа","Дунд","Үнэлгээ хийнэ",0,128,"Medium","Assessment",2]
[null,5,null,null,null,null,null,null,null,null,null,null,null,null,null,null,null,null,null,null,null,null,null,null,null,null,null,null,null,null,null,null,null,null,null,null,null,null,null,null,null,null,null,null,null,null,null,null,null,null,null,null,null,null,null,null,null,null,null,null,null,null,null,null,null,null,null,null,null,null,null,null,null,129,null,null,null,null,null,null,null,null,null,null,null,null,null,null,null,null,null,null,null,null,null,null,null,null,null,null,null,null,null,null,"C","23900: Металл бус эрдэс бодисоор хийсэн бусад бүтээгдэхүүний үйлдвэрлэл","Дунд","Үнэлгээ хийнэ",0,129,"Medium","Assessment",2]
[null,6,null,null,null,null,null,null,null,null,null,null,null,null,null,null,null,null,null,null,null,null,null,null,null,null,null,null,null,null,null,null,null,null,null,null,null,null,null,null,null,null,null,null,null,null,null,null,null,null,null,null,null,null,null,null,null,null,null,null,null,null,null,null,null,null,null,null,null,null,null,null,null,130,null,null,null,null,null,null,null,null,null,null,null,null,null,null,null,null,null,null,null,null,null,null,null,null,null,null,null,null,null,null,"C","24100: Төмөр болон ган үйлдвэрлэл","Өндөр","Үнэлгээ хийнэ",{"$f":"IF(DA130=DA131,0,DA130)","v":0},130,"High","Assessment",2]
[null,7,null,null,null,null,null,null,null,null,null,null,null,null,null,null,null,null,null,null,null,null,null,null,null,null,null,null,null,null,null,null,null,null,null,null,null,null,null,null,null,null,null,null,null,null,null,null,null,null,null,null,null,null,null,null,null,null,null,null,null,null,null,null,null,null,null,null,null,null,null,null,null,131,null,null,null,null,null,null,null,null,null,null,null,null,null,null,null,null,null,null,null,null,null,null,null,null,null,null,null,null,null,null,"C","24200: Yнэт болон төмөрлөг бус бусад металлын үйлдвэрлэл","Өндөр","Үнэлгээ хийнэ",0,131,"High","Assessment",2]
[null,8,null,null,null,null,null,null,null,null,null,null,null,null,null,null,null,null,null,null,null,null,null,null,null,null,null,null,null,null,null,null,null,null,null,null,null,null,null,null,null,null,null,null,null,null,null,null,null,null,null,null,null,null,null,null,null,null,null,null,null,null,null,null,null,null,null,null,null,null,null,null,null,132,null,null,null,null,null,null,null,null,null,null,null,null,null,null,null,null,null,null,null,null,null,null,null,null,null,null,null,null,null,null,"C","24300:Бусад бүтээгдэхүүний үйлдвэрлэл болон гангийн анхан шатны боловсруулалт ","Өндөр","Үнэлгээ хийнэ",0,132,"High","Assessment",2]
[null,9,null,null,null,null,null,null,null,null,null,null,null,null,null,null,null,null,null,null,null,null,null,null,null,null,null,null,null,null,null,null,null,null,null,null,null,null,null,null,null,null,null,null,null,null,null,null,null,null,null,null,null,null,null,null,null,null,null,null,null,null,null,null,null,null,null,null,null,null,null,null,null,133,null,null,null,null,null,null,null,null,null,null,null,null,null,null,null,null,null,null,null,null,null,null,null,null,null,null,null,null,null,null,"C","24400:Үнэт болон хайлш бус төмөрлөгийн үйлдвэрлэл (хөнгөн цагаан, хар тугалга,цайр, зэс, тугалга)","Өндөр","Үнэлгээ хийнэ",0,133,"High","Assessment",2]
[null,10,null,null,null,null,null,null,null,null,null,null,null,null,null,null,null,null,null,null,null,null,null,null,null,null,null,null,null,null,null,null,null,null,null,null,null,null,null,null,null,null,null,null,null,null,null,null,null,null,null,null,null,null,null,null,null,null,null,null,null,null,null,null,null,null,null,null,null,null,null,null,null,134,null,null,null,null,null,null,null,null,null,null,null,null,null,null,null,null,null,null,null,null,null,null,null,null,null,null,null,null,null,null,"C","24460:Цөмийн түлш боловсруулалт","Өндөр","Зөвшөөрөл авах",0,134,"High","Referral List Activity",3]
[null,null,null,null,null,null,null,null,null,null,null,null,null,null,null,null,null,null,null,null,null,null,null,null,null,null,null,null,null,null,null,null,null,null,null,null,null,null,null,null,null,null,null,null,null,null,null,null,null,null,null,null,null,null,null,null,null,null,null,null,null,null,null,null,null,null,null,null,null,null,null,null,"ss12",135,null,null,null,null,null,null,null,null,null,null,null,null,null,null,null,null,null,null,null,null,null,null,null,null,null,null,null,null,null,null,"C","24500: Төмөрлөг бус металл цутгамал үйлдвэрлэл","Өндөр","Үнэлгээ хийнэ",0,135,"High","Assessment",2]
[null,null,null,null,null,null,null,null,null,null,null,null,null,null,null,null,null,null,null,null,null,null,null,null,null,null,null,null,null,null,null,null,null,null,null,null,null,null,null,null,null,null,null,null,null,null,null,null,null,null,null,null,null,null,null,null,null,null,null,null,null,null,null,null,null,null,null,null,null,null,null,null,null,136,null,null,null,null,null,null,null,null,null,null,null,null,null,null,null,null,null,null,null,null,null,null,null,null,null,null,null,null,null,null,"C","25100: Барилгын зориулалттай металл бүтээгдэхүүн, танк, хадгалах сав, уурын үүсгүүр зэрэг төмөр хийц үйлдвэрлэл","Дунд","Үнэлгээ хийнэ",0,136,"Medium","Assessment",2]
["8. Бусад танилцуулга:",null,null,null,null,null,null,null,null,null,null,null,null,null,null,null,null,null,null,null,null,null,null,null,null,null,null,null,null,null,null,null,null,null,null,null,null,null,null,null,null,null,null,null,null,null,null,null,null,null,null,null,null,null,null,null,null,null,null,null,null,null,null,null,null,null,null,null,null,null,null,null,null,137,null,null,null,null,null,null,null,null,null,null,null,null,null,null,null,null,null,null,null,null,null,null,null,null,null,null,null,null,null,null,"C","25200: Металл танк, цистерн хадгалах сав, чингэлэг үйлдвэрлэл","Дунд","Үнэлгээ хийнэ",0,137,"Medium","Assessment",2]
[null,null,null,null,null,null,null,null,null,null,null,null,null,null,null,null,null,null,null,null,null,null,null,null,null,null,null,null,null,null,null,null,null,null,null,null,null,null,null,null,null,null,null,null,null,null,null,null,null,null,null,null,null,null,null,null,null,null,null,null,null,null,null,null,null,null,null,null,null,null,null,null,null,138,null,null,null,null,null,null,null,null,null,null,null,null,null,null,null,null,null,null,null,null,null,null,null,null,null,null,null,null,null,null,"C","25300: Төвийн халаалтын халуун усны бойлороос бусад уурын үүсгүүр үйлдвэрлэл","Дунд","Үнэлгээ хийнэ",0,138,"Medium","Assessment",2]
[null,null,null,null,null,null,null,null,null,null,null,null,null,null,null,null,null,null,null,null,null,null,null,null,null,null,null,null,null,null,null,null,null,null,null,null,null,null,null,null,null,null,null,null,null,null,null,null,null,null,null,null,null,null,null,null,null,null,null,null,null,null,null,null,null,null,null,null,null,null,null,null,null,139,null,null,null,null,null,null,null,null,null,null,null,null,null,null,null,null,null,null,null,null,null,null,null,null,null,null,null,null,null,null,"C","25400:Зэр зэвсэг, сумны үйлдвэрлэл","Өндөр","Санхүүжүүлэхгүй",0,139,"High","Assessment",4]
["9. ХААН Банкны ажилтантай холбоотой эсэх",null,null,null,null,null,null,null,null,null,null,null,null,null,null,null,null,null,null,null,null,null,null,null,null,null,null,null,null,null,null,null,null,null,null,null,null,null,"Холбоотой ажилтны тоо:",null,null,null,null,null,null,null,null,null,null,null,null,null,null,null,null,null,null,null,null,null,null,null,null,null,null,null,null,null,null,null,null,null,null,140,null,null,null,null,null,null,null,null,null,null,null,null,null,null,null,null,null,null,null,null,null,null,null,null,null,null,null,null,null,null,"C","25500: Төмрийг давтах, дагтаршуулах, цутгах болон ороох; нунтаг металлурги","Дунд","Үнэлгээ хийнэ",0,140,"Medium","Assessment",2]
[null,null,null,null,null,null,null,null,null,null,null,null,null,null,null,null,null,null,null,null,null,null,null,null,null,null,null,null,null,null,null,null,null,null,null,null,null,null,null,null,null,null,null,null,null,null,null,null,null,null,null,null,null,null,null,null,null,null,null,null,null,null,null,null,null,null,null,null,null,null,null,null,null,141,null,null,null,null,null,null,null,null,null,null,null,null,null,null,null,null,null,null,null,null,null,null,null,null,null,null,null,null,null,null,"C","25610:Төмрийг гүйцээн боловсруулах","Өндөр","Үнэлгээ хийнэ",0,141,"High","Assessment",2]
[null,null,"Холбоотой ажилтны овог:",null,null,null,null,null,null,null,null,null,null,"Холбоотой ажилтны нэр:",null,null,null,null,null,null,null,null,null,"Салбар, нэгж:",null,null,null,null,null,null,null,"Албан тушаал:",null,null,null,null,null,null,null,null,null,null,"Холбоо хамаарал:",null,null,null,null,null,null,null,null,null,null,null,null,null,null,null,null,null,null,null,null,null,null,null,null,null,null,null,null,null,"ss13",142,null,null,null,null,null,null,null,null,null,null,null,null,null,null,null,null,null,null,null,null,null,null,null,null,null,null,null,null,null,null,"C","25620:Машин механизм","Дунд","Үнэлгээ хийнэ",0,142,"Medium","Assessment",2]
[null,1,null,null,null,null,null,null,null,null,null,null,null,null,null,null,null,null,null,null,null,null,null,null,null,null,null,null,null,null,null,null,null,null,null,null,null,null,null,null,null,null,null,null,null,null,null,null,null,null,null,null,null,null,null,null,null,null,null,null,null,null,null,null,null,null,null,null,null,null,null,null,null,143,null,null,null,null,null,null,null,null,null,null,null,null,null,null,null,null,null,null,null,null,null,null,null,null,null,null,null,null,null,null,"C","25700: Хутга шөвөг, багаж хэрэгсэл, ерөнхий зориулалтын төмөр хэрэгсэл үйлдвэрлэл","Дунд","Үнэлгээ хийнэ",0,143,"Medium","Assessment",2]
[null,2,null,null,null,null,null,null,null,null,null,null,null,null,null,null,null,null,null,null,null,null,null,null,null,null,null,null,null,null,null,null,null,null,null,null,null,null,null,null,null,null,null,null,null,null,null,null,null,null,null,null,null,null,null,null,null,null,null,null,null,null,null,null,null,null,null,null,null,null,null,null,null,144,null,null,null,null,null,null,null,null,null,null,null,null,null,null,null,null,null,null,null,null,null,null,null,null,null,null,null,null,null,null,"C","25710:Хутга мэс үйлдвэрлэл","Дунд","Үнэлгээ хийнэ",0,144,"Medium","Assessment",2]
[null,3,null,null,null,null,null,null,null,null,null,null,null,null,null,null,null,null,null,null,null,null,null,null,null,null,null,null,null,null,null,null,null,null,null,null,null,null,null,null,null,null,null,null,null,null,null,null,null,null,null,null,null,null,null,null,null,null,null,null,null,null,null,null,null,null,null,null,null,null,null,null,null,145,null,null,null,null,null,null,null,null,null,null,null,null,null,null,null,null,null,null,null,null,null,null,null,null,null,null,null,null,null,null,"C","25720:Цоож, нугас үйлдвэрлэл","Дунд","Үнэлгээ хийнэ",0,145,"Medium","Assessment",2]
[null,4,null,null,null,null,null,null,null,null,null,null,null,null,null,null,null,null,null,null,null,null,null,null,null,null,null,null,null,null,null,null,null,null,null,null,null,null,null,null,null,null,null,null,null,null,null,null,null,null,null,null,null,null,null,null,null,null,null,null,null,null,null,null,null,null,null,null,null,null,null,null,null,146,null,null,null,null,null,null,null,null,null,null,null,null,null,null,null,null,null,null,null,null,null,null,null,null,null,null,null,null,null,null,"C","25730:Багаж үйлдвэрлэл","Дунд","Үнэлгээ хийнэ",0,146,"Medium","Assessment",2]
[null,5,null,null,null,null,null,null,null,null,null,null,null,null,null,null,null,null,null,null,null,null,null,null,null,null,null,null,null,null,null,null,null,null,null,null,null,null,null,null,null,null,null,null,null,null,null,null,null,null,null,null,null,null,null,null,null,null,null,null,null,null,null,null,null,null,null,null,null,null,null,null,null,147,null,null,null,null,null,null,null,null,null,null,null,null,null,null,null,null,null,null,null,null,null,null,null,null,null,null,null,null,null,null,"C","25990:Бусад метал эдлэл үйлдвэрлэл","Дунд","Үнэлгээ хийнэ",0,147,"Medium","Assessment",2]
[null,6,null,null,null,null,null,null,null,null,null,null,null,null,null,null,null,null,null,null,null,null,null,null,null,null,null,null,null,null,null,null,null,null,null,null,null,null,null,null,null,null,null,null,null,null,null,null,null,null,null,null,null,null,null,null,null,null,null,null,null,null,null,null,null,null,null,null,null,null,null,null,null,148,null,null,null,null,null,null,null,null,null,null,null,null,null,null,null,null,null,null,null,null,null,null,null,null,null,null,null,null,null,null,"C","26100: Электроникийн эд анги үйлдвэрлэл","Дунд","Үнэлгээ хийнэ",0,148,"Medium","Assessment",2]
[null,7,null,null,null,null,null,null,null,null,null,null,null,null,null,null,null,null,null,null,null,null,null,null,null,null,null,null,null,null,null,null,null,null,null,null,null,null,null,null,null,null,null,null,null,null,null,null,null,null,null,null,null,null,null,null,null,null,null,null,null,null,null,null,null,null,null,null,null,null,null,null,null,149,null,null,null,null,null,null,null,null,null,null,null,null,null,null,null,null,null,null,null,null,null,null,null,null,null,null,null,null,null,null,"C","26200: Компьютер, түүний гадаад тоног төхөөрөмжийн эд анги үйлдвэрлэл","Өндөр","Үнэлгээ хийнэ",0,149,"High","Assessment",2]
[null,8,null,null,null,null,null,null,null,null,null,null,null,null,null,null,null,null,null,null,null,null,null,null,null,null,null,null,null,null,null,null,null,null,null,null,null,null,null,null,null,null,null,null,null,null,null,null,null,null,null,null,null,null,null,null,null,null,null,null,null,null,null,null,null,null,null,null,null,null,null,null,null,150,null,null,null,null,null,null,null,null,null,null,null,null,null,null,null,null,null,null,null,null,null,null,null,null,null,null,null,null,null,null,"C","26300:Харилцаа холбооны тоног төхөөрөмж үйлдвэрлэл","Дунд","Үнэлгээ хийнэ",0,150,"Medium","Assessment",2]
[null,9,null,null,null,null,null,null,null,null,null,null,null,null,null,null,null,null,null,null,null,null,null,null,null,null,null,null,null,null,null,null,null,null,null,null,null,null,null,null,null,null,null,null,null,null,null,null,null,null,null,null,null,null,null,null,null,null,null,null,null,null,null,null,null,null,null,null,null,null,null,null,null,151,null,null,null,null,null,null,null,null,null,null,null,null,null,null,null,null,null,null,null,null,null,null,null,null,null,null,null,null,null,null,"C","26400:Хэрэглээний цахилгаан хэрэслийн үйлдвэрлэл","Дунд","Үнэлгээ хийнэ",0,151,"Medium","Assessment",2]
[null,10,null,null,null,null,null,null,null,null,null,null,null,null,null,null,null,null,null,null,null,null,null,null,null,null,null,null,null,null,null,null,null,null,null,null,null,null,null,null,null,null,null,null,null,null,null,null,null,null,null,null,null,null,null,null,null,null,null,null,null,null,null,null,null,null,null,null,null,null,null,null,null,152,null,null,null,null,null,null,null,null,null,null,null,null,null,null,null,null,null,null,null,null,null,null,null,null,null,null,null,null,null,null,"C","26500: Хэмжих, шалгах, тохируулах, хянах тоног төхөөрөмж болон бугуйн цаг, цаг үйлдвэрлэл","Дунд","Үнэлгээ хийнэ",0,152,"Medium","Assessment",2]
[null,null,null,null,null,null,null,null,null,null,null,null,null,null,null,null,null,null,null,null,null,null,null,null,null,null,null,null,null,null,null,null,null,null,null,null,null,null,null,null,null,null,null,null,null,null,null,null,null,null,null,null,null,null,null,null,null,null,null,null,null,null,null,null,null,null,null,null,null,null,null,null,"ss14",153,null,null,null,null,null,null,null,null,null,null,null,null,null,null,null,null,null,null,null,null,null,null,null,null,null,null,null,null,null,null,"C","26600:Цацраг туяа ялгаруулагч, цахилгаан гүйдэл ашиглан эмчилгээ хийдэг төхөөрөмж,  цахилгаан эмчилгээ оношлогооны төхөөрөмж үйлдвэрлэл ","Дунд","Үнэлгээ хийнэ",0,153,"Medium","Assessment",2]
[null,null,null,null,null,null,null,null,null,null,null,null,null,null,null,null,null,null,null,null,null,null,null,null,null,null,null,null,null,null,null,null,null,null,null,null,null,null,null,null,null,null,null,null,null,null,null,null,null,null,null,null,null,null,null,null,null,null,null,null,null,null,null,null,null,null,null,null,null,null,null,null,null,154,null,null,null,null,null,null,null,null,null,null,null,null,null,null,null,null,null,null,null,null,null,null,null,null,null,null,null,null,null,null,"C","26700: Оптик багаж хэрэгсэл, тоног төхөөрөмжийн үйлдвэрлэл","Дунд","Үнэлгээ хийнэ",0,154,"Medium","Assessment",2]
[null,{"$f":"CONCATENATE(IF(BR10=1,\"Би\",\"Бид\"),\" дээрхи мэдээллийг үнэн болохыг баталж байна.\")","v":"Бид дээрхи мэдээллийг үнэн болохыг баталж байна."},null,null,null,null,null,null,null,null,null,null,null,null,null,null,null,null,null,null,null,null,null,null,null,null,null,null,null,null,null,null,null,null,null,null,null,null,null,null,null,null,null,null,null,null,null,null,null,null,null,null,null,null,null,null,null,null,null,null,null,null,null,null,null,null,null,null,null,null,null,null,null,155,null,null,null,null,null,null,null,null,null,null,null,null,null,null,null,null,null,null,null,null,null,null,null,null,null,null,null,null,null,null,"C","26800: Соронзон болон оптик мэдээллийн хэрэгслийн үйлдвэрлэл","Дунд","Үнэлгээ хийнэ",0,155,"Medium","Assessment",2]
[null,"Гарын үсэг:",null,null,null,null,null,null,null,null,null,null,null,null,null,null,null,null,null,null,"Нэр:",null,null,null,null,null,null,null,null,null,null,null,null,null,null,null,"Огноо:",null,null,null,null,null,null,null,null,null,null,null,null,null,null,null,null,null,null,null,null,null,null,null,null,null,null,null,null,null,null,null,null,null,null,null,"ss15",156,null,null,null,null,null,null,null,null,null,null,null,null,null,null,null,null,null,null,null,null,null,null,null,null,null,null,null,null,null,null,"C","27100: Цахилгаан хөдөлгүүр, үүсгүүр, хувиргагч, цахилгаан эрчим хүчийг хуваарилах болон хянах аппарат хэрэгсэл үйлдвэрлэл","Дунд","Үнэлгээ хийнэ",0,156,"Medium","Assessment",2]
[null,"Гарын үсэг:",null,null,null,null,null,null,null,null,null,null,null,null,null,null,null,null,null,null,"Нэр:",null,null,null,null,null,null,null,null,null,null,null,null,null,null,null,"Огноо:",null,null,null,null,null,null,null,null,null,null,null,null,null,null,null,null,null,null,null,null,null,null,null,null,null,null,null,null,null,null,null,null,null,null,null,null,157,null,null,null,null,null,null,null,null,null,null,null,null,null,null,null,null,null,null,null,null,null,null,null,null,null,null,null,null,null,null,"C","27200: Батерей (зай хураагуур) болон аккумлятор үйлдвэрлэл","Өндөр","Үнэлгээ хийнэ",0,157,"High","Assessment",2]
[null,"Гарын үсэг:",null,null,null,null,null,null,null,null,null,null,null,null,null,null,null,null,null,null,"Нэр:",null,null,null,null,null,null,null,null,null,null,null,null,null,null,null,"Огноо:",null,null,null,null,null,null,null,null,null,null,null,null,null,null,null,null,null,null,null,null,null,null,null,null,null,null,null,null,null,null,null,null,null,null,null,null,158,null,null,null,null,null,null,null,null,null,null,null,null,null,null,null,null,null,null,null,null,null,null,null,null,null,null,null,null,null,null,"C","27300: Цахилгаан утас, кабель болон утас бүхий хэрэгслийн үйлдвэрлэл","Өндөр","Үнэлгээ хийнэ",0,158,"High","Assessment",2]
[null,"Гарын үсэг:",null,null,null,null,null,null,null,null,null,null,null,null,null,null,null,null,null,null,"Нэр:",null,null,null,null,null,null,null,null,null,null,null,null,null,null,null,"Огноо:",null,null,null,null,null,null,null,null,null,null,null,null,null,null,null,null,null,null,null,null,null,null,null,null,null,null,null,null,null,null,null,null,null,null,null,null,159,null,null,null,null,null,null,null,null,null,null,null,null,null,null,null,null,null,null,null,null,null,null,null,null,null,null,null,null,null,null,"C","27400: Цахилгаан гэрэлтүүлгийн хэрэгсэл үйлдвэрлэл","Өндөр","Үнэлгээ хийнэ",0,159,"High","Assessment",2]
[null,"Гарын үсэг:",null,null,null,null,null,null,null,null,null,null,null,null,null,null,null,null,null,null,"Нэр:",null,null,null,null,null,null,null,null,null,null,null,null,null,null,null,"Огноо:",null,null,null,null,null,null,null,null,null,null,null,null,null,null,null,null,null,null,null,null,null,null,null,null,null,null,null,null,null,null,null,null,null,null,null,null,160,null,null,null,null,null,null,null,null,null,null,null,null,null,null,null,null,null,null,null,null,null,null,null,null,null,null,null,null,null,null,"C","27500: Гэр ахуйн цахилгаан хэрэгсэл үйлдвэрлэл","Дунд","Үнэлгээ хийнэ",0,160,"Medium","Assessment",2]
[null,"Гарын үсэг:",null,null,null,null,null,null,null,null,null,null,null,null,null,null,null,null,null,null,"Нэр:",null,null,null,null,null,null,null,null,null,null,null,null,null,null,null,"Огноо:",null,null,null,null,null,null,null,null,null,null,null,null,null,null,null,null,null,null,null,null,null,null,null,null,null,null,null,null,null,null,null,null,null,null,null,null,161,null,null,null,null,null,null,null,null,null,null,null,null,null,null,null,null,null,null,null,null,null,null,null,null,null,null,null,null,null,null,"C","27900: Бусад цахилгаан тоног төхөөрөмж үйлдвэрлэл","Дунд","Үнэлгээ хийнэ",0,161,"Medium","Assessment",2]
[null,"Гарын үсэг:",null,null,null,null,null,null,null,null,null,null,null,null,null,null,null,null,null,null,"Нэр:",null,null,null,null,null,null,null,null,null,null,null,null,null,null,null,"Огноо:",null,null,null,null,null,null,null,null,null,null,null,null,null,null,null,null,null,null,null,null,null,null,null,null,null,null,null,null,null,null,null,null,null,null,null,null,162,null,null,null,null,null,null,null,null,null,null,null,null,null,null,null,null,null,null,null,null,null,null,null,null,null,null,null,null,null,null,"C","28100:Ерөнхий зориулалтын  машин, төхөөрөмж үйлдвэрлэл","Дунд","Үнэлгээ хийнэ",0,162,"Medium","Assessment",2]
[null,"Гарын үсэг:",null,null,null,null,null,null,null,null,null,null,null,null,null,null,null,null,null,null,"Нэр:",null,null,null,null,null,null,null,null,null,null,null,null,null,null,null,"Огноо:",null,null,null,null,null,null,null,null,null,null,null,null,null,null,null,null,null,null,null,null,null,null,null,null,null,null,null,null,null,null,null,null,null,null,null,null,163,null,null,null,null,null,null,null,null,null,null,null,null,null,null,null,null,null,null,null,null,null,null,null,null,null,null,null,null,null,null,"C","28210: Зуух, плитка, хийн зуух үйлдвэрлэл","Дунд","Үнэлгээ хийнэ",0,163,"Medium","Assessment",2]
[null,"Гарын үсэг:",null,null,null,null,null,null,null,null,null,null,null,null,null,null,null,null,null,null,"Нэр:",null,null,null,null,null,null,null,null,null,null,null,null,null,null,null,"Огноо:",null,null,null,null,null,null,null,null,null,null,null,null,null,null,null,null,null,null,null,null,null,null,null,null,null,null,null,null,null,null,null,null,null,null,null,null,164,null,null,null,null,null,null,null,null,null,null,null,null,null,null,null,null,null,null,null,null,null,null,null,null,null,null,null,null,null,null,"C","28220: Өргөх, ачих, буулгах тоног төхөөрөмж үйлдвэрлэл","Дунд","Үнэлгээ хийнэ",0,164,"Medium","Assessment",2]
[null,"Гарын үсэг:",null,null,null,null,null,null,null,null,null,null,null,null,null,null,null,null,null,null,"Нэр:",null,null,null,null,null,null,null,null,null,null,null,null,null,null,null,"Огноо:",null,null,null,null,null,null,null,null,null,null,null,null,null,null,null,null,null,null,null,null,null,null,null,null,null,null,null,null,null,null,null,null,null,null,null,null,165,null,null,null,null,null,null,null,null,null,null,null,null,null,null,null,null,null,null,null,null,null,null,null,null,null,null,null,null,null,null,"C","28230: Албан тасалгааны машин, тоног төхөөрөмж үйлдвэрлэл (компьютер, түүний хадгалах тоног төхөөрөмж орохгүй)","Дунд","Үнэлгээ хийнэ",0,165,"Medium","Assessment",2]
[null,null,null,null,null,null,null,null,null,null,null,null,null,null,null,null,null,null,null,null,null,null,null,null,null,null,null,null,null,null,null,null,null,null,null,null,null,null,null,null,null,null,null,null,null,null,null,null,null,null,null,null,null,null,null,null,null,null,null,null,null,null,null,null,null,null,null,null,null,null,null,null,"ss16",166,null,null,null,null,null,null,null,null,null,null,null,null,null,null,null,null,null,null,null,null,null,null,null,null,null,null,null,null,null,null,"C","28240: Гар удирдлагатай багаж хэрэгсэл үйлдвэрлэл","Дунд","Үнэлгээ хийнэ",0,166,"Medium","Assessment",2]
[null,null,null,null,null,null,null,null,null,null,null,null,null,null,null,null,null,null,null,null,null,null,null,null,null,null,null,null,null,null,null,null,null,null,null,null,null,null,null,null,null,null,null,null,null,null,null,null,null,null,null,null,null,null,null,null,null,null,null,null,null,null,null,null,null,null,null,null,null,null,null,null,null,167,null,null,null,null,null,null,null,null,null,null,null,null,null,null,null,null,null,null,null,null,null,null,null,null,null,null,null,null,null,null,"C","28250:Ахуйн бус хөргөх болон агааржуулалтын тоног төхөөрөмж үйлдвэрлэл ","Дунд","Үнэлгээ хийнэ",0,167,"Medium","Assessment",2]
[null,null,null,null,null,null,null,null,null,null,null,null,null,null,null,null,null,null,null,null,null,null,null,null,null,null,null,null,null,null,null,null,null,null,null,null,null,null,null,null,null,null,null,null,null,null,null,null,null,null,null,null,null,null,null,null,null,null,null,null,null,null,null,null,null,null,null,null,null,null,null,null,null,168,null,null,null,null,null,null,null,null,null,null,null,null,null,null,null,null,null,null,null,null,null,null,null,null,null,null,null,null,null,null,"C","28251:Озоны давхрага бууруулахад нөлөөлдөг бодис ашигладаг хөргөх төхөөрөмж үйлдвэрлэл","Өндөр","Санхүүжүүлэхгүй",0,168,"High","Exclusion List Activity",4]
[null,null,null,null,null,null,null,null,null,null,null,null,null,null,null,null,null,null,null,null,null,null,null,null,null,null,null,null,null,null,null,null,null,null,null,null,null,null,null,null,null,null,null,null,null,null,null,null,null,null,null,null,null,null,null,null,null,null,null,null,null,null,null,null,null,null,null,null,null,null,null,null,null,169,null,null,null,null,null,null,null,null,null,null,null,null,null,null,null,null,null,null,null,null,null,null,null,null,null,null,null,null,null,null,"C","28290:Дээрх ангилалд ороогүй бусад  ерөнхий зориулалтын машин, тоног төхөөрөмжийн  үйлдвэрлэл","Дунд","Үнэлгээ хийнэ",0,169,"Medium","Assessment",2]
[null,null,null,null,null,null,null,null,null,null,null,null,null,null,null,null,null,null,null,null,null,null,null,null,null,null,null,null,null,null,null,null,null,null,null,null,null,null,null,null,null,null,null,null,null,null,null,null,null,null,null,null,null,null,null,null,null,null,null,null,null,null,null,null,null,null,null,null,null,null,null,null,null,170,null,null,null,null,null,null,null,null,null,null,null,null,null,null,null,null,null,null,null,null,null,null,null,null,null,null,null,null,null,null,"C","28300: Хөдөө аж ахуй, ойн аж ахуйн машин үйлдвэрлэл","Дунд","Үнэлгээ хийнэ",0,170,"Medium","Assessment",2]
[null,null,null,null,null,null,null,null,null,null,null,null,null,null,null,null,null,null,null,null,null,null,null,null,null,null,null,null,null,null,null,null,null,null,null,null,null,null,null,null,null,null,null,null,null,null,null,null,null,null,null,null,null,null,null,null,null,null,null,null,null,null,null,null,null,null,null,null,null,null,null,null,null,171,null,null,null,null,null,null,null,null,null,null,null,null,null,null,null,null,null,null,null,null,null,null,null,null,null,null,null,null,null,null,"C","28400: Металл боловсруулах машин, багаж хэрэгсэл үйлдвэрлэл","Дунд","Үнэлгээ хийнэ",0,171,"Medium","Assessment",2]
[null,null,null,null,null,null,null,null,null,null,null,null,null,null,null,null,null,null,null,null,null,null,null,null,null,null,null,null,null,null,null,null,null,null,null,null,null,null,null,null,null,null,null,null,null,null,null,null,null,null,null,null,null,null,null,null,null,null,null,null,null,null,null,null,null,null,null,null,null,null,null,null,null,172,null,null,null,null,null,null,null,null,null,null,null,null,null,null,null,null,null,null,null,null,null,null,null,null,null,null,null,null,null,null,"C","28900:Тусгай зориулалтын бусад машин үйлдвэрлэл","Дунд","Үнэлгээ хийнэ",0,172,"Medium","Assessment",2]
[null,null,null,null,null,null,null,null,null,null,null,null,null,null,null,null,null,null,null,null,null,null,null,null,null,null,null,null,null,null,null,null,null,null,null,null,null,null,null,null,null,null,null,null,null,null,null,null,null,null,null,null,null,null,null,null,null,null,null,null,null,null,null,null,null,null,null,null,null,null,null,null,null,173,null,null,null,null,null,null,null,null,null,null,null,null,null,null,null,null,null,null,null,null,null,null,null,null,null,null,null,null,null,null,"C","29100:Моторт тээврийн хэрэгсэл үйлдвэрлэл","Дунд","Үнэлгээ хийнэ",0,173,"Medium","Assessment",2]
[null,null,null,null,null,null,null,null,null,null,null,null,null,null,null,null,null,null,null,null,null,null,null,null,null,null,null,null,null,null,null,null,null,null,null,null,null,null,null,null,null,null,null,null,null,null,null,null,null,null,null,null,null,null,null,null,null,null,null,null,null,null,null,null,null,null,null,null,null,null,null,null,null,174,null,null,null,null,null,null,null,null,null,null,null,null,null,null,null,null,null,null,null,null,null,null,null,null,null,null,null,null,null,null,"C","29200: Моторт тээврийн хэрэгслийн гадар бие /туслах төхөөрөмж/ үйлдвэрлэл; чиргүүл ба хагас чиргүүл үйлдвэрлэл","Дунд","Үнэлгээ хийнэ",0,174,"Medium","Assessment",2]
[null,null,null,null,null,null,null,null,null,null,null,null,null,null,null,null,null,null,null,null,null,null,null,null,null,null,null,null,null,null,null,null,null,null,null,null,null,null,null,null,null,null,null,null,null,null,null,null,null,null,null,null,null,null,null,null,null,null,null,null,null,null,null,null,null,null,null,null,null,null,null,null,null,175,null,null,null,null,null,null,null,null,null,null,null,null,null,null,null,null,null,null,null,null,null,null,null,null,null,null,null,null,null,null,"C","29300: Моторт тээврийн хэрэгслийн сэлбэг, эд анги үйлдвэрлэл","Дунд","Үнэлгээ хийнэ",0,175,"Medium","Assessment",2]
[null,null,null,null,null,null,null,null,null,null,null,null,null,null,null,null,null,null,null,null,null,null,null,null,null,null,null,null,null,null,null,null,null,null,null,null,null,null,null,null,null,null,null,null,null,null,null,null,null,null,null,null,null,null,null,null,null,null,null,null,null,null,null,null,null,null,null,null,null,null,null,null,null,176,null,null,null,null,null,null,null,null,null,null,null,null,null,null,null,null,null,null,null,null,null,null,null,null,null,null,null,null,null,null,"C","30110: Усан онгоц, завь үйлдвэрлэл","Өндөр","Үнэлгээ хийнэ",0,176,"High","Assessment",2]
[null,null,null,null,null,null,null,null,null,null,null,null,null,null,null,null,null,null,null,null,null,null,null,null,null,null,null,null,null,null,null,null,null,null,null,null,null,null,null,null,null,null,null,null,null,null,null,null,null,null,null,null,null,null,null,null,null,null,null,null,null,null,null,null,null,null,null,null,null,null,null,null,null,177,null,null,null,null,null,null,null,null,null,null,null,null,null,null,null,null,null,null,null,null,null,null,null,null,null,null,null,null,null,null,"C","30120: Аялал, зугаалгын болон спортын зориулалттай завь үйлдвэрлэл","Дунд","Үнэлгээ хийнэ",0,177,"Medium","Assessment",2]
[null,null,null,null,null,null,null,null,null,null,null,null,null,null,null,null,null,null,null,null,null,null,null,null,null,null,null,null,null,null,null,null,null,null,null,null,null,null,null,null,null,null,null,null,null,null,null,null,null,null,null,null,null,null,null,null,null,null,null,null,null,null,null,null,null,null,null,null,null,null,null,null,null,178,null,null,null,null,null,null,null,null,null,null,null,null,null,null,null,null,null,null,null,null,null,null,null,null,null,null,null,null,null,null,"C","30200: Төмөр замын зүтгүүр ба хөдлөх эд анги үйлдвэрлэл","Өндөр","Үнэлгээ хийнэ",0,178,"High","Assessment",2]
[null,null,null,null,null,null,null,null,null,null,null,null,null,null,null,null,null,null,null,null,null,null,null,null,null,null,null,null,null,null,null,null,null,null,null,null,null,null,null,null,null,null,null,null,null,null,null,null,null,null,null,null,null,null,null,null,null,null,null,null,null,null,null,null,null,null,null,null,null,null,null,null,null,179,null,null,null,null,null,null,null,null,null,null,null,null,null,null,null,null,null,null,null,null,null,null,null,null,null,null,null,null,null,null,"C","30300: Агаарын болон сансрын хөлөг, түүнтэй холбоотой тоног төхөөрөмж үйлдвэрлэл","Өндөр","Үнэлгээ хийнэ",0,179,"High","Assessment",2]
[null,null,null,null,null,null,null,null,null,null,null,null,null,null,null,null,null,null,null,null,null,null,null,null,null,null,null,null,null,null,null,null,null,null,null,null,null,null,null,null,null,null,null,null,null,null,null,null,null,null,null,null,null,null,null,null,null,null,null,null,null,null,null,null,null,null,null,null,null,null,null,null,null,180,null,null,null,null,null,null,null,null,null,null,null,null,null,null,null,null,null,null,null,null,null,null,null,null,null,null,null,null,null,null,"C","30400:  Байлдааны тээврийн хэрэгсэл үйлдвэрлэл","Өндөр","Үнэлгээ хийнэ",0,180,"High","Assessment",2]
[null,null,null,null,null,null,null,null,null,null,null,null,null,null,null,null,null,null,null,null,null,null,null,null,null,null,null,null,null,null,null,null,null,null,null,null,null,null,null,null,null,null,null,null,null,null,null,null,null,null,null,null,null,null,null,null,null,null,null,null,null,null,null,null,null,null,null,null,null,null,null,null,null,181,null,null,null,null,null,null,null,null,null,null,null,null,null,null,null,null,null,null,null,null,null,null,null,null,null,null,null,null,null,null,"C","30900: Тээврийн бусад хэрэгслийн тоног төхөөрөмж үйлдвэрлэл","Дунд","Үнэлгээ хийнэ",0,181,"Medium","Assessment",2]
[null,null,null,null,null,null,null,null,null,null,null,null,null,null,null,null,null,null,null,null,null,null,null,null,null,null,null,null,null,null,null,null,null,null,null,null,null,null,null,null,null,null,null,null,null,null,null,null,null,null,null,null,null,null,null,null,null,null,null,null,null,null,null,null,null,null,null,null,null,null,null,null,null,182,null,null,null,null,null,null,null,null,null,null,null,null,null,null,null,null,null,null,null,null,null,null,null,null,null,null,null,null,null,null,"C","31000:Тавилга үйлдвэрлэл","Дунд","Үнэлгээ хийнэ",0,182,"Medium","Assessment",2]
[null,null,null,null,null,null,null,null,null,null,null,null,null,null,null,null,null,null,null,null,null,null,null,null,null,null,null,null,null,null,null,null,null,null,null,null,null,null,null,null,null,null,null,null,null,null,null,null,null,null,null,null,null,null,null,null,null,null,null,null,null,null,null,null,null,null,null,null,null,null,null,null,null,183,null,null,null,null,null,null,null,null,null,null,null,null,null,null,null,null,null,null,null,null,null,null,null,null,null,null,null,null,null,null,"C","32100: Гоёл чимэглэл болон холбогдох эдлэл үйлдвэрлэл","Дунд","Үнэлгээ хийнэ",0,183,"Medium","Assessment",2]
[null,null,null,null,null,null,null,null,null,null,null,null,null,null,null,null,null,null,null,null,null,null,null,null,null,null,null,null,null,null,null,null,null,null,null,null,null,null,null,null,null,null,null,null,null,null,null,null,null,null,null,null,null,null,null,null,null,null,null,null,null,null,null,null,null,null,null,null,null,null,null,null,null,184,null,null,null,null,null,null,null,null,null,null,null,null,null,null,null,null,null,null,null,null,null,null,null,null,null,null,null,null,null,null,"C","32200:  Хөгжмийн зэмсэг үйлдвэрлэл","Дунд","Үнэлгээ хийнэ",0,184,"Medium","Assessment",2]
[null,null,null,null,null,null,null,null,null,null,null,null,null,null,null,null,null,null,null,null,null,null,null,null,null,null,null,null,null,null,null,null,null,null,null,null,null,null,null,null,null,null,null,null,null,null,null,null,null,null,null,null,null,null,null,null,null,null,null,null,null,null,null,null,null,null,null,null,null,null,null,null,null,185,null,null,null,null,null,null,null,null,null,null,null,null,null,null,null,null,null,null,null,null,null,null,null,null,null,null,null,null,null,null,"C","32300:  Спортын бараа үйлдвэрлэл","Дунд","Үнэлгээ хийнэ",0,185,"Medium","Assessment",2]
[null,null,null,null,null,null,null,null,null,null,null,null,null,null,null,null,null,null,null,null,null,null,null,null,null,null,null,null,null,null,null,null,null,null,null,null,null,null,null,null,null,null,null,null,null,null,null,null,null,null,null,null,null,null,null,null,null,null,null,null,null,null,null,null,null,null,null,null,null,null,null,null,null,186,null,null,null,null,null,null,null,null,null,null,null,null,null,null,null,null,null,null,null,null,null,null,null,null,null,null,null,null,null,null,"C","32400:  Тоглоом үйлдвэрлэл","Дунд","Үнэлгээ хийнэ",0,186,"Medium","Assessment",2]
[null,null,null,null,null,null,null,null,null,null,null,null,null,null,null,null,null,null,null,null,null,null,null,null,null,null,null,null,null,null,null,null,null,null,null,null,null,null,null,null,null,null,null,null,null,null,null,null,null,null,null,null,null,null,null,null,null,null,null,null,null,null,null,null,null,null,null,null,null,null,null,null,null,187,null,null,null,null,null,null,null,null,null,null,null,null,null,null,null,null,null,null,null,null,null,null,null,null,null,null,null,null,null,null,"C","32500:  Эмнэлгийн болон шүдний эмнэлгийн багаж хэрэгсэл үйлдвэрлэл","Дунд","Үнэлгээ хийнэ",0,187,"Medium","Assessment",2]
[null,null,null,null,null,null,null,null,null,null,null,null,null,null,null,null,null,null,null,null,null,null,null,null,null,null,null,null,null,null,null,null,null,null,null,null,null,null,null,null,null,null,null,null,null,null,null,null,null,null,null,null,null,null,null,null,null,null,null,null,null,null,null,null,null,null,null,null,null,null,null,null,null,188,null,null,null,null,null,null,null,null,null,null,null,null,null,null,null,null,null,null,null,null,null,null,null,null,null,null,null,null,null,null,"C","32900:  Боловсруулах үйлдвэрийн бусад бүтээгдэхүүн үйлдвэрлэл","Дунд","Үнэлгээ хийнэ",0,188,"Medium","Assessment",2]
[null,null,null,null,null,null,null,null,null,null,null,null,null,null,null,null,null,null,null,null,null,null,null,null,null,null,null,null,null,null,null,null,null,null,null,null,null,null,null,null,null,null,null,null,null,null,null,null,null,null,null,null,null,null,null,null,null,null,null,null,null,null,null,null,null,null,null,null,null,null,null,null,null,189,null,null,null,null,null,null,null,null,null,null,null,null,null,null,null,null,null,null,null,null,null,null,null,null,null,null,null,null,null,null,"C","33100: Металл бүтээгдэхүүн үйлдвэрлэлийн машин, тоног төхөөрөмжийн засвар, үйлчилгээ","Дунд","Үнэлгээ хийнэ",0,189,"Medium","Assessment",2]
[null,null,null,null,null,null,null,null,null,null,null,null,null,null,null,null,null,null,null,null,null,null,null,null,null,null,null,null,null,null,null,null,null,null,null,null,null,null,null,null,null,null,null,null,null,null,null,null,null,null,null,null,null,null,null,null,null,null,null,null,null,null,null,null,null,null,null,null,null,null,null,null,null,190,null,null,null,null,null,null,null,null,null,null,null,null,null,null,null,null,null,null,null,null,null,null,null,null,null,null,null,null,null,null,"C","33200: Аж үйлдвэрийн машин, тоног төхөөрөмжийн угсрах, суурилуулах үйл ажиллагаа","Дунд","Үнэлгээ хийнэ","C",190,"Medium","Assessment",2]
[null,null,null,null,null,null,null,null,null,null,null,null,null,null,null,null,null,null,null,null,null,null,null,null,null,null,null,null,null,null,null,null,null,null,null,null,null,null,null,null,null,null,null,null,null,null,null,null,null,null,null,null,null,null,null,null,null,null,null,null,null,null,null,null,null,null,null,null,null,null,null,null,null,191,null,null,null,null,null,null,null,null,null,null,null,null,null,null,null,null,null,null,null,null,null,null,null,null,null,null,null,null,null,null,"D","35100: Цахилгаан эрчим хүч үйлдвэрлэх, дамжуулах, түгээх үйл ажиллагаа","Өндөр","Үнэлгээ хийнэ",0,191,"High","Assessment",2]
[null,null,null,null,null,null,null,null,null,null,null,null,null,null,null,null,null,null,null,null,null,null,null,null,null,null,null,null,null,null,null,null,null,null,null,null,null,null,null,null,null,null,null,null,null,null,null,null,null,null,null,null,null,null,null,null,null,null,null,null,null,null,null,null,null,null,null,null,null,null,null,null,null,192,null,null,null,null,null,null,null,null,null,null,null,null,null,null,null,null,null,null,null,null,null,null,null,null,null,null,null,null,null,null,"D","35101: Цөмийн түлш ашиглан эрчим хүч үйлдвэрлэх","Өндөр","Зөвшөөрөл авах",0,192,"High","Referral List Activity",3]
[null,null,null,null,null,null,null,null,null,null,null,null,null,null,null,null,null,null,null,null,null,null,null,null,null,null,null,null,null,null,null,null,null,null,null,null,null,null,null,null,null,null,null,null,null,null,null,null,null,null,null,null,null,null,null,null,null,null,null,null,null,null,null,null,null,null,null,null,null,null,null,null,null,193,null,null,null,null,null,null,null,null,null,null,null,null,null,null,null,null,null,null,null,null,null,null,null,null,null,null,null,null,null,null,"D","35200: Хийн аж ахуй, хийн түлшийг хуваарилах үйл ажиллагаа","Өндөр","Үнэлгээ хийнэ",0,193,"High","Assessment",2]
[null,null,null,null,null,null,null,null,null,null,null,null,null,null,null,null,null,null,null,null,null,null,null,null,null,null,null,null,null,null,null,null,null,null,null,null,null,null,null,null,null,null,null,null,null,null,null,null,null,null,null,null,null,null,null,null,null,null,null,null,null,null,null,null,null,null,null,null,null,null,null,null,null,194,null,null,null,null,null,null,null,null,null,null,null,null,null,null,null,null,null,null,null,null,null,null,null,null,null,null,null,null,null,null,"D","35300: Уур, агааржуулагчийн хангамжийн үйл ажиллагаа","Бага",null,{"$f":"IF(DA194=DA195,0,DA194)","v":"D"},194,"Low",null,1]
[null,null,null,null,null,null,null,null,null,null,null,null,null,null,null,null,null,null,null,null,null,null,null,null,null,null,null,null,null,null,null,null,null,null,null,null,null,null,null,null,null,null,null,null,null,null,null,null,null,null,null,null,null,null,null,null,null,null,null,null,null,null,null,null,null,null,null,null,null,null,null,null,null,195,null,null,null,null,null,null,null,null,null,null,null,null,null,null,null,null,null,null,null,null,null,null,null,null,null,null,null,null,null,null,"E","36000: Ус хуримтлуулах, ариутгах, усан хангамжийн үйл ажиллагаа","Дунд","Үнэлгээ хийнэ",0,195,"Medium","Assessment",2]
[null,null,null,null,null,null,null,null,null,null,null,null,null,null,null,null,null,null,null,null,null,null,null,null,null,null,null,null,null,null,null,null,null,null,null,null,null,null,null,null,null,null,null,null,null,null,null,null,null,null,null,null,null,null,null,null,null,null,null,null,null,null,null,null,null,null,null,null,null,null,null,null,null,196,null,null,null,null,null,null,null,null,null,null,null,null,null,null,null,null,null,null,null,null,null,null,null,null,null,null,null,null,null,null,"E","37000: Бохир ус хуримтлуулах, цэвэрлэх, ариутгах үйл ажиллагаа","Өндөр","Үнэлгээ хийнэ",0,196,"High","Assessment",2]
[null,null,null,null,null,null,null,null,null,null,null,null,null,null,null,null,null,null,null,null,null,null,null,null,null,null,null,null,null,null,null,null,null,null,null,null,null,null,null,null,null,null,null,null,null,null,null,null,null,null,null,null,null,null,null,null,null,null,null,null,null,null,null,null,null,null,null,null,null,null,null,null,null,197,null,null,null,null,null,null,null,null,null,null,null,null,null,null,null,null,null,null,null,null,null,null,null,null,null,null,null,null,null,null,"E","38110: Аюулгүй хог хаягдал цуглуулах үйл ажиллагаа","Өндөр","Үнэлгээ хийнэ",0,197,"High","Assessment",2]
[null,null,null,null,null,null,null,null,null,null,null,null,null,null,null,null,null,null,null,null,null,null,null,null,null,null,null,null,null,null,null,null,null,null,null,null,null,null,null,null,null,null,null,null,null,null,null,null,null,null,null,null,null,null,null,null,null,null,null,null,null,null,null,null,null,null,null,null,null,null,null,null,null,198,null,null,null,null,null,null,null,null,null,null,null,null,null,null,null,null,null,null,null,null,null,null,null,null,null,null,null,null,null,null,"E","38120: Аюултай хог хаягдал цуглуулах үйл ажиллагаа","Өндөр","Үнэлгээ хийнэ",0,198,"High","Assessment",2]
[null,null,null,null,null,null,null,null,null,null,null,null,null,null,null,null,null,null,null,null,null,null,null,null,null,null,null,null,null,null,null,null,null,null,null,null,null,null,null,null,null,null,null,null,null,null,null,null,null,null,null,null,null,null,null,null,null,null,null,null,null,null,null,null,null,null,null,null,null,null,null,null,null,199,null,null,null,null,null,null,null,null,null,null,null,null,null,null,null,null,null,null,null,null,null,null,null,null,null,null,null,null,null,null,"E","38210: Аюулгүй хог хаягдлыг ариутгах, боловсруулах үйл ажиллагаа","Өндөр","Үнэлгээ хийнэ",0,199,"High","Assessment",2]
[null,null,null,null,null,null,null,null,null,null,null,null,null,null,null,null,null,null,null,null,null,null,null,null,null,null,null,null,null,null,null,null,null,null,null,null,null,null,null,null,null,null,null,null,null,null,null,null,null,null,null,null,null,null,null,null,null,null,null,null,null,null,null,null,null,null,null,null,null,null,null,null,null,200,null,null,null,null,null,null,null,null,null,null,null,null,null,null,null,null,null,null,null,null,null,null,null,null,null,null,null,null,null,null,"E","38220: Аюултай хог хаягдлыг ариутгах, боловсруулах үйл ажиллагаа","Өндөр","Үнэлгээ хийнэ",0,200,"High","Assessment",2]
[null,null,null,null,null,null,null,null,null,null,null,null,null,null,null,null,null,null,null,null,null,null,null,null,null,null,null,null,null,null,null,null,null,null,null,null,null,null,null,null,null,null,null,null,null,null,null,null,null,null,null,null,null,null,null,null,null,null,null,null,null,null,null,null,null,null,null,null,null,null,null,null,null,201,null,null,null,null,null,null,null,null,null,null,null,null,null,null,null,null,null,null,null,null,null,null,null,null,null,null,null,null,null,null,"E","38300: Хог хаягдлаас хоёрдогч түүхий эд, материал гарган авах үйл ажиллагаа","Өндөр","Үнэлгээ хийнэ",0,201,"High","Assessment",2]
[null,null,null,null,null,null,null,null,null,null,null,null,null,null,null,null,null,null,null,null,null,null,null,null,null,null,null,null,null,null,null,null,null,null,null,null,null,null,null,null,null,null,null,null,null,null,null,null,null,null,null,null,null,null,null,null,null,null,null,null,null,null,null,null,null,null,null,null,null,null,null,null,null,202,null,null,null,null,null,null,null,null,null,null,null,null,null,null,null,null,null,null,null,null,null,null,null,null,null,null,null,null,null,null,"E","39000: Хог, хаягдлын менежментийн бусад үйл ажиллагаа ба цэвэрлэх үйл ажиллагаа","Өндөр","Үнэлгээ хийнэ","E",202,"High","Assessment",2]
[null,null,null,null,null,null,null,null,null,null,null,null,null,null,null,null,null,null,null,null,null,null,null,null,null,null,null,null,null,null,null,null,null,null,null,null,null,null,null,null,null,null,null,null,null,null,null,null,null,null,null,null,null,null,null,null,null,null,null,null,null,null,null,null,null,null,null,null,null,null,null,null,null,203,null,null,null,null,null,null,null,null,null,null,null,null,null,null,null,null,null,null,null,null,null,null,null,null,null,null,null,null,null,null,"F","41000: Барилга угсралт","Дунд",null,0,203,"Medium",null,1]
[null,null,null,null,null,null,null,null,null,null,null,null,null,null,null,null,null,null,null,null,null,null,null,null,null,null,null,null,null,null,null,null,null,null,null,null,null,null,null,null,null,null,null,null,null,null,null,null,null,null,null,null,null,null,null,null,null,null,null,null,null,null,null,null,null,null,null,null,null,null,null,null,null,204,null,null,null,null,null,null,null,null,null,null,null,null,null,null,null,null,null,null,null,null,null,null,null,null,null,null,null,null,null,null,"F","41100:Барилгын төсөл боловсруулах ","Бага",null,0,204,"Low",null,1]
[null,null,null,null,null,null,null,null,null,null,null,null,null,null,null,null,null,null,null,null,null,null,null,null,null,null,null,null,null,null,null,null,null,null,null,null,null,null,null,null,null,null,null,null,null,null,null,null,null,null,null,null,null,null,null,null,null,null,null,null,null,null,null,null,null,null,null,null,null,null,null,null,null,205,null,null,null,null,null,null,null,null,null,null,null,null,null,null,null,null,null,null,null,null,null,null,null,null,null,null,null,null,null,null,"F","41200:Орон сууцны болон орон сууцны бус барилга барих ","Дунд",null,0,205,"Medium",null,1]
[null,null,null,null,null,null,null,null,null,null,null,null,null,null,null,null,null,null,null,null,null,null,null,null,null,null,null,null,null,null,null,null,null,null,null,null,null,null,null,null,null,null,null,null,null,null,null,null,null,null,null,null,null,null,null,null,null,null,null,null,null,null,null,null,null,null,null,null,null,null,null,null,null,206,null,null,null,null,null,null,null,null,null,null,null,null,null,null,null,null,null,null,null,null,null,null,null,null,null,null,null,null,null,null,"F","42100: Төмөр зам болон авто замын байгууламж барих үйл ажиллагаа","Өндөр","Үнэлгээ хийнэ",0,206,"High","Assessment",2]
[null,null,null,null,null,null,null,null,null,null,null,null,null,null,null,null,null,null,null,null,null,null,null,null,null,null,null,null,null,null,null,null,null,null,null,null,null,null,null,null,null,null,null,null,null,null,null,null,null,null,null,null,null,null,null,null,null,null,null,null,null,null,null,null,null,null,null,null,null,null,null,null,null,207,null,null,null,null,null,null,null,null,null,null,null,null,null,null,null,null,null,null,null,null,null,null,null,null,null,null,null,null,null,null,"F","42101: 10 км-ээс урт эсвэл 4 буюу түүнээс дээш эгнээ бүхий авто зам, төмөр зам болон нисэх  онгоцны 2100  метр урт  гүйлтийн зам барих","Өндөр","Үнэлгээ хийнэ",0,207,"High","Assessment",2]
[null,null,null,null,null,null,null,null,null,null,null,null,null,null,null,null,null,null,null,null,null,null,null,null,null,null,null,null,null,null,null,null,null,null,null,null,null,null,null,null,null,null,null,null,null,null,null,null,null,null,null,null,null,null,null,null,null,null,null,null,null,null,null,null,null,null,null,null,null,null,null,null,null,208,null,null,null,null,null,null,null,null,null,null,null,null,null,null,null,null,null,null,null,null,null,null,null,null,null,null,null,null,null,null,"F","42200: Нийтийн аж ахуйн барилга угсралт","Дунд",null,0,208,"Medium",null,1]
[null,null,null,null,null,null,null,null,null,null,null,null,null,null,null,null,null,null,null,null,null,null,null,null,null,null,null,null,null,null,null,null,null,null,null,null,null,null,null,null,null,null,null,null,null,null,null,null,null,null,null,null,null,null,null,null,null,null,null,null,null,null,null,null,null,null,null,null,null,null,null,null,null,209,null,null,null,null,null,null,null,null,null,null,null,null,null,null,null,null,null,null,null,null,null,null,null,null,null,null,null,null,null,null,"F","42900: Иргэний инженерийн бусад байгууламж үйлдвэрлэл","Дунд",null,0,209,"Medium",null,1]
[null,null,null,null,null,null,null,null,null,null,null,null,null,null,null,null,null,null,null,null,null,null,null,null,null,null,null,null,null,null,null,null,null,null,null,null,null,null,null,null,null,null,null,null,null,null,null,null,null,null,null,null,null,null,null,null,null,null,null,null,null,null,null,null,null,null,null,null,null,null,null,null,null,210,null,null,null,null,null,null,null,null,null,null,null,null,null,null,null,null,null,null,null,null,null,null,null,null,null,null,null,null,null,null,"F","43100: Буулгах/нураах ба барилгын талбай бэлтгэх үйл ажиллагаа","Бага",null,0,210,"Low",null,1]
[null,null,null,null,null,null,null,null,null,null,null,null,null,null,null,null,null,null,null,null,null,null,null,null,null,null,null,null,null,null,null,null,null,null,null,null,null,null,null,null,null,null,null,null,null,null,null,null,null,null,null,null,null,null,null,null,null,null,null,null,null,null,null,null,null,null,null,null,null,null,null,null,null,211,null,null,null,null,null,null,null,null,null,null,null,null,null,null,null,null,null,null,null,null,null,null,null,null,null,null,null,null,null,null,"F","43200: Цахилгааны, гүний ус дамжуулах хоолойн болон барилгын бусад суурилуулах үйл ажиллагаа","Дунд",null,0,211,"Medium",null,1]
[null,null,null,null,null,null,null,null,null,null,null,null,null,null,null,null,null,null,null,null,null,null,null,null,null,null,null,null,null,null,null,null,null,null,null,null,null,null,null,null,null,null,null,null,null,null,null,null,null,null,null,null,null,null,null,null,null,null,null,null,null,null,null,null,null,null,null,null,null,null,null,null,null,212,null,null,null,null,null,null,null,null,null,null,null,null,null,null,null,null,null,null,null,null,null,null,null,null,null,null,null,null,null,null,"F","43300: Барилгыг дуусгах шатны ажил","Бага",null,0,212,"Low",null,1]
[null,null,null,null,null,null,null,null,null,null,null,null,null,null,null,null,null,null,null,null,null,null,null,null,null,null,null,null,null,null,null,null,null,null,null,null,null,null,null,null,null,null,null,null,null,null,null,null,null,null,null,null,null,null,null,null,null,null,null,null,null,null,null,null,null,null,null,null,null,null,null,null,null,213,null,null,null,null,null,null,null,null,null,null,null,null,null,null,null,null,null,null,null,null,null,null,null,null,null,null,null,null,null,null,"F","43900: Барилгын бусад тусгай үйл ажиллагаа","Дунд",null,"F",213,"Medium",null,1]
[null,null,null,null,null,null,null,null,null,null,null,null,null,null,null,null,null,null,null,null,null,null,null,null,null,null,null,null,null,null,null,null,null,null,null,null,null,null,null,null,null,null,null,null,null,null,null,null,null,null,null,null,null,null,null,null,null,null,null,null,null,null,null,null,null,null,null,null,null,null,null,null,null,214,null,null,null,null,null,null,null,null,null,null,null,null,null,null,null,null,null,null,null,null,null,null,null,null,null,null,null,null,null,null,"G","45100: Моторт тээврийн хэрэгслийн худалдаа","Бага",null,0,214,"Low",null,1]
[null,null,null,null,null,null,null,null,null,null,null,null,null,null,null,null,null,null,null,null,null,null,null,null,null,null,null,null,null,null,null,null,null,null,null,null,null,null,null,null,null,null,null,null,null,null,null,null,null,null,null,null,null,null,null,null,null,null,null,null,null,null,null,null,null,null,null,null,null,null,null,null,null,215,null,null,null,null,null,null,null,null,null,null,null,null,null,null,null,null,null,null,null,null,null,null,null,null,null,null,null,null,null,null,"G","45200: Моторт тээврийн хэрэгслийн засвар, үйлчилгээ","Дунд",null,0,215,"Medium",null,1]
[null,null,null,null,null,null,null,null,null,null,null,null,null,null,null,null,null,null,null,null,null,null,null,null,null,null,null,null,null,null,null,null,null,null,null,null,null,null,null,null,null,null,null,null,null,null,null,null,null,null,null,null,null,null,null,null,null,null,null,null,null,null,null,null,null,null,null,null,null,null,null,null,null,216,null,null,null,null,null,null,null,null,null,null,null,null,null,null,null,null,null,null,null,null,null,null,null,null,null,null,null,null,null,null,"G","45300: Моторт тээврийн хэрэгслийн сэлбэг эд ангийн худалдаа","Бага",null,0,216,"Low",null,1]
[null,null,null,null,null,null,null,null,null,null,null,null,null,null,null,null,null,null,null,null,null,null,null,null,null,null,null,null,null,null,null,null,null,null,null,null,null,null,null,null,null,null,null,null,null,null,null,null,null,null,null,null,null,null,null,null,null,null,null,null,null,null,null,null,null,null,null,null,null,null,null,null,null,217,null,null,null,null,null,null,null,null,null,null,null,null,null,null,null,null,null,null,null,null,null,null,null,null,null,null,null,null,null,null,"G","45400: Мотоцикл, түүний эд анги, сэлбэг хэрэгслийн худалдаа, засвар, үйлчилгээ","Дунд",null,0,217,"Medium",null,1]
[null,null,null,null,null,null,null,null,null,null,null,null,null,null,null,null,null,null,null,null,null,null,null,null,null,null,null,null,null,null,null,null,null,null,null,null,null,null,null,null,null,null,null,null,null,null,null,null,null,null,null,null,null,null,null,null,null,null,null,null,null,null,null,null,null,null,null,null,null,null,null,null,null,218,null,null,null,null,null,null,null,null,null,null,null,null,null,null,null,null,null,null,null,null,null,null,null,null,null,null,null,null,null,null,"G","45500:Түлш, шатахууны жижиглэн худалдаа, ШТС","Өндөр","Үнэлгээ хийнэ",0,218,"High","Assessment",2]
[null,null,null,null,null,null,null,null,null,null,null,null,null,null,null,null,null,null,null,null,null,null,null,null,null,null,null,null,null,null,null,null,null,null,null,null,null,null,null,null,null,null,null,null,null,null,null,null,null,null,null,null,null,null,null,null,null,null,null,null,null,null,null,null,null,null,null,null,null,null,null,null,null,219,null,null,null,null,null,null,null,null,null,null,null,null,null,null,null,null,null,null,null,null,null,null,null,null,null,null,null,null,null,null,"G","46100: Төлбөр эсвэл гэрээний үндсэн дээр хийгдэх бөөний худалдаа","Бага",null,0,219,"Low",null,1]
[null,null,null,null,null,null,null,null,null,null,null,null,null,null,null,null,null,null,null,null,null,null,null,null,null,null,null,null,null,null,null,null,null,null,null,null,null,null,null,null,null,null,null,null,null,null,null,null,null,null,null,null,null,null,null,null,null,null,null,null,null,null,null,null,null,null,null,null,null,null,null,null,null,220,null,null,null,null,null,null,null,null,null,null,null,null,null,null,null,null,null,null,null,null,null,null,null,null,null,null,null,null,null,null,"G","46200: Хөдөө аж ахуйн түүхий эд болон мал, амьтдын бөөний худалдаа","Дунд",null,0,220,"Medium",null,1]
[null,null,null,null,null,null,null,null,null,null,null,null,null,null,null,null,null,null,null,null,null,null,null,null,null,null,null,null,null,null,null,null,null,null,null,null,null,null,null,null,null,null,null,null,null,null,null,null,null,null,null,null,null,null,null,null,null,null,null,null,null,null,null,null,null,null,null,null,null,null,null,null,null,221,null,null,null,null,null,null,null,null,null,null,null,null,null,null,null,null,null,null,null,null,null,null,null,null,null,null,null,null,null,null,"G","46210:Үр тариа, түүхий тамхи, үр болон малын тэжээлийн бөөний худалдаа","Бага",null,0,221,"Low",null,1]
[null,null,null,null,null,null,null,null,null,null,null,null,null,null,null,null,null,null,null,null,null,null,null,null,null,null,null,null,null,null,null,null,null,null,null,null,null,null,null,null,null,null,null,null,null,null,null,null,null,null,null,null,null,null,null,null,null,null,null,null,null,null,null,null,null,null,null,null,null,null,null,null,null,222,null,null,null,null,null,null,null,null,null,null,null,null,null,null,null,null,null,null,null,null,null,null,null,null,null,null,null,null,null,null,"G","46211:Генетикийн өөрчлөлт оруулсан организмийг байгальд  нутагшуулах,  эсвэл нутагшуулах худалдаа хийх ","Өндөр","Зөвшөөрөл авах",0,222,"High","Referral List Activity",3]
[null,null,null,null,null,null,null,null,null,null,null,null,null,null,null,null,null,null,null,null,null,null,null,null,null,null,null,null,null,null,null,null,null,null,null,null,null,null,null,null,null,null,null,null,null,null,null,null,null,null,null,null,null,null,null,null,null,null,null,null,null,null,null,null,null,null,null,null,null,null,null,null,null,223,null,null,null,null,null,null,null,null,null,null,null,null,null,null,null,null,null,null,null,null,null,null,null,null,null,null,null,null,null,null,"G","46220:Цэцэг, ургамлын бөөний худалдаа","Бага",null,0,223,"Low",null,1]
[null,null,null,null,null,null,null,null,null,null,null,null,null,null,null,null,null,null,null,null,null,null,null,null,null,null,null,null,null,null,null,null,null,null,null,null,null,null,null,null,null,null,null,null,null,null,null,null,null,null,null,null,null,null,null,null,null,null,null,null,null,null,null,null,null,null,null,null,null,null,null,null,null,224,null,null,null,null,null,null,null,null,null,null,null,null,null,null,null,null,null,null,null,null,null,null,null,null,null,null,null,null,null,null,"G","46230:Амьд амьтны бөөний худалдаа","Дунд",null,0,224,"Medium",null,1]
[null,null,null,null,null,null,null,null,null,null,null,null,null,null,null,null,null,null,null,null,null,null,null,null,null,null,null,null,null,null,null,null,null,null,null,null,null,null,null,null,null,null,null,null,null,null,null,null,null,null,null,null,null,null,null,null,null,null,null,null,null,null,null,null,null,null,null,null,null,null,null,null,null,225,null,null,null,null,null,null,null,null,null,null,null,null,null,null,null,null,null,null,null,null,null,null,null,null,null,null,null,null,null,null,"G","46231:CITES-аар хориглосон байгалийн гаралтай бүтээгдэхүүний худалдаа","Өндөр","Санхүүжүүлэхгүй",0,225,"High","Exclusion List Activity",4]
[null,null,null,null,null,null,null,null,null,null,null,null,null,null,null,null,null,null,null,null,null,null,null,null,null,null,null,null,null,null,null,null,null,null,null,null,null,null,null,null,null,null,null,null,null,null,null,null,null,null,null,null,null,null,null,null,null,null,null,null,null,null,null,null,null,null,null,null,null,null,null,null,null,226,null,null,null,null,null,null,null,null,null,null,null,null,null,null,null,null,null,null,null,null,null,null,null,null,null,null,null,null,null,null,"G","46240:Арьс, шир, савхины бөөний худалдаа","Дунд",null,0,226,"Medium",null,1]
[null,null,null,null,null,null,null,null,null,null,null,null,null,null,null,null,null,null,null,null,null,null,null,null,null,null,null,null,null,null,null,null,null,null,null,null,null,null,null,null,null,null,null,null,null,null,null,null,null,null,null,null,null,null,null,null,null,null,null,null,null,null,null,null,null,null,null,null,null,null,null,null,null,227,null,null,null,null,null,null,null,null,null,null,null,null,null,null,null,null,null,null,null,null,null,null,null,null,null,null,null,null,null,null,"G","46300:Хүнс, ундааны бөөний худалдаа","Бага",null,{"$f":"IF(DA227=DA229,0,DA227)","v":0},227,"Low",null,1]
[null,null,null,null,null,null,null,null,null,null,null,null,null,null,null,null,null,null,null,null,null,null,null,null,null,null,null,null,null,null,null,null,null,null,null,null,null,null,null,null,null,null,null,null,null,null,null,null,null,null,null,null,null,null,null,null,null,null,null,null,null,null,null,null,null,null,null,null,null,null,null,null,null,228,null,null,null,null,null,null,null,null,null,null,null,null,null,null,null,null,null,null,null,null,null,null,null,null,null,null,null,null,null,null,"G","46301:Архи, спирт, тамхины худалдаа","Өндөр","Зөвшөөрөл авах",{"$f":"IF(DA228=DA230,0,DA228)","v":0},228,"High","Referral List Activity",3]
[null,null,null,null,null,null,null,null,null,null,null,null,null,null,null,null,null,null,null,null,null,null,null,null,null,null,null,null,null,null,null,null,null,null,null,null,null,null,null,null,null,null,null,null,null,null,null,null,null,null,null,null,null,null,null,null,null,null,null,null,null,null,null,null,null,null,null,null,null,null,null,null,null,229,null,null,null,null,null,null,null,null,null,null,null,null,null,null,null,null,null,null,null,null,null,null,null,null,null,null,null,null,null,null,"G","46400: Гэр ахуйн барааны бөөний худалдаа","Бага",null,0,229,"Low",null,1]
[null,null,null,null,null,null,null,null,null,null,null,null,null,null,null,null,null,null,null,null,null,null,null,null,null,null,null,null,null,null,null,null,null,null,null,null,null,null,null,null,null,null,null,null,null,null,null,null,null,null,null,null,null,null,null,null,null,null,null,null,null,null,null,null,null,null,null,null,null,null,null,null,null,230,null,null,null,null,null,null,null,null,null,null,null,null,null,null,null,null,null,null,null,null,null,null,null,null,null,null,null,null,null,null,"G","46500: Электрон ба холбооны сэлбэг хэрэгсэл, тоног төхөөрөмжийн бөөний худалдаа","Бага",null,0,230,"Low",null,1]
[null,null,null,null,null,null,null,null,null,null,null,null,null,null,null,null,null,null,null,null,null,null,null,null,null,null,null,null,null,null,null,null,null,null,null,null,null,null,null,null,null,null,null,null,null,null,null,null,null,null,null,null,null,null,null,null,null,null,null,null,null,null,null,null,null,null,null,null,null,null,null,null,null,231,null,null,null,null,null,null,null,null,null,null,null,null,null,null,null,null,null,null,null,null,null,null,null,null,null,null,null,null,null,null,"G","46600:Бусад машин, тоног төхөөрөмж, бараа материалын бөөний худалдаа","Бага",null,0,231,"Low",null,1]
[null,null,null,null,null,null,null,null,null,null,null,null,null,null,null,null,null,null,null,null,null,null,null,null,null,null,null,null,null,null,null,null,null,null,null,null,null,null,null,null,null,null,null,null,null,null,null,null,null,null,null,null,null,null,null,null,null,null,null,null,null,null,null,null,null,null,null,null,null,null,null,null,null,232,null,null,null,null,null,null,null,null,null,null,null,null,null,null,null,null,null,null,null,null,null,null,null,null,null,null,null,null,null,null,"G","46700:Тусгайлсан бусад бөөний худалдаа","Бага",null,0,232,"Low",null,1]
[null,null,null,null,null,null,null,null,null,null,null,null,null,null,null,null,null,null,null,null,null,null,null,null,null,null,null,null,null,null,null,null,null,null,null,null,null,null,null,null,null,null,null,null,null,null,null,null,null,null,null,null,null,null,null,null,null,null,null,null,null,null,null,null,null,null,null,null,null,null,null,null,null,233,null,null,null,null,null,null,null,null,null,null,null,null,null,null,null,null,null,null,null,null,null,null,null,null,null,null,null,null,null,null,"G","47000: Машин, мотоциклээс бусад барааны жижиглэн худалдаа","Бага",null,"G",233,"Low",null,1]
[null,null,null,null,null,null,null,null,null,null,null,null,null,null,null,null,null,null,null,null,null,null,null,null,null,null,null,null,null,null,null,null,null,null,null,null,null,null,null,null,null,null,null,null,null,null,null,null,null,null,null,null,null,null,null,null,null,null,null,null,null,null,null,null,null,null,null,null,null,null,null,null,null,234,null,null,null,null,null,null,null,null,null,null,null,null,null,null,null,null,null,null,null,null,null,null,null,null,null,null,null,null,null,null,"H","49100: Төмөр замын зорчигч тээвэр","Бага",null,0,234,"Low",null,1]
[null,null,null,null,null,null,null,null,null,null,null,null,null,null,null,null,null,null,null,null,null,null,null,null,null,null,null,null,null,null,null,null,null,null,null,null,null,null,null,null,null,null,null,null,null,null,null,null,null,null,null,null,null,null,null,null,null,null,null,null,null,null,null,null,null,null,null,null,null,null,null,null,null,235,null,null,null,null,null,null,null,null,null,null,null,null,null,null,null,null,null,null,null,null,null,null,null,null,null,null,null,null,null,null,"H","49200: Төмөр замын ачаа тээвэр","Бага",null,0,235,"Low",null,1]
[null,null,null,null,null,null,null,null,null,null,null,null,null,null,null,null,null,null,null,null,null,null,null,null,null,null,null,null,null,null,null,null,null,null,null,null,null,null,null,null,null,null,null,null,null,null,null,null,null,null,null,null,null,null,null,null,null,null,null,null,null,null,null,null,null,null,null,null,null,null,null,null,null,236,null,null,null,null,null,null,null,null,null,null,null,null,null,null,null,null,null,null,null,null,null,null,null,null,null,null,null,null,null,null,"H","49300:Зорчигт тээврийн газрын бусад тээвэр","Бага",null,0,236,"Low",null,1]
[null,null,null,null,null,null,null,null,null,null,null,null,null,null,null,null,null,null,null,null,null,null,null,null,null,null,null,null,null,null,null,null,null,null,null,null,null,null,null,null,null,null,null,null,null,null,null,null,null,null,null,null,null,null,null,null,null,null,null,null,null,null,null,null,null,null,null,null,null,null,null,null,null,237,null,null,null,null,null,null,null,null,null,null,null,null,null,null,null,null,null,null,null,null,null,null,null,null,null,null,null,null,null,null,"H","49400:Газрын ачааны тээвэр болон зам цэвэрлэгээ","Бага",null,0,237,"Low",null,1]
[null,null,null,null,null,null,null,null,null,null,null,null,null,null,null,null,null,null,null,null,null,null,null,null,null,null,null,null,null,null,null,null,null,null,null,null,null,null,null,null,null,null,null,null,null,null,null,null,null,null,null,null,null,null,null,null,null,null,null,null,null,null,null,null,null,null,null,null,null,null,null,null,null,238,null,null,null,null,null,null,null,null,null,null,null,null,null,null,null,null,null,null,null,null,null,null,null,null,null,null,null,null,null,null,"H","49500:Хоолойн тээвэр ","Өндөр","Үнэлгээ хийнэ",0,238,"High","Assessment",2]
[null,null,null,null,null,null,null,null,null,null,null,null,null,null,null,null,null,null,null,null,null,null,null,null,null,null,null,null,null,null,null,null,null,null,null,null,null,null,null,null,null,null,null,null,null,null,null,null,null,null,null,null,null,null,null,null,null,null,null,null,null,null,null,null,null,null,null,null,null,null,null,null,null,239,null,null,null,null,null,null,null,null,null,null,null,null,null,null,null,null,null,null,null,null,null,null,null,null,null,null,null,null,null,null,"H","49501:Хоолой, хуримтлуулах цэг,  шатахуун тослох материал, химийн бодис их хэмжээгээр тээвэрлэх газрууд ","Өндөр","Үнэлгээ хийнэ",0,239,"High","Assessment",2]
[null,null,null,null,null,null,null,null,null,null,null,null,null,null,null,null,null,null,null,null,null,null,null,null,null,null,null,null,null,null,null,null,null,null,null,null,null,null,null,null,null,null,null,null,null,null,null,null,null,null,null,null,null,null,null,null,null,null,null,null,null,null,null,null,null,null,null,null,null,null,null,null,null,240,null,null,null,null,null,null,null,null,null,null,null,null,null,null,null,null,null,null,null,null,null,null,null,null,null,null,null,null,null,null,"H","50100: Далайн эрэг орчим болон тэнгисийн зорчигч тээвэр","Дунд",null,0,240,"Medium",null,1]
[null,null,null,null,null,null,null,null,null,null,null,null,null,null,null,null,null,null,null,null,null,null,null,null,null,null,null,null,null,null,null,null,null,null,null,null,null,null,null,null,null,null,null,null,null,null,null,null,null,null,null,null,null,null,null,null,null,null,null,null,null,null,null,null,null,null,null,null,null,null,null,null,null,241,null,null,null,null,null,null,null,null,null,null,null,null,null,null,null,null,null,null,null,null,null,null,null,null,null,null,null,null,null,null,"H","50200: Далайн эрэг орчим болон тэнгисийн ачаа тээвэр","Дунд",null,0,241,"Medium",null,1]
[null,null,null,null,null,null,null,null,null,null,null,null,null,null,null,null,null,null,null,null,null,null,null,null,null,null,null,null,null,null,null,null,null,null,null,null,null,null,null,null,null,null,null,null,null,null,null,null,null,null,null,null,null,null,null,null,null,null,null,null,null,null,null,null,null,null,null,null,null,null,null,null,null,242,null,null,null,null,null,null,null,null,null,null,null,null,null,null,null,null,null,null,null,null,null,null,null,null,null,null,null,null,null,null,"H","50201:1,350 тонноос илүү даацтай  хөлгийг нэвтрүүлэх чадалдтай далайн боомт, болон гол мөрөн, гол мөрний боомт","Өндөр","Үнэлгээ хийнэ",0,242,"High","Assessment",2]
[null,null,null,null,null,null,null,null,null,null,null,null,null,null,null,null,null,null,null,null,null,null,null,null,null,null,null,null,null,null,null,null,null,null,null,null,null,null,null,null,null,null,null,null,null,null,null,null,null,null,null,null,null,null,null,null,null,null,null,null,null,null,null,null,null,null,null,null,null,null,null,null,null,243,null,null,null,null,null,null,null,null,null,null,null,null,null,null,null,null,null,null,null,null,null,null,null,null,null,null,null,null,null,null,"H","50300:Эх газрын дундах усан замын зорчигч тээвэр ","Дунд",null,0,243,"Medium",null,1]
[null,null,null,null,null,null,null,null,null,null,null,null,null,null,null,null,null,null,null,null,null,null,null,null,null,null,null,null,null,null,null,null,null,null,null,null,null,null,null,null,null,null,null,null,null,null,null,null,null,null,null,null,null,null,null,null,null,null,null,null,null,null,null,null,null,null,null,null,null,null,null,null,null,244,null,null,null,null,null,null,null,null,null,null,null,null,null,null,null,null,null,null,null,null,null,null,null,null,null,null,null,null,null,null,"H","50400:Эх газрын дундах усан замын ачаа тээвэр","Дунд",null,0,244,"Medium",null,1]
[null,null,null,null,null,null,null,null,null,null,null,null,null,null,null,null,null,null,null,null,null,null,null,null,null,null,null,null,null,null,null,null,null,null,null,null,null,null,null,null,null,null,null,null,null,null,null,null,null,null,null,null,null,null,null,null,null,null,null,null,null,null,null,null,null,null,null,null,null,null,null,null,null,245,null,null,null,null,null,null,null,null,null,null,null,null,null,null,null,null,null,null,null,null,null,null,null,null,null,null,null,null,null,null,"H","51100:Агаарын зорчигч тээвэр ","Бага",null,0,245,"Low",null,1]
[null,null,null,null,null,null,null,null,null,null,null,null,null,null,null,null,null,null,null,null,null,null,null,null,null,null,null,null,null,null,null,null,null,null,null,null,null,null,null,null,null,null,null,null,null,null,null,null,null,null,null,null,null,null,null,null,null,null,null,null,null,null,null,null,null,null,null,null,null,null,null,null,null,246,null,null,null,null,null,null,null,null,null,null,null,null,null,null,null,null,null,null,null,null,null,null,null,null,null,null,null,null,null,null,"H","51210:Агаарын ачаа тээвэр","Бага",null,0,246,"Low",null,1]
[null,null,null,null,null,null,null,null,null,null,null,null,null,null,null,null,null,null,null,null,null,null,null,null,null,null,null,null,null,null,null,null,null,null,null,null,null,null,null,null,null,null,null,null,null,null,null,null,null,null,null,null,null,null,null,null,null,null,null,null,null,null,null,null,null,null,null,null,null,null,null,null,null,247,null,null,null,null,null,null,null,null,null,null,null,null,null,null,null,null,null,null,null,null,null,null,null,null,null,null,null,null,null,null,"H","52000: Агуулахын болон тээврийн туслах үйл ажиллагаа","Бага",null,0,247,"Low",null,1]
[null,null,null,null,null,null,null,null,null,null,null,null,null,null,null,null,null,null,null,null,null,null,null,null,null,null,null,null,null,null,null,null,null,null,null,null,null,null,null,null,null,null,null,null,null,null,null,null,null,null,null,null,null,null,null,null,null,null,null,null,null,null,null,null,null,null,null,null,null,null,null,null,null,248,null,null,null,null,null,null,null,null,null,null,null,null,null,null,null,null,null,null,null,null,null,null,null,null,null,null,null,null,null,null,"H","53000: Шуудан, зарлага, элчийн үйл ажиллагаа","Бага",null,"H",248,"Low",null,1]
[null,null,null,null,null,null,null,null,null,null,null,null,null,null,null,null,null,null,null,null,null,null,null,null,null,null,null,null,null,null,null,null,null,null,null,null,null,null,null,null,null,null,null,null,null,null,null,null,null,null,null,null,null,null,null,null,null,null,null,null,null,null,null,null,null,null,null,null,null,null,null,null,null,249,null,null,null,null,null,null,null,null,null,null,null,null,null,null,null,null,null,null,null,null,null,null,null,null,null,null,null,null,null,null,"I","55000: Байр, сууцаар хангах үйл ажиллагаа","Дунд","Үнэлгээ хийнэ",0,249,"Low","Assessment",2]
[null,null,null,null,null,null,null,null,null,null,null,null,null,null,null,null,null,null,null,null,null,null,null,null,null,null,null,null,null,null,null,null,null,null,null,null,null,null,null,null,null,null,null,null,null,null,null,null,null,null,null,null,null,null,null,null,null,null,null,null,null,null,null,null,null,null,null,null,null,null,null,null,null,250,null,null,null,null,null,null,null,null,null,null,null,null,null,null,null,null,null,null,null,null,null,null,null,null,null,null,null,null,null,null,"I","56000: Хоол ундаар үйлчлэх үйл ажиллагаа","Дунд","Үнэлгээ хийнэ","I",250,"Low","Assessment",2]
[null,null,null,null,null,null,null,null,null,null,null,null,null,null,null,null,null,null,null,null,null,null,null,null,null,null,null,null,null,null,null,null,null,null,null,null,null,null,null,null,null,null,null,null,null,null,null,null,null,null,null,null,null,null,null,null,null,null,null,null,null,null,null,null,null,null,null,null,null,null,null,null,null,251,null,null,null,null,null,null,null,null,null,null,null,null,null,null,null,null,null,null,null,null,null,null,null,null,null,null,null,null,null,null,"J","58000: Эх бэлтгэх, нийтлэх үйл ажиллагаа","Бага",null,0,251,"Low",null,1]
[null,null,null,null,null,null,null,null,null,null,null,null,null,null,null,null,null,null,null,null,null,null,null,null,null,null,null,null,null,null,null,null,null,null,null,null,null,null,null,null,null,null,null,null,null,null,null,null,null,null,null,null,null,null,null,null,null,null,null,null,null,null,null,null,null,null,null,null,null,null,null,null,null,252,null,null,null,null,null,null,null,null,null,null,null,null,null,null,null,null,null,null,null,null,null,null,null,null,null,null,null,null,null,null,"J","59000: Кино, видео, телевизийн хөтөлбөрийн үйлдвэрлэл, бичлэг хийх болон хөгжим, ая үйлдвэрлэх үйл ажиллагаа","Бага",null,0,252,"Low",null,1]
[null,null,null,null,null,null,null,null,null,null,null,null,null,null,null,null,null,null,null,null,null,null,null,null,null,null,null,null,null,null,null,null,null,null,null,null,null,null,null,null,null,null,null,null,null,null,null,null,null,null,null,null,null,null,null,null,null,null,null,null,null,null,null,null,null,null,null,null,null,null,null,null,null,253,null,null,null,null,null,null,null,null,null,null,null,null,null,null,null,null,null,null,null,null,null,null,null,null,null,null,null,null,null,null,"J","60000: Өргөн нэвтрүүлэг бэлтгэх, дамжуулах үйл ажиллагаа","Бага",null,0,253,"Low",null,1]
[null,null,null,null,null,null,null,null,null,null,null,null,null,null,null,null,null,null,null,null,null,null,null,null,null,null,null,null,null,null,null,null,null,null,null,null,null,null,null,null,null,null,null,null,null,null,null,null,null,null,null,null,null,null,null,null,null,null,null,null,null,null,null,null,null,null,null,null,null,null,null,null,null,254,null,null,null,null,null,null,null,null,null,null,null,null,null,null,null,null,null,null,null,null,null,null,null,null,null,null,null,null,null,null,"J","61000: Цахилгаан холбоо","Бага","Үнэлгээ хийнэ",0,254,"Low",null,2]
[null,null,null,null,null,null,null,null,null,null,null,null,null,null,null,null,null,null,null,null,null,null,null,null,null,null,null,null,null,null,null,null,null,null,null,null,null,null,null,null,null,null,null,null,null,null,null,null,null,null,null,null,null,null,null,null,null,null,null,null,null,null,null,null,null,null,null,null,null,null,null,null,null,255,null,null,null,null,null,null,null,null,null,null,null,null,null,null,null,null,null,null,null,null,null,null,null,null,null,null,null,null,null,null,"J","62000: Компьютер програмчилал, зөвлөгөө болон түүнд холбогдох үйл ажиллагаа","Бага",null,0,255,"Low",null,1]
[null,null,null,null,null,null,null,null,null,null,null,null,null,null,null,null,null,null,null,null,null,null,null,null,null,null,null,null,null,null,null,null,null,null,null,null,null,null,null,null,null,null,null,null,null,null,null,null,null,null,null,null,null,null,null,null,null,null,null,null,null,null,null,null,null,null,null,null,null,null,null,null,null,256,null,null,null,null,null,null,null,null,null,null,null,null,null,null,null,null,null,null,null,null,null,null,null,null,null,null,null,null,null,null,"J","63000: Мэдээллээр үйлчлэх үйл ажиллагаа","Бага",null,"J",256,"Low",null,1]
[null,null,null,null,null,null,null,null,null,null,null,null,null,null,null,null,null,null,null,null,null,null,null,null,null,null,null,null,null,null,null,null,null,null,null,null,null,null,null,null,null,null,null,null,null,null,null,null,null,null,null,null,null,null,null,null,null,null,null,null,null,null,null,null,null,null,null,null,null,null,null,null,null,257,null,null,null,null,null,null,null,null,null,null,null,null,null,null,null,null,null,null,null,null,null,null,null,null,null,null,null,null,null,null,"K","64000: Даатгал, тэтгэврийн сангийн үйл ажиллагаанаас бусад санхүүгийн үйлчилгээ","Бага",null,0,257,"Low",null,1]
[null,null,null,null,null,null,null,null,null,null,null,null,null,null,null,null,null,null,null,null,null,null,null,null,null,null,null,null,null,null,null,null,null,null,null,null,null,null,null,null,null,null,null,null,null,null,null,null,null,null,null,null,null,null,null,null,null,null,null,null,null,null,null,null,null,null,null,null,null,null,null,null,null,258,null,null,null,null,null,null,null,null,null,null,null,null,null,null,null,null,null,null,null,null,null,null,null,null,null,null,null,null,null,null,"K","65000: Албан журмын нийгмийн даатгалаас бусад даатгал, давхар даатгал, тэтгэврийн сангийн үйл ажиллагаа","Бага",null,0,258,"Low",null,1]
[null,null,null,null,null,null,null,null,null,null,null,null,null,null,null,null,null,null,null,null,null,null,null,null,null,null,null,null,null,null,null,null,null,null,null,null,null,null,null,null,null,null,null,null,null,null,null,null,null,null,null,null,null,null,null,null,null,null,null,null,null,null,null,null,null,null,null,null,null,null,null,null,null,259,null,null,null,null,null,null,null,null,null,null,null,null,null,null,null,null,null,null,null,null,null,null,null,null,null,null,null,null,null,null,"K","66000: Санхүүгийн бусад үйл ажиллагаа","Бага",null,{"$f":"IF(DA259=DA260,0,DA259)","v":"K"},259,"Low",null,1]
[null,null,null,null,null,null,null,null,null,null,null,null,null,null,null,null,null,null,null,null,null,null,null,null,null,null,null,null,null,null,null,null,null,null,null,null,null,null,null,null,null,null,null,null,null,null,null,null,null,null,null,null,null,null,null,null,null,null,null,null,null,null,null,null,null,null,null,null,null,null,null,null,null,260,null,null,null,null,null,null,null,null,null,null,null,null,null,null,null,null,null,null,null,null,null,null,null,null,null,null,null,null,null,null,"L","68000: Үл хөдлөх хөрөнгийн үйл ажиллагаа","Бага",null,"L",260,"Low",null,1]
[null,null,null,null,null,null,null,null,null,null,null,null,null,null,null,null,null,null,null,null,null,null,null,null,null,null,null,null,null,null,null,null,null,null,null,null,null,null,null,null,null,null,null,null,null,null,null,null,null,null,null,null,null,null,null,null,null,null,null,null,null,null,null,null,null,null,null,null,null,null,null,null,null,261,null,null,null,null,null,null,null,null,null,null,null,null,null,null,null,null,null,null,null,null,null,null,null,null,null,null,null,null,null,null,"M","69000: Хуулийн болон бүртгэлийн үйл ажиллагаа","Бага",null,0,261,"Low",null,1]
[null,null,null,null,null,null,null,null,null,null,null,null,null,null,null,null,null,null,null,null,null,null,null,null,null,null,null,null,null,null,null,null,null,null,null,null,null,null,null,null,null,null,null,null,null,null,null,null,null,null,null,null,null,null,null,null,null,null,null,null,null,null,null,null,null,null,null,null,null,null,null,null,null,262,null,null,null,null,null,null,null,null,null,null,null,null,null,null,null,null,null,null,null,null,null,null,null,null,null,null,null,null,null,null,"M","70000: Харьяалах дээд/толгой байгууллагын үйл ажиллагаа; менежментийн зөвөлгөө өгөх үйл ажиллагаа","Бага",null,0,262,"Low",null,1]
[null,null,null,null,null,null,null,null,null,null,null,null,null,null,null,null,null,null,null,null,null,null,null,null,null,null,null,null,null,null,null,null,null,null,null,null,null,null,null,null,null,null,null,null,null,null,null,null,null,null,null,null,null,null,null,null,null,null,null,null,null,null,null,null,null,null,null,null,null,null,null,null,null,263,null,null,null,null,null,null,null,null,null,null,null,null,null,null,null,null,null,null,null,null,null,null,null,null,null,null,null,null,null,null,"M","71000: Архитектур болон инженерийн үйл ажиллагаа; техникийн туршилт, шинжилгээ","Бага",null,0,263,"Low",null,1]
[null,null,null,null,null,null,null,null,null,null,null,null,null,null,null,null,null,null,null,null,null,null,null,null,null,null,null,null,null,null,null,null,null,null,null,null,null,null,null,null,null,null,null,null,null,null,null,null,null,null,null,null,null,null,null,null,null,null,null,null,null,null,null,null,null,null,null,null,null,null,null,null,null,264,null,null,null,null,null,null,null,null,null,null,null,null,null,null,null,null,null,null,null,null,null,null,null,null,null,null,null,null,null,null,"M","72000: Шинжлэх ухааны эрдэм шинжилгээ, ололт, судалгааны үйл ажиллагаа","Бага",null,0,264,"Low",null,1]
[null,null,null,null,null,null,null,null,null,null,null,null,null,null,null,null,null,null,null,null,null,null,null,null,null,null,null,null,null,null,null,null,null,null,null,null,null,null,null,null,null,null,null,null,null,null,null,null,null,null,null,null,null,null,null,null,null,null,null,null,null,null,null,null,null,null,null,null,null,null,null,null,null,265,null,null,null,null,null,null,null,null,null,null,null,null,null,null,null,null,null,null,null,null,null,null,null,null,null,null,null,null,null,null,"M","73000: Сурталчилгааны ажил, зах зээлийн судалгаа","Бага",null,0,265,"Low",null,1]
[null,null,null,null,null,null,null,null,null,null,null,null,null,null,null,null,null,null,null,null,null,null,null,null,null,null,null,null,null,null,null,null,null,null,null,null,null,null,null,null,null,null,null,null,null,null,null,null,null,null,null,null,null,null,null,null,null,null,null,null,null,null,null,null,null,null,null,null,null,null,null,null,null,266,null,null,null,null,null,null,null,null,null,null,null,null,null,null,null,null,null,null,null,null,null,null,null,null,null,null,null,null,null,null,"M","74000: Мэргэжлийн, шинжлэх ухаан, техникийн ажлын бусад үйл ажиллагаа","Бага",null,0,266,"Low",null,1]
[null,null,null,null,null,null,null,null,null,null,null,null,null,null,null,null,null,null,null,null,null,null,null,null,null,null,null,null,null,null,null,null,null,null,null,null,null,null,null,null,null,null,null,null,null,null,null,null,null,null,null,null,null,null,null,null,null,null,null,null,null,null,null,null,null,null,null,null,null,null,null,null,null,267,null,null,null,null,null,null,null,null,null,null,null,null,null,null,null,null,null,null,null,null,null,null,null,null,null,null,null,null,null,null,"M","75000: Мал эмнэлгийн үйл ажиллагаа","Бага",null,0,267,"Low",null,1]
[null,null,null,null,null,null,null,null,null,null,null,null,null,null,null,null,null,null,null,null,null,null,null,null,null,null,null,null,null,null,null,null,null,null,null,null,null,null,null,null,null,null,null,null,null,null,null,null,null,null,null,null,null,null,null,null,null,null,null,null,null,null,null,null,null,null,null,null,null,null,null,null,null,268,null,null,null,null,null,null,null,null,null,null,null,null,null,null,null,null,null,null,null,null,null,null,null,null,null,null,null,null,null,null,"M","77000: Түрээсийн болон лизингийн үйл ажиллагаа","Бага",null,0,268,"Low",null,1]
[null,null,null,null,null,null,null,null,null,null,null,null,null,null,null,null,null,null,null,null,null,null,null,null,null,null,null,null,null,null,null,null,null,null,null,null,null,null,null,null,null,null,null,null,null,null,null,null,null,null,null,null,null,null,null,null,null,null,null,null,null,null,null,null,null,null,null,null,null,null,null,null,null,269,null,null,null,null,null,null,null,null,null,null,null,null,null,null,null,null,null,null,null,null,null,null,null,null,null,null,null,null,null,null,"M","78000: Ажил эрхлэлтийн үйл ажиллагаа","Бага",null,0,269,"Low",null,1]
[null,null,null,null,null,null,null,null,null,null,null,null,null,null,null,null,null,null,null,null,null,null,null,null,null,null,null,null,null,null,null,null,null,null,null,null,null,null,null,null,null,null,null,null,null,null,null,null,null,null,null,null,null,null,null,null,null,null,null,null,null,null,null,null,null,null,null,null,null,null,null,null,null,270,null,null,null,null,null,null,null,null,null,null,null,null,null,null,null,null,null,null,null,null,null,null,null,null,null,null,null,null,null,null,"M","79000: Аялал, жуулчлалын агентлаг, аялалын оператор болон захиалгат бусад үйлчилгээний үйл ажиллагаа","Бага",null,0,270,"Low",null,1]
[null,null,null,null,null,null,null,null,null,null,null,null,null,null,null,null,null,null,null,null,null,null,null,null,null,null,null,null,null,null,null,null,null,null,null,null,null,null,null,null,null,null,null,null,null,null,null,null,null,null,null,null,null,null,null,null,null,null,null,null,null,null,null,null,null,null,null,null,null,null,null,null,null,271,null,null,null,null,null,null,null,null,null,null,null,null,null,null,null,null,null,null,null,null,null,null,null,null,null,null,null,null,null,null,"M","80000: Аюулгүйн хамгаалал, мөрдөх үйл ажиллагаа","Бага",null,0,271,"Low",null,1]
[null,null,null,null,null,null,null,null,null,null,null,null,null,null,null,null,null,null,null,null,null,null,null,null,null,null,null,null,null,null,null,null,null,null,null,null,null,null,null,null,null,null,null,null,null,null,null,null,null,null,null,null,null,null,null,null,null,null,null,null,null,null,null,null,null,null,null,null,null,null,null,null,null,272,null,null,null,null,null,null,null,null,null,null,null,null,null,null,null,null,null,null,null,null,null,null,null,null,null,null,null,null,null,null,"M","81000: Байшин барилга, газрын гадаргуун төрх байдлын талаарх үйлчилгээний үйл ажиллагаа","Бага",null,0,272,"Low",null,1]
[null,null,null,null,null,null,null,null,null,null,null,null,null,null,null,null,null,null,null,null,null,null,null,null,null,null,null,null,null,null,null,null,null,null,null,null,null,null,null,null,null,null,null,null,null,null,null,null,null,null,null,null,null,null,null,null,null,null,null,null,null,null,null,null,null,null,null,null,null,null,null,null,null,273,null,null,null,null,null,null,null,null,null,null,null,null,null,null,null,null,null,null,null,null,null,null,null,null,null,null,null,null,null,null,"M","82000: Албан байгууллагын захиргааны ажил, албан газрын бусад туслах болон бизнесийн бусад туслах үйл ажиллагаа","Бага",null,"M",273,"Low",null,1]
[null,null,null,null,null,null,null,null,null,null,null,null,null,null,null,null,null,null,null,null,null,null,null,null,null,null,null,null,null,null,null,null,null,null,null,null,null,null,null,null,null,null,null,null,null,null,null,null,null,null,null,null,null,null,null,null,null,null,null,null,null,null,null,null,null,null,null,null,null,null,null,null,null,274,null,null,null,null,null,null,null,null,null,null,null,null,null,null,null,null,null,null,null,null,null,null,null,null,null,null,null,null,null,null,"O","84000: Төрийн удирдлага ба батлан хамгаалах үйл ажиллагаа, албан журмын нийгмийн хамгаалал","Бага",null,"O",274,"Low",null,1]
[null,null,null,null,null,null,null,null,null,null,null,null,null,null,null,null,null,null,null,null,null,null,null,null,null,null,null,null,null,null,null,null,null,null,null,null,null,null,null,null,null,null,null,null,null,null,null,null,null,null,null,null,null,null,null,null,null,null,null,null,null,null,null,null,null,null,null,null,null,null,null,null,null,275,null,null,null,null,null,null,null,null,null,null,null,null,null,null,null,null,null,null,null,null,null,null,null,null,null,null,null,null,null,null,"P","85000: Боловсрол","Бага",null,"P",275,"Low",null,1]
[null,null,null,null,null,null,null,null,null,null,null,null,null,null,null,null,null,null,null,null,null,null,null,null,null,null,null,null,null,null,null,null,null,null,null,null,null,null,null,null,null,null,null,null,null,null,null,null,null,null,null,null,null,null,null,null,null,null,null,null,null,null,null,null,null,null,null,null,null,null,null,null,null,276,null,null,null,null,null,null,null,null,null,null,null,null,null,null,null,null,null,null,null,null,null,null,null,null,null,null,null,null,null,null,"Q","86000: Хүний эрүүл мэндийн үйл ажиллагаа","Бага",null,0,276,"Low",null,1]
[null,null,null,null,null,null,null,null,null,null,null,null,null,null,null,null,null,null,null,null,null,null,null,null,null,null,null,null,null,null,null,null,null,null,null,null,null,null,null,null,null,null,null,null,null,null,null,null,null,null,null,null,null,null,null,null,null,null,null,null,null,null,null,null,null,null,null,null,null,null,null,null,null,277,null,null,null,null,null,null,null,null,null,null,null,null,null,null,null,null,null,null,null,null,null,null,null,null,null,null,null,null,null,null,"Q","87000:Иргэдэд үзүүлэх халамжийн үйл ажиллагаа","Бага",null,0,277,"Low",null,1]
[null,null,null,null,null,null,null,null,null,null,null,null,null,null,null,null,null,null,null,null,null,null,null,null,null,null,null,null,null,null,null,null,null,null,null,null,null,null,null,null,null,null,null,null,null,null,null,null,null,null,null,null,null,null,null,null,null,null,null,null,null,null,null,null,null,null,null,null,null,null,null,null,null,278,null,null,null,null,null,null,null,null,null,null,null,null,null,null,null,null,null,null,null,null,null,null,null,null,null,null,null,null,null,null,"Q","88000: Зориулалтын байргүй нийгмийн тусламжийн үйл ажиллагаа","Бага",null,"Q",278,"Low",null,1]
[null,null,null,null,null,null,null,null,null,null,null,null,null,null,null,null,null,null,null,null,null,null,null,null,null,null,null,null,null,null,null,null,null,null,null,null,null,null,null,null,null,null,null,null,null,null,null,null,null,null,null,null,null,null,null,null,null,null,null,null,null,null,null,null,null,null,null,null,null,null,null,null,null,279,null,null,null,null,null,null,null,null,null,null,null,null,null,null,null,null,null,null,null,null,null,null,null,null,null,null,null,null,null,null,"R","90000: Бүтээл туурвих, урлаг, үзвэр үйлчилгээний үйл ажиллагаа","Бага",null,0,279,"Low",null,1]
[null,null,null,null,null,null,null,null,null,null,null,null,null,null,null,null,null,null,null,null,null,null,null,null,null,null,null,null,null,null,null,null,null,null,null,null,null,null,null,null,null,null,null,null,null,null,null,null,null,null,null,null,null,null,null,null,null,null,null,null,null,null,null,null,null,null,null,null,null,null,null,null,null,280,null,null,null,null,null,null,null,null,null,null,null,null,null,null,null,null,null,null,null,null,null,null,null,null,null,null,null,null,null,null,"R","91000: Номын сан, архив, музей болон бусад соёлын үйл ажиллагаа","Бага",null,0,280,"Low",null,1]
[null,null,null,null,null,null,null,null,null,null,null,null,null,null,null,null,null,null,null,null,null,null,null,null,null,null,null,null,null,null,null,null,null,null,null,null,null,null,null,null,null,null,null,null,null,null,null,null,null,null,null,null,null,null,null,null,null,null,null,null,null,null,null,null,null,null,null,null,null,null,null,null,null,281,null,null,null,null,null,null,null,null,null,null,null,null,null,null,null,null,null,null,null,null,null,null,null,null,null,null,null,null,null,null,"R","92000: Мөрийтэй тоглоомын газрын үйл ажиллагаа","Өндөр","Санхүүжүүлэхгүй",0,281,"High","Exclusion List Activity",4]
[null,null,null,null,null,null,null,null,null,null,null,null,null,null,null,null,null,null,null,null,null,null,null,null,null,null,null,null,null,null,null,null,null,null,null,null,null,null,null,null,null,null,null,null,null,null,null,null,null,null,null,null,null,null,null,null,null,null,null,null,null,null,null,null,null,null,null,null,null,null,null,null,null,282,null,null,null,null,null,null,null,null,null,null,null,null,null,null,null,null,null,null,null,null,null,null,null,null,null,null,null,null,null,null,"R","93000: Спорт, зугаа цэнгэл, чөлөөт цагийн үйл ажиллагаа","Бага",null,"R",282,"Low",null,1]
[null,null,null,null,null,null,null,null,null,null,null,null,null,null,null,null,null,null,null,null,null,null,null,null,null,null,null,null,null,null,null,null,null,null,null,null,null,null,null,null,null,null,null,null,null,null,null,null,null,null,null,null,null,null,null,null,null,null,null,null,null,null,null,null,null,null,null,null,null,null,null,null,null,283,null,null,null,null,null,null,null,null,null,null,null,null,null,null,null,null,null,null,null,null,null,null,null,null,null,null,null,null,null,null,"S","94000: Гишүүнчлэл бүхий байгууллагын үйл ажиллагаа","Бага",null,0,283,"Low",null,1]
[null,null,null,null,null,null,null,null,null,null,null,null,null,null,null,null,null,null,null,null,null,null,null,null,null,null,null,null,null,null,null,null,null,null,null,null,null,null,null,null,null,null,null,null,null,null,null,null,null,null,null,null,null,null,null,null,null,null,null,null,null,null,null,null,null,null,null,null,null,null,null,null,null,284,null,null,null,null,null,null,null,null,null,null,null,null,null,null,null,null,null,null,null,null,null,null,null,null,null,null,null,null,null,null,"S","95000: Хувийн болон өрхийн хэрэглээний бараа, компьютерын засвар, үйлчилгээ","Бага",null,0,284,"Low",null,1]
[null,null,null,null,null,null,null,null,null,null,null,null,null,null,null,null,null,null,null,null,null,null,null,null,null,null,null,null,null,null,null,null,null,null,null,null,null,null,null,null,null,null,null,null,null,null,null,null,null,null,null,null,null,null,null,null,null,null,null,null,null,null,null,null,null,null,null,null,null,null,null,null,null,285,null,null,null,null,null,null,null,null,null,null,null,null,null,null,null,null,null,null,null,null,null,null,null,null,null,null,null,null,null,null,"S","96000: Хувийн үйлчилгээний бусад үйл ажиллагаа","Бага",null,"S",285,"Low",null,1]
[null,null,null,null,null,null,null,null,null,null,null,null,null,null,null,null,null,null,null,null,null,null,null,null,null,null,null,null,null,null,null,null,null,null,null,null,null,null,null,null,null,null,null,null,null,null,null,null,null,null,null,null,null,null,null,null,null,null,null,null,null,null,null,null,null,null,null,null,null,null,null,null,null,286,null,null,null,null,null,null,null,null,null,null,null,null,null,null,null,null,null,null,null,null,null,null,null,null,null,null,null,null,null,null,"T","97000: Хүн хөлслөн ажиллуулдаг өрхийн үйл ажиллагаа","Бага",null,0,286,"Low",null,1]
[null,null,null,null,null,null,null,null,null,null,null,null,null,null,null,null,null,null,null,null,null,null,null,null,null,null,null,null,null,null,null,null,null,null,null,null,null,null,null,null,null,null,null,null,null,null,null,null,null,null,null,null,null,null,null,null,null,null,null,null,null,null,null,null,null,null,null,null,null,null,null,null,null,287,null,null,null,null,null,null,null,null,null,null,null,null,null,null,null,null,null,null,null,null,null,null,null,null,null,null,null,null,null,null,"T","98000: Өрхийн өөрийн хэрэглээнд зориулсан үйлдвэрлэсэн хэмжээг нь тодорхойлох боломжгүй бүтээгдэхүүн, үйлчилгээ","Бага",null,"T",287,"Low",null,1]
[null,null,null,null,null,null,null,null,null,null,null,null,null,null,null,null,null,null,null,null,null,null,null,null,null,null,null,null,null,null,null,null,null,null,null,null,null,null,null,null,null,null,null,null,null,null,null,null,null,null,null,null,null,null,null,null,null,null,null,null,null,null,null,null,null,null,null,null,null,null,null,null,null,288,null,null,null,null,null,null,null,null,null,null,null,null,null,null,null,null,null,null,null,null,null,null,null,null,null,null,null,null,null,null,"U","99000: Олон улсын байгууллага, суурин төлөөлөгчийн үйл ажиллагаа","Бага",null,"U",288,"Low",null,1]
[null,null,null,null,null,null,null,null,null,null,null,null,null,null,null,null,null,null,null,null,null,null,null,null,null,null,null,null,null,null,null,null,null,null,null,null,null,null,null,null,null,null,null,null,null,null,null,null,null,null,null,null,null,null,null,null,null,null,null,null,null,null,null,null,null,null,null,null,null,null,null,null,null,289]
[null,null,null,null,null,null,null,null,null,null,null,null,null,null,null,null,null,null,null,null,null,null,null,null,null,null,null,null,null,null,null,null,null,null,null,null,null,null,null,null,null,null,null,null,null,null,null,null,null,null,null,null,null,null,null,null,null,null,null,null,null,null,null,null,null,null,null,null,null,null,null,null,null,290]
[null,null,null,null,null,null,null,null,null,null,null,null,null,null,null,null,null,null,null,null,null,null,null,null,null,null,null,null,null,null,null,null,null,null,null,null,null,null,null,null,null,null,null,null,null,null,null,null,null,null,null,null,null,null,null,null,null,null,null,null,null,null,null,null,null,null,null,null,null,null,null,null,null,291]
[null,null,null,null,null,null,null,null,null,null,null,null,null,null,null,null,null,null,null,null,null,null,null,null,null,null,null,null,null,null,null,null,null,null,null,null,null,null,null,null,null,null,null,null,null,null,null,null,null,null,null,null,null,null,null,null,null,null,null,null,null,null,null,null,null,null,null,null,null,null,null,null,null,292]
[null,null,null,null,null,null,null,null,null,null,null,null,null,null,null,null,null,null,null,null,null,null,null,null,null,null,null,null,null,null,null,null,null,null,null,null,null,null,null,null,null,null,null,null,null,null,null,null,null,null,null,null,null,null,null,null,null,null,null,null,null,null,null,null,null,null,null,null,null,null,null,null,null,293]
[null,null,null,null,null,null,null,null,null,null,null,null,null,null,null,null,null,null,null,null,null,null,null,null,null,null,null,null,null,null,null,null,null,null,null,null,null,null,null,null,null,null,null,null,null,null,null,null,null,null,null,null,null,null,null,null,null,null,null,null,null,null,null,null,null,null,null,null,null,null,null,null,null,294]
[null,null,null,null,null,null,null,null,null,null,null,null,null,null,null,null,null,null,null,null,null,null,null,null,null,null,null,null,null,null,null,null,null,null,null,null,null,null,null,null,null,null,null,null,null,null,null,null,null,null,null,null,null,null,null,null,null,null,null,null,null,null,null,null,null,null,null,null,null,null,null,null,null,295]
[null,null,null,null,null,null,null,null,null,null,null,null,null,null,null,null,null,null,null,null,null,null,null,null,null,null,null,null,null,null,null,null,null,null,null,null,null,null,null,null,null,null,null,null,null,null,null,null,null,null,null,null,null,null,null,null,null,null,null,null,null,null,null,null,null,null,null,null,null,null,null,null,null,296]
[null,null,null,null,null,null,null,null,null,null,null,null,null,null,null,null,null,null,null,null,null,null,null,null,null,null,null,null,null,null,null,null,null,null,null,null,null,null,null,null,null,null,null,null,null,null,null,null,null,null,null,null,null,null,null,null,null,null,null,null,null,null,null,null,null,null,null,null,null,null,null,null,null,297]
[null,null,null,null,null,null,null,null,null,null,null,null,null,null,null,null,null,null,null,null,null,null,null,null,null,null,null,null,null,null,null,null,null,null,null,null,null,null,null,null,null,null,null,null,null,null,null,null,null,null,null,null,null,null,null,null,null,null,null,null,null,null,null,null,null,null,null,null,null,null,null,null,null,298]
[null,null,null,null,null,null,null,null,null,null,null,null,null,null,null,null,null,null,null,null,null,null,null,null,null,null,null,null,null,null,null,null,null,null,null,null,null,null,null,null,null,null,null,null,null,null,null,null,null,null,null,null,null,null,null,null,null,null,null,null,null,null,null,null,null,null,null,null,null,null,null,null,null,299]
[null,null,null,null,null,null,null,null,null,null,null,null,null,null,null,null,null,null,null,null,null,null,null,null,null,null,null,null,null,null,null,null,null,null,null,null,null,null,null,null,null,null,null,null,null,null,null,null,null,null,null,null,null,null,null,null,null,null,null,null,null,null,null,null,null,null,null,null,null,null,null,null,null,300]
[null,null,null,null,null,null,null,null,null,null,null,null,null,null,null,null,null,null,null,null,null,null,null,null,null,null,null,null,null,null,null,null,null,null,null,null,null,null,null,null,null,null,null,null,null,null,null,null,null,null,null,null,null,null,null,null,null,null,null,null,null,null,null,null,null,null,null,null,null,null,null,null,null,301]
[null,null,null,null,null,null,null,null,null,null,null,null,null,null,null,null,null,null,null,null,null,null,null,null,null,null,null,null,null,null,null,null,null,null,null,null,null,null,null,null,null,null,null,null,null,null,null,null,null,null,null,null,null,null,null,null,null,null,null,null,null,null,null,null,null,null,null,null,null,null,null,null,null,302]
[null,null,null,null,null,null,null,null,null,null,null,null,null,null,null,null,null,null,null,null,null,null,null,null,null,null,null,null,null,null,null,null,null,null,null,null,null,null,null,null,null,null,null,null,null,null,null,null,null,null,null,null,null,null,null,null,null,null,null,null,null,null,null,null,null,null,null,null,null,null,null,null,null,303]
[null,null,null,null,null,null,null,null,null,null,null,null,null,null,null,null,null,null,null,null,null,null,null,null,null,null,null,null,null,null,null,null,null,null,null,null,null,null,null,null,null,null,null,null,null,null,null,null,null,null,null,null,null,null,null,null,null,null,null,null,null,null,null,null,null,null,null,null,null,null,null,null,null,304]
[null,null,null,null,null,null,null,null,null,null,null,null,null,null,null,null,null,null,null,null,null,null,null,null,null,null,null,null,null,null,null,null,null,null,null,null,null,null,null,null,null,null,null,null,null,null,null,null,null,null,null,null,null,null,null,null,null,null,null,null,null,null,null,null,null,null,null,null,null,null,null,null,null,305]
[null,null,null,null,null,null,null,null,null,null,null,null,null,null,null,null,null,null,null,null,null,null,null,null,null,null,null,null,null,null,null,null,null,null,null,null,null,null,null,null,null,null,null,null,null,null,null,null,null,null,null,null,null,null,null,null,null,null,null,null,null,null,null,null,null,null,null,null,null,null,null,null,null,306]
[null,null,null,null,null,null,null,null,null,null,null,null,null,null,null,null,null,null,null,null,null,null,null,null,null,null,null,null,null,null,null,null,null,null,null,null,null,null,null,null,null,null,null,null,null,null,null,null,null,null,null,null,null,null,null,null,null,null,null,null,null,null,null,null,null,null,null,null,null,null,null,null,null,307]
[null,null,null,null,null,null,null,null,null,null,null,null,null,null,null,null,null,null,null,null,null,null,null,null,null,null,null,null,null,null,null,null,null,null,null,null,null,null,null,null,null,null,null,null,null,null,null,null,null,null,null,null,null,null,null,null,null,null,null,null,null,null,null,null,null,null,null,null,null,null,null,null,null,308]
[null,null,null,null,null,null,null,null,null,null,null,null,null,null,null,null,null,null,null,null,null,null,null,null,null,null,null,null,null,null,null,null,null,null,null,null,null,null,null,null,null,null,null,null,null,null,null,null,null,null,null,null,null,null,null,null,null,null,null,null,null,null,null,null,null,null,null,null,null,null,null,null,null,309]
[null,null,null,null,null,null,null,null,null,null,null,null,null,null,null,null,null,null,null,null,null,null,null,null,null,null,null,null,null,null,null,null,null,null,null,null,null,null,null,null,null,null,null,null,null,null,null,null,null,null,null,null,null,null,null,null,null,null,null,null,null,null,null,null,null,null,null,null,null,null,null,null,null,310]
[null,null,null,null,null,null,null,null,null,null,null,null,null,null,null,null,null,null,null,null,null,null,null,null,null,null,null,null,null,null,null,null,null,null,null,null,null,null,null,null,null,null,null,null,null,null,null,null,null,null,null,null,null,null,null,null,null,null,null,null,null,null,null,null,null,null,null,null,null,null,null,null,null,311]
[null,null,null,null,null,null,null,null,null,null,null,null,null,null,null,null,null,null,null,null,null,null,null,null,null,null,null,null,null,null,null,null,null,null,null,null,null,null,null,null,null,null,null,null,null,null,null,null,null,null,null,null,null,null,null,null,null,null,null,null,null,null,null,null,null,null,null,null,null,null,null,null,null,312]
[null,null,null,null,null,null,null,null,null,null,null,null,null,null,null,null,null,null,null,null,null,null,null,null,null,null,null,null,null,null,null,null,null,null,null,null,null,null,null,null,null,null,null,null,null,null,null,null,null,null,null,null,null,null,null,null,null,null,null,null,null,null,null,null,null,null,null,null,null,null,null,null,null,313]
[null,null,null,null,null,null,null,null,null,null,null,null,null,null,null,null,null,null,null,null,null,null,null,null,null,null,null,null,null,null,null,null,null,null,null,null,null,null,null,null,null,null,null,null,null,null,null,null,null,null,null,null,null,null,null,null,null,null,null,null,null,null,null,null,null,null,null,null,null,null,null,null,null,314]
[null,null,null,null,null,null,null,null,null,null,null,null,null,null,null,null,null,null,null,null,null,null,null,null,null,null,null,null,null,null,null,null,null,null,null,null,null,null,null,null,null,null,null,null,null,null,null,null,null,null,null,null,null,null,null,null,null,null,null,null,null,null,null,null,null,null,null,null,null,null,null,null,null,315]
[null,null,null,null,null,null,null,null,null,null,null,null,null,null,null,null,null,null,null,null,null,null,null,null,null,null,null,null,null,null,null,null,null,null,null,null,null,null,null,null,null,null,null,null,null,null,null,null,null,null,null,null,null,null,null,null,null,null,null,null,null,null,null,null,null,null,null,null,null,null,null,null,null,316]
[null,null,null,null,null,null,null,null,null,null,null,null,null,null,null,null,null,null,null,null,null,null,null,null,null,null,null,null,null,null,null,null,null,null,null,null,null,null,null,null,null,null,null,null,null,null,null,null,null,null,null,null,null,null,null,null,null,null,null,null,null,null,null,null,null,null,null,null,null,null,null,null,null,317]
[null,null,null,null,null,null,null,null,null,null,null,null,null,null,null,null,null,null,null,null,null,null,null,null,null,null,null,null,null,null,null,null,null,null,null,null,null,null,null,null,null,null,null,null,null,null,null,null,null,null,null,null,null,null,null,null,null,null,null,null,null,null,null,null,null,null,null,null,null,null,null,null,null,318]
[null,null,null,null,null,null,null,null,null,null,null,null,null,null,null,null,null,null,null,null,null,null,null,null,null,null,null,null,null,null,null,null,null,null,null,null,null,null,null,null,null,null,null,null,null,null,null,null,null,null,null,null,null,null,null,null,null,null,null,null,null,null,null,null,null,null,null,null,null,null,null,null,null,319]
[null,null,null,null,null,null,null,null,null,null,null,null,null,null,null,null,null,null,null,null,null,null,null,null,null,null,null,null,null,null,null,null,null,null,null,null,null,null,null,null,null,null,null,null,null,null,null,null,null,null,null,null,null,null,null,null,null,null,null,null,null,null,null,null,null,null,null,null,null,null,null,null,null,320]
[null,null,null,null,null,null,null,null,null,null,null,null,null,null,null,null,null,null,null,null,null,null,null,null,null,null,null,null,null,null,null,null,null,null,null,null,null,null,null,null,null,null,null,null,null,null,null,null,null,null,null,null,null,null,null,null,null,null,null,null,null,null,null,null,null,null,null,null,null,null,null,null,null,321]
[null,null,null,null,null,null,null,null,null,null,null,null,null,null,null,null,null,null,null,null,null,null,null,null,null,null,null,null,null,null,null,null,null,null,null,null,null,null,null,null,null,null,null,null,null,null,null,null,null,null,null,null,null,null,null,null,null,null,null,null,null,null,null,null,null,null,null,null,null,null,null,null,null,322]
[null,null,null,null,null,null,null,null,null,null,null,null,null,null,null,null,null,null,null,null,null,null,null,null,null,null,null,null,null,null,null,null,null,null,null,null,null,null,null,null,null,null,null,null,null,null,null,null,null,null,null,null,null,null,null,null,null,null,null,null,null,null,null,null,null,null,null,null,null,null,null,null,null,323]
[null,null,null,null,null,null,null,null,null,null,null,null,null,null,null,null,null,null,null,null,null,null,null,null,null,null,null,null,null,null,null,null,null,null,null,null,null,null,null,null,null,null,null,null,null,null,null,null,null,null,null,null,null,null,null,null,null,null,null,null,null,null,null,null,null,null,null,null,null,null,null,null,null,324]
[null,null,null,null,null,null,null,null,null,null,null,null,null,null,null,null,null,null,null,null,null,null,null,null,null,null,null,null,null,null,null,null,null,null,null,null,null,null,null,null,null,null,null,null,null,null,null,null,null,null,null,null,null,null,null,null,null,null,null,null,null,null,null,null,null,null,null,null,null,null,null,null,null,325]
[null,null,null,null,null,null,null,null,null,null,null,null,null,null,null,null,null,null,null,null,null,null,null,null,null,null,null,null,null,null,null,null,null,null,null,null,null,null,null,null,null,null,null,null,null,null,null,null,null,null,null,null,null,null,null,null,null,null,null,null,null,null,null,null,null,null,null,null,null,null,null,null,null,326]
[null,null,null,null,null,null,null,null,null,null,null,null,null,null,null,null,null,null,null,null,null,null,null,null,null,null,null,null,null,null,null,null,null,null,null,null,null,null,null,null,null,null,null,null,null,null,null,null,null,null,null,null,null,null,null,null,null,null,null,null,null,null,null,null,null,null,null,null,null,null,null,null,null,327]
[null,null,null,null,null,null,null,null,null,null,null,null,null,null,null,null,null,null,null,null,null,null,null,null,null,null,null,null,null,null,null,null,null,null,null,null,null,null,null,null,null,null,null,null,null,null,null,null,null,null,null,null,null,null,null,null,null,null,null,null,null,null,null,null,null,null,null,null,null,null,null,null,null,328]
[null,null,null,null,null,null,null,null,null,null,null,null,null,null,null,null,null,null,null,null,null,null,null,null,null,null,null,null,null,null,null,null,null,null,null,null,null,null,null,null,null,null,null,null,null,null,null,null,null,null,null,null,null,null,null,null,null,null,null,null,null,null,null,null,null,null,null,null,null,null,null,null,null,329]
[null,null,null,null,null,null,null,null,null,null,null,null,null,null,null,null,null,null,null,null,null,null,null,null,null,null,null,null,null,null,null,null,null,null,null,null,null,null,null,null,null,null,null,null,null,null,null,null,null,null,null,null,null,null,null,null,null,null,null,null,null,null,null,null,null,null,null,null,null,null,null,null,null,330]
[null,null,null,null,null,null,null,null,null,null,null,null,null,null,null,null,null,null,null,null,null,null,null,null,null,null,null,null,null,null,null,null,null,null,null,null,null,null,null,null,null,null,null,null,null,null,null,null,null,null,null,null,null,null,null,null,null,null,null,null,null,null,null,null,null,null,null,null,null,null,null,null,null,331]
[null,null,null,null,null,null,null,null,null,null,null,null,null,null,null,null,null,null,null,null,null,null,null,null,null,null,null,null,null,null,null,null,null,null,null,null,null,null,null,null,null,null,null,null,null,null,null,null,null,null,null,null,null,null,null,null,null,null,null,null,null,null,null,null,null,null,null,null,null,null,null,null,null,332]
[null,null,null,null,null,null,null,null,null,null,null,null,null,null,null,null,null,null,null,null,null,null,null,null,null,null,null,null,null,null,null,null,null,null,null,null,null,null,null,null,null,null,null,null,null,null,null,null,null,null,null,null,null,null,null,null,null,null,null,null,null,null,null,null,null,null,null,null,null,null,null,null,null,333]
[null,null,null,null,null,null,null,null,null,null,null,null,null,null,null,null,null,null,null,null,null,null,null,null,null,null,null,null,null,null,null,null,null,null,null,null,null,null,null,null,null,null,null,null,null,null,null,null,null,null,null,null,null,null,null,null,null,null,null,null,null,null,null,null,null,null,null,null,null,null,null,null,null,334]
[null,null,null,null,null,null,null,null,null,null,null,null,null,null,null,null,null,null,null,null,null,null,null,null,null,null,null,null,null,null,null,null,null,null,null,null,null,null,null,null,null,null,null,null,null,null,null,null,null,null,null,null,null,null,null,null,null,null,null,null,null,null,null,null,null,null,null,null,null,null,null,null,null,335]
[null,null,null,null,null,null,null,null,null,null,null,null,null,null,null,null,null,null,null,null,null,null,null,null,null,null,null,null,null,null,null,null,null,null,null,null,null,null,null,null,null,null,null,null,null,null,null,null,null,null,null,null,null,null,null,null,null,null,null,null,null,null,null,null,null,null,null,null,null,null,null,null,null,336]
[null,null,null,null,null,null,null,null,null,null,null,null,null,null,null,null,null,null,null,null,null,null,null,null,null,null,null,null,null,null,null,null,null,null,null,null,null,null,null,null,null,null,null,null,null,null,null,null,null,null,null,null,null,null,null,null,null,null,null,null,null,null,null,null,null,null,null,null,null,null,null,null,null,337]
[null,null,null,null,null,null,null,null,null,null,null,null,null,null,null,null,null,null,null,null,null,null,null,null,null,null,null,null,null,null,null,null,null,null,null,null,null,null,null,null,null,null,null,null,null,null,null,null,null,null,null,null,null,null,null,null,null,null,null,null,null,null,null,null,null,null,null,null,null,null,null,null,null,338]
[null,null,null,null,null,null,null,null,null,null,null,null,null,null,null,null,null,null,null,null,null,null,null,null,null,null,null,null,null,null,null,null,null,null,null,null,null,null,null,null,null,null,null,null,null,null,null,null,null,null,null,null,null,null,null,null,null,null,null,null,null,null,null,null,null,null,null,null,null,null,null,null,null,339]
[null,null,null,null,null,null,null,null,null,null,null,null,null,null,null,null,null,null,null,null,null,null,null,null,null,null,null,null,null,null,null,null,null,null,null,null,null,null,null,null,null,null,null,null,null,null,null,null,null,null,null,null,null,null,null,null,null,null,null,null,null,null,null,null,null,null,null,null,null,null,null,null,null,340]
[null,null,null,null,null,null,null,null,null,null,null,null,null,null,null,null,null,null,null,null,null,null,null,null,null,null,null,null,null,null,null,null,null,null,null,null,null,null,null,null,null,null,null,null,null,null,null,null,null,null,null,null,null,null,null,null,null,null,null,null,null,null,null,null,null,null,null,null,null,null,null,null,null,341]
[null,null,null,null,null,null,null,null,null,null,null,null,null,null,null,null,null,null,null,null,null,null,null,null,null,null,null,null,null,null,null,null,null,null,null,null,null,null,null,null,null,null,null,null,null,null,null,null,null,null,null,null,null,null,null,null,null,null,null,null,null,null,null,null,null,null,null,null,null,null,null,null,null,342]
[null,null,null,null,null,null,null,null,null,null,null,null,null,null,null,null,null,null,null,null,null,null,null,null,null,null,null,null,null,null,null,null,null,null,null,null,null,null,null,null,null,null,null,null,null,null,null,null,null,null,null,null,null,null,null,null,null,null,null,null,null,null,null,null,null,null,null,null,null,null,null,null,null,343]
[null,null,null,null,null,null,null,null,null,null,null,null,null,null,null,null,null,null,null,null,null,null,null,null,null,null,null,null,null,null,null,null,null,null,null,null,null,null,null,null,null,null,null,null,null,null,null,null,null,null,null,null,null,null,null,null,null,null,null,null,null,null,null,null,null,null,null,null,null,null,null,null,null,344]
[null,null,null,null,null,null,null,null,null,null,null,null,null,null,null,null,null,null,null,null,null,null,null,null,null,null,null,null,null,null,null,null,null,null,null,null,null,null,null,null,null,null,null,null,null,null,null,null,null,null,null,null,null,null,null,null,null,null,null,null,null,null,null,null,null,null,null,null,null,null,null,null,null,345]
[null,null,null,null,null,null,null,null,null,null,null,null,null,null,null,null,null,null,null,null,null,null,null,null,null,null,null,null,null,null,null,null,null,null,null,null,null,null,null,null,null,null,null,null,null,null,null,null,null,null,null,null,null,null,null,null,null,null,null,null,null,null,null,null,null,null,null,null,null,null,null,null,null,346]
[null,null,null,null,null,null,null,null,null,null,null,null,null,null,null,null,null,null,null,null,null,null,null,null,null,null,null,null,null,null,null,null,null,null,null,null,null,null,null,null,null,null,null,null,null,null,null,null,null,null,null,null,null,null,null,null,null,null,null,null,null,null,null,null,null,null,null,null,null,null,null,null,null,347]
[null,null,null,null,null,null,null,null,null,null,null,null,null,null,null,null,null,null,null,null,null,null,null,null,null,null,null,null,null,null,null,null,null,null,null,null,null,null,null,null,null,null,null,null,null,null,null,null,null,null,null,null,null,null,null,null,null,null,null,null,null,null,null,null,null,null,null,null,null,null,null,null,null,348]
[null,null,null,null,null,null,null,null,null,null,null,null,null,null,null,null,null,null,null,null,null,null,null,null,null,null,null,null,null,null,null,null,null,null,null,null,null,null,null,null,null,null,null,null,null,null,null,null,null,null,null,null,null,null,null,null,null,null,null,null,null,null,null,null,null,null,null,null,null,null,null,null,null,349]
[null,null,null,null,null,null,null,null,null,null,null,null,null,null,null,null,null,null,null,null,null,null,null,null,null,null,null,null,null,null,null,null,null,null,null,null,null,null,null,null,null,null,null,null,null,null,null,null,null,null,null,null,null,null,null,null,null,null,null,null,null,null,null,null,null,null,null,null,null,null,null,null,null,350]
[null,null,null,null,null,null,null,null,null,null,null,null,null,null,null,null,null,null,null,null,null,null,null,null,null,null,null,null,null,null,null,null,null,null,null,null,null,null,null,null,null,null,null,null,null,null,null,null,null,null,null,null,null,null,null,null,null,null,null,null,null,null,null,null,null,null,null,null,null,null,null,null,null,346]
[null,null,null,null,null,null,null,null,null,null,null,null,null,null,null,null,null,null,null,null,null,null,null,null,null,null,null,null,null,null,null,null,null,null,null,null,null,null,null,null,null,null,null,null,null,null,null,null,null,null,null,null,null,null,null,null,null,null,null,null,null,null,null,null,null,null,null,null,null,null,null,null,null,347]
[null,null,null,null,null,null,null,null,null,null,null,null,null,null,null,null,null,null,null,null,null,null,null,null,null,null,null,null,null,null,null,null,null,null,null,null,null,null,null,null,null,null,null,null,null,null,null,null,null,null,null,null,null,null,null,null,null,null,null,null,null,null,null,null,null,null,null,null,null,null,null,null,null,348]
[null,null,null,null,null,null,null,null,null,null,null,null,null,null,null,null,null,null,null,null,null,null,null,null,null,null,null,null,null,null,null,null,null,null,null,null,null,null,null,null,null,null,null,null,null,null,null,null,null,null,null,null,null,null,null,null,null,null,null,null,null,null,null,null,null,null,null,null,null,null,null,null,null,349]
[null,null,null,null,null,null,null,null,null,null,null,null,null,null,null,null,null,null,null,null,null,null,null,null,null,null,null,null,null,null,null,null,null,null,null,null,null,null,null,null,null,null,null,null,null,null,null,null,null,null,null,null,null,null,null,null,null,null,null,null,null,null,null,null,null,null,null,null,null,null,null,null,null,350]
[null,null,null,null,null,null,null,null,null,null,null,null,null,null,null,null,null,null,null,null,null,null,null,null,null,null,null,null,null,null,null,null,null,null,null,null,null,null,null,null,null,null,null,null,null,null,null,null,null,null,null,null,null,null,null,null,null,null,null,null,null,null,null,null,null,null,null,null,null,null,null,null,null,350]
[null,null,null,null,null,null,null,null,null,null,null,null,null,null,null,null,null,null,null,null,null,null,null,null,null,null,null,null,null,null,null,null,null,null,null,null,null,null,null,null,null,null,null,null,null,null,null,null,null,null,null,null,null,null,null,null,null,null,null,null,null,null,null,null,null,null,null,null,null,null,null,null,null,350]

{"sheet":"    ","index":1,"n_rows":365,"n_cols":23,"rows_kept":365,"cut":false,"hidden":true,"merged":[]}
[{"$f":"ROUNDDOWN(A18,0)","v":{"$error":"#REF!"}},null,null,null,null,null,null,null,{"$f":"A1/N1","v":{"$error":"#REF!"}},{"$f":"ROUND(ABS(A1),-12)","v":{"$error":"#REF!"}},{"$f":"A1-J1","v":{"$error":"#REF!"}},{"$f":"IF(K1<0,(A1-J1+N1*10),K1)","v":{"$error":"#REF!"}},{"$f":"(L1-L2)/N1","v":{"$error":"#REF!"}},{"$f":"N2*10","v":100000000000},{"$f":"VALUE(IF(M1=0,0,M1))","v":{"$error":"#REF!"}},{"$f":"IF(M1>0,VLOOKUP(M1,$B$3:$H$12,IF(T1>0,6,7),0),0)","v":{"$error":"#REF!"}},"зуун",{"$f":"SUM(M1)","v":{"$error":"#REF!"}},{"$f":"IF(R1>0,1,0)","v":{"$error":"#REF!"}},{"$f":"IF(S1=0,0,1)","v":{"$error":"#REF!"}},{"$f":"SUM(O1:O3)","v":{"$error":"#REF!"}},null,{"$f":"CONCATENATE(IF(O1=0,\"\",CONCATENATE(P1,\" \",Q1)),IF(O2=0,\"\",CONCATENATE(\" \",P2)),IF(U1=0,\"\",CONCATENATE(\" \",IF(P3=0,\"\",P3),\" \",Q3)),IF(O4=0,\"\",CONCATENATE(\" \",P4,\" \",Q4)),IF(O5=0,\"\",CONCATENATE(\" \",P5)),IF(U3=0,\"\",CONCATENATE(\" \",IF(P6=0,\"\",P6),\" \",Q6)),IF(O7=0,\"\",CONCATENATE(\" \",P7,\" \",Q7)),IF(O8=0,\"\",CONCATENATE(\" \",P8)),IF(U6=0,\"\",CONCATENATE(\" \",IF(P9=0,\"\",P9),\" \",Q9)),IF(O10=0,\"\",CONCATENATE(\" \",P10,\" \",Q10)),IF(O11=0,\"\",CONCATENATE(\" \",P11)),IF(O12=0,\"\",CONCATENATE(\" \",IF(VALUE(A19)=0,P12,Q12))))","v":{"$error":"#REF!"}}]
[null,null,null,null,null,null,null,null,{"$f":"A1/N2","v":{"$error":"#REF!"}},{"$f":"ROUND(ABS(A1),-11)","v":{"$error":"#REF!"}},{"$f":"A1-J2","v":{"$error":"#REF!"}},{"$f":"IF(K2<0,(A1-J2+N2*10),K2)","v":{"$error":"#REF!"}},{"$error":"#REF!"},10000000000,{"$f":"VALUE(IF(M2=0,0,M2))","v":{"$error":"#REF!"}},{"$f":"IF(M2>0,VLOOKUP(M2,$B$3:$H$12,IF(T2>0,2,3),0),0)","v":{"$error":"#REF!"}},null,{"$f":"SUM(M1:M2)","v":{"$error":"#REF!"}},{"$f":"IF(SUM(R1:R2)>0,1,0)","v":{"$error":"#REF!"}},{"$f":"IF(S2<>S1,1,0)","v":{"$error":"#REF!"}},null,null,{"$f":"CONCATENATE(W1,\" \",W19)","v":{"$error":"#REF!"}}]
[{"$f":"VLOOKUP(A4,'    '!D14:F16,3,0)","v":{"$error":"#REF!"}},1,"Арван","арван","Нэг","нэг","Нэг",{"$f":"IF(O9=1,F3,H12)","v":{"$error":"#REF!"}},{"$f":"A1/N3","v":{"$error":"#REF!"}},{"$f":"ROUND(ABS(A1),-10)","v":{"$error":"#REF!"}},{"$f":"A1-J3","v":{"$error":"#REF!"}},{"$f":"IF(K3<0,(A1-J3+N3*10),K3)","v":{"$error":"#REF!"}},{"$error":"#REF!"},1000000000,{"$error":"#REF!"},{"$f":"IF(M3>0,VLOOKUP(M3,$B$3:$H$12,IF(T3>0,6,7),0),0)","v":{"$error":"#REF!"}},"тэрбум",{"$f":"SUM(M1:M3)","v":{"$error":"#REF!"}},{"$f":"IF(SUM(R2:R3)>0,1,0)","v":{"$error":"#REF!"}},{"$f":"IF(S3<>S2,1,0)","v":{"$error":"#REF!"}},{"$f":"SUM(O4:O6)","v":{"$error":"#REF!"}}]
[{"$f":"IF(#REF!=E14,D14,IF(#REF!=E15,D15,IF(#REF!=E16,D16,1)))","v":{"$error":"#REF!"}},2,"Хорин","хорин","Хоёр","хоёр","Хоёр","хоёр",{"$f":"A1/N4","v":{"$error":"#REF!"}},{"$f":"ROUND(ABS(A1),-9)","v":{"$error":"#REF!"}},{"$f":"A1-J4","v":{"$error":"#REF!"}},{"$f":"IF(K4<0,(A1-J4+N4*10),K4)","v":{"$error":"#REF!"}},{"$error":"#REF!"},100000000,{"$error":"#REF!"},{"$f":"IF(M4>0,VLOOKUP(M4,$B$3:$H$12,IF(T4>0,6,7),0),0)","v":{"$error":"#REF!"}},"зуун",{"$f":"SUM(M1:M4)","v":{"$error":"#REF!"}},{"$error":"#REF!"},{"$error":"#REF!"}]
[{"$f":"VLOOKUP(A4,D14:G16,4,0)","v":{"$error":"#REF!"}},3,"Гучин","гучин","Гурав","гурав","Гурван","гурван",{"$f":"A1/N5","v":{"$error":"#REF!"}},{"$f":"ROUND(ABS(A1),-8)","v":{"$error":"#REF!"}},{"$f":"A1-J5","v":{"$error":"#REF!"}},{"$f":"IF(K5<0,(A1-J5+N5*10),K5)","v":{"$error":"#REF!"}},{"$error":"#REF!"},10000000,{"$error":"#REF!"},{"$f":"IF(M5>0,VLOOKUP(M5,$B$3:$H$12,IF(T5>0,2,3),0),0)","v":{"$error":"#REF!"}},null,{"$f":"SUM(M1:M5)","v":{"$error":"#REF!"}},{"$error":"#REF!"},{"$error":"#REF!"}]
[{"$f":"VLOOKUP(A4,D14:K16,6,0)","v":{"$error":"#REF!"}},4,"Дөчин","дөчин","Дөрөв","дөрөв","Дөрвөн","дөрвөн",{"$f":"A1/N6","v":{"$error":"#REF!"}},{"$f":"ROUND(ABS(A1),-7)","v":{"$error":"#REF!"}},{"$f":"A1-J6","v":{"$error":"#REF!"}},{"$f":"IF(K6<0,(A1-J6+N6*10),K6)","v":{"$error":"#REF!"}},{"$error":"#REF!"},1000000,{"$error":"#REF!"},{"$f":"IF(M6>0,VLOOKUP(M6,$B$3:$H$12,IF(T6>0,6,7),0),0)","v":{"$error":"#REF!"}},"сая",{"$f":"SUM(M1:M6)","v":{"$error":"#REF!"}},{"$error":"#REF!"},{"$error":"#REF!"},{"$f":"SUM(O7:O9)","v":{"$error":"#REF!"}}]
[{"$f":"VLOOKUP(A4,D14:K16,5,0)","v":{"$error":"#REF!"}},5,"Тавин","тавин","Тав","тав","Таван","таван",{"$f":"A1/N7","v":{"$error":"#REF!"}},{"$f":"ROUND(A1,-6.4)","v":{"$error":"#REF!"}},{"$f":"A1-J7","v":{"$error":"#REF!"}},{"$f":"IF(K7<0,(A1-J7+N7*10),K7)","v":{"$error":"#REF!"}},{"$error":"#REF!"},100000,{"$error":"#REF!"},{"$f":"IF(M7>0,VLOOKUP(M7,$B$3:$H$12,IF(T7>0,6,7),0),0)","v":{"$error":"#REF!"}},"зуун",{"$f":"SUM(M1:M7)","v":{"$error":"#REF!"}},{"$error":"#REF!"},{"$error":"#REF!"}]
[null,6,"Жаран","жаран","Зургаа","зургаа","Зургаан","зургаан",{"$f":"A1/N8","v":{"$error":"#REF!"}},{"$f":"ROUND(ABS(A1),-5)","v":{"$error":"#REF!"}},{"$f":"A1-J8","v":{"$error":"#REF!"}},{"$f":"IF(K8<0,(A1-J8+N8*10),K8)","v":{"$error":"#REF!"}},{"$error":"#REF!"},10000,{"$error":"#REF!"},{"$f":"IF(M8>0,VLOOKUP(M8,$B$3:$H$12,IF(T8>0,2,3),0),0)","v":{"$error":"#REF!"}},null,{"$f":"SUM(M1:M8)","v":{"$error":"#REF!"}},{"$error":"#REF!"},{"$error":"#REF!"}]
[null,7,"Далан","далан","Долоо","долоо","Долоон","долоон",{"$f":"A1/N9","v":{"$error":"#REF!"}},{"$f":"ROUND(ABS(A1),-4)","v":{"$error":"#REF!"}},{"$f":"A1-J9","v":{"$error":"#REF!"}},{"$f":"IF(K9<0,(A1-J9+N9*10),K9)","v":{"$error":"#REF!"}},{"$error":"#REF!"},1000,{"$error":"#REF!"},{"$f":"IF(M9>0,VLOOKUP(M9,$B$3:$H$12,IF(T9>0,6,7),0),0)","v":{"$error":"#REF!"}},{"$f":"IF(U9=B14,C15,C14)","v":{"$error":"#REF!"}},{"$f":"SUM(M1:M9)","v":{"$error":"#REF!"}},{"$error":"#REF!"},{"$error":"#REF!"},{"$f":"SUM(O10:O12)","v":{"$error":"#REF!"}}]
[null,8,"Наян","наян","Найм","найм","Найман","найман",{"$f":"A1/N10","v":{"$error":"#REF!"}},{"$f":"ROUND(ABS(A1),-3)","v":{"$error":"#REF!"}},{"$f":"A1-J10","v":{"$error":"#REF!"}},{"$f":"IF(K10<0,(A1-J10+N10*10),K10)","v":{"$error":"#REF!"}},{"$error":"#REF!"},100,{"$error":"#REF!"},{"$f":"IF(M10>0,VLOOKUP(M10,$B$3:$H$12,IF(T10>0,6,7),0),0)","v":{"$error":"#REF!"}},"зуун",{"$f":"SUM(M1:M10)","v":{"$error":"#REF!"}},{"$error":"#REF!"},{"$error":"#REF!"}]
[null,9,"Ерэн","ерэн","Ес","ес","Есөн","есөн",{"$f":"A1/N11","v":{"$error":"#REF!"}},{"$f":"ROUND(ABS(A1),-2)","v":{"$error":"#REF!"}},{"$f":"A1-J11","v":{"$error":"#REF!"}},{"$f":"IF(K11<0,(A1-J11+N11*10),K11)","v":{"$error":"#REF!"}},{"$f":"(L11-L12)/N11","v":{"$error":"#REF!"}},{"$f":"N12*10","v":10},{"$error":"#REF!"},{"$f":"IF(M11>0,VLOOKUP(M11,$B$3:$H$12,IF(T11>0,2,3),0),0)","v":{"$error":"#REF!"}},null,{"$f":"SUM(M1:M11)","v":{"$error":"#REF!"}},{"$error":"#REF!"},{"$error":"#REF!"}]
[null,0,null,null,"Арав","арав",null,"нэгэн",{"$f":"A1/N12","v":{"$error":"#REF!"}},{"$f":"ROUND(ABS(A1),-1)","v":{"$error":"#REF!"}},{"$f":"A1-J12","v":{"$error":"#REF!"}},{"$f":"IF(K12<0,(A1-J12+N12*10),K12)","v":{"$error":"#REF!"}},{"$f":"(L12-L13)/N12","v":{"$error":"#REF!"}},1,{"$error":"#REF!"},{"$f":"IF(M12>0,VLOOKUP(M12,$B$3:$H$12,IF(T12>0,6,7),0),0)","v":{"$error":"#REF!"}},{"$f":"VLOOKUP(O12,B3:F12,5,0)","v":{"$error":"#REF!"}},{"$f":"SUM(M1:M12)","v":{"$error":"#REF!"}},{"$error":"#REF!"},{"$error":"#REF!"}]
[]
[null,0,"мянга",2,"USD","ам.доллар","ам.долларын","ам.долларыг","ам.доллараас"]
[null,1,"мянган",1,"MNT","төгрөг","төгрөгийн","төгрөгийг","төгрөгөөс"]
[null,null,"сая",3,"CNY","юань","юаний","юанийг","юаниас"]
[]
[{"$f":"#REF!","v":{"$error":"#REF!"}}]
[{"$f":"+A18-A1","v":{"$error":"#REF!"}},null,null,null,null,null,null,null,null,null,{"$f":"IF(SUM(J20:J22)=0,\"\",IF(SUM(J20:J21)=0,\"аравны\",IF(J20=0,\"зууны\",\"мянганы\")))","v":{"$error":"#REF!"}},null,null,null,null,null,null,null,null,null,null,null,{"$f":"CONCATENATE(K19,\" \",P22,\" \",Q22,\" \",P21,\" \",P20)","v":{"$error":"#REF!"}}]
[null,null,null,null,null,null,null,3,{"$f":"ROUND(A19*N20,H20)","v":{"$error":"#REF!"}},{"$f":"INT(VALUE(I20)-J21*N22-J22*N21)","v":{"$error":"#REF!"}},null,null,null,{"$f":"N21*10","v":1000},null,{"$f":"IF(J20>0,VLOOKUP(J20,$B$3:$H$12,IF(K19=\"мянганы\",7,IF(K19=\"зууны\",3,IF(K19=\"аравны\",7,\"\"))),0),\"\")","v":{"$error":"#REF!"}}]
[null,null,null,null,null,null,null,2,{"$f":"ROUND(A19*N21,H21)","v":{"$error":"#REF!"}},{"$f":"VALUE(INT(I21))-J22*N22","v":{"$error":"#REF!"}},null,null,null,{"$f":"N22*10","v":100},null,{"$f":"IF(J21>0,VLOOKUP(J21,$B$3:$H$12,IF(K19=\"мянганы\",3,IF(K19=\"зууны\",7,IF(K19=\"аравны\",3,\"\"))),0),\"\")","v":{"$error":"#REF!"}}]
[null,null,null,null,null,null,null,1,{"$f":"ROUND(A19*N22,H22)","v":{"$error":"#REF!"}},{"$f":"VALUE(INT(I22))","v":{"$error":"#REF!"}},null,null,null,{"$f":"N23*10","v":10},null,{"$f":"IF(J22>0,VLOOKUP(J22,$B$3:$H$12,IF(K19=\"мянганы\",7,IF(K19=\"зууны\",3,IF(K19=\"аравны\",7,\"\"))),0),\"\")","v":{"$error":"#REF!"}},{"$f":"IF(K19=\"мянганы\",IF(AND(SUM(J21:J22)=0,J20>0),\"\",\"зуун\"),\"\")","v":{"$error":"#REF!"}}]
[null,null,null,null,null,null,null,null,null,null,null,null,null,1]
[]
[{"$f":"ROUNDDOWN(A42,0)","v":{"$error":"#REF!"}},null,null,null,null,null,null,null,{"$f":"A25/N25","v":{"$error":"#REF!"}},{"$f":"ROUND(ABS(A25),-12)","v":{"$error":"#REF!"}},{"$f":"A25-J25","v":{"$error":"#REF!"}},{"$f":"IF(K25<0,(A25-J25+N25*10),K25)","v":{"$error":"#REF!"}},{"$f":"(L25-L26)/N25","v":{"$error":"#REF!"}},{"$f":"N26*10","v":100000000000},{"$f":"VALUE(IF(M25=0,0,M25))","v":{"$error":"#REF!"}},{"$f":"IF(M25>0,VLOOKUP(M25,$B$3:$H$12,IF(T25>0,6,7),0),0)","v":{"$error":"#REF!"}},"зуун",{"$f":"SUM(M25)","v":{"$error":"#REF!"}},{"$f":"IF(R25>0,1,0)","v":{"$error":"#REF!"}},{"$f":"IF(S25=0,0,1)","v":{"$error":"#REF!"}},{"$f":"SUM(O25:O27)","v":{"$error":"#REF!"}},null,{"$f":"CONCATENATE(IF(O25=0,\"\",CONCATENATE(P25,\" \",Q25)),IF(O26=0,\"\",CONCATENATE(\" \",P26)),IF(U25=0,\"\",CONCATENATE(\" \",IF(P27=0,\"\",P27),\" \",Q27)),IF(O28=0,\"\",CONCATENATE(\" \",P28,\" \",Q28)),IF(O29=0,\"\",CONCATENATE(\" \",P29)),IF(U27=0,\"\",CONCATENATE(\" \",IF(P30=0,\"\",P30),\" \",Q30)),IF(O31=0,\"\",CONCATENATE(\" \",P31,\" \",Q31)),IF(O32=0,\"\",CONCATENATE(\" \",P32)),IF(U30=0,\"\",CONCATENATE(\" \",IF(P33=0,\"\",P33),\" \",Q33)),IF(O34=0,\"\",CONCATENATE(\" \",P34,\" \",Q34)),IF(O35=0,\"\",CONCATENATE(\" \",P35)),IF(O36=0,\"\",CONCATENATE(\" \",IF(VALUE(A43)=0,P36,Q36))))","v":{"$error":"#REF!"}}]
[null,null,null,null,null,null,null,null,{"$f":"A25/N26","v":{"$error":"#REF!"}},{"$f":"ROUND(ABS(A25),-11)","v":{"$error":"#REF!"}},{"$f":"A25-J26","v":{"$error":"#REF!"}},{"$f":"IF(K26<0,(A25-J26+N26*10),K26)","v":{"$error":"#REF!"}},{"$error":"#REF!"},10000000000,{"$f":"VALUE(IF(M26=0,0,M26))","v":{"$error":"#REF!"}},{"$f":"IF(M26>0,VLOOKUP(M26,$B$3:$H$12,IF(T26>0,2,3),0),0)","v":{"$error":"#REF!"}},null,{"$f":"SUM(M25:M26)","v":{"$error":"#REF!"}},{"$f":"IF(SUM(R25:R26)>0,1,0)","v":{"$error":"#REF!"}},{"$f":"IF(S26<>S25,1,0)","v":{"$error":"#REF!"}},null,null,{"$f":"CONCATENATE(W25,\" \",W43)","v":{"$error":"#REF!"}}]
[{"$f":"VLOOKUP(A28,'    '!D38:F40,3,0)","v":{"$error":"#REF!"}},1,"Арван","арван","Нэг","нэг","Нэг",{"$f":"IF(O33=1,F27,H36)","v":{"$error":"#REF!"}},{"$f":"A25/N27","v":{"$error":"#REF!"}},{"$f":"ROUND(ABS(A25),-10)","v":{"$error":"#REF!"}},{"$f":"A25-J27","v":{"$error":"#REF!"}},{"$f":"IF(K27<0,(A25-J27+N27*10),K27)","v":{"$error":"#REF!"}},{"$error":"#REF!"},1000000000,{"$error":"#REF!"},{"$f":"IF(M27>0,VLOOKUP(M27,$B$3:$H$12,IF(T27>0,6,7),0),0)","v":{"$error":"#REF!"}},"тэрбум",{"$f":"SUM(M25:M27)","v":{"$error":"#REF!"}},{"$f":"IF(SUM(R26:R27)>0,1,0)","v":{"$error":"#REF!"}},{"$f":"IF(S27<>S26,1,0)","v":{"$error":"#REF!"}},{"$f":"SUM(O28:O30)","v":{"$error":"#REF!"}}]
[{"$f":"IF(#REF!=E38,D38,IF(#REF!=E39,D39,IF(#REF!=E40,D40,1)))","v":{"$error":"#REF!"}},2,"Хорин","хорин","Хоёр","хоёр","Хоёр","хоёр",{"$f":"A25/N28","v":{"$error":"#REF!"}},{"$f":"ROUND(ABS(A25),-9)","v":{"$error":"#REF!"}},{"$f":"A25-J28","v":{"$error":"#REF!"}},{"$f":"IF(K28<0,(A25-J28+N28*10),K28)","v":{"$error":"#REF!"}},{"$error":"#REF!"},100000000,{"$error":"#REF!"},{"$f":"IF(M28>0,VLOOKUP(M28,$B$3:$H$12,IF(T28>0,6,7),0),0)","v":{"$error":"#REF!"}},"зуун",{"$f":"SUM(M25:M28)","v":{"$error":"#REF!"}},{"$error":"#REF!"},{"$error":"#REF!"}]
[{"$f":"VLOOKUP(A28,D38:G40,4,0)","v":{"$error":"#REF!"}},3,"Гучин","гучин","Гурав","гурав","Гурван","гурван",{"$f":"A25/N29","v":{"$error":"#REF!"}},{"$f":"ROUND(ABS(A25),-8)","v":{"$error":"#REF!"}},{"$f":"A25-J29","v":{"$error":"#REF!"}},{"$f":"IF(K29<0,(A25-J29+N29*10),K29)","v":{"$error":"#REF!"}},{"$error":"#REF!"},10000000,{"$error":"#REF!"},{"$f":"IF(M29>0,VLOOKUP(M29,$B$3:$H$12,IF(T29>0,2,3),0),0)","v":{"$error":"#REF!"}},null,{"$f":"SUM(M25:M29)","v":{"$error":"#REF!"}},{"$error":"#REF!"},{"$error":"#REF!"}]
[{"$f":"VLOOKUP(A28,D38:K40,6,0)","v":{"$error":"#REF!"}},4,"Дөчин","дөчин","Дөрөв","дөрөв","Дөрвөн","дөрвөн",{"$f":"A25/N30","v":{"$error":"#REF!"}},{"$f":"ROUND(ABS(A25),-7)","v":{"$error":"#REF!"}},{"$f":"A25-J30","v":{"$error":"#REF!"}},{"$f":"IF(K30<0,(A25-J30+N30*10),K30)","v":{"$error":"#REF!"}},{"$error":"#REF!"},1000000,{"$error":"#REF!"},{"$f":"IF(M30>0,VLOOKUP(M30,$B$3:$H$12,IF(T30>0,6,7),0),0)","v":{"$error":"#REF!"}},"сая",{"$f":"SUM(M25:M30)","v":{"$error":"#REF!"}},{"$error":"#REF!"},{"$error":"#REF!"},{"$f":"SUM(O31:O33)","v":{"$error":"#REF!"}}]
[null,5,"Тавин","тавин","Тав","тав","Таван","таван",{"$f":"A25/N31","v":{"$error":"#REF!"}},{"$f":"ROUND(A25,-6.4)","v":{"$error":"#REF!"}},{"$f":"A25-J31","v":{"$error":"#REF!"}},{"$f":"IF(K31<0,(A25-J31+N31*10),K31)","v":{"$error":"#REF!"}},{"$error":"#REF!"},100000,{"$error":"#REF!"},{"$f":"IF(M31>0,VLOOKUP(M31,$B$3:$H$12,IF(T31>0,6,7),0),0)","v":{"$error":"#REF!"}},"зуун",{"$f":"SUM(M25:M31)","v":{"$error":"#REF!"}},{"$error":"#REF!"},{"$error":"#REF!"}]
[null,6,"Жаран","жаран","Зургаа","зургаа","Зургаан","зургаан",{"$f":"A25/N32","v":{"$error":"#REF!"}},{"$f":"ROUND(ABS(A25),-5)","v":{"$error":"#REF!"}},{"$f":"A25-J32","v":{"$error":"#REF!"}},{"$f":"IF(K32<0,(A25-J32+N32*10),K32)","v":{"$error":"#REF!"}},{"$error":"#REF!"},10000,{"$error":"#REF!"},{"$f":"IF(M32>0,VLOOKUP(M32,$B$3:$H$12,IF(T32>0,2,3),0),0)","v":{"$error":"#REF!"}},null,{"$f":"SUM(M25:M32)","v":{"$error":"#REF!"}},{"$error":"#REF!"},{"$error":"#REF!"}]
[null,7,"Далан","далан","Долоо","долоо","Долоон","долоон",{"$f":"A25/N33","v":{"$error":"#REF!"}},{"$f":"ROUND(ABS(A25),-4)","v":{"$error":"#REF!"}},{"$f":"A25-J33","v":{"$error":"#REF!"}},{"$f":"IF(K33<0,(A25-J33+N33*10),K33)","v":{"$error":"#REF!"}},{"$error":"#REF!"},1000,{"$error":"#REF!"},{"$f":"IF(M33>0,VLOOKUP(M33,$B$3:$H$12,IF(T33>0,6,7),0),0)","v":{"$error":"#REF!"}},{"$f":"IF(U33=B38,C39,C38)","v":{"$error":"#REF!"}},{"$f":"SUM(M25:M33)","v":{"$error":"#REF!"}},{"$error":"#REF!"},{"$error":"#REF!"},{"$f":"SUM(O34:O36)","v":{"$error":"#REF!"}}]
[null,8,"Наян","наян","Найм","найм","Найман","найман",{"$f":"A25/N34","v":{"$error":"#REF!"}},{"$f":"ROUND(ABS(A25),-3)","v":{"$error":"#REF!"}},{"$f":"A25-J34","v":{"$error":"#REF!"}},{"$f":"IF(K34<0,(A25-J34+N34*10),K34)","v":{"$error":"#REF!"}},{"$error":"#REF!"},100,{"$error":"#REF!"},{"$f":"IF(M34>0,VLOOKUP(M34,$B$3:$H$12,IF(T34>0,6,7),0),0)","v":{"$error":"#REF!"}},"зуун",{"$f":"SUM(M25:M34)","v":{"$error":"#REF!"}},{"$error":"#REF!"},{"$error":"#REF!"}]
[null,9,"Ерэн","ерэн","Ес","ес","Есөн","есөн",{"$f":"A25/N35","v":{"$error":"#REF!"}},{"$f":"ROUND(ABS(A25),-2)","v":{"$error":"#REF!"}},{"$f":"A25-J35","v":{"$error":"#REF!"}},{"$f":"IF(K35<0,(A25-J35+N35*10),K35)","v":{"$error":"#REF!"}},{"$f":"(L35-L36)/N35","v":{"$error":"#REF!"}},{"$f":"N36*10","v":10},{"$error":"#REF!"},{"$f":"IF(M35>0,VLOOKUP(M35,$B$3:$H$12,IF(T35>0,2,3),0),0)","v":{"$error":"#REF!"}},null,{"$f":"SUM(M25:M35)","v":{"$error":"#REF!"}},{"$error":"#REF!"},{"$error":"#REF!"}]
[null,0,null,null,"Арав","арав",null,"нэгэн",{"$f":"A25/N36","v":{"$error":"#REF!"}},{"$f":"ROUND(ABS(A25),-1)","v":{"$error":"#REF!"}},{"$f":"A25-J36","v":{"$error":"#REF!"}},{"$f":"IF(K36<0,(A25-J36+N36*10),K36)","v":{"$error":"#REF!"}},{"$f":"(L36-L37)/N36","v":{"$error":"#REF!"}},1,{"$error":"#REF!"},{"$f":"IF(M36>0,VLOOKUP(M36,$B$3:$H$12,IF(T36>0,6,7),0),0)","v":{"$error":"#REF!"}},{"$f":"VLOOKUP(O36,B27:F36,5,0)","v":{"$error":"#REF!"}},{"$f":"SUM(M25:M36)","v":{"$error":"#REF!"}},{"$error":"#REF!"},{"$error":"#REF!"}]
[]
[null,0,"мянга",2,"USD","ам.доллар","ам.долларын","ам.долларыг","ам.доллараас"]
[null,1,"мянган",1,"MNT","төгрөг","төгрөгийн","төгрөгийг","төгрөгөөс"]
[null,null,"сая",3,"CNY","юань","юаний","юанийг","юаниас"]
[]
[{"$f":"#REF!","v":{"$error":"#REF!"}}]
[{"$f":"+A42-A25","v":{"$error":"#REF!"}},null,null,null,null,null,null,null,null,null,{"$f":"IF(SUM(J44:J46)=0,\"\",IF(SUM(J44:J45)=0,\"аравны\",IF(J44=0,\"зууны\",\"мянганы\")))","v":{"$error":"#REF!"}},null,null,null,null,null,null,null,null,null,null,null,{"$f":"CONCATENATE(K43,\" \",P46,\" \",Q46,\" \",P45,\" \",P44)","v":{"$error":"#REF!"}}]
[null,null,null,null,null,null,null,3,{"$f":"ROUND(A43*N44,H44)","v":{"$error":"#REF!"}},{"$f":"INT(VALUE(I44)-J45*N46-J46*N45)","v":{"$error":"#REF!"}},null,null,null,{"$f":"N45*10","v":1000},null,{"$f":"IF(J44>0,VLOOKUP(J44,$B$3:$H$12,IF(K43=\"мянганы\",7,IF(K43=\"зууны\",3,IF(K43=\"аравны\",7,\"\"))),0),\"\")","v":{"$error":"#REF!"}}]
[null,null,null,null,null,null,null,2,{"$f":"ROUND(A43*N45,H45)","v":{"$error":"#REF!"}},{"$f":"VALUE(INT(I45))-J46*N46","v":{"$error":"#REF!"}},null,null,null,{"$f":"N46*10","v":100},null,{"$f":"IF(J45>0,VLOOKUP(J45,$B$3:$H$12,IF(K43=\"мянганы\",3,IF(K43=\"зууны\",7,IF(K43=\"аравны\",3,\"\"))),0),\"\")","v":{"$error":"#REF!"}}]
[null,null,null,null,null,null,null,1,{"$f":"ROUND(A43*N46,H46)","v":{"$error":"#REF!"}},{"$f":"VALUE(INT(I46))","v":{"$error":"#REF!"}},null,null,null,{"$f":"N47*10","v":10},null,{"$f":"IF(J46>0,VLOOKUP(J46,$B$3:$H$12,IF(K43=\"мянганы\",7,IF(K43=\"зууны\",3,IF(K43=\"аравны\",7,\"\"))),0),\"\")","v":{"$error":"#REF!"}},{"$f":"IF(K43=\"мянганы\",IF(AND(SUM(J45:J46)=0,J44>0),\"\",\"зуун\"),\"\")","v":{"$error":"#REF!"}}]
[null,null,null,null,null,null,null,null,null,null,null,null,null,1]
[]
[]
[{"$f":"ROUNDDOWN(A67,0)","v":{"$error":"#REF!"}},null,null,null,null,null,null,null,{"$f":"A50/N50","v":{"$error":"#REF!"}},{"$f":"ROUND(ABS(A50),-12)","v":{"$error":"#REF!"}},{"$f":"A50-J50","v":{"$error":"#REF!"}},{"$f":"IF(K50<0,(A50-J50+N50*10),K50)","v":{"$error":"#REF!"}},{"$f":"(L50-L51)/N50","v":{"$error":"#REF!"}},{"$f":"N51*10","v":100000000000},{"$f":"VALUE(IF(M50=0,0,M50))","v":{"$error":"#REF!"}},{"$f":"IF(M50>0,VLOOKUP(M50,$B$3:$H$12,IF(T50>0,6,7),0),0)","v":{"$error":"#REF!"}},"зуун",{"$f":"SUM(M50)","v":{"$error":"#REF!"}},{"$f":"IF(R50>0,1,0)","v":{"$error":"#REF!"}},{"$f":"IF(S50=0,0,1)","v":{"$error":"#REF!"}},{"$f":"SUM(O50:O52)","v":{"$error":"#REF!"}},null,{"$f":"CONCATENATE(IF(O50=0,\"\",CONCATENATE(P50,\" \",Q50)),IF(O51=0,\"\",CONCATENATE(\" \",P51)),IF(U50=0,\"\",CONCATENATE(\" \",IF(P52=0,\"\",P52),\" \",Q52)),IF(O53=0,\"\",CONCATENATE(\" \",P53,\" \",Q53)),IF(O54=0,\"\",CONCATENATE(\" \",P54)),IF(U52=0,\"\",CONCATENATE(\" \",IF(P55=0,\"\",P55),\" \",Q55)),IF(O56=0,\"\",CONCATENATE(\" \",P56,\" \",Q56)),IF(O57=0,\"\",CONCATENATE(\" \",P57)),IF(U55=0,\"\",CONCATENATE(\" \",IF(P58=0,\"\",P58),\" \",Q58)),IF(O59=0,\"\",CONCATENATE(\" \",P59,\" \",Q59)),IF(O60=0,\"\",CONCATENATE(\" \",P60)),IF(O61=0,\"\",CONCATENATE(\" \",IF(VALUE(A68)=0,P61,Q61))))","v":{"$error":"#REF!"}}]
[null,null,null,null,null,null,null,null,{"$f":"A50/N51","v":{"$error":"#REF!"}},{"$f":"ROUND(ABS(A50),-11)","v":{"$error":"#REF!"}},{"$f":"A50-J51","v":{"$error":"#REF!"}},{"$f":"IF(K51<0,(A50-J51+N51*10),K51)","v":{"$error":"#REF!"}},{"$error":"#REF!"},10000000000,{"$f":"VALUE(IF(M51=0,0,M51))","v":{"$error":"#REF!"}},{"$f":"IF(M51>0,VLOOKUP(M51,$B$3:$H$12,IF(T51>0,2,3),0),0)","v":{"$error":"#REF!"}},null,{"$f":"SUM(M50:M51)","v":{"$error":"#REF!"}},{"$f":"IF(SUM(R50:R51)>0,1,0)","v":{"$error":"#REF!"}},{"$f":"IF(S51<>S50,1,0)","v":{"$error":"#REF!"}},null,null,{"$f":"CONCATENATE(W50,\" \",W68)","v":{"$error":"#REF!"}}]
[{"$f":"VLOOKUP(A53,'    '!D63:F65,3,0)","v":{"$error":"#REF!"}},1,"Арван","арван","Нэг","нэг","Нэг",{"$f":"IF(O58=1,F52,H61)","v":{"$error":"#REF!"}},{"$f":"A50/N52","v":{"$error":"#REF!"}},{"$f":"ROUND(ABS(A50),-10)","v":{"$error":"#REF!"}},{"$f":"A50-J52","v":{"$error":"#REF!"}},{"$f":"IF(K52<0,(A50-J52+N52*10),K52)","v":{"$error":"#REF!"}},{"$error":"#REF!"},1000000000,{"$error":"#REF!"},{"$f":"IF(M52>0,VLOOKUP(M52,$B$3:$H$12,IF(T52>0,6,7),0),0)","v":{"$error":"#REF!"}},"тэрбум",{"$f":"SUM(M50:M52)","v":{"$error":"#REF!"}},{"$f":"IF(SUM(R51:R52)>0,1,0)","v":{"$error":"#REF!"}},{"$f":"IF(S52<>S51,1,0)","v":{"$error":"#REF!"}},{"$f":"SUM(O53:O55)","v":{"$error":"#REF!"}}]
[{"$f":"IF(#REF!=E63,D63,IF(#REF!=E64,D64,IF(#REF!=E65,D65,1)))","v":{"$error":"#REF!"}},2,"Хорин","хорин","Хоёр","хоёр","Хоёр","хоёр",{"$f":"A50/N53","v":{"$error":"#REF!"}},{"$f":"ROUND(ABS(A50),-9)","v":{"$error":"#REF!"}},{"$f":"A50-J53","v":{"$error":"#REF!"}},{"$f":"IF(K53<0,(A50-J53+N53*10),K53)","v":{"$error":"#REF!"}},{"$error":"#REF!"},100000000,{"$error":"#REF!"},{"$f":"IF(M53>0,VLOOKUP(M53,$B$3:$H$12,IF(T53>0,6,7),0),0)","v":{"$error":"#REF!"}},"зуун",{"$f":"SUM(M50:M53)","v":{"$error":"#REF!"}},{"$error":"#REF!"},{"$error":"#REF!"}]
[{"$f":"VLOOKUP(A53,D63:G65,4,0)","v":{"$error":"#REF!"}},3,"Гучин","гучин","Гурав","гурав","Гурван","гурван",{"$f":"A50/N54","v":{"$error":"#REF!"}},{"$f":"ROUND(ABS(A50),-8)","v":{"$error":"#REF!"}},{"$f":"A50-J54","v":{"$error":"#REF!"}},{"$f":"IF(K54<0,(A50-J54+N54*10),K54)","v":{"$error":"#REF!"}},{"$error":"#REF!"},10000000,{"$error":"#REF!"},{"$f":"IF(M54>0,VLOOKUP(M54,$B$3:$H$12,IF(T54>0,2,3),0),0)","v":{"$error":"#REF!"}},null,{"$f":"SUM(M50:M54)","v":{"$error":"#REF!"}},{"$error":"#REF!"},{"$error":"#REF!"}]
[{"$f":"VLOOKUP(A53,D63:K65,6,0)","v":{"$error":"#REF!"}},4,"Дөчин","дөчин","Дөрөв","дөрөв","Дөрвөн","дөрвөн",{"$f":"A50/N55","v":{"$error":"#REF!"}},{"$f":"ROUND(ABS(A50),-7)","v":{"$error":"#REF!"}},{"$f":"A50-J55","v":{"$error":"#REF!"}},{"$f":"IF(K55<0,(A50-J55+N55*10),K55)","v":{"$error":"#REF!"}},{"$error":"#REF!"},1000000,{"$error":"#REF!"},{"$f":"IF(M55>0,VLOOKUP(M55,$B$3:$H$12,IF(T55>0,6,7),0),0)","v":{"$error":"#REF!"}},"сая",{"$f":"SUM(M50:M55)","v":{"$error":"#REF!"}},{"$error":"#REF!"},{"$error":"#REF!"},{"$f":"SUM(O56:O58)","v":{"$error":"#REF!"}}]
[null,5,"Тавин","тавин","Тав","тав","Таван","таван",{"$f":"A50/N56","v":{"$error":"#REF!"}},{"$f":"ROUND(A50,-6.4)","v":{"$error":"#REF!"}},{"$f":"A50-J56","v":{"$error":"#REF!"}},{"$f":"IF(K56<0,(A50-J56+N56*10),K56)","v":{"$error":"#REF!"}},{"$error":"#REF!"},100000,{"$error":"#REF!"},{"$f":"IF(M56>0,VLOOKUP(M56,$B$3:$H$12,IF(T56>0,6,7),0),0)","v":{"$error":"#REF!"}},"зуун",{"$f":"SUM(M50:M56)","v":{"$error":"#REF!"}},{"$error":"#REF!"},{"$error":"#REF!"}]
[null,6,"Жаран","жаран","Зургаа","зургаа","Зургаан","зургаан",{"$f":"A50/N57","v":{"$error":"#REF!"}},{"$f":"ROUND(ABS(A50),-5)","v":{"$error":"#REF!"}},{"$f":"A50-J57","v":{"$error":"#REF!"}},{"$f":"IF(K57<0,(A50-J57+N57*10),K57)","v":{"$error":"#REF!"}},{"$error":"#REF!"},10000,{"$error":"#REF!"},{"$f":"IF(M57>0,VLOOKUP(M57,$B$3:$H$12,IF(T57>0,2,3),0),0)","v":{"$error":"#REF!"}},null,{"$f":"SUM(M50:M57)","v":{"$error":"#REF!"}},{"$error":"#REF!"},{"$error":"#REF!"}]
[null,7,"Далан","далан","Долоо","долоо","Долоон","долоон",{"$f":"A50/N58","v":{"$error":"#REF!"}},{"$f":"ROUND(ABS(A50),-4)","v":{"$error":"#REF!"}},{"$f":"A50-J58","v":{"$error":"#REF!"}},{"$f":"IF(K58<0,(A50-J58+N58*10),K58)","v":{"$error":"#REF!"}},{"$error":"#REF!"},1000,{"$error":"#REF!"},{"$f":"IF(M58>0,VLOOKUP(M58,$B$3:$H$12,IF(T58>0,6,7),0),0)","v":{"$error":"#REF!"}},{"$f":"IF(U58=B63,C64,C63)","v":{"$error":"#REF!"}},{"$f":"SUM(M50:M58)","v":{"$error":"#REF!"}},{"$error":"#REF!"},{"$error":"#REF!"},{"$f":"SUM(O59:O61)","v":{"$error":"#REF!"}}]
[null,8,"Наян","наян","Найм","найм","Найман","найман",{"$f":"A50/N59","v":{"$error":"#REF!"}},{"$f":"ROUND(ABS(A50),-3)","v":{"$error":"#REF!"}},{"$f":"A50-J59","v":{"$error":"#REF!"}},{"$f":"IF(K59<0,(A50-J59+N59*10),K59)","v":{"$error":"#REF!"}},{"$error":"#REF!"},100,{"$error":"#REF!"},{"$f":"IF(M59>0,VLOOKUP(M59,$B$3:$H$12,IF(T59>0,6,7),0),0)","v":{"$error":"#REF!"}},"зуун",{"$f":"SUM(M50:M59)","v":{"$error":"#REF!"}},{"$error":"#REF!"},{"$error":"#REF!"}]
[null,9,"Ерэн","ерэн","Ес","ес","Есөн","есөн",{"$f":"A50/N60","v":{"$error":"#REF!"}},{"$f":"ROUND(ABS(A50),-2)","v":{"$error":"#REF!"}},{"$f":"A50-J60","v":{"$error":"#REF!"}},{"$f":"IF(K60<0,(A50-J60+N60*10),K60)","v":{"$error":"#REF!"}},{"$f":"(L60-L61)/N60","v":{"$error":"#REF!"}},{"$f":"N61*10","v":10},{"$error":"#REF!"},{"$f":"IF(M60>0,VLOOKUP(M60,$B$3:$H$12,IF(T60>0,2,3),0),0)","v":{"$error":"#REF!"}},null,{"$f":"SUM(M50:M60)","v":{"$error":"#REF!"}},{"$error":"#REF!"},{"$error":"#REF!"}]
[null,0,null,null,"Арав","арав",null,"нэгэн",{"$f":"A50/N61","v":{"$error":"#REF!"}},{"$f":"ROUND(ABS(A50),-1)","v":{"$error":"#REF!"}},{"$f":"A50-J61","v":{"$error":"#REF!"}},{"$f":"IF(K61<0,(A50-J61+N61*10),K61)","v":{"$error":"#REF!"}},{"$f":"(L61-L62)/N61","v":{"$error":"#REF!"}},1,{"$error":"#REF!"},{"$f":"IF(M61>0,VLOOKUP(M61,$B$3:$H$12,IF(T61>0,6,7),0),0)","v":{"$error":"#REF!"}},{"$f":"VLOOKUP(O61,B52:F61,5,0)","v":{"$error":"#REF!"}},{"$f":"SUM(M50:M61)","v":{"$error":"#REF!"}},{"$error":"#REF!"},{"$error":"#REF!"}]
[]
[null,0,"мянга",2,"USD","ам.доллар","ам.долларын","ам.долларыг","ам.доллараас"]
[null,1,"мянган",1,"MNT","төгрөг","төгрөгийн","төгрөгийг","төгрөгөөс"]
[null,null,"сая",3,"CNY","юань","юаний","юанийг","юаниас"]
[]
[{"$f":"#REF!","v":{"$error":"#REF!"}}]
[{"$f":"+A67-A50","v":{"$error":"#REF!"}},null,null,null,null,null,null,null,null,null,{"$f":"IF(SUM(J69:J71)=0,\"\",IF(SUM(J69:J70)=0,\"аравны\",IF(J69=0,\"зууны\",\"мянганы\")))","v":{"$error":"#REF!"}},null,null,null,null,null,null,null,null,null,null,null,{"$f":"CONCATENATE(K68,\" \",P71,\" \",Q71,\" \",P70,\" \",P69)","v":{"$error":"#REF!"}}]
[null,null,null,null,null,null,null,3,{"$f":"ROUND(A68*N69,H69)","v":{"$error":"#REF!"}},{"$f":"INT(VALUE(I69)-J70*N71-J71*N70)","v":{"$error":"#REF!"}},null,null,null,{"$f":"N70*10","v":1000},null,{"$f":"IF(J69>0,VLOOKUP(J69,$B$3:$H$12,IF(K68=\"мянганы\",7,IF(K68=\"зууны\",3,IF(K68=\"аравны\",7,\"\"))),0),\"\")","v":{"$error":"#REF!"}}]
[null,null,null,null,null,null,null,2,{"$f":"ROUND(A68*N70,H70)","v":{"$error":"#REF!"}},{"$f":"VALUE(INT(I70))-J71*N71","v":{"$error":"#REF!"}},null,null,null,{"$f":"N71*10","v":100},null,{"$f":"IF(J70>0,VLOOKUP(J70,$B$3:$H$12,IF(K68=\"мянганы\",3,IF(K68=\"зууны\",7,IF(K68=\"аравны\",3,\"\"))),0),\"\")","v":{"$error":"#REF!"}}]
[null,null,null,null,null,null,null,1,{"$f":"ROUND(A68*N71,H71)","v":{"$error":"#REF!"}},{"$f":"VALUE(INT(I71))","v":{"$error":"#REF!"}},null,null,null,{"$f":"N72*10","v":10},null,{"$f":"IF(J71>0,VLOOKUP(J71,$B$3:$H$12,IF(K68=\"мянганы\",7,IF(K68=\"зууны\",3,IF(K68=\"аравны\",7,\"\"))),0),\"\")","v":{"$error":"#REF!"}},{"$f":"IF(K68=\"мянганы\",IF(AND(SUM(J70:J71)=0,J69>0),\"\",\"зуун\"),\"\")","v":{"$error":"#REF!"}}]
[null,null,null,null,null,null,null,null,null,null,null,null,null,1]
[]
[]
[]
[]
[]
[]
[]
[]
[]
[]
[]
[]
[]
[]
[null,null,null,null,null,null,null,{"$f":"IF(SUM(L90:L91)=0,\"\",IF(VALUE(K91)=0,\"аравны\",\"зууны\"))","v":{"$error":"#REF!"}}]
[{"$f":"#REF!*100","v":{"$error":"#REF!"}},1,"Арван","арван","Нэг","нэг","Нэг",{"$f":"IF(N94=1,F88,H97)","v":"нэгэн"},"Арав",{"$f":"ROUNDDOWN(A88/M88,0)","v":{"$error":"#REF!"}},{"$f":"RIGHT(ROUND(J88,0),1)","v":{"$error":"#REF!"}},{"$f":"VALUE(K88)","v":{"$error":"#REF!"}},{"$f":"M89*10","v":10},{"$f":"VALUE(IF(L88=0,0,L88))","v":{"$error":"#REF!"}},{"$f":"IF(L88=0,\"\",VLOOKUP(L88,B$88:I$97,IF(L89=0,8,2),0))","v":{"$error":"#REF!"}},{"$f":"CONCATENATE(O88,\" \",O89,\" \",H87,\" \",O90,\" \",O91)","v":{"$error":"#REF!"}}]
[null,2,"Хорин","хорин","Хоёр","хоёр","Хоёр","хоёр","Хорь",{"$f":"ROUNDDOWN(A88/M89,0)","v":{"$error":"#REF!"}},{"$f":"RIGHT(ROUND(J89,0),1)","v":{"$error":"#REF!"}},{"$f":"VALUE(K89)","v":{"$error":"#REF!"}},{"$f":"M90*10","v":1},{"$f":"VALUE(IF(L89=0,0,L89))","v":{"$error":"#REF!"}},{"$f":"IF(AND(L88>0,L89=0),\"\",IF(SUM(L$88:L$89)=0,C97,IF(L89>0,VLOOKUP(L89,B$3:H$12,IF(SUM(L$90:L$91)=0,IF(L88=0,6,7),IF(L88=0,4,5)),0),0)))","v":{"$error":"#REF!"}}]
[null,3,"Гучин","гучин","Гурав","гурав","Гурван","гурван","Гуч",{"$f":"ROUNDDOWN(A88/M90,0)","v":{"$error":"#REF!"}},{"$f":"RIGHT(ROUND(J90,0),1)","v":{"$error":"#REF!"}},{"$f":"VALUE(K90)","v":{"$error":"#REF!"}},{"$f":"M91*10","v":0.1},{"$f":"VALUE(IF(L90=0,0,L90))","v":{"$error":"#REF!"}},{"$f":"IF(L90=0,\"\",IF(SUM(L$90:L$91)=0,\"\",IF(L90>0,VLOOKUP(L90,B$3:H$12,IF(VALUE(L91)=0,7,3),0),0)))","v":{"$error":"#REF!"}}]
[null,4,"Дөчин","дөчин","Дөрөв","дөрөв","Дөрвөн","дөрвөн","Дөч",{"$f":"ROUND(A88/M91,0)","v":{"$error":"#REF!"}},{"$f":"RIGHT(ROUND(J91,0),1)","v":{"$error":"#REF!"}},{"$f":"VALUE(K91)","v":{"$error":"#REF!"}},0.01,{"$f":"VALUE(IF(L91=0,0,L91))","v":{"$error":"#REF!"}},{"$f":"IF(L91=0,\"\",IF(L91>0,VLOOKUP(L91,B$3:H$12,IF(T99>0,6,7),0),0))","v":{"$error":"#REF!"}}]
[null,5,"Тавин","тавин","Тав","тав","Таван","таван","Тавь"]
[null,6,"Жаран","жаран","Зургаа","зургаа","Зургаан","зургаан","Жар"]
[null,7,"Далан","далан","Долоо","долоо","Долоон","долоон","Дал"]
[null,8,"Наян","наян","Найм","найм","Найман","найман","Ная"]
[null,9,"Ерэн","ерэн","Ес","ес","Есөн","есөн","Ер"]
[null,0,null,null,"Арав","арав",null,"нэгэн"]
[]
[]
[null,null,null,null,null,null,null,{"$f":"IF(SUM(L103:L104)=0,\"\",IF(VALUE(K104)=0,\"аравны\",\"зууны\"))","v":{"$error":"#REF!"}}]
[{"$f":"#REF!*100","v":{"$error":"#REF!"}},1,"Арван","арван","Нэг","нэг","Нэг",{"$f":"IF(N107=1,F101,H110)","v":"нэгэн"},"Арав",{"$f":"ROUNDDOWN(A101/M101,0)","v":{"$error":"#REF!"}},{"$f":"RIGHT(ROUND(J101,0),1)","v":{"$error":"#REF!"}},{"$f":"VALUE(K101)","v":{"$error":"#REF!"}},{"$f":"M102*10","v":10},{"$f":"VALUE(IF(L101=0,0,L101))","v":{"$error":"#REF!"}},{"$f":"IF(L101=0,\"\",VLOOKUP(L101,B101:I110,IF(L102=0,8,2),0))","v":{"$error":"#REF!"}},{"$f":"CONCATENATE(O101,\" \",O102,\" \",H100,\" \",O103,\" \",O104)","v":{"$error":"#REF!"}}]
[null,2,"Хорин","хорин","Хоёр","хоёр","Хоёр","хоёр","Хорь",{"$f":"ROUNDDOWN(A101/M102,0)","v":{"$error":"#REF!"}},{"$f":"RIGHT(ROUND(J102,0),1)","v":{"$error":"#REF!"}},{"$f":"VALUE(K102)","v":{"$error":"#REF!"}},{"$f":"M103*10","v":1},{"$f":"VALUE(IF(L102=0,0,L102))","v":{"$error":"#REF!"}},{"$f":"IF(AND(L101>0,L102=0),\"\",IF(SUM(L101:L102)=0,C110,IF(L102>0,VLOOKUP(L102,B$3:H$12,IF(SUM(L103:L104)=0,IF(L101=0,6,7),IF(L101=0,4,5)),0),0)))","v":{"$error":"#REF!"}}]
[null,3,"Гучин","гучин","Гурав","гурав","Гурван","гурван","Гуч",{"$f":"ROUNDDOWN(A101/M103,0)","v":{"$error":"#REF!"}},{"$f":"RIGHT(ROUND(J103,0),1)","v":{"$error":"#REF!"}},{"$f":"VALUE(K103)","v":{"$error":"#REF!"}},{"$f":"M104*10","v":0.1},{"$f":"VALUE(IF(L103=0,0,L103))","v":{"$error":"#REF!"}},{"$f":"IF(L103=0,\"\",IF(SUM(L103:L104)=0,\"\",IF(L103>0,VLOOKUP(L103,B$3:H$12,IF(VALUE(L104)=0,7,3),0),0)))","v":{"$error":"#REF!"}}]
[null,4,"Дөчин","дөчин","Дөрөв","дөрөв","Дөрвөн","дөрвөн","Дөч",{"$f":"ROUND(A101/M104,0)","v":{"$error":"#REF!"}},{"$f":"RIGHT(ROUND(J104,0),1)","v":{"$error":"#REF!"}},{"$f":"VALUE(K104)","v":{"$error":"#REF!"}},0.01,{"$f":"VALUE(IF(L104=0,0,L104))","v":{"$error":"#REF!"}},{"$f":"IF(L104=0,\"\",IF(L104>0,VLOOKUP(L104,B$3:H$12,IF(T113>0,6,7),0),0))","v":{"$error":"#REF!"}}]
[null,5,"Тавин","тавин","Тав","тав","Таван","таван","Тавь"]
[null,6,"Жаран","жаран","Зургаа","зургаа","Зургаан","зургаан","Жар"]
[null,7,"Далан","далан","Долоо","долоо","Долоон","долоон","Дал"]
[null,8,"Наян","наян","Найм","найм","Найман","найман","Ная"]
[null,9,"Ерэн","ерэн","Ес","ес","Есөн","есөн","Ер"]
[null,0,null,null,"Арав","арав",null,"нэгэн"]
[]
[null,null,null,null,null,null,null,{"$f":"IF(SUM(L115:L116)=0,\"\",IF(VALUE(K116)=0,\"аравны\",\"зууны\"))","v":{"$error":"#REF!"}}]
[{"$f":"#REF!*100","v":{"$error":"#REF!"}},1,"Арван","арван","Нэг","нэг","Нэг",{"$f":"IF(N119=1,F113,H122)","v":"нэгэн"},"Арав",{"$f":"ROUNDDOWN(A113/M113,0)","v":{"$error":"#REF!"}},{"$f":"RIGHT(ROUND(J113,0),1)","v":{"$error":"#REF!"}},{"$f":"VALUE(K113)","v":{"$error":"#REF!"}},{"$f":"M114*10","v":10},{"$f":"VALUE(IF(L113=0,0,L113))","v":{"$error":"#REF!"}},{"$f":"IF(L113=0,\"\",VLOOKUP(L113,B113:I122,IF(L114=0,8,2),0))","v":{"$error":"#REF!"}},{"$f":"CONCATENATE(O113,\" \",O114,\" \",H112,\" \",O115,\" \",O116)","v":{"$error":"#REF!"}}]
[null,2,"Хорин","хорин","Хоёр","хоёр","Хоёр","хоёр","Хорь",{"$f":"ROUNDDOWN(A113/M114,0)","v":{"$error":"#REF!"}},{"$f":"RIGHT(ROUND(J114,0),1)","v":{"$error":"#REF!"}},{"$f":"VALUE(K114)","v":{"$error":"#REF!"}},{"$f":"M115*10","v":1},{"$f":"VALUE(IF(L114=0,0,L114))","v":{"$error":"#REF!"}},{"$f":"IF(AND(L113>0,L114=0),\"\",IF(SUM(L113:L114)=0,C122,IF(L114>0,VLOOKUP(L114,B$3:H$12,IF(SUM(L115:L116)=0,IF(L113=0,6,7),IF(L113=0,4,5)),0),0)))","v":{"$error":"#REF!"}}]
[null,3,"Гучин","гучин","Гурав","гурав","Гурван","гурван","Гуч",{"$f":"ROUNDDOWN(A113/M115,0)","v":{"$error":"#REF!"}},{"$f":"RIGHT(ROUND(J115,0),1)","v":{"$error":"#REF!"}},{"$f":"VALUE(K115)","v":{"$error":"#REF!"}},{"$f":"M116*10","v":0.1},{"$f":"VALUE(IF(L115=0,0,L115))","v":{"$error":"#REF!"}},{"$f":"IF(L115=0,\"\",IF(SUM(L115:L116)=0,\"\",IF(L115>0,VLOOKUP(L115,B$3:H$12,IF(VALUE(L116)=0,7,3),0),0)))","v":{"$error":"#REF!"}}]
[null,4,"Дөчин","дөчин","Дөрөв","дөрөв","Дөрвөн","дөрвөн","Дөч",{"$f":"ROUND(A113/M116,0)","v":{"$error":"#REF!"}},{"$f":"RIGHT(ROUND(J116,0),1)","v":{"$error":"#REF!"}},{"$f":"VALUE(K116)","v":{"$error":"#REF!"}},0.01,{"$f":"VALUE(IF(L116=0,0,L116))","v":{"$error":"#REF!"}},{"$f":"IF(L116=0,\"\",IF(L116>0,VLOOKUP(L116,B$3:H$12,IF(T124>0,6,7),0),0))","v":{"$error":"#REF!"}}]
[null,5,"Тавин","тавин","Тав","тав","Таван","таван","Тавь"]
[null,6,"Жаран","жаран","Зургаа","зургаа","Зургаан","зургаан","Жар"]
[null,7,"Далан","далан","Долоо","долоо","Долоон","долоон","Дал"]
[null,8,"Наян","наян","Найм","найм","Найман","найман","Ная"]
[null,9,"Ерэн","ерэн","Ес","ес","Есөн","есөн","Ер"]
[null,0,null,null,"Арав","арав",null,"нэгэн"]
[]
[]
[]
[{"$f":"ROUNDDOWN(A143,0)","v":{"$error":"#REF!"}},null,null,null,null,null,null,null,{"$f":"A126/N126","v":{"$error":"#REF!"}},{"$f":"ROUND(ABS(A126),-12)","v":{"$error":"#REF!"}},{"$f":"A126-J126","v":{"$error":"#REF!"}},{"$f":"IF(K126<0,(A126-J126+N126*10),K126)","v":{"$error":"#REF!"}},{"$f":"(L126-L127)/N126","v":{"$error":"#REF!"}},{"$f":"N127*10","v":100000000000},{"$f":"VALUE(IF(M126=0,0,M126))","v":{"$error":"#REF!"}},{"$f":"IF(M126>0,VLOOKUP(M126,$B$3:$H$12,IF(T126>0,6,7),0),0)","v":{"$error":"#REF!"}},"зуун",{"$f":"SUM(M126)","v":{"$error":"#REF!"}},{"$f":"IF(R126>0,1,0)","v":{"$error":"#REF!"}},{"$f":"IF(S126=0,0,1)","v":{"$error":"#REF!"}},{"$f":"SUM(O126:O128)","v":{"$error":"#REF!"}},null,{"$f":"CONCATENATE(IF(O126=0,\"\",CONCATENATE(P126,\" \",Q126)),IF(O127=0,\"\",CONCATENATE(\" \",P127)),IF(U126=0,\"\",CONCATENATE(\" \",IF(P128=0,\"\",P128),\" \",Q128)),IF(O129=0,\"\",CONCATENATE(\" \",P129,\" \",Q129)),IF(O130=0,\"\",CONCATENATE(\" \",P130)),IF(U128=0,\"\",CONCATENATE(\" \",IF(P131=0,\"\",P131),\" \",Q131)),IF(O132=0,\"\",CONCATENATE(\" \",P132,\" \",Q132)),IF(O133=0,\"\",CONCATENATE(\" \",P133)),IF(U131=0,\"\",CONCATENATE(\" \",IF(P134=0,\"\",P134),\" \",Q134)),IF(O135=0,\"\",CONCATENATE(\" \",P135,\" \",Q135)),IF(O136=0,\"\",CONCATENATE(\" \",P136)),IF(O137=0,\"\",CONCATENATE(\" \",IF(VALUE(A144)=0,P137,Q137))))","v":{"$error":"#REF!"}}]
[null,null,null,null,null,null,null,null,{"$f":"A126/N127","v":{"$error":"#REF!"}},{"$f":"ROUND(ABS(A126),-11)","v":{"$error":"#REF!"}},{"$f":"A126-J127","v":{"$error":"#REF!"}},{"$f":"IF(K127<0,(A126-J127+N127*10),K127)","v":{"$error":"#REF!"}},{"$error":"#REF!"},10000000000,{"$f":"VALUE(IF(M127=0,0,M127))","v":{"$error":"#REF!"}},{"$f":"IF(M127>0,VLOOKUP(M127,$B$3:$H$12,IF(T127>0,2,3),0),0)","v":{"$error":"#REF!"}},null,{"$f":"SUM(M126:M127)","v":{"$error":"#REF!"}},{"$f":"IF(SUM(R126:R127)>0,1,0)","v":{"$error":"#REF!"}},{"$f":"IF(S127<>S126,1,0)","v":{"$error":"#REF!"}},null,null,{"$f":"CONCATENATE(W126,\" \",W144)","v":{"$error":"#REF!"}}]
[{"$f":"VLOOKUP(A129,'    '!D139:F141,3,0)","v":{"$error":"#REF!"}},1,"Арван","арван","Нэг","нэг","Нэг",{"$f":"IF(O134=1,F128,H137)","v":{"$error":"#REF!"}},{"$f":"A126/N128","v":{"$error":"#REF!"}},{"$f":"ROUND(ABS(A126),-10)","v":{"$error":"#REF!"}},{"$f":"A126-J128","v":{"$error":"#REF!"}},{"$f":"IF(K128<0,(A126-J128+N128*10),K128)","v":{"$error":"#REF!"}},{"$error":"#REF!"},1000000000,{"$error":"#REF!"},{"$f":"IF(M128>0,VLOOKUP(M128,$B$3:$H$12,IF(T128>0,6,7),0),0)","v":{"$error":"#REF!"}},"тэрбум",{"$f":"SUM(M126:M128)","v":{"$error":"#REF!"}},{"$f":"IF(SUM(R127:R128)>0,1,0)","v":{"$error":"#REF!"}},{"$f":"IF(S128<>S127,1,0)","v":{"$error":"#REF!"}},{"$f":"SUM(O129:O131)","v":{"$error":"#REF!"}}]
[{"$f":"IF(#REF!=E139,D139,IF(#REF!=E140,D140,IF(#REF!=E141,D141,1)))","v":{"$error":"#REF!"}},2,"Хорин","хорин","Хоёр","хоёр","Хоёр","хоёр",{"$f":"A126/N129","v":{"$error":"#REF!"}},{"$f":"ROUND(ABS(A126),-9)","v":{"$error":"#REF!"}},{"$f":"A126-J129","v":{"$error":"#REF!"}},{"$f":"IF(K129<0,(A126-J129+N129*10),K129)","v":{"$error":"#REF!"}},{"$error":"#REF!"},100000000,{"$error":"#REF!"},{"$f":"IF(M129>0,VLOOKUP(M129,$B$3:$H$12,IF(T129>0,6,7),0),0)","v":{"$error":"#REF!"}},"зуун",{"$f":"SUM(M126:M129)","v":{"$error":"#REF!"}},{"$error":"#REF!"},{"$error":"#REF!"}]
[{"$f":"VLOOKUP(A129,D139:G141,4,0)","v":{"$error":"#REF!"}},3,"Гучин","гучин","Гурав","гурав","Гурван","гурван",{"$f":"A126/N130","v":{"$error":"#REF!"}},{"$f":"ROUND(ABS(A126),-8)","v":{"$error":"#REF!"}},{"$f":"A126-J130","v":{"$error":"#REF!"}},{"$f":"IF(K130<0,(A126-J130+N130*10),K130)","v":{"$error":"#REF!"}},{"$error":"#REF!"},10000000,{"$error":"#REF!"},{"$f":"IF(M130>0,VLOOKUP(M130,$B$3:$H$12,IF(T130>0,2,3),0),0)","v":{"$error":"#REF!"}},null,{"$f":"SUM(M126:M130)","v":{"$error":"#REF!"}},{"$error":"#REF!"},{"$error":"#REF!"}]
[{"$f":"VLOOKUP(A129,D139:K141,6,0)","v":{"$error":"#REF!"}},4,"Дөчин","дөчин","Дөрөв","дөрөв","Дөрвөн","дөрвөн",{"$f":"A126/N131","v":{"$error":"#REF!"}},{"$f":"ROUND(ABS(A126),-7)","v":{"$error":"#REF!"}},{"$f":"A126-J131","v":{"$error":"#REF!"}},{"$f":"IF(K131<0,(A126-J131+N131*10),K131)","v":{"$error":"#REF!"}},{"$error":"#REF!"},1000000,{"$error":"#REF!"},{"$f":"IF(M131>0,VLOOKUP(M131,$B$3:$H$12,IF(T131>0,6,7),0),0)","v":{"$error":"#REF!"}},"сая",{"$f":"SUM(M126:M131)","v":{"$error":"#REF!"}},{"$error":"#REF!"},{"$error":"#REF!"},{"$f":"SUM(O132:O134)","v":{"$error":"#REF!"}}]
[null,5,"Тавин","тавин","Тав","тав","Таван","таван",{"$f":"A126/N132","v":{"$error":"#REF!"}},{"$f":"ROUND(A126,-6.4)","v":{"$error":"#REF!"}},{"$f":"A126-J132","v":{"$error":"#REF!"}},{"$f":"IF(K132<0,(A126-J132+N132*10),K132)","v":{"$error":"#REF!"}},{"$error":"#REF!"},100000,{"$error":"#REF!"},{"$f":"IF(M132>0,VLOOKUP(M132,$B$3:$H$12,IF(T132>0,6,7),0),0)","v":{"$error":"#REF!"}},"зуун",{"$f":"SUM(M126:M132)","v":{"$error":"#REF!"}},{"$error":"#REF!"},{"$error":"#REF!"}]
[null,6,"Жаран","жаран","Зургаа","зургаа","Зургаан","зургаан",{"$f":"A126/N133","v":{"$error":"#REF!"}},{"$f":"ROUND(ABS(A126),-5)","v":{"$error":"#REF!"}},{"$f":"A126-J133","v":{"$error":"#REF!"}},{"$f":"IF(K133<0,(A126-J133+N133*10),K133)","v":{"$error":"#REF!"}},{"$error":"#REF!"},10000,{"$error":"#REF!"},{"$f":"IF(M133>0,VLOOKUP(M133,$B$3:$H$12,IF(T133>0,2,3),0),0)","v":{"$error":"#REF!"}},null,{"$f":"SUM(M126:M133)","v":{"$error":"#REF!"}},{"$error":"#REF!"},{"$error":"#REF!"}]
[null,7,"Далан","далан","Долоо","долоо","Долоон","долоон",{"$f":"A126/N134","v":{"$error":"#REF!"}},{"$f":"ROUND(ABS(A126),-4)","v":{"$error":"#REF!"}},{"$f":"A126-J134","v":{"$error":"#REF!"}},{"$f":"IF(K134<0,(A126-J134+N134*10),K134)","v":{"$error":"#REF!"}},{"$error":"#REF!"},1000,{"$error":"#REF!"},{"$f":"IF(M134>0,VLOOKUP(M134,$B$3:$H$12,IF(T134>0,6,7),0),0)","v":{"$error":"#REF!"}},{"$f":"IF(U134=B139,C140,C139)","v":{"$error":"#REF!"}},{"$f":"SUM(M126:M134)","v":{"$error":"#REF!"}},{"$error":"#REF!"},{"$error":"#REF!"},{"$f":"SUM(O135:O137)","v":{"$error":"#REF!"}}]
[null,8,"Наян","наян","Найм","найм","Найман","найман",{"$f":"A126/N135","v":{"$error":"#REF!"}},{"$f":"ROUND(ABS(A126),-3)","v":{"$error":"#REF!"}},{"$f":"A126-J135","v":{"$error":"#REF!"}},{"$f":"IF(K135<0,(A126-J135+N135*10),K135)","v":{"$error":"#REF!"}},{"$error":"#REF!"},100,{"$error":"#REF!"},{"$f":"IF(M135>0,VLOOKUP(M135,$B$3:$H$12,IF(T135>0,6,7),0),0)","v":{"$error":"#REF!"}},"зуун",{"$f":"SUM(M126:M135)","v":{"$error":"#REF!"}},{"$error":"#REF!"},{"$error":"#REF!"}]
[null,9,"Ерэн","ерэн","Ес","ес","Есөн","есөн",{"$f":"A126/N136","v":{"$error":"#REF!"}},{"$f":"ROUND(ABS(A126),-2)","v":{"$error":"#REF!"}},{"$f":"A126-J136","v":{"$error":"#REF!"}},{"$f":"IF(K136<0,(A126-J136+N136*10),K136)","v":{"$error":"#REF!"}},{"$f":"(L136-L137)/N136","v":{"$error":"#REF!"}},{"$f":"N137*10","v":10},{"$error":"#REF!"},{"$f":"IF(M136>0,VLOOKUP(M136,$B$3:$H$12,IF(T136>0,2,3),0),0)","v":{"$error":"#REF!"}},null,{"$f":"SUM(M126:M136)","v":{"$error":"#REF!"}},{"$error":"#REF!"},{"$error":"#REF!"}]
[null,0,null,null,"Арав","арав",null,"нэгэн",{"$f":"A126/N137","v":{"$error":"#REF!"}},{"$f":"ROUND(ABS(A126),-1)","v":{"$error":"#REF!"}},{"$f":"A126-J137","v":{"$error":"#REF!"}},{"$f":"IF(K137<0,(A126-J137+N137*10),K137)","v":{"$error":"#REF!"}},{"$f":"(L137-L138)/N137","v":{"$error":"#REF!"}},1,{"$error":"#REF!"},{"$f":"IF(M137>0,VLOOKUP(M137,$B$3:$H$12,IF(T137>0,6,7),0),0)","v":{"$error":"#REF!"}},{"$f":"VLOOKUP(O137,B128:F137,5,0)","v":{"$error":"#REF!"}},{"$f":"SUM(M126:M137)","v":{"$error":"#REF!"}},{"$error":"#REF!"},{"$error":"#REF!"}]
[]
[null,0,"мянга",2,"USD","ам.доллар","ам.долларын","ам.долларыг","ам.доллараас"]
[null,1,"мянган",1,"MNT","төгрөг","төгрөгийн","төгрөгийг","төгрөгөөс"]
[null,null,"сая",3,"CNY","юань","юаний","юанийг","юаниас"]
[]
[{"$f":"#REF!","v":{"$error":"#REF!"}}]
[{"$f":"+A143-A126","v":{"$error":"#REF!"}},null,null,null,null,null,null,null,null,null,{"$f":"IF(SUM(J145:J147)=0,\"\",IF(SUM(J145:J146)=0,\"аравны\",IF(J145=0,\"зууны\",\"мянганы\")))","v":{"$error":"#REF!"}},null,null,null,null,null,null,null,null,null,null,null,{"$f":"CONCATENATE(K144,\" \",P147,\" \",Q147,\" \",P146,\" \",P145)","v":{"$error":"#REF!"}}]
[null,null,null,null,null,null,null,3,{"$f":"ROUND(A144*N145,H145)","v":{"$error":"#REF!"}},{"$f":"INT(VALUE(I145)-J146*N147-J147*N146)","v":{"$error":"#REF!"}},null,null,null,{"$f":"N146*10","v":1000},null,{"$f":"IF(J145>0,VLOOKUP(J145,$B$3:$H$12,IF(K144=\"мянганы\",7,IF(K144=\"зууны\",3,IF(K144=\"аравны\",7,\"\"))),0),\"\")","v":{"$error":"#REF!"}}]
[null,null,null,null,null,null,null,2,{"$f":"ROUND(A144*N146,H146)","v":{"$error":"#REF!"}},{"$f":"VALUE(INT(I146))-J147*N147","v":{"$error":"#REF!"}},null,null,null,{"$f":"N147*10","v":100},null,{"$f":"IF(J146>0,VLOOKUP(J146,$B$3:$H$12,IF(K144=\"мянганы\",3,IF(K144=\"зууны\",7,IF(K144=\"аравны\",3,\"\"))),0),\"\")","v":{"$error":"#REF!"}}]
[null,null,null,null,null,null,null,1,{"$f":"ROUND(A144*N147,H147)","v":{"$error":"#REF!"}},{"$f":"VALUE(INT(I147))","v":{"$error":"#REF!"}},null,null,null,{"$f":"N148*10","v":10},null,{"$f":"IF(J147>0,VLOOKUP(J147,$B$3:$H$12,IF(K144=\"мянганы\",7,IF(K144=\"зууны\",3,IF(K144=\"аравны\",7,\"\"))),0),\"\")","v":{"$error":"#REF!"}},{"$f":"IF(K144=\"мянганы\",IF(AND(SUM(J146:J147)=0,J145>0),\"\",\"зуун\"),\"\")","v":{"$error":"#REF!"}}]
[null,null,null,null,null,null,null,null,null,null,null,null,null,1]
[]
[]
[]
[{"$f":"ROUNDDOWN(A169,0)","v":{"$error":"#REF!"}},null,null,null,null,null,null,null,{"$f":"A152/N152","v":{"$error":"#REF!"}},{"$f":"ROUND(ABS(A152),-12)","v":{"$error":"#REF!"}},{"$f":"A152-J152","v":{"$error":"#REF!"}},{"$f":"IF(K152<0,(A152-J152+N152*10),K152)","v":{"$error":"#REF!"}},{"$f":"(L152-L153)/N152","v":{"$error":"#REF!"}},{"$f":"N153*10","v":100000000000},{"$f":"VALUE(IF(M152=0,0,M152))","v":{"$error":"#REF!"}},{"$f":"IF(M152>0,VLOOKUP(M152,$B$3:$H$12,IF(T152>0,6,7),0),0)","v":{"$error":"#REF!"}},"зуун",{"$f":"SUM(M152)","v":{"$error":"#REF!"}},{"$f":"IF(R152>0,1,0)","v":{"$error":"#REF!"}},{"$f":"IF(S152=0,0,1)","v":{"$error":"#REF!"}},{"$f":"SUM(O152:O154)","v":{"$error":"#REF!"}},null,{"$f":"CONCATENATE(IF(O152=0,\"\",CONCATENATE(P152,\" \",Q152)),IF(O153=0,\"\",CONCATENATE(\" \",P153)),IF(U152=0,\"\",CONCATENATE(\" \",IF(P154=0,\"\",P154),\" \",Q154)),IF(O155=0,\"\",CONCATENATE(\" \",P155,\" \",Q155)),IF(O156=0,\"\",CONCATENATE(\" \",P156)),IF(U154=0,\"\",CONCATENATE(\" \",IF(P157=0,\"\",P157),\" \",Q157)),IF(O158=0,\"\",CONCATENATE(\" \",P158,\" \",Q158)),IF(O159=0,\"\",CONCATENATE(\" \",P159)),IF(U157=0,\"\",CONCATENATE(\" \",IF(P160=0,\"\",P160),\" \",Q160)),IF(O161=0,\"\",CONCATENATE(\" \",P161,\" \",Q161)),IF(O162=0,\"\",CONCATENATE(\" \",P162)),IF(O163=0,\"\",CONCATENATE(\" \",IF(VALUE(A170)=0,P163,Q163))))","v":{"$error":"#REF!"}}]
[null,null,null,null,null,null,null,null,{"$f":"A152/N153","v":{"$error":"#REF!"}},{"$f":"ROUND(ABS(A152),-11)","v":{"$error":"#REF!"}},{"$f":"A152-J153","v":{"$error":"#REF!"}},{"$f":"IF(K153<0,(A152-J153+N153*10),K153)","v":{"$error":"#REF!"}},{"$error":"#REF!"},10000000000,{"$f":"VALUE(IF(M153=0,0,M153))","v":{"$error":"#REF!"}},{"$f":"IF(M153>0,VLOOKUP(M153,$B$3:$H$12,IF(T153>0,2,3),0),0)","v":{"$error":"#REF!"}},null,{"$f":"SUM(M152:M153)","v":{"$error":"#REF!"}},{"$f":"IF(SUM(R152:R153)>0,1,0)","v":{"$error":"#REF!"}},{"$f":"IF(S153<>S152,1,0)","v":{"$error":"#REF!"}},null,null,{"$f":"CONCATENATE(W152,\" \",W170)","v":{"$error":"#REF!"}}]
[{"$f":"VLOOKUP(A155,'    '!D165:F167,3,0)","v":{"$error":"#REF!"}},1,"Арван","арван","Нэг","нэг","Нэг",{"$f":"IF(O160=1,F154,H163)","v":{"$error":"#REF!"}},{"$f":"A152/N154","v":{"$error":"#REF!"}},{"$f":"ROUND(ABS(A152),-10)","v":{"$error":"#REF!"}},{"$f":"A152-J154","v":{"$error":"#REF!"}},{"$f":"IF(K154<0,(A152-J154+N154*10),K154)","v":{"$error":"#REF!"}},{"$error":"#REF!"},1000000000,{"$error":"#REF!"},{"$f":"IF(M154>0,VLOOKUP(M154,$B$3:$H$12,IF(T154>0,6,7),0),0)","v":{"$error":"#REF!"}},"тэрбум",{"$f":"SUM(M152:M154)","v":{"$error":"#REF!"}},{"$f":"IF(SUM(R153:R154)>0,1,0)","v":{"$error":"#REF!"}},{"$f":"IF(S154<>S153,1,0)","v":{"$error":"#REF!"}},{"$f":"SUM(O155:O157)","v":{"$error":"#REF!"}}]
[{"$f":"A4","v":{"$error":"#REF!"}},2,"Хорин","хорин","Хоёр","хоёр","Хоёр","хоёр",{"$f":"A152/N155","v":{"$error":"#REF!"}},{"$f":"ROUND(ABS(A152),-9)","v":{"$error":"#REF!"}},{"$f":"A152-J155","v":{"$error":"#REF!"}},{"$f":"IF(K155<0,(A152-J155+N155*10),K155)","v":{"$error":"#REF!"}},{"$error":"#REF!"},100000000,{"$error":"#REF!"},{"$f":"IF(M155>0,VLOOKUP(M155,$B$3:$H$12,IF(T155>0,6,7),0),0)","v":{"$error":"#REF!"}},"зуун",{"$f":"SUM(M152:M155)","v":{"$error":"#REF!"}},{"$error":"#REF!"},{"$error":"#REF!"}]
[{"$f":"VLOOKUP(A155,D165:G167,4,0)","v":{"$error":"#REF!"}},3,"Гучин","гучин","Гурав","гурав","Гурван","гурван",{"$f":"A152/N156","v":{"$error":"#REF!"}},{"$f":"ROUND(ABS(A152),-8)","v":{"$error":"#REF!"}},{"$f":"A152-J156","v":{"$error":"#REF!"}},{"$f":"IF(K156<0,(A152-J156+N156*10),K156)","v":{"$error":"#REF!"}},{"$error":"#REF!"},10000000,{"$error":"#REF!"},{"$f":"IF(M156>0,VLOOKUP(M156,$B$3:$H$12,IF(T156>0,2,3),0),0)","v":{"$error":"#REF!"}},null,{"$f":"SUM(M152:M156)","v":{"$error":"#REF!"}},{"$error":"#REF!"},{"$error":"#REF!"}]
[{"$f":"VLOOKUP(A155,D165:K167,6,0)","v":{"$error":"#REF!"}},4,"Дөчин","дөчин","Дөрөв","дөрөв","Дөрвөн","дөрвөн",{"$f":"A152/N157","v":{"$error":"#REF!"}},{"$f":"ROUND(ABS(A152),-7)","v":{"$error":"#REF!"}},{"$f":"A152-J157","v":{"$error":"#REF!"}},{"$f":"IF(K157<0,(A152-J157+N157*10),K157)","v":{"$error":"#REF!"}},{"$error":"#REF!"},1000000,{"$error":"#REF!"},{"$f":"IF(M157>0,VLOOKUP(M157,$B$3:$H$12,IF(T157>0,6,7),0),0)","v":{"$error":"#REF!"}},"сая",{"$f":"SUM(M152:M157)","v":{"$error":"#REF!"}},{"$error":"#REF!"},{"$error":"#REF!"},{"$f":"SUM(O158:O160)","v":{"$error":"#REF!"}}]
[null,5,"Тавин","тавин","Тав","тав","Таван","таван",{"$f":"A152/N158","v":{"$error":"#REF!"}},{"$f":"ROUND(A152,-6.4)","v":{"$error":"#REF!"}},{"$f":"A152-J158","v":{"$error":"#REF!"}},{"$f":"IF(K158<0,(A152-J158+N158*10),K158)","v":{"$error":"#REF!"}},{"$error":"#REF!"},100000,{"$error":"#REF!"},{"$f":"IF(M158>0,VLOOKUP(M158,$B$3:$H$12,IF(T158>0,6,7),0),0)","v":{"$error":"#REF!"}},"зуун",{"$f":"SUM(M152:M158)","v":{"$error":"#REF!"}},{"$error":"#REF!"},{"$error":"#REF!"}]
[null,6,"Жаран","жаран","Зургаа","зургаа","Зургаан","зургаан",{"$f":"A152/N159","v":{"$error":"#REF!"}},{"$f":"ROUND(ABS(A152),-5)","v":{"$error":"#REF!"}},{"$f":"A152-J159","v":{"$error":"#REF!"}},{"$f":"IF(K159<0,(A152-J159+N159*10),K159)","v":{"$error":"#REF!"}},{"$error":"#REF!"},10000,{"$error":"#REF!"},{"$f":"IF(M159>0,VLOOKUP(M159,$B$3:$H$12,IF(T159>0,2,3),0),0)","v":{"$error":"#REF!"}},null,{"$f":"SUM(M152:M159)","v":{"$error":"#REF!"}},{"$error":"#REF!"},{"$error":"#REF!"}]
[null,7,"Далан","далан","Долоо","долоо","Долоон","долоон",{"$f":"A152/N160","v":{"$error":"#REF!"}},{"$f":"ROUND(ABS(A152),-4)","v":{"$error":"#REF!"}},{"$f":"A152-J160","v":{"$error":"#REF!"}},{"$f":"IF(K160<0,(A152-J160+N160*10),K160)","v":{"$error":"#REF!"}},{"$error":"#REF!"},1000,{"$error":"#REF!"},{"$f":"IF(M160>0,VLOOKUP(M160,$B$3:$H$12,IF(T160>0,6,7),0),0)","v":{"$error":"#REF!"}},{"$f":"IF(U160=B165,C166,C165)","v":{"$error":"#REF!"}},{"$f":"SUM(M152:M160)","v":{"$error":"#REF!"}},{"$error":"#REF!"},{"$error":"#REF!"},{"$f":"SUM(O161:O163)","v":{"$error":"#REF!"}}]
[null,8,"Наян","наян","Найм","найм","Найман","найман",{"$f":"A152/N161","v":{"$error":"#REF!"}},{"$f":"ROUND(ABS(A152),-3)","v":{"$error":"#REF!"}},{"$f":"A152-J161","v":{"$error":"#REF!"}},{"$f":"IF(K161<0,(A152-J161+N161*10),K161)","v":{"$error":"#REF!"}},{"$error":"#REF!"},100,{"$error":"#REF!"},{"$f":"IF(M161>0,VLOOKUP(M161,$B$3:$H$12,IF(T161>0,6,7),0),0)","v":{"$error":"#REF!"}},"зуун",{"$f":"SUM(M152:M161)","v":{"$error":"#REF!"}},{"$error":"#REF!"},{"$error":"#REF!"}]
[null,9,"Ерэн","ерэн","Ес","ес","Есөн","есөн",{"$f":"A152/N162","v":{"$error":"#REF!"}},{"$f":"ROUND(ABS(A152),-2)","v":{"$error":"#REF!"}},{"$f":"A152-J162","v":{"$error":"#REF!"}},{"$f":"IF(K162<0,(A152-J162+N162*10),K162)","v":{"$error":"#REF!"}},{"$f":"(L162-L163)/N162","v":{"$error":"#REF!"}},{"$f":"N163*10","v":10},{"$error":"#REF!"},{"$f":"IF(M162>0,VLOOKUP(M162,$B$3:$H$12,IF(T162>0,2,3),0),0)","v":{"$error":"#REF!"}},null,{"$f":"SUM(M152:M162)","v":{"$error":"#REF!"}},{"$error":"#REF!"},{"$error":"#REF!"}]
[null,0,null,null,"Арав","арав",null,"нэгэн",{"$f":"A152/N163","v":{"$error":"#REF!"}},{"$f":"ROUND(ABS(A152),-1)","v":{"$error":"#REF!"}},{"$f":"A152-J163","v":{"$error":"#REF!"}},{"$f":"IF(K163<0,(A152-J163+N163*10),K163)","v":{"$error":"#REF!"}},{"$f":"(L163-L164)/N163","v":{"$error":"#REF!"}},1,{"$error":"#REF!"},{"$f":"IF(M163>0,VLOOKUP(M163,$B$3:$H$12,IF(T163>0,6,7),0),0)","v":{"$error":"#REF!"}},{"$f":"VLOOKUP(O163,B154:F163,5,0)","v":{"$error":"#REF!"}},{"$f":"SUM(M152:M163)","v":{"$error":"#REF!"}},{"$error":"#REF!"},{"$error":"#REF!"}]
[]
[null,0,"мянга",2,"USD","ам.доллар","ам.долларын","ам.долларыг","ам.доллараас"]
[null,1,"мянган",1,"MNT","төгрөг","төгрөгийн","төгрөгийг","төгрөгөөс"]
[null,null,"сая",3,"CNY","юань","юаний","юанийг","юаниас"]
[]
[{"$f":"#REF!-#REF!","v":{"$error":"#REF!"}}]
[{"$f":"+A169-A152","v":{"$error":"#REF!"}},null,null,null,null,null,null,null,null,null,{"$f":"IF(SUM(J171:J173)=0,\"\",IF(SUM(J171:J172)=0,\"аравны\",IF(J171=0,\"зууны\",\"мянганы\")))","v":{"$error":"#REF!"}},null,null,null,null,null,null,null,null,null,null,null,{"$f":"CONCATENATE(K170,\" \",P173,\" \",Q173,\" \",P172,\" \",P171)","v":{"$error":"#REF!"}}]
[null,null,null,null,null,null,null,3,{"$f":"ROUND(A170*N171,H171)","v":{"$error":"#REF!"}},{"$f":"INT(VALUE(I171)-J172*N173-J173*N172)","v":{"$error":"#REF!"}},null,null,null,{"$f":"N172*10","v":1000},null,{"$f":"IF(J171>0,VLOOKUP(J171,$B$3:$H$12,IF(K170=\"мянганы\",7,IF(K170=\"зууны\",3,IF(K170=\"аравны\",7,\"\"))),0),\"\")","v":{"$error":"#REF!"}}]
[null,null,null,null,null,null,null,2,{"$f":"ROUND(A170*N172,H172)","v":{"$error":"#REF!"}},{"$f":"VALUE(INT(I172))-J173*N173","v":{"$error":"#REF!"}},null,null,null,{"$f":"N173*10","v":100},null,{"$f":"IF(J172>0,VLOOKUP(J172,$B$3:$H$12,IF(K170=\"мянганы\",3,IF(K170=\"зууны\",7,IF(K170=\"аравны\",3,\"\"))),0),\"\")","v":{"$error":"#REF!"}}]
[null,null,null,null,null,null,null,1,{"$f":"ROUND(A170*N173,H173)","v":{"$error":"#REF!"}},{"$f":"VALUE(INT(I173))","v":{"$error":"#REF!"}},null,null,null,{"$f":"N174*10","v":10},null,{"$f":"IF(J173>0,VLOOKUP(J173,$B$3:$H$12,IF(K170=\"мянганы\",7,IF(K170=\"зууны\",3,IF(K170=\"аравны\",7,\"\"))),0),\"\")","v":{"$error":"#REF!"}},{"$f":"IF(K170=\"мянганы\",IF(AND(SUM(J172:J173)=0,J171>0),\"\",\"зуун\"),\"\")","v":{"$error":"#REF!"}}]
[null,null,null,null,null,null,null,null,null,null,null,null,null,1]
[]
[]
[]
[{"$f":"ROUNDDOWN(A195,0)","v":{"$error":"#REF!"}},null,null,null,null,null,null,null,{"$f":"A178/N178","v":{"$error":"#REF!"}},{"$f":"ROUND(ABS(A178),-12)","v":{"$error":"#REF!"}},{"$f":"A178-J178","v":{"$error":"#REF!"}},{"$f":"IF(K178<0,(A178-J178+N178*10),K178)","v":{"$error":"#REF!"}},{"$f":"(L178-L179)/N178","v":{"$error":"#REF!"}},{"$f":"N179*10","v":100000000000},{"$f":"VALUE(IF(M178=0,0,M178))","v":{"$error":"#REF!"}},{"$f":"IF(M178>0,VLOOKUP(M178,$B$3:$H$12,IF(T178>0,6,7),0),0)","v":{"$error":"#REF!"}},"зуун",{"$f":"SUM(M178)","v":{"$error":"#REF!"}},{"$f":"IF(R178>0,1,0)","v":{"$error":"#REF!"}},{"$f":"IF(S178=0,0,1)","v":{"$error":"#REF!"}},{"$f":"SUM(O178:O180)","v":{"$error":"#REF!"}},null,{"$f":"CONCATENATE(IF(O178=0,\"\",CONCATENATE(P178,\" \",Q178)),IF(O179=0,\"\",CONCATENATE(\" \",P179)),IF(U178=0,\"\",CONCATENATE(\" \",IF(P180=0,\"\",P180),\" \",Q180)),IF(O181=0,\"\",CONCATENATE(\" \",P181,\" \",Q181)),IF(O182=0,\"\",CONCATENATE(\" \",P182)),IF(U180=0,\"\",CONCATENATE(\" \",IF(P183=0,\"\",P183),\" \",Q183)),IF(O184=0,\"\",CONCATENATE(\" \",P184,\" \",Q184)),IF(O185=0,\"\",CONCATENATE(\" \",P185)),IF(U183=0,\"\",CONCATENATE(\" \",IF(P186=0,\"\",P186),\" \",Q186)),IF(O187=0,\"\",CONCATENATE(\" \",P187,\" \",Q187)),IF(O188=0,\"\",CONCATENATE(\" \",P188)),IF(O189=0,\"\",CONCATENATE(\" \",IF(VALUE(A196)=0,P189,Q189))))","v":{"$error":"#REF!"}}]
[null,null,null,null,null,null,null,null,{"$f":"A178/N179","v":{"$error":"#REF!"}},{"$f":"ROUND(ABS(A178),-11)","v":{"$error":"#REF!"}},{"$f":"A178-J179","v":{"$error":"#REF!"}},{"$f":"IF(K179<0,(A178-J179+N179*10),K179)","v":{"$error":"#REF!"}},{"$error":"#REF!"},10000000000,{"$f":"VALUE(IF(M179=0,0,M179))","v":{"$error":"#REF!"}},{"$f":"IF(M179>0,VLOOKUP(M179,$B$3:$H$12,IF(T179>0,2,3),0),0)","v":{"$error":"#REF!"}},null,{"$f":"SUM(M178:M179)","v":{"$error":"#REF!"}},{"$f":"IF(SUM(R178:R179)>0,1,0)","v":{"$error":"#REF!"}},{"$f":"IF(S179<>S178,1,0)","v":{"$error":"#REF!"}},null,null,{"$f":"CONCATENATE(W178,\" \",W196)","v":{"$error":"#REF!"}}]
[{"$f":"VLOOKUP(A181,'    '!D191:F193,3,0)","v":{"$error":"#REF!"}},1,"Арван","арван","Нэг","нэг","Нэг",{"$f":"IF(O186=1,F180,H189)","v":{"$error":"#REF!"}},{"$f":"A178/N180","v":{"$error":"#REF!"}},{"$f":"ROUND(ABS(A178),-10)","v":{"$error":"#REF!"}},{"$f":"A178-J180","v":{"$error":"#REF!"}},{"$f":"IF(K180<0,(A178-J180+N180*10),K180)","v":{"$error":"#REF!"}},{"$error":"#REF!"},1000000000,{"$error":"#REF!"},{"$f":"IF(M180>0,VLOOKUP(M180,$B$3:$H$12,IF(T180>0,6,7),0),0)","v":{"$error":"#REF!"}},"тэрбум",{"$f":"SUM(M178:M180)","v":{"$error":"#REF!"}},{"$f":"IF(SUM(R179:R180)>0,1,0)","v":{"$error":"#REF!"}},{"$f":"IF(S180<>S179,1,0)","v":{"$error":"#REF!"}},{"$f":"SUM(O181:O183)","v":{"$error":"#REF!"}}]
[{"$f":"IF(#REF!=E191,D191,IF(#REF!=E192,D192,IF(#REF!=E193,D193,1)))","v":{"$error":"#REF!"}},2,"Хорин","хорин","Хоёр","хоёр","Хоёр","хоёр",{"$f":"A178/N181","v":{"$error":"#REF!"}},{"$f":"ROUND(ABS(A178),-9)","v":{"$error":"#REF!"}},{"$f":"A178-J181","v":{"$error":"#REF!"}},{"$f":"IF(K181<0,(A178-J181+N181*10),K181)","v":{"$error":"#REF!"}},{"$error":"#REF!"},100000000,{"$error":"#REF!"},{"$f":"IF(M181>0,VLOOKUP(M181,$B$3:$H$12,IF(T181>0,6,7),0),0)","v":{"$error":"#REF!"}},"зуун",{"$f":"SUM(M178:M181)","v":{"$error":"#REF!"}},{"$error":"#REF!"},{"$error":"#REF!"}]
[{"$f":"VLOOKUP(A181,D191:G193,4,0)","v":{"$error":"#REF!"}},3,"Гучин","гучин","Гурав","гурав","Гурван","гурван",{"$f":"A178/N182","v":{"$error":"#REF!"}},{"$f":"ROUND(ABS(A178),-8)","v":{"$error":"#REF!"}},{"$f":"A178-J182","v":{"$error":"#REF!"}},{"$f":"IF(K182<0,(A178-J182+N182*10),K182)","v":{"$error":"#REF!"}},{"$error":"#REF!"},10000000,{"$error":"#REF!"},{"$f":"IF(M182>0,VLOOKUP(M182,$B$3:$H$12,IF(T182>0,2,3),0),0)","v":{"$error":"#REF!"}},null,{"$f":"SUM(M178:M182)","v":{"$error":"#REF!"}},{"$error":"#REF!"},{"$error":"#REF!"}]
[{"$f":"VLOOKUP(A181,D191:K193,6,0)","v":{"$error":"#REF!"}},4,"Дөчин","дөчин","Дөрөв","дөрөв","Дөрвөн","дөрвөн",{"$f":"A178/N183","v":{"$error":"#REF!"}},{"$f":"ROUND(ABS(A178),-7)","v":{"$error":"#REF!"}},{"$f":"A178-J183","v":{"$error":"#REF!"}},{"$f":"IF(K183<0,(A178-J183+N183*10),K183)","v":{"$error":"#REF!"}},{"$error":"#REF!"},1000000,{"$error":"#REF!"},{"$f":"IF(M183>0,VLOOKUP(M183,$B$3:$H$12,IF(T183>0,6,7),0),0)","v":{"$error":"#REF!"}},"сая",{"$f":"SUM(M178:M183)","v":{"$error":"#REF!"}},{"$error":"#REF!"},{"$error":"#REF!"},{"$f":"SUM(O184:O186)","v":{"$error":"#REF!"}}]
[null,5,"Тавин","тавин","Тав","тав","Таван","таван",{"$f":"A178/N184","v":{"$error":"#REF!"}},{"$f":"ROUND(A178,-6.4)","v":{"$error":"#REF!"}},{"$f":"A178-J184","v":{"$error":"#REF!"}},{"$f":"IF(K184<0,(A178-J184+N184*10),K184)","v":{"$error":"#REF!"}},{"$error":"#REF!"},100000,{"$error":"#REF!"},{"$f":"IF(M184>0,VLOOKUP(M184,$B$3:$H$12,IF(T184>0,6,7),0),0)","v":{"$error":"#REF!"}},"зуун",{"$f":"SUM(M178:M184)","v":{"$error":"#REF!"}},{"$error":"#REF!"},{"$error":"#REF!"}]
[null,6,"Жаран","жаран","Зургаа","зургаа","Зургаан","зургаан",{"$f":"A178/N185","v":{"$error":"#REF!"}},{"$f":"ROUND(ABS(A178),-5)","v":{"$error":"#REF!"}},{"$f":"A178-J185","v":{"$error":"#REF!"}},{"$f":"IF(K185<0,(A178-J185+N185*10),K185)","v":{"$error":"#REF!"}},{"$error":"#REF!"},10000,{"$error":"#REF!"},{"$f":"IF(M185>0,VLOOKUP(M185,$B$3:$H$12,IF(T185>0,2,3),0),0)","v":{"$error":"#REF!"}},null,{"$f":"SUM(M178:M185)","v":{"$error":"#REF!"}},{"$error":"#REF!"},{"$error":"#REF!"}]
[null,7,"Далан","далан","Долоо","долоо","Долоон","долоон",{"$f":"A178/N186","v":{"$error":"#REF!"}},{"$f":"ROUND(ABS(A178),-4)","v":{"$error":"#REF!"}},{"$f":"A178-J186","v":{"$error":"#REF!"}},{"$f":"IF(K186<0,(A178-J186+N186*10),K186)","v":{"$error":"#REF!"}},{"$error":"#REF!"},1000,{"$error":"#REF!"},{"$f":"IF(M186>0,VLOOKUP(M186,$B$3:$H$12,IF(T186>0,6,7),0),0)","v":{"$error":"#REF!"}},{"$f":"IF(U186=B191,C192,C191)","v":{"$error":"#REF!"}},{"$f":"SUM(M178:M186)","v":{"$error":"#REF!"}},{"$error":"#REF!"},{"$error":"#REF!"},{"$f":"SUM(O187:O189)","v":{"$error":"#REF!"}}]
[null,8,"Наян","наян","Найм","найм","Найман","найман",{"$f":"A178/N187","v":{"$error":"#REF!"}},{"$f":"ROUND(ABS(A178),-3)","v":{"$error":"#REF!"}},{"$f":"A178-J187","v":{"$error":"#REF!"}},{"$f":"IF(K187<0,(A178-J187+N187*10),K187)","v":{"$error":"#REF!"}},{"$error":"#REF!"},100,{"$error":"#REF!"},{"$f":"IF(M187>0,VLOOKUP(M187,$B$3:$H$12,IF(T187>0,6,7),0),0)","v":{"$error":"#REF!"}},"зуун",{"$f":"SUM(M178:M187)","v":{"$error":"#REF!"}},{"$error":"#REF!"},{"$error":"#REF!"}]
[null,9,"Ерэн","ерэн","Ес","ес","Есөн","есөн",{"$f":"A178/N188","v":{"$error":"#REF!"}},{"$f":"ROUND(ABS(A178),-2)","v":{"$error":"#REF!"}},{"$f":"A178-J188","v":{"$error":"#REF!"}},{"$f":"IF(K188<0,(A178-J188+N188*10),K188)","v":{"$error":"#REF!"}},{"$f":"(L188-L189)/N188","v":{"$error":"#REF!"}},{"$f":"N189*10","v":10},{"$error":"#REF!"},{"$f":"IF(M188>0,VLOOKUP(M188,$B$3:$H$12,IF(T188>0,2,3),0),0)","v":{"$error":"#REF!"}},null,{"$f":"SUM(M178:M188)","v":{"$error":"#REF!"}},{"$error":"#REF!"},{"$error":"#REF!"}]
[null,0,null,null,"Арав","арав",null,"нэгэн",{"$f":"A178/N189","v":{"$error":"#REF!"}},{"$f":"ROUND(ABS(A178),-1)","v":{"$error":"#REF!"}},{"$f":"A178-J189","v":{"$error":"#REF!"}},{"$f":"IF(K189<0,(A178-J189+N189*10),K189)","v":{"$error":"#REF!"}},{"$f":"(L189-L190)/N189","v":{"$error":"#REF!"}},1,{"$error":"#REF!"},{"$f":"IF(M189>0,VLOOKUP(M189,$B$3:$H$12,IF(T189>0,6,7),0),0)","v":{"$error":"#REF!"}},{"$f":"VLOOKUP(O189,B180:F189,5,0)","v":{"$error":"#REF!"}},{"$f":"SUM(M178:M189)","v":{"$error":"#REF!"}},{"$error":"#REF!"},{"$error":"#REF!"}]
[]
[null,0,"мянга",2,"USD","ам.доллар","ам.долларын","ам.долларыг","ам.доллараас"]
[null,1,"мянган",1,"MNT","төгрөг","төгрөгийн","төгрөгийг","төгрөгөөс"]
[null,null,"сая",3,"CNY","юань","юаний","юанийг","юаниас"]
[]
[{"$f":"#REF!","v":{"$error":"#REF!"}}]
[{"$f":"+A195-A178","v":{"$error":"#REF!"}},null,null,null,null,null,null,null,null,null,{"$f":"IF(SUM(J197:J199)=0,\"\",IF(SUM(J197:J198)=0,\"аравны\",IF(J197=0,\"зууны\",\"мянганы\")))","v":{"$error":"#REF!"}},null,null,null,null,null,null,null,null,null,null,null,{"$f":"CONCATENATE(K196,\" \",P199,\" \",Q199,\" \",P198,\" \",P197)","v":{"$error":"#REF!"}}]
[null,null,null,null,null,null,null,3,{"$f":"ROUND(A196*N197,H197)","v":{"$error":"#REF!"}},{"$f":"INT(VALUE(I197)-J198*N199-J199*N198)","v":{"$error":"#REF!"}},null,null,null,{"$f":"N198*10","v":1000},null,{"$f":"IF(J197>0,VLOOKUP(J197,$B$3:$H$12,IF(K196=\"мянганы\",7,IF(K196=\"зууны\",3,IF(K196=\"аравны\",7,\"\"))),0),\"\")","v":{"$error":"#REF!"}}]
[null,null,null,null,null,null,null,2,{"$f":"ROUND(A196*N198,H198)","v":{"$error":"#REF!"}},{"$f":"VALUE(INT(I198))-J199*N199","v":{"$error":"#REF!"}},null,null,null,{"$f":"N199*10","v":100},null,{"$f":"IF(J198>0,VLOOKUP(J198,$B$3:$H$12,IF(K196=\"мянганы\",3,IF(K196=\"зууны\",7,IF(K196=\"аравны\",3,\"\"))),0),\"\")","v":{"$error":"#REF!"}}]
[null,null,null,null,null,null,null,1,{"$f":"ROUND(A196*N199,H199)","v":{"$error":"#REF!"}},{"$f":"VALUE(INT(I199))","v":{"$error":"#REF!"}},null,null,null,{"$f":"N200*10","v":10},null,{"$f":"IF(J199>0,VLOOKUP(J199,$B$3:$H$12,IF(K196=\"мянганы\",7,IF(K196=\"зууны\",3,IF(K196=\"аравны\",7,\"\"))),0),\"\")","v":{"$error":"#REF!"}},{"$f":"IF(K196=\"мянганы\",IF(AND(SUM(J198:J199)=0,J197>0),\"\",\"зуун\"),\"\")","v":{"$error":"#REF!"}}]
[null,null,null,null,null,null,null,null,null,null,null,null,null,1]
[]
[]
[null,null,null,null,null,null,null,{"$f":"IF(SUM(L206:L207)=0,\"\",IF(VALUE(K207)=0,\"аравны\",\"зууны\"))","v":{"$error":"#REF!"}}]
[{"$f":"#REF!*100","v":{"$error":"#REF!"}},1,"Арван","арван","Нэг","нэг","Нэг",{"$f":"IF(N210=1,F204,H213)","v":"нэгэн"},"Арав",{"$f":"ROUNDDOWN(A204/M204,0)","v":{"$error":"#REF!"}},{"$f":"RIGHT(ROUND(J204,0),1)","v":{"$error":"#REF!"}},{"$f":"VALUE(K204)","v":{"$error":"#REF!"}},{"$f":"M205*10","v":10},{"$f":"VALUE(IF(L204=0,0,L204))","v":{"$error":"#REF!"}},{"$f":"IF(L204=0,\"\",VLOOKUP(L204,B204:I213,IF(L205=0,8,2),0))","v":{"$error":"#REF!"}},{"$f":"CONCATENATE(O204,\" \",O205,\" \",H203,\" \",O206,\" \",O207)","v":{"$error":"#REF!"}}]
[null,2,"Хорин","хорин","Хоёр","хоёр","Хоёр","хоёр","Хорь",{"$f":"ROUNDDOWN(A204/M205,0)","v":{"$error":"#REF!"}},{"$f":"RIGHT(ROUND(J205,0),1)","v":{"$error":"#REF!"}},{"$f":"VALUE(K205)","v":{"$error":"#REF!"}},{"$f":"M206*10","v":1},{"$f":"VALUE(IF(L205=0,0,L205))","v":{"$error":"#REF!"}},{"$f":"IF(AND(L204>0,L205=0),\"\",IF(SUM(L204:L205)=0,C213,IF(L205>0,VLOOKUP(L205,B$3:H$12,IF(SUM(L206:L207)=0,IF(L204=0,6,7),IF(L204=0,4,5)),0),0)))","v":{"$error":"#REF!"}}]
[null,3,"Гучин","гучин","Гурав","гурав","Гурван","гурван","Гуч",{"$f":"ROUNDDOWN(A204/M206,0)","v":{"$error":"#REF!"}},{"$f":"RIGHT(ROUND(J206,0),1)","v":{"$error":"#REF!"}},{"$f":"VALUE(K206)","v":{"$error":"#REF!"}},{"$f":"M207*10","v":0.1},{"$f":"VALUE(IF(L206=0,0,L206))","v":{"$error":"#REF!"}},{"$f":"IF(L206=0,\"\",IF(SUM(L206:L207)=0,\"\",IF(L206>0,VLOOKUP(L206,B$3:H$12,IF(VALUE(L207)=0,7,3),0),0)))","v":{"$error":"#REF!"}}]
[null,4,"Дөчин","дөчин","Дөрөв","дөрөв","Дөрвөн","дөрвөн","Дөч",{"$f":"ROUND(A204/M207,0)","v":{"$error":"#REF!"}},{"$f":"RIGHT(ROUND(J207,0),1)","v":{"$error":"#REF!"}},{"$f":"VALUE(K207)","v":{"$error":"#REF!"}},0.01,{"$f":"VALUE(IF(L207=0,0,L207))","v":{"$error":"#REF!"}},{"$f":"IF(L207=0,\"\",IF(L207>0,VLOOKUP(L207,B$3:H$12,IF(T216>0,6,7),0),0))","v":{"$error":"#REF!"}}]
[null,5,"Тавин","тавин","Тав","тав","Таван","таван","Тавь"]
[null,6,"Жаран","жаран","Зургаа","зургаа","Зургаан","зургаан","Жар"]
[null,7,"Далан","далан","Долоо","долоо","Долоон","долоон","Дал"]
[null,8,"Наян","наян","Найм","найм","Найман","найман","Ная"]
[null,9,"Ерэн","ерэн","Ес","ес","Есөн","есөн","Ер"]
[null,0,null,null,"Арав","арав",null,"нэгэн"]
[]
[null,null,null,null,null,null,null,{"$f":"IF(SUM(L218:L219)=0,\"\",IF(VALUE(K219)=0,\"аравны\",\"зууны\"))","v":{"$error":"#REF!"}}]
[{"$f":"#REF!*100","v":{"$error":"#REF!"}},1,"Арван","арван","Нэг","нэг","Нэг",{"$f":"IF(N222=1,F216,H225)","v":"нэгэн"},"Арав",{"$f":"ROUNDDOWN(A216/M216,0)","v":{"$error":"#REF!"}},{"$f":"RIGHT(ROUND(J216,0),1)","v":{"$error":"#REF!"}},{"$f":"VALUE(K216)","v":{"$error":"#REF!"}},{"$f":"M217*10","v":10},{"$f":"VALUE(IF(L216=0,0,L216))","v":{"$error":"#REF!"}},{"$f":"IF(L216=0,\"\",VLOOKUP(L216,B216:I225,IF(L217=0,8,2),0))","v":{"$error":"#REF!"}},{"$f":"CONCATENATE(O216,\" \",O217,\" \",H215,\" \",O218,\" \",O219)","v":{"$error":"#REF!"}}]
[null,2,"Хорин","хорин","Хоёр","хоёр","Хоёр","хоёр","Хорь",{"$f":"ROUNDDOWN(A216/M217,0)","v":{"$error":"#REF!"}},{"$f":"RIGHT(ROUND(J217,0),1)","v":{"$error":"#REF!"}},{"$f":"VALUE(K217)","v":{"$error":"#REF!"}},{"$f":"M218*10","v":1},{"$f":"VALUE(IF(L217=0,0,L217))","v":{"$error":"#REF!"}},{"$f":"IF(AND(L216>0,L217=0),\"\",IF(SUM(L216:L217)=0,C225,IF(L217>0,VLOOKUP(L217,B$3:H$12,IF(SUM(L218:L219)=0,IF(L216=0,6,7),IF(L216=0,4,5)),0),0)))","v":{"$error":"#REF!"}}]
[null,3,"Гучин","гучин","Гурав","гурав","Гурван","гурван","Гуч",{"$f":"ROUNDDOWN(A216/M218,0)","v":{"$error":"#REF!"}},{"$f":"RIGHT(ROUND(J218,0),1)","v":{"$error":"#REF!"}},{"$f":"VALUE(K218)","v":{"$error":"#REF!"}},{"$f":"M219*10","v":0.1},{"$f":"VALUE(IF(L218=0,0,L218))","v":{"$error":"#REF!"}},{"$f":"IF(L218=0,\"\",IF(SUM(L218:L219)=0,\"\",IF(L218>0,VLOOKUP(L218,B$3:H$12,IF(VALUE(L219)=0,7,3),0),0)))","v":{"$error":"#REF!"}}]
[null,4,"Дөчин","дөчин","Дөрөв","дөрөв","Дөрвөн","дөрвөн","Дөч",{"$f":"ROUND(A216/M219,0)","v":{"$error":"#REF!"}},{"$f":"RIGHT(ROUND(J219,0),1)","v":{"$error":"#REF!"}},{"$f":"VALUE(K219)","v":{"$error":"#REF!"}},0.01,{"$f":"VALUE(IF(L219=0,0,L219))","v":{"$error":"#REF!"}},{"$f":"IF(L219=0,\"\",IF(L219>0,VLOOKUP(L219,B$3:H$12,IF(T227>0,6,7),0),0))","v":{"$error":"#REF!"}}]
[null,5,"Тавин","тавин","Тав","тав","Таван","таван","Тавь"]
[null,6,"Жаран","жаран","Зургаа","зургаа","Зургаан","зургаан","Жар"]
[null,7,"Далан","далан","Долоо","долоо","Долоон","долоон","Дал"]
[null,8,"Наян","наян","Найм","найм","Найман","найман","Ная"]
[null,9,"Ерэн","ерэн","Ес","ес","Есөн","есөн","Ер"]
[null,0,null,null,"Арав","арав",null,"нэгэн"]
[]
[]
[]
[{"$f":"ROUNDDOWN(A246,0)","v":{"$error":"#REF!"}},null,null,null,null,null,null,null,{"$f":"A229/N229","v":{"$error":"#REF!"}},{"$f":"ROUND(ABS(A229),-12)","v":{"$error":"#REF!"}},{"$f":"A229-J229","v":{"$error":"#REF!"}},{"$f":"IF(K229<0,(A229-J229+N229*10),K229)","v":{"$error":"#REF!"}},{"$f":"(L229-L230)/N229","v":{"$error":"#REF!"}},{"$f":"N230*10","v":100000000000},{"$f":"VALUE(IF(M229=0,0,M229))","v":{"$error":"#REF!"}},{"$f":"IF(M229>0,VLOOKUP(M229,$B$3:$H$12,IF(T229>0,6,7),0),0)","v":{"$error":"#REF!"}},"зуун",{"$f":"SUM(M229)","v":{"$error":"#REF!"}},{"$f":"IF(R229>0,1,0)","v":{"$error":"#REF!"}},{"$f":"IF(S229=0,0,1)","v":{"$error":"#REF!"}},{"$f":"SUM(O229:O231)","v":{"$error":"#REF!"}},null,{"$f":"CONCATENATE(IF(O229=0,\"\",CONCATENATE(P229,\" \",Q229)),IF(O230=0,\"\",CONCATENATE(\" \",P230)),IF(U229=0,\"\",CONCATENATE(\" \",IF(P231=0,\"\",P231),\" \",Q231)),IF(O232=0,\"\",CONCATENATE(\" \",P232,\" \",Q232)),IF(O233=0,\"\",CONCATENATE(\" \",P233)),IF(U231=0,\"\",CONCATENATE(\" \",IF(P234=0,\"\",P234),\" \",Q234)),IF(O235=0,\"\",CONCATENATE(\" \",P235,\" \",Q235)),IF(O236=0,\"\",CONCATENATE(\" \",P236)),IF(U234=0,\"\",CONCATENATE(\" \",IF(P237=0,\"\",P237),\" \",Q237)),IF(O238=0,\"\",CONCATENATE(\" \",P238,\" \",Q238)),IF(O239=0,\"\",CONCATENATE(\" \",P239)),IF(O240=0,\"\",CONCATENATE(\" \",IF(VALUE(A247)=0,P240,Q240))))","v":{"$error":"#REF!"}}]
[null,null,null,null,null,null,null,null,{"$f":"A229/N230","v":{"$error":"#REF!"}},{"$f":"ROUND(ABS(A229),-11)","v":{"$error":"#REF!"}},{"$f":"A229-J230","v":{"$error":"#REF!"}},{"$f":"IF(K230<0,(A229-J230+N230*10),K230)","v":{"$error":"#REF!"}},{"$error":"#REF!"},10000000000,{"$f":"VALUE(IF(M230=0,0,M230))","v":{"$error":"#REF!"}},{"$f":"IF(M230>0,VLOOKUP(M230,$B$3:$H$12,IF(T230>0,2,3),0),0)","v":{"$error":"#REF!"}},null,{"$f":"SUM(M229:M230)","v":{"$error":"#REF!"}},{"$f":"IF(SUM(R229:R230)>0,1,0)","v":{"$error":"#REF!"}},{"$f":"IF(S230<>S229,1,0)","v":{"$error":"#REF!"}},null,null,{"$f":"CONCATENATE(W229,\" \",W247)","v":{"$error":"#REF!"}}]
[{"$f":"VLOOKUP(A232,'    '!D242:F244,3,0)","v":{"$error":"#REF!"}},1,"Арван","арван","Нэг","нэг","Нэг",{"$f":"IF(O237=1,F231,H240)","v":{"$error":"#REF!"}},{"$f":"A229/N231","v":{"$error":"#REF!"}},{"$f":"ROUND(ABS(A229),-10)","v":{"$error":"#REF!"}},{"$f":"A229-J231","v":{"$error":"#REF!"}},{"$f":"IF(K231<0,(A229-J231+N231*10),K231)","v":{"$error":"#REF!"}},{"$error":"#REF!"},1000000000,{"$error":"#REF!"},{"$f":"IF(M231>0,VLOOKUP(M231,$B$3:$H$12,IF(T231>0,6,7),0),0)","v":{"$error":"#REF!"}},"тэрбум",{"$f":"SUM(M229:M231)","v":{"$error":"#REF!"}},{"$f":"IF(SUM(R230:R231)>0,1,0)","v":{"$error":"#REF!"}},{"$f":"IF(S231<>S230,1,0)","v":{"$error":"#REF!"}},{"$f":"SUM(O232:O234)","v":{"$error":"#REF!"}}]
[{"$f":"IF(#REF!=E242,D242,IF(#REF!=E243,D243,IF(#REF!=E244,D244,1)))","v":{"$error":"#REF!"}},2,"Хорин","хорин","Хоёр","хоёр","Хоёр","хоёр",{"$f":"A229/N232","v":{"$error":"#REF!"}},{"$f":"ROUND(ABS(A229),-9)","v":{"$error":"#REF!"}},{"$f":"A229-J232","v":{"$error":"#REF!"}},{"$f":"IF(K232<0,(A229-J232+N232*10),K232)","v":{"$error":"#REF!"}},{"$error":"#REF!"},100000000,{"$error":"#REF!"},{"$f":"IF(M232>0,VLOOKUP(M232,$B$3:$H$12,IF(T232>0,6,7),0),0)","v":{"$error":"#REF!"}},"зуун",{"$f":"SUM(M229:M232)","v":{"$error":"#REF!"}},{"$error":"#REF!"},{"$error":"#REF!"}]
[{"$f":"VLOOKUP(A232,D242:G244,4,0)","v":{"$error":"#REF!"}},3,"Гучин","гучин","Гурав","гурав","Гурван","гурван",{"$f":"A229/N233","v":{"$error":"#REF!"}},{"$f":"ROUND(ABS(A229),-8)","v":{"$error":"#REF!"}},{"$f":"A229-J233","v":{"$error":"#REF!"}},{"$f":"IF(K233<0,(A229-J233+N233*10),K233)","v":{"$error":"#REF!"}},{"$error":"#REF!"},10000000,{"$error":"#REF!"},{"$f":"IF(M233>0,VLOOKUP(M233,$B$3:$H$12,IF(T233>0,2,3),0),0)","v":{"$error":"#REF!"}},null,{"$f":"SUM(M229:M233)","v":{"$error":"#REF!"}},{"$error":"#REF!"},{"$error":"#REF!"}]
[{"$f":"VLOOKUP(A232,D242:K244,6,0)","v":{"$error":"#REF!"}},4,"Дөчин","дөчин","Дөрөв","дөрөв","Дөрвөн","дөрвөн",{"$f":"A229/N234","v":{"$error":"#REF!"}},{"$f":"ROUND(ABS(A229),-7)","v":{"$error":"#REF!"}},{"$f":"A229-J234","v":{"$error":"#REF!"}},{"$f":"IF(K234<0,(A229-J234+N234*10),K234)","v":{"$error":"#REF!"}},{"$error":"#REF!"},1000000,{"$error":"#REF!"},{"$f":"IF(M234>0,VLOOKUP(M234,$B$3:$H$12,IF(T234>0,6,7),0),0)","v":{"$error":"#REF!"}},"сая",{"$f":"SUM(M229:M234)","v":{"$error":"#REF!"}},{"$error":"#REF!"},{"$error":"#REF!"},{"$f":"SUM(O235:O237)","v":{"$error":"#REF!"}}]
[null,5,"Тавин","тавин","Тав","тав","Таван","таван",{"$f":"A229/N235","v":{"$error":"#REF!"}},{"$f":"ROUND(A229,-6.4)","v":{"$error":"#REF!"}},{"$f":"A229-J235","v":{"$error":"#REF!"}},{"$f":"IF(K235<0,(A229-J235+N235*10),K235)","v":{"$error":"#REF!"}},{"$error":"#REF!"},100000,{"$error":"#REF!"},{"$f":"IF(M235>0,VLOOKUP(M235,$B$3:$H$12,IF(T235>0,6,7),0),0)","v":{"$error":"#REF!"}},"зуун",{"$f":"SUM(M229:M235)","v":{"$error":"#REF!"}},{"$error":"#REF!"},{"$error":"#REF!"}]
[null,6,"Жаран","жаран","Зургаа","зургаа","Зургаан","зургаан",{"$f":"A229/N236","v":{"$error":"#REF!"}},{"$f":"ROUND(ABS(A229),-5)","v":{"$error":"#REF!"}},{"$f":"A229-J236","v":{"$error":"#REF!"}},{"$f":"IF(K236<0,(A229-J236+N236*10),K236)","v":{"$error":"#REF!"}},{"$error":"#REF!"},10000,{"$error":"#REF!"},{"$f":"IF(M236>0,VLOOKUP(M236,$B$3:$H$12,IF(T236>0,2,3),0),0)","v":{"$error":"#REF!"}},null,{"$f":"SUM(M229:M236)","v":{"$error":"#REF!"}},{"$error":"#REF!"},{"$error":"#REF!"}]
[null,7,"Далан","далан","Долоо","долоо","Долоон","долоон",{"$f":"A229/N237","v":{"$error":"#REF!"}},{"$f":"ROUND(ABS(A229),-4)","v":{"$error":"#REF!"}},{"$f":"A229-J237","v":{"$error":"#REF!"}},{"$f":"IF(K237<0,(A229-J237+N237*10),K237)","v":{"$error":"#REF!"}},{"$error":"#REF!"},1000,{"$error":"#REF!"},{"$f":"IF(M237>0,VLOOKUP(M237,$B$3:$H$12,IF(T237>0,6,7),0),0)","v":{"$error":"#REF!"}},{"$f":"IF(U237=B242,C243,C242)","v":{"$error":"#REF!"}},{"$f":"SUM(M229:M237)","v":{"$error":"#REF!"}},{"$error":"#REF!"},{"$error":"#REF!"},{"$f":"SUM(O238:O240)","v":{"$error":"#REF!"}}]
[null,8,"Наян","наян","Найм","найм","Найман","найман",{"$f":"A229/N238","v":{"$error":"#REF!"}},{"$f":"ROUND(ABS(A229),-3)","v":{"$error":"#REF!"}},{"$f":"A229-J238","v":{"$error":"#REF!"}},{"$f":"IF(K238<0,(A229-J238+N238*10),K238)","v":{"$error":"#REF!"}},{"$error":"#REF!"},100,{"$error":"#REF!"},{"$f":"IF(M238>0,VLOOKUP(M238,$B$3:$H$12,IF(T238>0,6,7),0),0)","v":{"$error":"#REF!"}},"зуун",{"$f":"SUM(M229:M238)","v":{"$error":"#REF!"}},{"$error":"#REF!"},{"$error":"#REF!"}]
[null,9,"Ерэн","ерэн","Ес","ес","Есөн","есөн",{"$f":"A229/N239","v":{"$error":"#REF!"}},{"$f":"ROUND(ABS(A229),-2)","v":{"$error":"#REF!"}},{"$f":"A229-J239","v":{"$error":"#REF!"}},{"$f":"IF(K239<0,(A229-J239+N239*10),K239)","v":{"$error":"#REF!"}},{"$f":"(L239-L240)/N239","v":{"$error":"#REF!"}},{"$f":"N240*10","v":10},{"$error":"#REF!"},{"$f":"IF(M239>0,VLOOKUP(M239,$B$3:$H$12,IF(T239>0,2,3),0),0)","v":{"$error":"#REF!"}},null,{"$f":"SUM(M229:M239)","v":{"$error":"#REF!"}},{"$error":"#REF!"},{"$error":"#REF!"}]
[null,0,null,null,"Арав","арав",null,"нэгэн",{"$f":"A229/N240","v":{"$error":"#REF!"}},{"$f":"ROUND(ABS(A229),-1)","v":{"$error":"#REF!"}},{"$f":"A229-J240","v":{"$error":"#REF!"}},{"$f":"IF(K240<0,(A229-J240+N240*10),K240)","v":{"$error":"#REF!"}},{"$f":"(L240-L241)/N240","v":{"$error":"#REF!"}},1,{"$error":"#REF!"},{"$f":"IF(M240>0,VLOOKUP(M240,$B$3:$H$12,IF(T240>0,6,7),0),0)","v":{"$error":"#REF!"}},{"$f":"VLOOKUP(O240,B231:F240,5,0)","v":{"$error":"#REF!"}},{"$f":"SUM(M229:M240)","v":{"$error":"#REF!"}},{"$error":"#REF!"},{"$error":"#REF!"}]
[]
[null,0,"мянга",2,"USD","ам.доллар","ам.долларын","ам.долларыг","ам.доллараас"]
[null,1,"мянган",1,"MNT","төгрөг","төгрөгийн","төгрөгийг","төгрөгөөс"]
[null,null,"сая",3,"CNY","юань","юаний","юанийг","юаниас"]
[]
[{"$f":"#REF!","v":{"$error":"#REF!"}}]
[{"$f":"+A246-A229","v":{"$error":"#REF!"}},null,null,null,null,null,null,null,null,null,{"$f":"IF(SUM(J248:J250)=0,\"\",IF(SUM(J248:J249)=0,\"аравны\",IF(J248=0,\"зууны\",\"мянганы\")))","v":{"$error":"#REF!"}},null,null,null,null,null,null,null,null,null,null,null,{"$f":"CONCATENATE(K247,\" \",P250,\" \",Q250,\" \",P249,\" \",P248)","v":{"$error":"#REF!"}}]
[null,null,null,null,null,null,null,3,{"$f":"ROUND(A247*N248,H248)","v":{"$error":"#REF!"}},{"$f":"INT(VALUE(I248)-J249*N250-J250*N249)","v":{"$error":"#REF!"}},null,null,null,{"$f":"N249*10","v":1000},null,{"$f":"IF(J248>0,VLOOKUP(J248,$B$3:$H$12,IF(K247=\"мянганы\",7,IF(K247=\"зууны\",3,IF(K247=\"аравны\",7,\"\"))),0),\"\")","v":{"$error":"#REF!"}}]
[null,null,null,null,null,null,null,2,{"$f":"ROUND(A247*N249,H249)","v":{"$error":"#REF!"}},{"$f":"VALUE(INT(I249))-J250*N250","v":{"$error":"#REF!"}},null,null,null,{"$f":"N250*10","v":100},null,{"$f":"IF(J249>0,VLOOKUP(J249,$B$3:$H$12,IF(K247=\"мянганы\",3,IF(K247=\"зууны\",7,IF(K247=\"аравны\",3,\"\"))),0),\"\")","v":{"$error":"#REF!"}}]
[null,null,null,null,null,null,null,1,{"$f":"ROUND(A247*N250,H250)","v":{"$error":"#REF!"}},{"$f":"VALUE(INT(I250))","v":{"$error":"#REF!"}},null,null,null,{"$f":"N251*10","v":10},null,{"$f":"IF(J250>0,VLOOKUP(J250,$B$3:$H$12,IF(K247=\"мянганы\",7,IF(K247=\"зууны\",3,IF(K247=\"аравны\",7,\"\"))),0),\"\")","v":{"$error":"#REF!"}},{"$f":"IF(K247=\"мянганы\",IF(AND(SUM(J249:J250)=0,J248>0),\"\",\"зуун\"),\"\")","v":{"$error":"#REF!"}}]
[null,null,null,null,null,null,null,null,null,null,null,null,null,1]
[]
[]
[{"$f":"ROUNDDOWN(A271,0)","v":{"$error":"#REF!"}},null,null,null,null,null,null,null,{"$f":"A254/N254","v":{"$error":"#REF!"}},{"$f":"ROUND(ABS(A254),-12)","v":{"$error":"#REF!"}},{"$f":"A254-J254","v":{"$error":"#REF!"}},{"$f":"IF(K254<0,(A254-J254+N254*10),K254)","v":{"$error":"#REF!"}},{"$f":"(L254-L255)/N254","v":{"$error":"#REF!"}},{"$f":"N255*10","v":100000000000},{"$f":"VALUE(IF(M254=0,0,M254))","v":{"$error":"#REF!"}},{"$f":"IF(M254>0,VLOOKUP(M254,$B$3:$H$12,IF(T254>0,6,7),0),0)","v":{"$error":"#REF!"}},"зуун",{"$f":"SUM(M254)","v":{"$error":"#REF!"}},{"$f":"IF(R254>0,1,0)","v":{"$error":"#REF!"}},{"$f":"IF(S254=0,0,1)","v":{"$error":"#REF!"}},{"$f":"SUM(O254:O256)","v":{"$error":"#REF!"}},null,{"$f":"CONCATENATE(IF(O254=0,\"\",CONCATENATE(P254,\" \",Q254)),IF(O255=0,\"\",CONCATENATE(\" \",P255)),IF(U254=0,\"\",CONCATENATE(\" \",IF(P256=0,\"\",P256),\" \",Q256)),IF(O257=0,\"\",CONCATENATE(\" \",P257,\" \",Q257)),IF(O258=0,\"\",CONCATENATE(\" \",P258)),IF(U256=0,\"\",CONCATENATE(\" \",IF(P259=0,\"\",P259),\" \",Q259)),IF(O260=0,\"\",CONCATENATE(\" \",P260,\" \",Q260)),IF(O261=0,\"\",CONCATENATE(\" \",P261)),IF(U259=0,\"\",CONCATENATE(\" \",IF(P262=0,\"\",P262),\" \",Q262)),IF(O263=0,\"\",CONCATENATE(\" \",P263,\" \",Q263)),IF(O264=0,\"\",CONCATENATE(\" \",P264)),IF(O265=0,\"\",CONCATENATE(\" \",IF(VALUE(A272)=0,P265,Q265))))","v":{"$error":"#REF!"}}]
[null,null,null,null,null,null,null,null,{"$f":"A254/N255","v":{"$error":"#REF!"}},{"$f":"ROUND(ABS(A254),-11)","v":{"$error":"#REF!"}},{"$f":"A254-J255","v":{"$error":"#REF!"}},{"$f":"IF(K255<0,(A254-J255+N255*10),K255)","v":{"$error":"#REF!"}},{"$error":"#REF!"},10000000000,{"$f":"VALUE(IF(M255=0,0,M255))","v":{"$error":"#REF!"}},{"$f":"IF(M255>0,VLOOKUP(M255,$B$3:$H$12,IF(T255>0,2,3),0),0)","v":{"$error":"#REF!"}},null,{"$f":"SUM(M254:M255)","v":{"$error":"#REF!"}},{"$f":"IF(SUM(R254:R255)>0,1,0)","v":{"$error":"#REF!"}},{"$f":"IF(S255<>S254,1,0)","v":{"$error":"#REF!"}},null,null,{"$f":"CONCATENATE(W254,\" \",W272)","v":{"$error":"#REF!"}}]
[{"$f":"VLOOKUP(A257,'    '!D267:F269,3,0)","v":{"$error":"#REF!"}},1,"Арван","арван","Нэг","нэг","Нэг",{"$f":"IF(O262=1,F256,H265)","v":{"$error":"#REF!"}},{"$f":"A254/N256","v":{"$error":"#REF!"}},{"$f":"ROUND(ABS(A254),-10)","v":{"$error":"#REF!"}},{"$f":"A254-J256","v":{"$error":"#REF!"}},{"$f":"IF(K256<0,(A254-J256+N256*10),K256)","v":{"$error":"#REF!"}},{"$error":"#REF!"},1000000000,{"$error":"#REF!"},{"$f":"IF(M256>0,VLOOKUP(M256,$B$3:$H$12,IF(T256>0,6,7),0),0)","v":{"$error":"#REF!"}},"тэрбум",{"$f":"SUM(M254:M256)","v":{"$error":"#REF!"}},{"$f":"IF(SUM(R255:R256)>0,1,0)","v":{"$error":"#REF!"}},{"$f":"IF(S256<>S255,1,0)","v":{"$error":"#REF!"}},{"$f":"SUM(O257:O259)","v":{"$error":"#REF!"}}]
[{"$f":"IF(#REF!=E267,D267,IF(#REF!=E268,D268,IF(#REF!=E269,D269,1)))","v":{"$error":"#REF!"}},2,"Хорин","хорин","Хоёр","хоёр","Хоёр","хоёр",{"$f":"A254/N257","v":{"$error":"#REF!"}},{"$f":"ROUND(ABS(A254),-9)","v":{"$error":"#REF!"}},{"$f":"A254-J257","v":{"$error":"#REF!"}},{"$f":"IF(K257<0,(A254-J257+N257*10),K257)","v":{"$error":"#REF!"}},{"$error":"#REF!"},100000000,{"$error":"#REF!"},{"$f":"IF(M257>0,VLOOKUP(M257,$B$3:$H$12,IF(T257>0,6,7),0),0)","v":{"$error":"#REF!"}},"зуун",{"$f":"SUM(M254:M257)","v":{"$error":"#REF!"}},{"$error":"#REF!"},{"$error":"#REF!"}]
[{"$f":"VLOOKUP(A257,D267:G269,4,0)","v":{"$error":"#REF!"}},3,"Гучин","гучин","Гурав","гурав","Гурван","гурван",{"$f":"A254/N258","v":{"$error":"#REF!"}},{"$f":"ROUND(ABS(A254),-8)","v":{"$error":"#REF!"}},{"$f":"A254-J258","v":{"$error":"#REF!"}},{"$f":"IF(K258<0,(A254-J258+N258*10),K258)","v":{"$error":"#REF!"}},{"$error":"#REF!"},10000000,{"$error":"#REF!"},{"$f":"IF(M258>0,VLOOKUP(M258,$B$3:$H$12,IF(T258>0,2,3),0),0)","v":{"$error":"#REF!"}},null,{"$f":"SUM(M254:M258)","v":{"$error":"#REF!"}},{"$error":"#REF!"},{"$error":"#REF!"}]
[{"$f":"VLOOKUP(A257,D267:K269,6,0)","v":{"$error":"#REF!"}},4,"Дөчин","дөчин","Дөрөв","дөрөв","Дөрвөн","дөрвөн",{"$f":"A254/N259","v":{"$error":"#REF!"}},{"$f":"ROUND(ABS(A254),-7)","v":{"$error":"#REF!"}},{"$f":"A254-J259","v":{"$error":"#REF!"}},{"$f":"IF(K259<0,(A254-J259+N259*10),K259)","v":{"$error":"#REF!"}},{"$error":"#REF!"},1000000,{"$error":"#REF!"},{"$f":"IF(M259>0,VLOOKUP(M259,$B$3:$H$12,IF(T259>0,6,7),0),0)","v":{"$error":"#REF!"}},"сая",{"$f":"SUM(M254:M259)","v":{"$error":"#REF!"}},{"$error":"#REF!"},{"$error":"#REF!"},{"$f":"SUM(O260:O262)","v":{"$error":"#REF!"}}]
[null,5,"Тавин","тавин","Тав","тав","Таван","таван",{"$f":"A254/N260","v":{"$error":"#REF!"}},{"$f":"ROUND(A254,-6.4)","v":{"$error":"#REF!"}},{"$f":"A254-J260","v":{"$error":"#REF!"}},{"$f":"IF(K260<0,(A254-J260+N260*10),K260)","v":{"$error":"#REF!"}},{"$error":"#REF!"},100000,{"$error":"#REF!"},{"$f":"IF(M260>0,VLOOKUP(M260,$B$3:$H$12,IF(T260>0,6,7),0),0)","v":{"$error":"#REF!"}},"зуун",{"$f":"SUM(M254:M260)","v":{"$error":"#REF!"}},{"$error":"#REF!"},{"$error":"#REF!"}]
[null,6,"Жаран","жаран","Зургаа","зургаа","Зургаан","зургаан",{"$f":"A254/N261","v":{"$error":"#REF!"}},{"$f":"ROUND(ABS(A254),-5)","v":{"$error":"#REF!"}},{"$f":"A254-J261","v":{"$error":"#REF!"}},{"$f":"IF(K261<0,(A254-J261+N261*10),K261)","v":{"$error":"#REF!"}},{"$error":"#REF!"},10000,{"$error":"#REF!"},{"$f":"IF(M261>0,VLOOKUP(M261,$B$3:$H$12,IF(T261>0,2,3),0),0)","v":{"$error":"#REF!"}},null,{"$f":"SUM(M254:M261)","v":{"$error":"#REF!"}},{"$error":"#REF!"},{"$error":"#REF!"}]
[null,7,"Далан","далан","Долоо","долоо","Долоон","долоон",{"$f":"A254/N262","v":{"$error":"#REF!"}},{"$f":"ROUND(ABS(A254),-4)","v":{"$error":"#REF!"}},{"$f":"A254-J262","v":{"$error":"#REF!"}},{"$f":"IF(K262<0,(A254-J262+N262*10),K262)","v":{"$error":"#REF!"}},{"$error":"#REF!"},1000,{"$error":"#REF!"},{"$f":"IF(M262>0,VLOOKUP(M262,$B$3:$H$12,IF(T262>0,6,7),0),0)","v":{"$error":"#REF!"}},{"$f":"IF(U262=B267,C268,C267)","v":{"$error":"#REF!"}},{"$f":"SUM(M254:M262)","v":{"$error":"#REF!"}},{"$error":"#REF!"},{"$error":"#REF!"},{"$f":"SUM(O263:O265)","v":{"$error":"#REF!"}}]
[null,8,"Наян","наян","Найм","найм","Найман","найман",{"$f":"A254/N263","v":{"$error":"#REF!"}},{"$f":"ROUND(ABS(A254),-3)","v":{"$error":"#REF!"}},{"$f":"A254-J263","v":{"$error":"#REF!"}},{"$f":"IF(K263<0,(A254-J263+N263*10),K263)","v":{"$error":"#REF!"}},{"$error":"#REF!"},100,{"$error":"#REF!"},{"$f":"IF(M263>0,VLOOKUP(M263,$B$3:$H$12,IF(T263>0,6,7),0),0)","v":{"$error":"#REF!"}},"зуун",{"$f":"SUM(M254:M263)","v":{"$error":"#REF!"}},{"$error":"#REF!"},{"$error":"#REF!"}]
[null,9,"Ерэн","ерэн","Ес","ес","Есөн","есөн",{"$f":"A254/N264","v":{"$error":"#REF!"}},{"$f":"ROUND(ABS(A254),-2)","v":{"$error":"#REF!"}},{"$f":"A254-J264","v":{"$error":"#REF!"}},{"$f":"IF(K264<0,(A254-J264+N264*10),K264)","v":{"$error":"#REF!"}},{"$f":"(L264-L265)/N264","v":{"$error":"#REF!"}},{"$f":"N265*10","v":10},{"$error":"#REF!"},{"$f":"IF(M264>0,VLOOKUP(M264,$B$3:$H$12,IF(T264>0,2,3),0),0)","v":{"$error":"#REF!"}},null,{"$f":"SUM(M254:M264)","v":{"$error":"#REF!"}},{"$error":"#REF!"},{"$error":"#REF!"}]
[null,0,null,null,"Арав","арав",null,"нэгэн",{"$f":"A254/N265","v":{"$error":"#REF!"}},{"$f":"ROUND(ABS(A254),-1)","v":{"$error":"#REF!"}},{"$f":"A254-J265","v":{"$error":"#REF!"}},{"$f":"IF(K265<0,(A254-J265+N265*10),K265)","v":{"$error":"#REF!"}},{"$f":"(L265-L266)/N265","v":{"$error":"#REF!"}},1,{"$error":"#REF!"},{"$f":"IF(M265>0,VLOOKUP(M265,$B$3:$H$12,IF(T265>0,6,7),0),0)","v":{"$error":"#REF!"}},{"$f":"VLOOKUP(O265,B256:F265,5,0)","v":{"$error":"#REF!"}},{"$f":"SUM(M254:M265)","v":{"$error":"#REF!"}},{"$error":"#REF!"},{"$error":"#REF!"}]
[]
[null,0,"мянга",2,"USD","ам.доллар","ам.долларын","ам.долларыг","ам.доллараас"]
[null,1,"мянган",1,"MNT","төгрөг","төгрөгийн","төгрөгийг","төгрөгөөс"]
[null,null,"сая",3,"CNY","юань","юаний","юанийг","юаниас"]
[]
[{"$f":"#REF!","v":{"$error":"#REF!"}}]
[{"$f":"+A271-A254","v":{"$error":"#REF!"}},null,null,null,null,null,null,null,null,null,{"$f":"IF(SUM(J273:J275)=0,\"\",IF(SUM(J273:J274)=0,\"аравны\",IF(J273=0,\"зууны\",\"мянганы\")))","v":{"$error":"#REF!"}},null,null,null,null,null,null,null,null,null,null,null,{"$f":"CONCATENATE(K272,\" \",P275,\" \",Q275,\" \",P274,\" \",P273)","v":{"$error":"#REF!"}}]
[null,null,null,null,null,null,null,3,{"$f":"ROUND(A272*N273,H273)","v":{"$error":"#REF!"}},{"$f":"INT(VALUE(I273)-J274*N275-J275*N274)","v":{"$error":"#REF!"}},null,null,null,{"$f":"N274*10","v":1000},null,{"$f":"IF(J273>0,VLOOKUP(J273,$B$3:$H$12,IF(K272=\"мянганы\",7,IF(K272=\"зууны\",3,IF(K272=\"аравны\",7,\"\"))),0),\"\")","v":{"$error":"#REF!"}}]
[null,null,null,null,null,null,null,2,{"$f":"ROUND(A272*N274,H274)","v":{"$error":"#REF!"}},{"$f":"VALUE(INT(I274))-J275*N275","v":{"$error":"#REF!"}},null,null,null,{"$f":"N275*10","v":100},null,{"$f":"IF(J274>0,VLOOKUP(J274,$B$3:$H$12,IF(K272=\"мянганы\",3,IF(K272=\"зууны\",7,IF(K272=\"аравны\",3,\"\"))),0),\"\")","v":{"$error":"#REF!"}}]
[null,null,null,null,null,null,null,1,{"$f":"ROUND(A272*N275,H275)","v":{"$error":"#REF!"}},{"$f":"VALUE(INT(I275))","v":{"$error":"#REF!"}},null,null,null,{"$f":"N276*10","v":10},null,{"$f":"IF(J275>0,VLOOKUP(J275,$B$3:$H$12,IF(K272=\"мянганы\",7,IF(K272=\"зууны\",3,IF(K272=\"аравны\",7,\"\"))),0),\"\")","v":{"$error":"#REF!"}},{"$f":"IF(K272=\"мянганы\",IF(AND(SUM(J274:J275)=0,J273>0),\"\",\"зуун\"),\"\")","v":{"$error":"#REF!"}}]
[null,null,null,null,null,null,null,null,null,null,null,null,null,1]
[]
[]
[{"$f":"ROUNDDOWN(A296,0)","v":{"$error":"#REF!"}},null,null,null,null,null,null,null,{"$f":"A279/N279","v":{"$error":"#REF!"}},{"$f":"ROUND(ABS(A279),-12)","v":{"$error":"#REF!"}},{"$f":"A279-J279","v":{"$error":"#REF!"}},{"$f":"IF(K279<0,(A279-J279+N279*10),K279)","v":{"$error":"#REF!"}},{"$f":"(L279-L280)/N279","v":{"$error":"#REF!"}},{"$f":"N280*10","v":100000000000},{"$f":"VALUE(IF(M279=0,0,M279))","v":{"$error":"#REF!"}},{"$f":"IF(M279>0,VLOOKUP(M279,$B$3:$H$12,IF(T279>0,6,7),0),0)","v":{"$error":"#REF!"}},"зуун",{"$f":"SUM(M279)","v":{"$error":"#REF!"}},{"$f":"IF(R279>0,1,0)","v":{"$error":"#REF!"}},{"$f":"IF(S279=0,0,1)","v":{"$error":"#REF!"}},{"$f":"SUM(O279:O281)","v":{"$error":"#REF!"}},null,{"$f":"CONCATENATE(IF(O279=0,\"\",CONCATENATE(P279,\" \",Q279)),IF(O280=0,\"\",CONCATENATE(\" \",P280)),IF(U279=0,\"\",CONCATENATE(\" \",IF(P281=0,\"\",P281),\" \",Q281)),IF(O282=0,\"\",CONCATENATE(\" \",P282,\" \",Q282)),IF(O283=0,\"\",CONCATENATE(\" \",P283)),IF(U281=0,\"\",CONCATENATE(\" \",IF(P284=0,\"\",P284),\" \",Q284)),IF(O285=0,\"\",CONCATENATE(\" \",P285,\" \",Q285)),IF(O286=0,\"\",CONCATENATE(\" \",P286)),IF(U284=0,\"\",CONCATENATE(\" \",IF(P287=0,\"\",P287),\" \",Q287)),IF(O288=0,\"\",CONCATENATE(\" \",P288,\" \",Q288)),IF(O289=0,\"\",CONCATENATE(\" \",P289)),IF(O290=0,\"\",CONCATENATE(\" \",IF(VALUE(A297)=0,P290,Q290))))","v":{"$error":"#REF!"}}]
[null,null,null,null,null,null,null,null,{"$f":"A279/N280","v":{"$error":"#REF!"}},{"$f":"ROUND(ABS(A279),-11)","v":{"$error":"#REF!"}},{"$f":"A279-J280","v":{"$error":"#REF!"}},{"$f":"IF(K280<0,(A279-J280+N280*10),K280)","v":{"$error":"#REF!"}},{"$error":"#REF!"},10000000000,{"$f":"VALUE(IF(M280=0,0,M280))","v":{"$error":"#REF!"}},{"$f":"IF(M280>0,VLOOKUP(M280,$B$3:$H$12,IF(T280>0,2,3),0),0)","v":{"$error":"#REF!"}},null,{"$f":"SUM(M279:M280)","v":{"$error":"#REF!"}},{"$f":"IF(SUM(R279:R280)>0,1,0)","v":{"$error":"#REF!"}},{"$f":"IF(S280<>S279,1,0)","v":{"$error":"#REF!"}},null,null,{"$f":"CONCATENATE(W279,\" \",W297)","v":{"$error":"#REF!"}}]
[{"$f":"VLOOKUP(A282,'    '!D292:F294,3,0)","v":{"$error":"#REF!"}},1,"Арван","арван","Нэг","нэг","Нэг",{"$f":"IF(O287=1,F281,H290)","v":{"$error":"#REF!"}},{"$f":"A279/N281","v":{"$error":"#REF!"}},{"$f":"ROUND(ABS(A279),-10)","v":{"$error":"#REF!"}},{"$f":"A279-J281","v":{"$error":"#REF!"}},{"$f":"IF(K281<0,(A279-J281+N281*10),K281)","v":{"$error":"#REF!"}},{"$error":"#REF!"},1000000000,{"$error":"#REF!"},{"$f":"IF(M281>0,VLOOKUP(M281,$B$3:$H$12,IF(T281>0,6,7),0),0)","v":{"$error":"#REF!"}},"тэрбум",{"$f":"SUM(M279:M281)","v":{"$error":"#REF!"}},{"$f":"IF(SUM(R280:R281)>0,1,0)","v":{"$error":"#REF!"}},{"$f":"IF(S281<>S280,1,0)","v":{"$error":"#REF!"}},{"$f":"SUM(O282:O284)","v":{"$error":"#REF!"}}]
[{"$f":"A4","v":{"$error":"#REF!"}},2,"Хорин","хорин","Хоёр","хоёр","Хоёр","хоёр",{"$f":"A279/N282","v":{"$error":"#REF!"}},{"$f":"ROUND(ABS(A279),-9)","v":{"$error":"#REF!"}},{"$f":"A279-J282","v":{"$error":"#REF!"}},{"$f":"IF(K282<0,(A279-J282+N282*10),K282)","v":{"$error":"#REF!"}},{"$error":"#REF!"},100000000,{"$error":"#REF!"},{"$f":"IF(M282>0,VLOOKUP(M282,$B$3:$H$12,IF(T282>0,6,7),0),0)","v":{"$error":"#REF!"}},"зуун",{"$f":"SUM(M279:M282)","v":{"$error":"#REF!"}},{"$error":"#REF!"},{"$error":"#REF!"}]
[{"$f":"VLOOKUP(A282,D292:G294,4,0)","v":{"$error":"#REF!"}},3,"Гучин","гучин","Гурав","гурав","Гурван","гурван",{"$f":"A279/N283","v":{"$error":"#REF!"}},{"$f":"ROUND(ABS(A279),-8)","v":{"$error":"#REF!"}},{"$f":"A279-J283","v":{"$error":"#REF!"}},{"$f":"IF(K283<0,(A279-J283+N283*10),K283)","v":{"$error":"#REF!"}},{"$error":"#REF!"},10000000,{"$error":"#REF!"},{"$f":"IF(M283>0,VLOOKUP(M283,$B$3:$H$12,IF(T283>0,2,3),0),0)","v":{"$error":"#REF!"}},null,{"$f":"SUM(M279:M283)","v":{"$error":"#REF!"}},{"$error":"#REF!"},{"$error":"#REF!"}]
[{"$f":"VLOOKUP(A282,D292:K294,6,0)","v":{"$error":"#REF!"}},4,"Дөчин","дөчин","Дөрөв","дөрөв","Дөрвөн","дөрвөн",{"$f":"A279/N284","v":{"$error":"#REF!"}},{"$f":"ROUND(ABS(A279),-7)","v":{"$error":"#REF!"}},{"$f":"A279-J284","v":{"$error":"#REF!"}},{"$f":"IF(K284<0,(A279-J284+N284*10),K284)","v":{"$error":"#REF!"}},{"$error":"#REF!"},1000000,{"$error":"#REF!"},{"$f":"IF(M284>0,VLOOKUP(M284,$B$3:$H$12,IF(T284>0,6,7),0),0)","v":{"$error":"#REF!"}},"сая",{"$f":"SUM(M279:M284)","v":{"$error":"#REF!"}},{"$error":"#REF!"},{"$error":"#REF!"},{"$f":"SUM(O285:O287)","v":{"$error":"#REF!"}}]
[null,5,"Тавин","тавин","Тав","тав","Таван","таван",{"$f":"A279/N285","v":{"$error":"#REF!"}},{"$f":"ROUND(A279,-6.4)","v":{"$error":"#REF!"}},{"$f":"A279-J285","v":{"$error":"#REF!"}},{"$f":"IF(K285<0,(A279-J285+N285*10),K285)","v":{"$error":"#REF!"}},{"$error":"#REF!"},100000,{"$error":"#REF!"},{"$f":"IF(M285>0,VLOOKUP(M285,$B$3:$H$12,IF(T285>0,6,7),0),0)","v":{"$error":"#REF!"}},"зуун",{"$f":"SUM(M279:M285)","v":{"$error":"#REF!"}},{"$error":"#REF!"},{"$error":"#REF!"}]
[null,6,"Жаран","жаран","Зургаа","зургаа","Зургаан","зургаан",{"$f":"A279/N286","v":{"$error":"#REF!"}},{"$f":"ROUND(ABS(A279),-5)","v":{"$error":"#REF!"}},{"$f":"A279-J286","v":{"$error":"#REF!"}},{"$f":"IF(K286<0,(A279-J286+N286*10),K286)","v":{"$error":"#REF!"}},{"$error":"#REF!"},10000,{"$error":"#REF!"},{"$f":"IF(M286>0,VLOOKUP(M286,$B$3:$H$12,IF(T286>0,2,3),0),0)","v":{"$error":"#REF!"}},null,{"$f":"SUM(M279:M286)","v":{"$error":"#REF!"}},{"$error":"#REF!"},{"$error":"#REF!"}]
[null,7,"Далан","далан","Долоо","долоо","Долоон","долоон",{"$f":"A279/N287","v":{"$error":"#REF!"}},{"$f":"ROUND(ABS(A279),-4)","v":{"$error":"#REF!"}},{"$f":"A279-J287","v":{"$error":"#REF!"}},{"$f":"IF(K287<0,(A279-J287+N287*10),K287)","v":{"$error":"#REF!"}},{"$error":"#REF!"},1000,{"$error":"#REF!"},{"$f":"IF(M287>0,VLOOKUP(M287,$B$3:$H$12,IF(T287>0,6,7),0),0)","v":{"$error":"#REF!"}},{"$f":"IF(U287=B292,C293,C292)","v":{"$error":"#REF!"}},{"$f":"SUM(M279:M287)","v":{"$error":"#REF!"}},{"$error":"#REF!"},{"$error":"#REF!"},{"$f":"SUM(O288:O290)","v":{"$error":"#REF!"}}]
[null,8,"Наян","наян","Найм","найм","Найман","найман",{"$f":"A279/N288","v":{"$error":"#REF!"}},{"$f":"ROUND(ABS(A279),-3)","v":{"$error":"#REF!"}},{"$f":"A279-J288","v":{"$error":"#REF!"}},{"$f":"IF(K288<0,(A279-J288+N288*10),K288)","v":{"$error":"#REF!"}},{"$error":"#REF!"},100,{"$error":"#REF!"},{"$f":"IF(M288>0,VLOOKUP(M288,$B$3:$H$12,IF(T288>0,6,7),0),0)","v":{"$error":"#REF!"}},"зуун",{"$f":"SUM(M279:M288)","v":{"$error":"#REF!"}},{"$error":"#REF!"},{"$error":"#REF!"}]
[null,9,"Ерэн","ерэн","Ес","ес","Есөн","есөн",{"$f":"A279/N289","v":{"$error":"#REF!"}},{"$f":"ROUND(ABS(A279),-2)","v":{"$error":"#REF!"}},{"$f":"A279-J289","v":{"$error":"#REF!"}},{"$f":"IF(K289<0,(A279-J289+N289*10),K289)","v":{"$error":"#REF!"}},{"$f":"(L289-L290)/N289","v":{"$error":"#REF!"}},{"$f":"N290*10","v":10},{"$error":"#REF!"},{"$f":"IF(M289>0,VLOOKUP(M289,$B$3:$H$12,IF(T289>0,2,3),0),0)","v":{"$error":"#REF!"}},null,{"$f":"SUM(M279:M289)","v":{"$error":"#REF!"}},{"$error":"#REF!"},{"$error":"#REF!"}]
[null,0,null,null,"Арав","арав",null,"нэгэн",{"$f":"A279/N290","v":{"$error":"#REF!"}},{"$f":"ROUND(ABS(A279),-1)","v":{"$error":"#REF!"}},{"$f":"A279-J290","v":{"$error":"#REF!"}},{"$f":"IF(K290<0,(A279-J290+N290*10),K290)","v":{"$error":"#REF!"}},{"$f":"(L290-L291)/N290","v":{"$error":"#REF!"}},1,{"$error":"#REF!"},{"$f":"IF(M290>0,VLOOKUP(M290,$B$3:$H$12,IF(T290>0,6,7),0),0)","v":{"$error":"#REF!"}},{"$f":"VLOOKUP(O290,B281:F290,5,0)","v":{"$error":"#REF!"}},{"$f":"SUM(M279:M290)","v":{"$error":"#REF!"}},{"$error":"#REF!"},{"$error":"#REF!"}]
[]
[null,0,"мянга",2,"USD","ам.доллар","ам.долларын","ам.долларыг","ам.доллараас"]
[null,1,"мянган",1,"MNT","төгрөг","төгрөгийн","төгрөгийг","төгрөгөөс"]
[null,null,"сая",3,"CNY","юань","юаний","юанийг","юаниас"]
[]
[{"$f":"#REF!","v":{"$error":"#REF!"}}]
[{"$f":"+A296-A279","v":{"$error":"#REF!"}},null,null,null,null,null,null,null,null,null,{"$f":"IF(SUM(J298:J300)=0,\"\",IF(SUM(J298:J299)=0,\"аравны\",IF(J298=0,\"зууны\",\"мянганы\")))","v":{"$error":"#REF!"}},null,null,null,null,null,null,null,null,null,null,null,{"$f":"CONCATENATE(K297,\" \",P300,\" \",Q300,\" \",P299,\" \",P298)","v":{"$error":"#REF!"}}]
[null,null,null,null,null,null,null,3,{"$f":"ROUND(A297*N298,H298)","v":{"$error":"#REF!"}},{"$f":"INT(VALUE(I298)-J299*N300-J300*N299)","v":{"$error":"#REF!"}},null,null,null,{"$f":"N299*10","v":1000},null,{"$f":"IF(J298>0,VLOOKUP(J298,$B$3:$H$12,IF(K297=\"мянганы\",7,IF(K297=\"зууны\",3,IF(K297=\"аравны\",7,\"\"))),0),\"\")","v":{"$error":"#REF!"}}]
[null,null,null,null,null,null,null,2,{"$f":"ROUND(A297*N299,H299)","v":{"$error":"#REF!"}},{"$f":"VALUE(INT(I299))-J300*N300","v":{"$error":"#REF!"}},null,null,null,{"$f":"N300*10","v":100},null,{"$f":"IF(J299>0,VLOOKUP(J299,$B$3:$H$12,IF(K297=\"мянганы\",3,IF(K297=\"зууны\",7,IF(K297=\"аравны\",3,\"\"))),0),\"\")","v":{"$error":"#REF!"}}]
[null,null,null,null,null,null,null,1,{"$f":"ROUND(A297*N300,H300)","v":{"$error":"#REF!"}},{"$f":"VALUE(INT(I300))","v":{"$error":"#REF!"}},null,null,null,{"$f":"N301*10","v":10},null,{"$f":"IF(J300>0,VLOOKUP(J300,$B$3:$H$12,IF(K297=\"мянганы\",7,IF(K297=\"зууны\",3,IF(K297=\"аравны\",7,\"\"))),0),\"\")","v":{"$error":"#REF!"}},{"$f":"IF(K297=\"мянганы\",IF(AND(SUM(J299:J300)=0,J298>0),\"\",\"зуун\"),\"\")","v":{"$error":"#REF!"}}]
[null,null,null,null,null,null,null,null,null,null,null,null,null,1]
[]
["ХЭРЭГЛЭЭНИЙ ЛИЗИНГ - MORTGAGE + CONSUMER LEASING"]
[]
[{"$f":"ROUNDDOWN(A322,0)","v":{"$error":"#REF!"}},null,null,null,null,null,null,null,{"$f":"A305/N305","v":{"$error":"#REF!"}},{"$f":"ROUND(ABS(A305),-12)","v":{"$error":"#REF!"}},{"$f":"A305-J305","v":{"$error":"#REF!"}},{"$f":"IF(K305<0,(A305-J305+N305*10),K305)","v":{"$error":"#REF!"}},{"$f":"(L305-L306)/N305","v":{"$error":"#REF!"}},{"$f":"N306*10","v":100000000000},{"$f":"VALUE(IF(M305=0,0,M305))","v":{"$error":"#REF!"}},{"$f":"IF(M305>0,VLOOKUP(M305,$B$3:$H$12,IF(T305>0,6,7),0),0)","v":{"$error":"#REF!"}},"зуун",{"$f":"SUM(M305)","v":{"$error":"#REF!"}},{"$f":"IF(R305>0,1,0)","v":{"$error":"#REF!"}},{"$f":"IF(S305=0,0,1)","v":{"$error":"#REF!"}},{"$f":"SUM(O305:O307)","v":{"$error":"#REF!"}},null,{"$f":"CONCATENATE(IF(O305=0,\"\",CONCATENATE(P305,\" \",Q305)),IF(O306=0,\"\",CONCATENATE(\" \",P306)),IF(U305=0,\"\",CONCATENATE(\" \",IF(P307=0,\"\",P307),\" \",Q307)),IF(O308=0,\"\",CONCATENATE(\" \",P308,\" \",Q308)),IF(O309=0,\"\",CONCATENATE(\" \",P309)),IF(U307=0,\"\",CONCATENATE(\" \",IF(P310=0,\"\",P310),\" \",Q310)),IF(O311=0,\"\",CONCATENATE(\" \",P311,\" \",Q311)),IF(O312=0,\"\",CONCATENATE(\" \",P312)),IF(U310=0,\"\",CONCATENATE(\" \",IF(P313=0,\"\",P313),\" \",Q313)),IF(O314=0,\"\",CONCATENATE(\" \",P314,\" \",Q314)),IF(O315=0,\"\",CONCATENATE(\" \",P315)),IF(O316=0,\"\",CONCATENATE(\" \",IF(VALUE(A323)=0,P316,Q316))))","v":{"$error":"#REF!"}}]
[null,null,null,null,null,null,null,null,{"$f":"A305/N306","v":{"$error":"#REF!"}},{"$f":"ROUND(ABS(A305),-11)","v":{"$error":"#REF!"}},{"$f":"A305-J306","v":{"$error":"#REF!"}},{"$f":"IF(K306<0,(A305-J306+N306*10),K306)","v":{"$error":"#REF!"}},{"$error":"#REF!"},10000000000,{"$f":"VALUE(IF(M306=0,0,M306))","v":{"$error":"#REF!"}},{"$f":"IF(M306>0,VLOOKUP(M306,$B$3:$H$12,IF(T306>0,2,3),0),0)","v":{"$error":"#REF!"}},null,{"$f":"SUM(M305:M306)","v":{"$error":"#REF!"}},{"$f":"IF(SUM(R305:R306)>0,1,0)","v":{"$error":"#REF!"}},{"$f":"IF(S306<>S305,1,0)","v":{"$error":"#REF!"}},null,null,{"$f":"CONCATENATE(W305,\" \",W323)","v":{"$error":"#REF!"}}]
[{"$f":"VLOOKUP(A308,'    '!D318:F320,3,0)","v":{"$error":"#REF!"}},1,"Арван","арван","Нэг","нэг","Нэг",{"$f":"IF(O313=1,F307,H316)","v":{"$error":"#REF!"}},{"$f":"A305/N307","v":{"$error":"#REF!"}},{"$f":"ROUND(ABS(A305),-10)","v":{"$error":"#REF!"}},{"$f":"A305-J307","v":{"$error":"#REF!"}},{"$f":"IF(K307<0,(A305-J307+N307*10),K307)","v":{"$error":"#REF!"}},{"$error":"#REF!"},1000000000,{"$error":"#REF!"},{"$f":"IF(M307>0,VLOOKUP(M307,$B$3:$H$12,IF(T307>0,6,7),0),0)","v":{"$error":"#REF!"}},"тэрбум",{"$f":"SUM(M305:M307)","v":{"$error":"#REF!"}},{"$f":"IF(SUM(R306:R307)>0,1,0)","v":{"$error":"#REF!"}},{"$f":"IF(S307<>S306,1,0)","v":{"$error":"#REF!"}},{"$f":"SUM(O308:O310)","v":{"$error":"#REF!"}}]
[{"$f":"IF(#REF!=E318,D318,IF(#REF!=E319,D319,IF(#REF!=E320,D320,1)))","v":{"$error":"#REF!"}},2,"Хорин","хорин","Хоёр","хоёр","Хоёр","хоёр",{"$f":"A305/N308","v":{"$error":"#REF!"}},{"$f":"ROUND(ABS(A305),-9)","v":{"$error":"#REF!"}},{"$f":"A305-J308","v":{"$error":"#REF!"}},{"$f":"IF(K308<0,(A305-J308+N308*10),K308)","v":{"$error":"#REF!"}},{"$error":"#REF!"},100000000,{"$error":"#REF!"},{"$f":"IF(M308>0,VLOOKUP(M308,$B$3:$H$12,IF(T308>0,6,7),0),0)","v":{"$error":"#REF!"}},"зуун",{"$f":"SUM(M305:M308)","v":{"$error":"#REF!"}},{"$error":"#REF!"},{"$error":"#REF!"}]
[{"$f":"VLOOKUP(A308,D318:G320,4,0)","v":{"$error":"#REF!"}},3,"Гучин","гучин","Гурав","гурав","Гурван","гурван",{"$f":"A305/N309","v":{"$error":"#REF!"}},{"$f":"ROUND(ABS(A305),-8)","v":{"$error":"#REF!"}},{"$f":"A305-J309","v":{"$error":"#REF!"}},{"$f":"IF(K309<0,(A305-J309+N309*10),K309)","v":{"$error":"#REF!"}},{"$error":"#REF!"},10000000,{"$error":"#REF!"},{"$f":"IF(M309>0,VLOOKUP(M309,$B$3:$H$12,IF(T309>0,2,3),0),0)","v":{"$error":"#REF!"}},null,{"$f":"SUM(M305:M309)","v":{"$error":"#REF!"}},{"$error":"#REF!"},{"$error":"#REF!"}]
[{"$f":"VLOOKUP(A308,D318:K320,6,0)","v":{"$error":"#REF!"}},4,"Дөчин","дөчин","Дөрөв","дөрөв","Дөрвөн","дөрвөн",{"$f":"A305/N310","v":{"$error":"#REF!"}},{"$f":"ROUND(ABS(A305),-7)","v":{"$error":"#REF!"}},{"$f":"A305-J310","v":{"$error":"#REF!"}},{"$f":"IF(K310<0,(A305-J310+N310*10),K310)","v":{"$error":"#REF!"}},{"$error":"#REF!"},1000000,{"$error":"#REF!"},{"$f":"IF(M310>0,VLOOKUP(M310,$B$3:$H$12,IF(T310>0,6,7),0),0)","v":{"$error":"#REF!"}},"сая",{"$f":"SUM(M305:M310)","v":{"$error":"#REF!"}},{"$error":"#REF!"},{"$error":"#REF!"},{"$f":"SUM(O311:O313)","v":{"$error":"#REF!"}}]
[{"$f":"VLOOKUP(A308,D318:K320,5,0)","v":{"$error":"#REF!"}},5,"Тавин","тавин","Тав","тав","Таван","таван",{"$f":"A305/N311","v":{"$error":"#REF!"}},{"$f":"ROUND(A305,-6.4)","v":{"$error":"#REF!"}},{"$f":"A305-J311","v":{"$error":"#REF!"}},{"$f":"IF(K311<0,(A305-J311+N311*10),K311)","v":{"$error":"#REF!"}},{"$error":"#REF!"},100000,{"$error":"#REF!"},{"$f":"IF(M311>0,VLOOKUP(M311,$B$3:$H$12,IF(T311>0,6,7),0),0)","v":{"$error":"#REF!"}},"зуун",{"$f":"SUM(M305:M311)","v":{"$error":"#REF!"}},{"$error":"#REF!"},{"$error":"#REF!"}]
[null,6,"Жаран","жаран","Зургаа","зургаа","Зургаан","зургаан",{"$f":"A305/N312","v":{"$error":"#REF!"}},{"$f":"ROUND(ABS(A305),-5)","v":{"$error":"#REF!"}},{"$f":"A305-J312","v":{"$error":"#REF!"}},{"$f":"IF(K312<0,(A305-J312+N312*10),K312)","v":{"$error":"#REF!"}},{"$error":"#REF!"},10000,{"$error":"#REF!"},{"$f":"IF(M312>0,VLOOKUP(M312,$B$3:$H$12,IF(T312>0,2,3),0),0)","v":{"$error":"#REF!"}},null,{"$f":"SUM(M305:M312)","v":{"$error":"#REF!"}},{"$error":"#REF!"},{"$error":"#REF!"}]
[null,7,"Далан","далан","Долоо","долоо","Долоон","долоон",{"$f":"A305/N313","v":{"$error":"#REF!"}},{"$f":"ROUND(ABS(A305),-4)","v":{"$error":"#REF!"}},{"$f":"A305-J313","v":{"$error":"#REF!"}},{"$f":"IF(K313<0,(A305-J313+N313*10),K313)","v":{"$error":"#REF!"}},{"$error":"#REF!"},1000,{"$error":"#REF!"},{"$f":"IF(M313>0,VLOOKUP(M313,$B$3:$H$12,IF(T313>0,6,7),0),0)","v":{"$error":"#REF!"}},{"$f":"IF(U313=B318,C319,C318)","v":{"$error":"#REF!"}},{"$f":"SUM(M305:M313)","v":{"$error":"#REF!"}},{"$error":"#REF!"},{"$error":"#REF!"},{"$f":"SUM(O314:O316)","v":{"$error":"#REF!"}}]
[null,8,"Наян","наян","Найм","найм","Найман","найман",{"$f":"A305/N314","v":{"$error":"#REF!"}},{"$f":"ROUND(ABS(A305),-3)","v":{"$error":"#REF!"}},{"$f":"A305-J314","v":{"$error":"#REF!"}},{"$f":"IF(K314<0,(A305-J314+N314*10),K314)","v":{"$error":"#REF!"}},{"$error":"#REF!"},100,{"$error":"#REF!"},{"$f":"IF(M314>0,VLOOKUP(M314,$B$3:$H$12,IF(T314>0,6,7),0),0)","v":{"$error":"#REF!"}},"зуун",{"$f":"SUM(M305:M314)","v":{"$error":"#REF!"}},{"$error":"#REF!"},{"$error":"#REF!"}]
[null,9,"Ерэн","ерэн","Ес","ес","Есөн","есөн",{"$f":"A305/N315","v":{"$error":"#REF!"}},{"$f":"ROUND(ABS(A305),-2)","v":{"$error":"#REF!"}},{"$f":"A305-J315","v":{"$error":"#REF!"}},{"$f":"IF(K315<0,(A305-J315+N315*10),K315)","v":{"$error":"#REF!"}},{"$f":"(L315-L316)/N315","v":{"$error":"#REF!"}},{"$f":"N316*10","v":10},{"$error":"#REF!"},{"$f":"IF(M315>0,VLOOKUP(M315,$B$3:$H$12,IF(T315>0,2,3),0),0)","v":{"$error":"#REF!"}},null,{"$f":"SUM(M305:M315)","v":{"$error":"#REF!"}},{"$error":"#REF!"},{"$error":"#REF!"}]
[null,0,null,null,"Арав","арав",null,"нэгэн",{"$f":"A305/N316","v":{"$error":"#REF!"}},{"$f":"ROUND(ABS(A305),-1)","v":{"$error":"#REF!"}},{"$f":"A305-J316","v":{"$error":"#REF!"}},{"$f":"IF(K316<0,(A305-J316+N316*10),K316)","v":{"$error":"#REF!"}},{"$f":"(L316-L317)/N316","v":{"$error":"#REF!"}},1,{"$error":"#REF!"},{"$f":"IF(M316>0,VLOOKUP(M316,$B$3:$H$12,IF(T316>0,6,7),0),0)","v":{"$error":"#REF!"}},{"$f":"VLOOKUP(O316,B307:F316,5,0)","v":{"$error":"#REF!"}},{"$f":"SUM(M305:M316)","v":{"$error":"#REF!"}},{"$error":"#REF!"},{"$error":"#REF!"}]
[]
[null,0,"мянга",2,"USD","ам.доллар","ам.долларын","ам.долларыг","ам.доллараас"]
[null,1,"мянган",1,"MNT","төгрөг","төгрөгийн","төгрөгийг","төгрөгөөс"]
[null,null,"сая",3,"CNY","юань","юаний","юанийг","юаниас"]
[]
[{"$f":"#REF!","v":{"$error":"#REF!"}}]
[{"$f":"+A322-A305","v":{"$error":"#REF!"}},null,null,null,null,null,null,null,null,null,{"$f":"IF(SUM(J324:J326)=0,\"\",IF(SUM(J324:J325)=0,\"аравны\",IF(J324=0,\"зууны\",\"мянганы\")))","v":{"$error":"#REF!"}},null,null,null,null,null,null,null,null,null,null,null,{"$f":"CONCATENATE(K323,\" \",P326,\" \",Q326,\" \",P325,\" \",P324)","v":{"$error":"#REF!"}}]
[null,null,null,null,null,null,null,3,{"$f":"ROUND(A323*N324,H324)","v":{"$error":"#REF!"}},{"$f":"INT(VALUE(I324)-J325*N326-J326*N325)","v":{"$error":"#REF!"}},null,null,null,{"$f":"N325*10","v":1000},null,{"$f":"IF(J324>0,VLOOKUP(J324,$B$3:$H$12,IF(K323=\"мянганы\",7,IF(K323=\"зууны\",3,IF(K323=\"аравны\",7,\"\"))),0),\"\")","v":{"$error":"#REF!"}}]
[null,null,null,null,null,null,null,2,{"$f":"ROUND(A323*N325,H325)","v":{"$error":"#REF!"}},{"$f":"VALUE(INT(I325))-J326*N326","v":{"$error":"#REF!"}},null,null,null,{"$f":"N326*10","v":100},null,{"$f":"IF(J325>0,VLOOKUP(J325,$B$3:$H$12,IF(K323=\"мянганы\",3,IF(K323=\"зууны\",7,IF(K323=\"аравны\",3,\"\"))),0),\"\")","v":{"$error":"#REF!"}}]
[null,null,null,null,null,null,null,1,{"$f":"ROUND(A323*N326,H326)","v":{"$error":"#REF!"}},{"$f":"VALUE(INT(I326))","v":{"$error":"#REF!"}},null,null,null,{"$f":"N327*10","v":10},null,{"$f":"IF(J326>0,VLOOKUP(J326,$B$3:$H$12,IF(K323=\"мянганы\",7,IF(K323=\"зууны\",3,IF(K323=\"аравны\",7,\"\"))),0),\"\")","v":{"$error":"#REF!"}},{"$f":"IF(K323=\"мянганы\",IF(AND(SUM(J325:J326)=0,J324>0),\"\",\"зуун\"),\"\")","v":{"$error":"#REF!"}}]
[null,null,null,null,null,null,null,null,null,null,null,null,null,1]
[]
[]
[null,null,null,null,null,null,null,{"$f":"IF(SUM(L333:L334)=0,\"\",IF(VALUE(K334)=0,\"аравны\",\"зууны\"))","v":{"$error":"#REF!"}}]
[{"$f":"#REF!*100","v":{"$error":"#REF!"}},1,"Арван","арван","Нэг","нэг","Нэг",{"$f":"IF(N337=1,F331,H340)","v":"нэгэн"},"Арав",{"$f":"ROUNDDOWN(A331/M331,0)","v":{"$error":"#REF!"}},{"$f":"RIGHT(ROUND(J331,0),1)","v":{"$error":"#REF!"}},{"$f":"VALUE(K331)","v":{"$error":"#REF!"}},{"$f":"M332*10","v":10},{"$f":"VALUE(IF(L331=0,0,L331))","v":{"$error":"#REF!"}},{"$f":"IF(L331=0,\"\",VLOOKUP(L331,B$88:I$97,IF(L332=0,8,2),0))","v":{"$error":"#REF!"}},{"$f":"CONCATENATE(O331,\" \",O332,\" \",H330,\" \",O333,\" \",O334)","v":{"$error":"#REF!"}}]
[null,2,"Хорин","хорин","Хоёр","хоёр","Хоёр","хоёр","Хорь",{"$f":"ROUNDDOWN(A331/M332,0)","v":{"$error":"#REF!"}},{"$f":"RIGHT(ROUND(J332,0),1)","v":{"$error":"#REF!"}},{"$f":"VALUE(K332)","v":{"$error":"#REF!"}},{"$f":"M333*10","v":1},{"$f":"VALUE(IF(L332=0,0,L332))","v":{"$error":"#REF!"}},{"$f":"IF(AND(L331>0,L332=0),\"\",IF(SUM(L$88:L$89)=0,C340,IF(L332>0,VLOOKUP(L332,B$3:H$12,IF(SUM(L$90:L$91)=0,IF(L331=0,6,7),IF(L331=0,4,5)),0),0)))","v":{"$error":"#REF!"}}]
[null,3,"Гучин","гучин","Гурав","гурав","Гурван","гурван","Гуч",{"$f":"ROUNDDOWN(A331/M333,0)","v":{"$error":"#REF!"}},{"$f":"RIGHT(ROUND(J333,0),1)","v":{"$error":"#REF!"}},{"$f":"VALUE(K333)","v":{"$error":"#REF!"}},{"$f":"M334*10","v":0.1},{"$f":"VALUE(IF(L333=0,0,L333))","v":{"$error":"#REF!"}},{"$f":"IF(L333=0,\"\",IF(SUM(L$90:L$91)=0,\"\",IF(L333>0,VLOOKUP(L333,B$3:H$12,IF(VALUE(L334)=0,7,3),0),0)))","v":{"$error":"#REF!"}}]
[null,4,"Дөчин","дөчин","Дөрөв","дөрөв","Дөрвөн","дөрвөн","Дөч",{"$f":"ROUND(A331/M334,0)","v":{"$error":"#REF!"}},{"$f":"RIGHT(ROUND(J334,0),1)","v":{"$error":"#REF!"}},{"$f":"VALUE(K334)","v":{"$error":"#REF!"}},0.01,{"$f":"VALUE(IF(L334=0,0,L334))","v":{"$error":"#REF!"}},{"$f":"IF(L334=0,\"\",IF(L334>0,VLOOKUP(L334,B$3:H$12,IF(T342>0,6,7),0),0))","v":{"$error":"#REF!"}}]
[null,5,"Тавин","тавин","Тав","тав","Таван","таван","Тавь"]
[null,6,"Жаран","жаран","Зургаа","зургаа","Зургаан","зургаан","Жар"]
[null,7,"Далан","далан","Долоо","долоо","Долоон","долоон","Дал"]
[null,8,"Наян","наян","Найм","найм","Найман","найман","Ная"]
[null,9,"Ерэн","ерэн","Ес","ес","Есөн","есөн","Ер"]
[null,0,null,null,"Арав","арав",null,"нэгэн"]
[]
[]
[{"$f":"ROUNDDOWN(A360,0)","v":{"$error":"#REF!"}},null,null,null,null,null,null,null,{"$f":"A343/N343","v":{"$error":"#REF!"}},{"$f":"ROUND(ABS(A343),-12)","v":{"$error":"#REF!"}},{"$f":"A343-J343","v":{"$error":"#REF!"}},{"$f":"IF(K343<0,(A343-J343+N343*10),K343)","v":{"$error":"#REF!"}},{"$f":"(L343-L344)/N343","v":{"$error":"#REF!"}},{"$f":"N344*10","v":100000000000},{"$f":"VALUE(IF(M343=0,0,M343))","v":{"$error":"#REF!"}},{"$f":"IF(M343>0,VLOOKUP(M343,$B$3:$H$12,IF(T343>0,6,7),0),0)","v":{"$error":"#REF!"}},"зуун",{"$f":"SUM(M343)","v":{"$error":"#REF!"}},{"$f":"IF(R343>0,1,0)","v":{"$error":"#REF!"}},{"$f":"IF(S343=0,0,1)","v":{"$error":"#REF!"}},{"$f":"SUM(O343:O345)","v":{"$error":"#REF!"}},null,{"$f":"CONCATENATE(IF(O343=0,\"\",CONCATENATE(P343,\" \",Q343)),IF(O344=0,\"\",CONCATENATE(\" \",P344)),IF(U343=0,\"\",CONCATENATE(\" \",IF(P345=0,\"\",P345),\" \",Q345)),IF(O346=0,\"\",CONCATENATE(\" \",P346,\" \",Q346)),IF(O347=0,\"\",CONCATENATE(\" \",P347)),IF(U345=0,\"\",CONCATENATE(\" \",IF(P348=0,\"\",P348),\" \",Q348)),IF(O349=0,\"\",CONCATENATE(\" \",P349,\" \",Q349)),IF(O350=0,\"\",CONCATENATE(\" \",P350)),IF(U348=0,\"\",CONCATENATE(\" \",IF(P351=0,\"\",P351),\" \",Q351)),IF(O352=0,\"\",CONCATENATE(\" \",P352,\" \",Q352)),IF(O353=0,\"\",CONCATENATE(\" \",P353)),IF(O354=0,\"\",CONCATENATE(\" \",IF(VALUE(A361)=0,P354,Q354))))","v":{"$error":"#REF!"}}]
[null,null,null,null,null,null,null,null,{"$f":"A343/N344","v":{"$error":"#REF!"}},{"$f":"ROUND(ABS(A343),-11)","v":{"$error":"#REF!"}},{"$f":"A343-J344","v":{"$error":"#REF!"}},{"$f":"IF(K344<0,(A343-J344+N344*10),K344)","v":{"$error":"#REF!"}},{"$error":"#REF!"},10000000000,{"$f":"VALUE(IF(M344=0,0,M344))","v":{"$error":"#REF!"}},{"$f":"IF(M344>0,VLOOKUP(M344,$B$3:$H$12,IF(T344>0,2,3),0),0)","v":{"$error":"#REF!"}},null,{"$f":"SUM(M343:M344)","v":{"$error":"#REF!"}},{"$f":"IF(SUM(R343:R344)>0,1,0)","v":{"$error":"#REF!"}},{"$f":"IF(S344<>S343,1,0)","v":{"$error":"#REF!"}},null,null,{"$f":"CONCATENATE(W343,\" \",W361)","v":{"$error":"#REF!"}}]
[{"$f":"VLOOKUP(A346,'    '!D356:F358,3,0)","v":{"$error":"#REF!"}},1,"Арван","арван","Нэг","нэг","Нэг",{"$f":"IF(O351=1,F345,H354)","v":{"$error":"#REF!"}},{"$f":"A343/N345","v":{"$error":"#REF!"}},{"$f":"ROUND(ABS(A343),-10)","v":{"$error":"#REF!"}},{"$f":"A343-J345","v":{"$error":"#REF!"}},{"$f":"IF(K345<0,(A343-J345+N345*10),K345)","v":{"$error":"#REF!"}},{"$error":"#REF!"},1000000000,{"$error":"#REF!"},{"$f":"IF(M345>0,VLOOKUP(M345,$B$3:$H$12,IF(T345>0,6,7),0),0)","v":{"$error":"#REF!"}},"тэрбум",{"$f":"SUM(M343:M345)","v":{"$error":"#REF!"}},{"$f":"IF(SUM(R344:R345)>0,1,0)","v":{"$error":"#REF!"}},{"$f":"IF(S345<>S344,1,0)","v":{"$error":"#REF!"}},{"$f":"SUM(O346:O348)","v":{"$error":"#REF!"}}]
[{"$f":"IF(#REF!=E356,D356,IF(#REF!=E357,D357,IF(#REF!=E358,D358,1)))","v":{"$error":"#REF!"}},2,"Хорин","хорин","Хоёр","хоёр","Хоёр","хоёр",{"$f":"A343/N346","v":{"$error":"#REF!"}},{"$f":"ROUND(ABS(A343),-9)","v":{"$error":"#REF!"}},{"$f":"A343-J346","v":{"$error":"#REF!"}},{"$f":"IF(K346<0,(A343-J346+N346*10),K346)","v":{"$error":"#REF!"}},{"$error":"#REF!"},100000000,{"$error":"#REF!"},{"$f":"IF(M346>0,VLOOKUP(M346,$B$3:$H$12,IF(T346>0,6,7),0),0)","v":{"$error":"#REF!"}},"зуун",{"$f":"SUM(M343:M346)","v":{"$error":"#REF!"}},{"$error":"#REF!"},{"$error":"#REF!"}]
[{"$f":"VLOOKUP(A346,D356:G358,4,0)","v":{"$error":"#REF!"}},3,"Гучин","гучин","Гурав","гурав","Гурван","гурван",{"$f":"A343/N347","v":{"$error":"#REF!"}},{"$f":"ROUND(ABS(A343),-8)","v":{"$error":"#REF!"}},{"$f":"A343-J347","v":{"$error":"#REF!"}},{"$f":"IF(K347<0,(A343-J347+N347*10),K347)","v":{"$error":"#REF!"}},{"$error":"#REF!"},10000000,{"$error":"#REF!"},{"$f":"IF(M347>0,VLOOKUP(M347,$B$3:$H$12,IF(T347>0,2,3),0),0)","v":{"$error":"#REF!"}},null,{"$f":"SUM(M343:M347)","v":{"$error":"#REF!"}},{"$error":"#REF!"},{"$error":"#REF!"}]
[{"$f":"VLOOKUP(A346,D356:K358,6,0)","v":{"$error":"#REF!"}},4,"Дөчин","дөчин","Дөрөв","дөрөв","Дөрвөн","дөрвөн",{"$f":"A343/N348","v":{"$error":"#REF!"}},{"$f":"ROUND(ABS(A343),-7)","v":{"$error":"#REF!"}},{"$f":"A343-J348","v":{"$error":"#REF!"}},{"$f":"IF(K348<0,(A343-J348+N348*10),K348)","v":{"$error":"#REF!"}},{"$error":"#REF!"},1000000,{"$error":"#REF!"},{"$f":"IF(M348>0,VLOOKUP(M348,$B$3:$H$12,IF(T348>0,6,7),0),0)","v":{"$error":"#REF!"}},"сая",{"$f":"SUM(M343:M348)","v":{"$error":"#REF!"}},{"$error":"#REF!"},{"$error":"#REF!"},{"$f":"SUM(O349:O351)","v":{"$error":"#REF!"}}]
[{"$f":"VLOOKUP(A346,D356:K358,5,0)","v":{"$error":"#REF!"}},5,"Тавин","тавин","Тав","тав","Таван","таван",{"$f":"A343/N349","v":{"$error":"#REF!"}},{"$f":"ROUND(A343,-6.4)","v":{"$error":"#REF!"}},{"$f":"A343-J349","v":{"$error":"#REF!"}},{"$f":"IF(K349<0,(A343-J349+N349*10),K349)","v":{"$error":"#REF!"}},{"$error":"#REF!"},100000,{"$error":"#REF!"},{"$f":"IF(M349>0,VLOOKUP(M349,$B$3:$H$12,IF(T349>0,6,7),0),0)","v":{"$error":"#REF!"}},"зуун",{"$f":"SUM(M343:M349)","v":{"$error":"#REF!"}},{"$error":"#REF!"},{"$error":"#REF!"}]
[null,6,"Жаран","жаран","Зургаа","зургаа","Зургаан","зургаан",{"$f":"A343/N350","v":{"$error":"#REF!"}},{"$f":"ROUND(ABS(A343),-5)","v":{"$error":"#REF!"}},{"$f":"A343-J350","v":{"$error":"#REF!"}},{"$f":"IF(K350<0,(A343-J350+N350*10),K350)","v":{"$error":"#REF!"}},{"$error":"#REF!"},10000,{"$error":"#REF!"},{"$f":"IF(M350>0,VLOOKUP(M350,$B$3:$H$12,IF(T350>0,2,3),0),0)","v":{"$error":"#REF!"}},null,{"$f":"SUM(M343:M350)","v":{"$error":"#REF!"}},{"$error":"#REF!"},{"$error":"#REF!"}]
[null,7,"Далан","далан","Долоо","долоо","Долоон","долоон",{"$f":"A343/N351","v":{"$error":"#REF!"}},{"$f":"ROUND(ABS(A343),-4)","v":{"$error":"#REF!"}},{"$f":"A343-J351","v":{"$error":"#REF!"}},{"$f":"IF(K351<0,(A343-J351+N351*10),K351)","v":{"$error":"#REF!"}},{"$error":"#REF!"},1000,{"$error":"#REF!"},{"$f":"IF(M351>0,VLOOKUP(M351,$B$3:$H$12,IF(T351>0,6,7),0),0)","v":{"$error":"#REF!"}},{"$f":"IF(U351=B356,C357,C356)","v":{"$error":"#REF!"}},{"$f":"SUM(M343:M351)","v":{"$error":"#REF!"}},{"$error":"#REF!"},{"$error":"#REF!"},{"$f":"SUM(O352:O354)","v":{"$error":"#REF!"}}]
[null,8,"Наян","наян","Найм","найм","Найман","найман",{"$f":"A343/N352","v":{"$error":"#REF!"}},{"$f":"ROUND(ABS(A343),-3)","v":{"$error":"#REF!"}},{"$f":"A343-J352","v":{"$error":"#REF!"}},{"$f":"IF(K352<0,(A343-J352+N352*10),K352)","v":{"$error":"#REF!"}},{"$error":"#REF!"},100,{"$error":"#REF!"},{"$f":"IF(M352>0,VLOOKUP(M352,$B$3:$H$12,IF(T352>0,6,7),0),0)","v":{"$error":"#REF!"}},"зуун",{"$f":"SUM(M343:M352)","v":{"$error":"#REF!"}},{"$error":"#REF!"},{"$error":"#REF!"}]
[null,9,"Ерэн","ерэн","Ес","ес","Есөн","есөн",{"$f":"A343/N353","v":{"$error":"#REF!"}},{"$f":"ROUND(ABS(A343),-2)","v":{"$error":"#REF!"}},{"$f":"A343-J353","v":{"$error":"#REF!"}},{"$f":"IF(K353<0,(A343-J353+N353*10),K353)","v":{"$error":"#REF!"}},{"$f":"(L353-L354)/N353","v":{"$error":"#REF!"}},{"$f":"N354*10","v":10},{"$error":"#REF!"},{"$f":"IF(M353>0,VLOOKUP(M353,$B$3:$H$12,IF(T353>0,2,3),0),0)","v":{"$error":"#REF!"}},null,{"$f":"SUM(M343:M353)","v":{"$error":"#REF!"}},{"$error":"#REF!"},{"$error":"#REF!"}]
[null,0,null,null,"Арав","арав",null,"нэгэн",{"$f":"A343/N354","v":{"$error":"#REF!"}},{"$f":"ROUND(ABS(A343),-1)","v":{"$error":"#REF!"}},{"$f":"A343-J354","v":{"$error":"#REF!"}},{"$f":"IF(K354<0,(A343-J354+N354*10),K354)","v":{"$error":"#REF!"}},{"$f":"(L354-L355)/N354","v":{"$error":"#REF!"}},1,{"$error":"#REF!"},{"$f":"IF(M354>0,VLOOKUP(M354,$B$3:$H$12,IF(T354>0,6,7),0),0)","v":{"$error":"#REF!"}},{"$f":"VLOOKUP(O354,B345:F354,5,0)","v":{"$error":"#REF!"}},{"$f":"SUM(M343:M354)","v":{"$error":"#REF!"}},{"$error":"#REF!"},{"$error":"#REF!"}]
[]
[null,0,"мянга",2,"USD","ам.доллар","ам.долларын","ам.долларыг","ам.доллараас"]
[null,1,"мянган",1,"MNT","төгрөг","төгрөгийн","төгрөгийг","төгрөгөөс"]
[null,null,"сая",3,"CNY","юань","юаний","юанийг","юаниас"]
[]
[{"$f":"#REF!","v":{"$error":"#REF!"}}]
[{"$f":"+A360-A343","v":{"$error":"#REF!"}},null,null,null,null,null,null,null,null,null,{"$f":"IF(SUM(J362:J364)=0,\"\",IF(SUM(J362:J363)=0,\"аравны\",IF(J362=0,\"зууны\",\"мянганы\")))","v":{"$error":"#REF!"}},null,null,null,null,null,null,null,null,null,null,null,{"$f":"CONCATENATE(K361,\" \",P364,\" \",Q364,\" \",P363,\" \",P362)","v":{"$error":"#REF!"}}]
[null,null,null,null,null,null,null,3,{"$f":"ROUND(A361*N362,H362)","v":{"$error":"#REF!"}},{"$f":"INT(VALUE(I362)-J363*N364-J364*N363)","v":{"$error":"#REF!"}},null,null,null,{"$f":"N363*10","v":1000},null,{"$f":"IF(J362>0,VLOOKUP(J362,$B$3:$H$12,IF(K361=\"мянганы\",7,IF(K361=\"зууны\",3,IF(K361=\"аравны\",7,\"\"))),0),\"\")","v":{"$error":"#REF!"}}]
[null,null,null,null,null,null,null,2,{"$f":"ROUND(A361*N363,H363)","v":{"$error":"#REF!"}},{"$f":"VALUE(INT(I363))-J364*N364","v":{"$error":"#REF!"}},null,null,null,{"$f":"N364*10","v":100},null,{"$f":"IF(J363>0,VLOOKUP(J363,$B$3:$H$12,IF(K361=\"мянганы\",3,IF(K361=\"зууны\",7,IF(K361=\"аравны\",3,\"\"))),0),\"\")","v":{"$error":"#REF!"}}]
[null,null,null,null,null,null,null,1,{"$f":"ROUND(A361*N364,H364)","v":{"$error":"#REF!"}},{"$f":"VALUE(INT(I364))","v":{"$error":"#REF!"}},null,null,null,{"$f":"N365*10","v":10},null,{"$f":"IF(J364>0,VLOOKUP(J364,$B$3:$H$12,IF(K361=\"мянганы\",7,IF(K361=\"зууны\",3,IF(K361=\"аравны\",7,\"\"))),0),\"\")","v":{"$error":"#REF!"}},{"$f":"IF(K361=\"мянганы\",IF(AND(SUM(J363:J364)=0,J362>0),\"\",\"зуун\"),\"\")","v":{"$error":"#REF!"}}]
[null,null,null,null,null,null,null,null,null,null,null,null,null,1]